Workbook

Sheet Cover

Sheet Model Index
B9: A. | E9: B. | H9: C. | K9: D.
B11: A. | E11: B. | H11: C. | K11: D.
B13: A. | E13: B. | H13: C.
B15: A. | E15: B. | H15: C. | K15: E.
H17: C.
B20: Version | D20: Date | F20: Description | L20: Approved By:
B21: 1 | D21: 2019-01-02 | F21: Final | L21: Ausgrid

Sheet A. Summary
A1: Asset Summary Information
A3: Data Inputs
B5: Data Inputs
B6: Population | C6: ='A. Age Profile'!L5 -> 581
B7: Object Types | C7: Service
B8: Conditional & Function Failures (count) | C8: 24064
B9: Analysis Period (Years) | C9: 6
B10: Asset RAB Life (Years) | C10: ='D. Risk Index Parameters'!E23 -> 52.07
B11: Planned Replacement Cost | C11: ='D. Risk Index Parameters'!$E$22 -> 414
B12: WACC | C12: ='D. Risk Index Parameters'!$E$21 -> 0.039
B15: Loss of Supply Consequence Information
B16: ='C. PoC Summary Stats & Para'!C16 -> Proportion Failures Resulting in Unserved Energy | C16: ='C. PoC Summary Stats & Para'!E16 -> 0.1
B17: Value of Customer Reliability (VCR) per kWh | C17: ='C. PoC Summary Stats & Para'!F14 -> 40.729
B18: Outage Type (HV / LV / CBD) | C18: ='C. PoC Summary Stats & Para'!F18 -> LV
B19: Automatic Protection Time (minutes) | C19: ='C. PoC Summary Stats & Para'!F19 -> 0
B20: Switching Time (hours) | C20: ='C. PoC Summary Stats & Para'!F20 -> 0
B21: Restoration/Repair Time (hours) | C21: ='C. PoC Summary Stats & Para'!F21 -> 4
B22: Automatic Protection (% load) | C22: ='C. PoC Summary Stats & Para'!F22 -> 0
B23: Switching (% load) | C23: ='C. PoC Summary Stats & Para'!F23 -> 0
B24: Restoration/Repair (% load) | C24: ='C. PoC Summary Stats & Para'!F24 -> 1
B25: Time without Supply (hours) | C25: ='C. PoC Summary Stats & Para'!F25 -> 0.4
B26: Avg. Value of Energy Unserved (per asset per event) | C26: =AVERAGE('C. Reliability Consequence'!H6:$H$1048576) -> 52.3937856
B29: Finance Consequence Information
B30: Reactive Replacement Cost | C30: ='C. PoC Summary Stats & Para'!E31 -> 496.8
B31: Repair Cost | C31: ='C. PoC Summary Stats & Para'!E33 -> 350
B32: Proportion Replacement | C32: ='C. PoC Summary Stats & Para'!E32 -> 1
B33: ='C. PoC Summary Stats & Para'!C35 -> Weighted Replacement / Repair Cost | C33: ='C. PoC Summary Stats & Para'!E35 -> 18.6479307
B34: Maintenance original asset per annum | C34: ='C. PoC Summary Stats & Para'!E38 -> 0
B35: Maintenance replacement asset per annum | C35: ='C. PoC Summary Stats & Para'!E39 -> 0
B36: Maintenance benefit per asset per annum | C36: ='C. PoC Summary Stats & Para'!E40 -> 0
A39: Failure Model Parameters
B41: Weibull Parameters | E41: Crow-AMSAA Parameters
B42: βgood | C42: =IF('B. PoF Summary Stats & Params'!$C$12="C", "Not Applicable", 'B. PoF Summary Stats & Params'!M12) -> 2.8379 | E42: βgood | F42: =IF('B. PoF Summary Stats & Params'!$C$12="W", "Not Applicable", 'B. PoF Summary Stats & Params'!I12) -> Not Applicable
B43: ηgood | C43: =IF('B. PoF Summary Stats & Params'!$C$12="C", "Not Applicable", 'B. PoF Summary Stats & Params'!O12) -> 102.9524 | E43: βaverage | F43: =IF('B. PoF Summary Stats & Params'!$C$12="W", "Not Applicable", 'B. PoF Summary Stats & Params'!I6) -> Not Applicable
B44: βaverage | C44: =IF('B. PoF Summary Stats & Params'!$C$12="C", "Not Applicable", 'B. PoF Summary Stats & Params'!M6) -> 2.844 | E44: βpoor | F44: =IF('B. PoF Summary Stats & Params'!$C$12="W", "Not Applicable", 'B. PoF Summary Stats & Params'!I10) -> Not Applicable
B45: ηaverage | C45: =IF('B. PoF Summary Stats & Params'!$C$12="C", "Not Applicable", 'B. PoF Summary Stats & Params'!M8) -> 101.945 | E45: λaverage | F45: =IF('B. PoF Summary Stats & Params'!$C$12="W", "Not Applicable", 'B. PoF Summary Stats & Params'!I8) -> Not Applicable
B46: βpoor | C46: =IF('B. PoF Summary Stats & Params'!$C$12="C", "Not Applicable", 'B. PoF Summary Stats & Params'!M14) -> 2.85
B47: ηpoor | C47: =IF('B. PoF Summary Stats & Params'!$C$12="C", "Not Applicable", 'B. PoF Summary Stats & Params'!O14) -> 100.9517
B48: b (intercept) | C48: =IF('B. PoF Summary Stats & Params'!$C$12="C", "Not Applicable", 'B. PoF Summary Stats & Params'!M10) -> -13.1518
A51: Adjustments to Probability of Failure (PoF)
B53: PoF Adjustment Fators
B54: =IF(ISBLANK('A. Population Info'!G5), "", 'A. Population Info'!G5) -> Construction Type
B55: =IF(ISBLANK('A. Population Info'!H5), "", 'A. Population Info'!H5) -> 
B56: =IF(ISBLANK('A. Population Info'!I5), "", 'A. Population Info'!I5) -> 
B57: =IF(ISBLANK('A. Population Info'!J5), "", 'A. Population Info'!J5) -> 
B58: =IF(ISBLANK('A. Population Info'!K5), "", 'A. Population Info'!K5) -> 
A61: Adjustments to Probability of Consequence (PoC)
B63: PoC Adjustment Factors
B64: =IF(ISBLANK('A. Population Info'!L5), "", 'A. Population Info'!L5) -> Spatial_Risk_Score
B65: =IF(ISBLANK('A. Population Info'!M5), "", 'A. Population Info'!M5) -> 
B66: =IF(ISBLANK('A. Population Info'!N5), "", 'A. Population Info'!N5) -> 
B67: =IF(ISBLANK('A. Population Info'!O5), "", 'A. Population Info'!O5) -> 
B68: =IF(ISBLANK('A. Population Info'!P5), "", 'A. Population Info'!P5) -> 
A71: Model Calculated Failures
E73: Financial Year | F73: FY19 | G73: FY20 | H73: FY21 | I73: FY22 | J73: FY23 | K73: FY24
E74: Model Calculated Failures | F74: ='B. Asset PoF & Health Index'!J4 -> 4009.142649 | G74: ='B. Asset PoF & Health Index'!K4 -> 4149.105844 | H74: ='B. Asset PoF & Health Index'!L4 -> 4292.715642 | I74: ='B. Asset PoF & Health Index'!M4 -> 4439.938387 | J74: ='B. Asset PoF & Health Index'!N4 -> 4590.743967 | K74: ='B. Asset PoF & Health Index'!O4 -> 4745.105026
A79: Asset Health Index
A118: Asset Risk Index

Sheet A. Population Info
C1: Asset Population Information
A4: Asset Identifier | B4: Asset Age | C4: Asset Length or Number within Asset ID | D4: Reliability Asset ID | E4: Average Energy Usage (kWh/day) | F4: Reliability Asset Voltage | G4: PoF Factor 1 | H4: PoF Factor 2 | I4: PoF Factor 3 | J4: PoF Factor 4 | K4: PoF Factor 5 | L4: Consequence Factor 1 | M4: Consequence Factor 2 | N4: Consequence Factor 3 | O4: Consequence Factor 4 | P4: Consequence Factor 5
G5: Construction Type | L5: Spatial_Risk_Score
A6: 1 | B6: 1 | C6: 1 | D6: 1 | E6: 3.216 | F6: LV | G6: MAYBE PVC SINGLE | L6: 4
A7: 2 | B7: 2 | C7: 5 | D7: 2 | E7: 3.216 | F7: LV | G7: BARE | L7: 1
A8: 3 | B8: 2 | C8: 3 | D8: 3 | E8: 3.216 | F8: LV | G8: BARE OR PVC SINGLE | L8: 1
A9: 4 | B9: 2 | C9: 4 | D9: 4 | E9: 3.216 | F9: LV | G9: INVALID | L9: 1
A10: 5 | B10: 2 | C10: 18 | D10: 5 | E10: 3.216 | F10: LV | G10: MAYBE PVC SINGLE | L10: 3
A11: 6 | B11: 2 | C11: 55 | D11: 6 | E11: 3.216 | F11: LV | G11: PVC | L11: 2
A12: 7 | B12: 2 | C12: 6 | D12: 7 | E12: 3.216 | F12: LV | G12: UG | L12: 2
A13: 8 | B13: 2 | C13: 537 | D13: 8 | E13: 3.216 | F13: LV | G13: UNKNOWN | L13: 2
A14: 9 | B14: 2 | C14: 8038 | D14: 9 | E14: 3.216 | F14: LV | G14: XLPE | L14: 2
A15: 10 | B15: 3 | C15: 10 | D15: 10 | E15: 3.216 | F15: LV | G15: BARE | L15: 2
A16: 11 | B16: 3 | C16: 11 | D16: 11 | E16: 3.216 | F16: LV | G16: BARE OR PVC SINGLE | L16: 2
A17: 12 | B17: 3 | C17: 16 | D17: 12 | E17: 3.216 | F17: LV | G17: INVALID | L17: 2
A18: 13 | B18: 3 | C18: 40 | D18: 13 | E18: 3.216 | F18: LV | G18: MAYBE PVC SINGLE | L18: 3
A19: 14 | B19: 3 | C19: 100 | D19: 14 | E19: 3.216 | F19: LV | G19: PVC | L19: 2
A20: 15 | B20: 3 | C20: 18 | D20: 15 | E20: 3.216 | F20: LV | G20: UG | L20: 2
A21: 16 | B21: 3 | C21: 893 | D21: 16 | E21: 3.216 | F21: LV | G21: UNKNOWN | L21: 2
A22: 17 | B22: 3 | C22: 17985 | D22: 17 | E22: 3.216 | F22: LV | G22: XLPE | L22: 2
A23: 18 | B23: 4 | C23: 6 | D23: 18 | E23: 3.216 | F23: LV | G23: BARE | L23: 1
A24: 19 | B24: 4 | C24: 78 | D24: 19 | E24: 3.216 | F24: LV | G24: BARE OR PVC SINGLE | L24: 2
A25: 20 | B25: 4 | C25: 10 | D25: 20 | E25: 3.216 | F25: LV | G25: INVALID | L25: 2
A26: 21 | B26: 4 | C26: 181 | D26: 21 | E26: 3.216 | F26: LV | G26: MAYBE PVC SINGLE | L26: 3
A27: 22 | B27: 4 | C27: 114 | D27: 22 | E27: 3.216 | F27: LV | G27: PVC | L27: 2
A28: 23 | B28: 4 | C28: 27 | D28: 23 | E28: 3.216 | F28: LV | G28: UG | L28: 2
A29: 24 | B29: 4 | C29: 749 | D29: 24 | E29: 3.216 | F29: LV | G29: UNKNOWN | L29: 2
A30: 25 | B30: 4 | C30: 22659 | D30: 25 | E30: 3.216 | F30: LV | G30: XLPE | L30: 2
A31: 26 | B31: 5 | C31: 27 | D31: 26 | E31: 3.216 | F31: LV | G31: BARE | L31: 1
A32: 27 | B32: 5 | C32: 152 | D32: 27 | E32: 3.216 | F32: LV | G32: BARE OR PVC SINGLE | L32: 2
A33: 28 | B33: 5 | C33: 12 | D33: 28 | E33: 3.216 | F33: LV | G33: INVALID | L33: 2
A34: 29 | B34: 5 | C34: 224 | D34: 29 | E34: 3.216 | F34: LV | G34: MAYBE PVC SINGLE | L34: 3
A35: 30 | B35: 5 | C35: 134 | D35: 30 | E35: 3.216 | F35: LV | G35: PVC | L35: 2
A36: 31 | B36: 5 | C36: 21 | D36: 31 | E36: 3.216 | F36: LV | G36: UG | L36: 2
A37: 32 | B37: 5 | C37: 762 | D37: 32 | E37: 3.216 | F37: LV | G37: UNKNOWN | L37: 1
A38: 33 | B38: 5 | C38: 21680 | D38: 33 | E38: 3.216 | F38: LV | G38: XLPE | L38: 1
A39: 34 | B39: 6 | C39: 16 | D39: 34 | E39: 3.216 | F39: LV | G39: BARE | L39: 1
A40: 35 | B40: 6 | C40: 18 | D40: 35 | E40: 3.216 | F40: LV | G40: BARE OR PVC SINGLE | L40: 2
A41: 36 | B41: 6 | C41: 12 | D41: 36 | E41: 3.216 | F41: LV | G41: INVALID | L41: 2
A42: 37 | B42: 6 | C42: 48 | D42: 37 | E42: 3.216 | F42: LV | G42: MAYBE PVC SINGLE | L42: 2
A43: 38 | B43: 6 | C43: 182 | D43: 38 | E43: 3.216 | F43: LV | G43: PVC | L43: 2
A44: 39 | B44: 6 | C44: 16 | D44: 39 | E44: 3.216 | F44: LV | G44: UG | L44: 2
A45: 40 | B45: 6 | C45: 987 | D45: 40 | E45: 3.216 | F45: LV | G45: UNKNOWN | L45: 1
A46: 41 | B46: 6 | C46: 18156 | D46: 41 | E46: 3.216 | F46: LV | G46: XLPE | L46: 1
A47: 42 | B47: 7 | C47: 13 | D47: 42 | E47: 3.216 | F47: LV | G47: BARE | L47: 1
A48: 43 | B48: 7 | C48: 14 | D48: 43 | E48: 3.216 | F48: LV | G48: BARE OR PVC SINGLE | L48: 2
A49: 44 | B49: 7 | C49: 6 | D49: 44 | E49: 3.216 | F49: LV | G49: INVALID | L49: 2
A50: 45 | B50: 7 | C50: 201 | D50: 45 | E50: 3.216 | F50: LV | G50: MAYBE PVC SINGLE | L50: 2
A51: 46 | B51: 7 | C51: 509 | D51: 46 | E51: 3.216 | F51: LV | G51: PVC | L51: 2
A52: 47 | B52: 7 | C52: 23 | D52: 47 | E52: 3.216 | F52: LV | G52: UG | L52: 2
A53: 48 | B53: 7 | C53: 1169 | D53: 48 | E53: 3.216 | F53: LV | G53: UNKNOWN | L53: 1
A54: 49 | B54: 7 | C54: 20354 | D54: 49 | E54: 3.216 | F54: LV | G54: XLPE | L54: 2
A55: 50 | B55: 8 | C55: 16 | D55: 50 | E55: 3.216 | F55: LV | G55: BARE | L55: 2
A56: 51 | B56: 8 | C56: 26 | D56: 51 | E56: 3.216 | F56: LV | G56: BARE OR PVC SINGLE | L56: 2
A57: 52 | B57: 8 | C57: 13 | D57: 52 | E57: 3.216 | F57: LV | G57: INVALID | L57: 2
A58: 53 | B58: 8 | C58: 123 | D58: 53 | E58: 3.216 | F58: LV | G58: MAYBE PVC SINGLE | L58: 2
A59: 54 | B59: 8 | C59: 435 | D59: 54 | E59: 3.216 | F59: LV | G59: PVC | L59: 1
A60: 55 | B60: 8 | C60: 30 | D60: 55 | E60: 3.216 | F60: LV | G60: UG | L60: 3
A61: 56 | B61: 8 | C61: 976 | D61: 56 | E61: 3.216 | F61: LV | G61: UNKNOWN | L61: 2
A62: 57 | B62: 8 | C62: 17289 | D62: 57 | E62: 3.216 | F62: LV | G62: XLPE | L62: 2
A63: 58 | B63: 9 | C63: 7 | D63: 58 | E63: 3.216 | F63: LV | G63: BARE | L63: 1
A64: 59 | B64: 9 | C64: 14 | D64: 59 | E64: 3.216 | F64: LV | G64: BARE OR PVC SINGLE | L64: 2
A65: 60 | B65: 9 | C65: 13 | D65: 60 | E65: 3.216 | F65: LV | G65: INVALID | L65: 2
A66: 61 | B66: 9 | C66: 494 | D66: 61 | E66: 3.216 | F66: LV | G66: MAYBE PVC SINGLE | L66: 1
A67: 62 | B67: 9 | C67: 696 | D67: 62 | E67: 3.216 | F67: LV | G67: PVC | L67: 2
A68: 63 | B68: 9 | C68: 26 | D68: 63 | E68: 3.216 | F68: LV | G68: UG | L68: 2
A69: 64 | B69: 9 | C69: 781 | D69: 64 | E69: 3.216 | F69: LV | G69: UNKNOWN | L69: 1
A70: 65 | B70: 9 | C70: 15856 | D70: 65 | E70: 3.216 | F70: LV | G70: XLPE | L70: 2
A71: 66 | B71: 10 | C71: 16 | D71: 66 | E71: 3.216 | F71: LV | G71: BARE | L71: 1
A72: 67 | B72: 10 | C72: 23 | D72: 67 | E72: 3.216 | F72: LV | G72: BARE OR PVC SINGLE | L72: 1
A73: 68 | B73: 10 | C73: 21 | D73: 68 | E73: 3.216 | F73: LV | G73: INVALID | L73: 2
A74: 69 | B74: 10 | C74: 232 | D74: 69 | E74: 3.216 | F74: LV | G74: MAYBE PVC SINGLE | L74: 2
A75: 70 | B75: 10 | C75: 380 | D75: 70 | E75: 3.216 | F75: LV | G75: PVC | L75: 2
A76: 71 | B76: 10 | C76: 27 | D76: 71 | E76: 3.216 | F76: LV | G76: UG | L76: 2
A77: 72 | B77: 10 | C77: 1199 | D77: 72 | E77: 3.216 | F77: LV | G77: UNKNOWN | L77: 2
A78: 73 | B78: 10 | C78: 24790 | D78: 73 | E78: 3.216 | F78: LV | G78: XLPE | L78: 2
A79: 74 | B79: 11 | C79: 11 | D79: 74 | E79: 3.216 | F79: LV | G79: BARE | L79: 1
A80: 75 | B80: 11 | C80: 12 | D80: 75 | E80: 3.216 | F80: LV | G80: BARE OR PVC SINGLE | L80: 4
A81: 76 | B81: 11 | C81: 15 | D81: 76 | E81: 3.216 | F81: LV | G81: INVALID | L81: 2
A82: 77 | B82: 11 | C82: 46 | D82: 77 | E82: 3.216 | F82: LV | G82: MAYBE PVC SINGLE | L82: 3
A83: 78 | B83: 11 | C83: 747 | D83: 78 | E83: 3.216 | F83: LV | G83: PVC | L83: 3
A84: 79 | B84: 11 | C84: 23 | D84: 79 | E84: 3.216 | F84: LV | G84: UG | L84: 3
A85: 80 | B85: 11 | C85: 1037 | D85: 80 | E85: 3.216 | F85: LV | G85: UNKNOWN | L85: 2
A86: 81 | B86: 11 | C86: 18665 | D86: 81 | E86: 3.216 | F86: LV | G86: XLPE | L86: 2
A87: 82 | B87: 12 | C87: 21 | D87: 82 | E87: 3.216 | F87: LV | G87: BARE | L87: 1
A88: 83 | B88: 12 | C88: 18 | D88: 83 | E88: 3.216 | F88: LV | G88: BARE OR PVC SINGLE | L88: 2
A89: 84 | B89: 12 | C89: 9 | D89: 84 | E89: 3.216 | F89: LV | G89: INVALID | L89: 2
A90: 85 | B90: 12 | C90: 165 | D90: 85 | E90: 3.216 | F90: LV | G90: MAYBE PVC SINGLE | L90: 2
A91: 86 | B91: 12 | C91: 87 | D91: 86 | E91: 3.216 | F91: LV | G91: PVC | L91: 2
A92: 87 | B92: 12 | C92: 12 | D92: 87 | E92: 3.216 | F92: LV | G92: UG | L92: 1
A93: 88 | B93: 12 | C93: 683 | D93: 88 | E93: 3.216 | F93: LV | G93: UNKNOWN | L93: 2
A94: 89 | B94: 12 | C94: 16359 | D94: 89 | E94: 3.216 | F94: LV | G94: XLPE | L94: 2
A95: 90 | B95: 13 | C95: 28 | D95: 90 | E95: 3.216 | F95: LV | G95: BARE | L95: 1
A96: 91 | B96: 13 | C96: 186 | D96: 91 | E96: 3.216 | F96: LV | G96: BARE OR PVC SINGLE | L96: 2
A97: 92 | B97: 13 | C97: 16 | D97: 92 | E97: 3.216 | F97: LV | G97: INVALID | L97: 2
A98: 93 | B98: 13 | C98: 206 | D98: 93 | E98: 3.216 | F98: LV | G98: MAYBE PVC SINGLE | L98: 2
A99: 94 | B99: 13 | C99: 272 | D99: 94 | E99: 3.216 | F99: LV | G99: PVC | L99: 2
A100: 95 | B100: 13 | C100: 27 | D100: 95 | E100: 3.216 | F100: LV | G100: UG | L100: 2
A101: 96 | B101: 13 | C101: 1250 | D101: 96 | E101: 3.216 | F101: LV | G101: UNKNOWN | L101: 2
A102: 97 | B102: 13 | C102: 15602 | D102: 97 | E102: 3.216 | F102: LV | G102: XLPE | L102: 2
A103: 98 | B103: 14 | C103: 117 | D103: 98 | E103: 3.216 | F103: LV | G103: BARE | L103: 2
A104: 99 | B104: 14 | C104: 29 | D104: 99 | E104: 3.216 | F104: LV | G104: BARE OR PVC SINGLE | L104: 2
A105: 100 | B105: 14 | C105: 30 | D105: 100 | E105: 3.216 | F105: LV | G105: INVALID | L105: 2
A106: 101 | B106: 14 | C106: 96 | D106: 101 | E106: 3.216 | F106: LV | G106: MAYBE PVC SINGLE | L106: 2
A107: 102 | B107: 14 | C107: 355 | D107: 102 | E107: 3.216 | F107: LV | G107: PVC | L107: 2
A108: 103 | B108: 14 | C108: 59 | D108: 103 | E108: 3.216 | F108: LV | G108: UG | L108: 2
A109: 104 | B109: 14 | C109: 3441 | D109: 104 | E109: 3.216 | F109: LV | G109: UNKNOWN | L109: 1
A110: 105 | B110: 14 | C110: 6524 | D110: 105 | E110: 3.216 | F110: LV | G110: XLPE | L110: 2
A111: 106 | B111: 15 | C111: 51 | D111: 106 | E111: 3.216 | F111: LV | G111: BARE | L111: 1
A112: 107 | B112: 15 | C112: 15 | D112: 107 | E112: 3.216 | F112: LV | G112: BARE OR PVC SINGLE | L112: 2
A113: 108 | B113: 15 | C113: 23 | D113: 108 | E113: 3.216 | F113: LV | G113: INVALID | L113: 2
A114: 109 | B114: 15 | C114: 95 | D114: 109 | E114: 3.216 | F114: LV | G114: MAYBE PVC SINGLE | L114: 2
A115: 110 | B115: 15 | C115: 217 | D115: 110 | E115: 3.216 | F115: LV | G115: PVC | L115: 2
A116: 111 | B116: 15 | C116: 33 | D116: 111 | E116: 3.216 | F116: LV | G116: UG | L116: 2
A117: 112 | B117: 15 | C117: 3220 | D117: 112 | E117: 3.216 | F117: LV | G117: UNKNOWN | L117: 1
A118: 113 | B118: 15 | C118: 7069 | D118: 113 | E118: 3.216 | F118: LV | G118: XLPE | L118: 2
A119: 114 | B119: 16 | C119: 34 | D119: 114 | E119: 3.216 | F119: LV | G119: BARE | L119: 1
A120: 115 | B120: 16 | C120: 25 | D120: 115 | E120: 3.216 | F120: LV | G120: BARE OR PVC SINGLE | L120: 1
A121: 116 | B121: 16 | C121: 11 | D121: 116 | E121: 3.216 | F121: LV | G121: INVALID | L121: 3
A122: 117 | B122: 16 | C122: 49 | D122: 117 | E122: 3.216 | F122: LV | G122: MAYBE PVC SINGLE | L122: 2
A123: 118 | B123: 16 | C123: 150 | D123: 118 | E123: 3.216 | F123: LV | G123: PVC | L123: 2
A124: 119 | B124: 16 | C124: 30 | D124: 119 | E124: 3.216 | F124: LV | G124: UG | L124: 2
A125: 120 | B125: 16 | C125: 2112 | D125: 120 | E125: 3.216 | F125: LV | G125: UNKNOWN | L125: 1
A126: 121 | B126: 16 | C126: 6417 | D126: 121 | E126: 3.216 | F126: LV | G126: XLPE | L126: 2
A127: 122 | B127: 17 | C127: 54 | D127: 122 | E127: 3.216 | F127: LV | G127: BARE | L127: 2
A128: 123 | B128: 17 | C128: 17 | D128: 123 | E128: 3.216 | F128: LV | G128: BARE OR PVC SINGLE | L128: 2
A129: 124 | B129: 17 | C129: 8 | D129: 124 | E129: 3.216 | F129: LV | G129: INVALID | L129: 2
A130: 125 | B130: 17 | C130: 54 | D130: 125 | E130: 3.216 | F130: LV | G130: MAYBE PVC SINGLE | L130: 2
A131: 126 | B131: 17 | C131: 119 | D131: 126 | E131: 3.216 | F131: LV | G131: PVC | L131: 2
A132: 127 | B132: 17 | C132: 22 | D132: 127 | E132: 3.216 | F132: LV | G132: UG | L132: 2
A133: 128 | B133: 17 | C133: 1893 | D133: 128 | E133: 3.216 | F133: LV | G133: UNKNOWN | L133: 1
A134: 129 | B134: 17 | C134: 5264 | D134: 129 | E134: 3.216 | F134: LV | G134: XLPE | L134: 2
A135: 130 | B135: 18 | C135: 62 | D135: 130 | E135: 3.216 | F135: LV | G135: BARE | L135: 1
A136: 131 | B136: 18 | C136: 26 | D136: 131 | E136: 3.216 | F136: LV | G136: BARE OR PVC SINGLE | L136: 2
A137: 132 | B137: 18 | C137: 12 | D137: 132 | E137: 3.216 | F137: LV | G137: INVALID | L137: 2
A138: 133 | B138: 18 | C138: 43 | D138: 133 | E138: 3.216 | F138: LV | G138: MAYBE PVC SINGLE | L138: 2
A139: 134 | B139: 18 | C139: 118 | D139: 134 | E139: 3.216 | F139: LV | G139: PVC | L139: 2
A140: 135 | B140: 18 | C140: 24 | D140: 135 | E140: 3.216 | F140: LV | G140: UG | L140: 2
A141: 136 | B141: 18 | C141: 2195 | D141: 136 | E141: 3.216 | F141: LV | G141: UNKNOWN | L141: 1
A142: 137 | B142: 18 | C142: 4509 | D142: 137 | E142: 3.216 | F142: LV | G142: XLPE | L142: 1
A143: 138 | B143: 19 | C143: 40 | D143: 138 | E143: 3.216 | F143: LV | G143: BARE | L143: 2
A144: 139 | B144: 19 | C144: 17 | D144: 139 | E144: 3.216 | F144: LV | G144: BARE OR PVC SINGLE | L144: 2
A145: 140 | B145: 19 | C145: 10 | D145: 140 | E145: 3.216 | F145: LV | G145: INVALID | L145: 2
A146: 141 | B146: 19 | C146: 40 | D146: 141 | E146: 3.216 | F146: LV | G146: MAYBE PVC SINGLE | L146: 2
A147: 142 | B147: 19 | C147: 99 | D147: 142 | E147: 3.216 | F147: LV | G147: PVC | L147: 2
A148: 143 | B148: 19 | C148: 27 | D148: 143 | E148: 3.216 | F148: LV | G148: UG | L148: 2
A149: 144 | B149: 19 | C149: 2278 | D149: 144 | E149: 3.216 | F149: LV | G149: UNKNOWN | L149: 1
A150: 145 | B150: 19 | C150: 2037 | D150: 145 | E150: 3.216 | F150: LV | G150: XLPE | L150: 2
A151: 146 | B151: 20 | C151: 26 | D151: 146 | E151: 3.216 | F151: LV | G151: BARE | L151: 2
A152: 147 | B152: 20 | C152: 26 | D152: 147 | E152: 3.216 | F152: LV | G152: BARE OR PVC SINGLE | L152: 2
A153: 148 | B153: 20 | C153: 23 | D153: 148 | E153: 3.216 | F153: LV | G153: INVALID | L153: 2
A154: 149 | B154: 20 | C154: 39 | D154: 149 | E154: 3.216 | F154: LV | G154: MAYBE PVC SINGLE | L154: 2
A155: 150 | B155: 20 | C155: 86 | D155: 150 | E155: 3.216 | F155: LV | G155: PVC | L155: 2
A156: 151 | B156: 20 | C156: 18 | D156: 151 | E156: 3.216 | F156: LV | G156: UG | L156: 2
A157: 152 | B157: 20 | C157: 1876 | D157: 152 | E157: 3.216 | F157: LV | G157: UNKNOWN | L157: 1
A158: 153 | B158: 20 | C158: 2002 | D158: 153 | E158: 3.216 | F158: LV | G158: XLPE | L158: 2
A159: 154 | B159: 21 | C159: 45 | D159: 154 | E159: 3.216 | F159: LV | G159: BARE | L159: 2
A160: 155 | B160: 21 | C160: 65 | D160: 155 | E160: 3.216 | F160: LV | G160: BARE OR PVC SINGLE | L160: 2
A161: 156 | B161: 21 | C161: 11 | D161: 156 | E161: 3.216 | F161: LV | G161: INVALID | L161: 1
A162: 157 | B162: 21 | C162: 51 | D162: 157 | E162: 3.216 | F162: LV | G162: MAYBE PVC SINGLE | L162: 2
A163: 158 | B163: 21 | C163: 1 | D163: 158 | E163: 3.216 | F163: LV | G163: NO | L163: 2
A164: 159 | B164: 21 | C164: 164 | D164: 159 | E164: 3.216 | F164: LV | G164: PVC | L164: 2
A165: 160 | B165: 21 | C165: 25 | D165: 160 | E165: 3.216 | F165: LV | G165: UG | L165: 2
A166: 161 | B166: 21 | C166: 2005 | D166: 161 | E166: 3.216 | F166: LV | G166: UNKNOWN | L166: 1
A167: 162 | B167: 21 | C167: 1951 | D167: 162 | E167: 3.216 | F167: LV | G167: XLPE | L167: 2
A168: 163 | B168: 22 | C168: 26 | D168: 163 | E168: 3.216 | F168: LV | G168: BARE | L168: 1
A169: 164 | B169: 22 | C169: 32 | D169: 164 | E169: 3.216 | F169: LV | G169: BARE OR PVC SINGLE | L169: 2
A170: 165 | B170: 22 | C170: 8 | D170: 165 | E170: 3.216 | F170: LV | G170: INVALID | L170: 2
A171: 166 | B171: 22 | C171: 31 | D171: 166 | E171: 3.216 | F171: LV | G171: MAYBE PVC SINGLE | L171: 2
A172: 167 | B172: 22 | C172: 141 | D172: 167 | E172: 3.216 | F172: LV | G172: PVC | L172: 2
A173: 168 | B173: 22 | C173: 18 | D173: 168 | E173: 3.216 | F173: LV | G173: UG | L173: 2
A174: 169 | B174: 22 | C174: 2120 | D174: 169 | E174: 3.216 | F174: LV | G174: UNKNOWN | L174: 1
A175: 170 | B175: 22 | C175: 2029 | D175: 170 | E175: 3.216 | F175: LV | G175: XLPE | L175: 2
A176: 171 | B176: 23 | C176: 28 | D176: 171 | E176: 3.216 | F176: LV | G176: BARE | L176: 1
A177: 172 | B177: 23 | C177: 37 | D177: 172 | E177: 3.216 | F177: LV | G177: BARE OR PVC SINGLE | L177: 2
A178: 173 | B178: 23 | C178: 7 | D178: 173 | E178: 3.216 | F178: LV | G178: INVALID | L178: 2
A179: 174 | B179: 23 | C179: 59 | D179: 174 | E179: 3.216 | F179: LV | G179: MAYBE PVC SINGLE | L179: 2
A180: 175 | B180: 23 | C180: 187 | D180: 175 | E180: 3.216 | F180: LV | G180: PVC | L180: 2
A181: 176 | B181: 23 | C181: 15 | D181: 176 | E181: 3.216 | F181: LV | G181: UG | L181: 2
A182: 177 | B182: 23 | C182: 2241 | D182: 177 | E182: 3.216 | F182: LV | G182: UNKNOWN | L182: 1
A183: 178 | B183: 23 | C183: 3082 | D183: 178 | E183: 3.216 | F183: LV | G183: XLPE | L183: 2
A184: 179 | B184: 24 | C184: 38 | D184: 179 | E184: 3.216 | F184: LV | G184: BARE | L184: 1
A185: 180 | B185: 24 | C185: 21 | D185: 180 | E185: 3.216 | F185: LV | G185: BARE OR PVC SINGLE | L185: 2
A186: 181 | B186: 24 | C186: 14 | D186: 181 | E186: 3.216 | F186: LV | G186: INVALID | L186: 2
A187: 182 | B187: 24 | C187: 101 | D187: 182 | E187: 3.216 | F187: LV | G187: MAYBE PVC SINGLE | L187: 2
A188: 183 | B188: 24 | C188: 232 | D188: 183 | E188: 3.216 | F188: LV | G188: PVC | L188: 2
A189: 184 | B189: 24 | C189: 23 | D189: 184 | E189: 3.216 | F189: LV | G189: UG | L189: 2
A190: 185 | B190: 24 | C190: 2397 | D190: 185 | E190: 3.216 | F190: LV | G190: UNKNOWN | L190: 1
A191: 186 | B191: 24 | C191: 3276 | D191: 186 | E191: 3.216 | F191: LV | G191: XLPE | L191: 2
A192: 187 | B192: 25 | C192: 53 | D192: 187 | E192: 3.216 | F192: LV | G192: BARE | L192: 1
A193: 188 | B193: 25 | C193: 32 | D193: 188 | E193: 3.216 | F193: LV | G193: BARE OR PVC SINGLE | L193: 2
A194: 189 | B194: 25 | C194: 20 | D194: 189 | E194: 3.216 | F194: LV | G194: INVALID | L194: 2
A195: 190 | B195: 25 | C195: 65 | D195: 190 | E195: 3.216 | F195: LV | G195: MAYBE PVC SINGLE | L195: 2
A196: 191 | B196: 25 | C196: 310 | D196: 191 | E196: 3.216 | F196: LV | G196: PVC | L196: 2
A197: 192 | B197: 25 | C197: 25 | D197: 192 | E197: 3.216 | F197: LV | G197: UG | L197: 2
A198: 193 | B198: 25 | C198: 2172 | D198: 193 | E198: 3.216 | F198: LV | G198: UNKNOWN | L198: 1
A199: 194 | B199: 25 | C199: 3092 | D199: 194 | E199: 3.216 | F199: LV | G199: XLPE | L199: 2
A200: 195 | B200: 26 | C200: 21 | D200: 195 | E200: 3.216 | F200: LV | G200: BARE | L200: 1
A201: 196 | B201: 26 | C201: 17 | D201: 196 | E201: 3.216 | F201: LV | G201: BARE OR PVC SINGLE | L201: 2
A202: 197 | B202: 26 | C202: 11 | D202: 197 | E202: 3.216 | F202: LV | G202: INVALID | L202: 2
... 398 more rows

Sheet A. Age Profile
C1: Asset Population Age Profile
A3: Asset Age | B3: Median Age (x) | C3: Freq. of x (f) | D3: Cumulative Freq. of x (F) | E3: f.x | G3: E(f) | H3: No. of Bins | K3: Summary Statisitics | N3: Additional Information for Graph
A4: 0 | B4: 0.5 | C4: =SUMIF('A. Population Info'!$B:$B, A4,'A. Population Info'!$C:$C) -> 0 | D4: =SUM($C$4:C4) -> 0 | E4: =B4*C4 -> 0 | F4: =(B4-$L$6)^2*C4 -> 0 | G4: =_xlfn.NORM.DIST(B4,$L$6,$L$7,FALSE)*$L$4 -> 4437.157156 | H4: =COUNTIF('A. Population Info'!$B:$B, 'A. Age Profile'!A4) -> 0 | K4: Population Count (n) | L4: =SUM(C:C) -> 674291
A5: 1 | B5: 1.5 | C5: =SUMIF('A. Population Info'!$B:$B, A5,'A. Population Info'!$C:$C) -> 1 | D5: =SUM($C$4:C5) -> 1 | E5: =B5*C5 -> 1.5 | F5: 939.4633964 | G5: =_xlfn.NORM.DIST(B5,$L$6,$L$7,FALSE)*$L$4 -> 4719.824237 | H5: =COUNTIF('A. Population Info'!$B:$B, 'A. Age Profile'!A5) -> 1 | K5: Population Bins | L5: =SUM(H:H) -> 581
A6: 2 | B6: 2.5 | C6: =SUMIF('A. Population Info'!$B:$B, A6,'A. Population Info'!$C:$C) -> 8666 | D6: =SUM($C$4:C6) -> 8667 | E6: =B6*C6 -> 21665 | F6: 7618818.431 | G6: 5010.554981 | H6: =COUNTIF('A. Population Info'!$B:$B, 'A. Age Profile'!A6) -> 8 | K6: Mean Age | L6: =SUM(E:E)/SUM(C:C) -> 32.15066715 | N6: Mean Marker | O6: =MATCH(L6,$A$4:$A$104,1) -> 33 | P6: =P8 -> 8153
A7: 3 | B7: 3.5 | C7: =SUMIF('A. Population Info'!$B:$B, A7,'A. Population Info'!$C:$C) -> 19073 | D7: =SUM($C$4:C7) -> 27740 | E7: 66755.5 | F7: 15656276.66 | G7: 5308.658989 | H7: =COUNTIF('A. Population Info'!$B:$B, 'A. Age Profile'!A7) -> 8 | K7: Standard Deviation | L7: =(SUM(F:F)/SUM(C:C))^0.5 -> 22.45888677
A8: 4 | B8: 4.5 | C8: =SUMIF('A. Population Info'!$B:$B, A8,'A. Population Info'!$C:$C) -> 23824 | D8: =SUM($C$4:C8) -> 51564 | E8: 107208 | F8: 18214862.99 | G8: 5613.358968 | H8: =COUNTIF('A. Population Info'!$B:$B, 'A. Age Profile'!A8) -> 8 | K8: Median Age | L8: =L13+(((L4/2)-L10)/L11)*L12 -> 29.82506479 | N8: Median Marker | O8: =MATCH(L8,$A$4:$A$104,1) -> 30 | P8: =INDEX($C$4:$C$104,O8)+50 -> 8153
A9: 5 | B9: 5.5 | C9: =SUMIF('A. Population Info'!$B:$B, A9,'A. Population Info'!$C:$C) -> 23012 | D9: =SUM($C$4:C9) -> 74576 | E9: 126566 | F9: 16344458.46 | G9: 5923.791901 | H9: =COUNTIF('A. Population Info'!$B:$B, 'A. Age Profile'!A9) -> 8 | K9: Mode Age | L9: =MATCH(MAX(C4:C104),C4:C104,0) -> 11
A10: 6 | B10: 6.5 | C10: =SUMIF('A. Population Info'!$B:$B, A10,'A. Population Info'!$C:$C) -> 19435 | D10: =SUM($C$4:C10) -> 94011 | E10: 126327.5 | F10: 12787388.95 | G10: 6239.011155 | H10: =COUNTIF('A. Population Info'!$B:$B, 'A. Age Profile'!A10) -> 8 | K10: F | L10: =INDEX(D4:D104,MATCH(L4/2,$D$4:$D$104,1)) -> 330460
A11: 7 | B11: 7.5 | C11: =SUMIF('A. Population Info'!$B:$B, A11,'A. Population Info'!$C:$C) -> 22289 | D11: =SUM($C$4:C11) -> 116300 | E11: 167167.5 | F11: 13544031 | G11: 6557.989565 | H11: =COUNTIF('A. Population Info'!$B:$B, 'A. Age Profile'!A11) -> 8 | K11: fm | L11: =INDEX(C4:C104,MATCH(L4/2,$D$4:$D$104,1)+1) -> 8103
A12: 8 | B12: 8.5 | C12: =SUMIF('A. Population Info'!$B:$B, A12,'A. Population Info'!$C:$C) -> 18908 | D12: =SUM($C$4:C12) -> 135208 | E12: 160718 | F12: 10576266.5 | G12: 6879.623498 | H12: =COUNTIF('A. Population Info'!$B:$B, 'A. Age Profile'!A12) -> 8 | K12: i | L12: =B6-B5 -> 1
A13: 9 | B13: 9.5 | C13: =SUMIF('A. Population Info'!$B:$B, A13,'A. Population Info'!$C:$C) -> 17887 | D13: =SUM($C$4:C13) -> 153095 | E13: 169926.5 | F13: 9176974.041 | G13: 7202.737902 | H13: =COUNTIF('A. Population Info'!$B:$B, 'A. Age Profile'!A13) -> 8 | K13: Lm | L13: =INDEX(B4:B104,MATCH(L4/2,$D$4:$D$104,1))+L12/2 -> 29
A14: 10 | B14: 10.5 | C14: =SUMIF('A. Population Info'!$B:$B, A14,'A. Population Info'!$C:$C) -> 26688 | D14: =SUM($C$4:C14) -> 179783 | E14: 280224 | F14: 12510037.04 | G14: 7526.092346 | H14: =COUNTIF('A. Population Info'!$B:$B, 'A. Age Profile'!A14) -> 8
A15: 11 | B15: 11.5 | C15: =SUMIF('A. Population Info'!$B:$B, A15,'A. Population Info'!$C:$C) -> 20556 | D15: =SUM($C$4:C15) -> 200339 | E15: 236394 | F15: 8766107.301 | G15: 7848.387994 | H15: =COUNTIF('A. Population Info'!$B:$B, 'A. Age Profile'!A15) -> 8
A16: 12 | B16: 12.5 | C16: =SUMIF('A. Population Info'!$B:$B, A16,'A. Population Info'!$C:$C) -> 17354 | D16: =SUM($C$4:C16) -> 217693 | E16: 216925 | F16: 6701224.874 | G16: 8168.2755 | H16: =COUNTIF('A. Population Info'!$B:$B, 'A. Age Profile'!A16) -> 8
A17: 13 | B17: 13.5 | C17: =SUMIF('A. Population Info'!$B:$B, A17,'A. Population Info'!$C:$C) -> 17587 | D17: =SUM($C$4:C17) -> 235280 | E17: 237424.5 | F17: 6117591.959 | G17: 8484.363763 | H17: =COUNTIF('A. Population Info'!$B:$B, 'A. Age Profile'!A17) -> 8
A18: 14 | B18: 14.5 | C18: =SUMIF('A. Population Info'!$B:$B, A18,'A. Population Info'!$C:$C) -> 10651 | D18: =SUM($C$4:C18) -> 245931 | E18: 154439.5 | F18: 3318276.986 | G18: 8795.229459 | H18: =COUNTIF('A. Population Info'!$B:$B, 'A. Age Profile'!A18) -> 8
A19: 15 | B19: 15.5 | C19: =SUMIF('A. Population Info'!$B:$B, A19,'A. Population Info'!$C:$C) -> 10723 | D19: =SUM($C$4:C19) -> 256654 | E19: 166206.5 | F19: 2972895.094 | G19: 9099.427284 | H19: =COUNTIF('A. Population Info'!$B:$B, 'A. Age Profile'!A19) -> 8
A20: 16 | B20: 16.5 | C20: =SUMIF('A. Population Info'!$B:$B, A20,'A. Population Info'!$C:$C) -> 8828 | D20: =SUM($C$4:C20) -> 265482 | E20: 145662 | F20: 2162360.177 | G20: 9395.500802 | H20: =COUNTIF('A. Population Info'!$B:$B, 'A. Age Profile'!A20) -> 8
A21: 17 | B21: 17.5 | C21: =SUMIF('A. Population Info'!$B:$B, A21,'A. Population Info'!$C:$C) -> 7431 | D21: =SUM($C$4:C21) -> 272913 | E21: 130042.5 | F21: 1595005.057 | G21: 9681.993791 | H21: =COUNTIF('A. Population Info'!$B:$B, 'A. Age Profile'!A21) -> 8
A22: 18 | B22: 18.5 | C22: =SUMIF('A. Population Info'!$B:$B, A22,'A. Population Info'!$C:$C) -> 6989 | D22: =SUM($C$4:C22) -> 279902 | E22: 129296.5 | F22: 1302335.247 | G22: 9957.461968 | H22: =COUNTIF('A. Population Info'!$B:$B, 'A. Age Profile'!A22) -> 8
A23: 19 | B23: 19.5 | C23: =SUMIF('A. Population Info'!$B:$B, A23,'A. Population Info'!$C:$C) -> 4548 | D23: =SUM($C$4:C23) -> 284450 | E23: 88686 | F23: 727859.0967 | G23: 10220.48496 | H23: =COUNTIF('A. Population Info'!$B:$B, 'A. Age Profile'!A23) -> 8
A24: 20 | B24: 20.5 | C24: =SUMIF('A. Population Info'!$B:$B, A24,'A. Population Info'!$C:$C) -> 4096 | D24: =SUM($C$4:C24) -> 288546 | E24: 83968 | F24: 555983.032 | G24: 10469.67839 | H24: =COUNTIF('A. Population Info'!$B:$B, 'A. Age Profile'!A24) -> 8
A25: 21 | B25: 21.5 | C25: =SUMIF('A. Population Info'!$B:$B, A25,'A. Population Info'!$C:$C) -> 4318 | D25: =SUM($C$4:C25) -> 292864 | E25: 92837 | F25: 489819.7165 | G25: 10703.70595 | H25: =COUNTIF('A. Population Info'!$B:$B, 'A. Age Profile'!A25) -> 9
A26: 22 | B26: 22.5 | C26: =SUMIF('A. Population Info'!$B:$B, A26,'A. Population Info'!$C:$C) -> 4405 | D26: =SUM($C$4:C26) -> 297269 | E26: 99112.5 | F26: 410261.3328 | G26: 10921.29125 | H26: =COUNTIF('A. Population Info'!$B:$B, 'A. Age Profile'!A26) -> 8
A27: 23 | B27: 23.5 | C27: =SUMIF('A. Population Info'!$B:$B, A27,'A. Population Info'!$C:$C) -> 5656 | D27: =SUM($C$4:C27) -> 302925 | E27: 132916 | F27: 423261.3419 | G27: 11121.22939 | H27: =COUNTIF('A. Population Info'!$B:$B, 'A. Age Profile'!A27) -> 8
A28: 24 | B28: 24.5 | C28: =SUMIF('A. Population Info'!$B:$B, A28,'A. Population Info'!$C:$C) -> 6102 | D28: =SUM($C$4:C28) -> 309027 | E28: 149499 | F28: 357166.5828 | G28: 11302.39808 | H28: =COUNTIF('A. Population Info'!$B:$B, 'A. Age Profile'!A28) -> 8
A29: 25 | B29: 25.5 | C29: =SUMIF('A. Population Info'!$B:$B, A29,'A. Population Info'!$C:$C) -> 5769 | D29: =SUM($C$4:C29) -> 314796 | E29: 147109.5 | F29: 255170.7936 | G29: 11463.76806 | H29: =COUNTIF('A. Population Info'!$B:$B, 'A. Age Profile'!A29) -> 8
A30: 26 | B30: 26.5 | C30: =SUMIF('A. Population Info'!$B:$B, A30,'A. Population Info'!$C:$C) -> 4198 | D30: =SUM($C$4:C30) -> 318994 | E30: 111247 | F30: 134042.3045 | G30: 11604.41288 | H30: =COUNTIF('A. Population Info'!$B:$B, 'A. Age Profile'!A30) -> 8
A31: 27 | B31: 27.5 | C31: =SUMIF('A. Population Info'!$B:$B, A31,'A. Population Info'!$C:$C) -> 3294 | D31: =SUM($C$4:C31) -> 322288 | E31: 90585 | F31: 71244.95393 | G31: 11723.51774 | H31: =COUNTIF('A. Population Info'!$B:$B, 'A. Age Profile'!A31) -> 9
A32: 28 | B32: 28.5 | C32: =SUMIF('A. Population Info'!$B:$B, A32,'A. Population Info'!$C:$C) -> 8172 | D32: =SUM($C$4:C32) -> 330460 | E32: 232902 | F32: 108911.2726 | G32: 11820.38734 | H32: =COUNTIF('A. Population Info'!$B:$B, 'A. Age Profile'!A32) -> 8
A33: 29 | B33: 29.5 | C33: =SUMIF('A. Population Info'!$B:$B, A33,'A. Population Info'!$C:$C) -> 8103 | D33: =SUM($C$4:C33) -> 338563 | E33: 239038.5 | F33: 56931.97226 | G33: 11894.45265 | H33: =COUNTIF('A. Population Info'!$B:$B, 'A. Age Profile'!A33) -> 8
A34: 30 | B34: 30.5 | C34: =SUMIF('A. Population Info'!$B:$B, A34,'A. Population Info'!$C:$C) -> 7239 | D34: =SUM($C$4:C34) -> 345802 | E34: 220789.5 | F34: 19724.11795 | G34: 11945.27648 | H34: =COUNTIF('A. Population Info'!$B:$B, 'A. Age Profile'!A34) -> 9
A35: 31 | B35: 31.5 | C35: =SUMIF('A. Population Info'!$B:$B, A35,'A. Population Info'!$C:$C) -> 5669 | D35: =SUM($C$4:C35) -> 351471 | E35: 178573.5 | F35: 2400.071683 | G35: 11972.55777 | H35: =COUNTIF('A. Population Info'!$B:$B, 'A. Age Profile'!A35) -> 9
A36: 32 | B36: 32.5 | C36: =SUMIF('A. Population Info'!$B:$B, A36,'A. Population Info'!$C:$C) -> 7589 | D36: =SUM($C$4:C36) -> 359060 | E36: 246642.5 | F36: =(B36-$L$6)^2*C36 -> 926.1118023 | G36: 11976.13457 | H36: =COUNTIF('A. Population Info'!$B:$B, 'A. Age Profile'!A36) -> 8
A37: 33 | B37: 33.5 | C37: =SUMIF('A. Population Info'!$B:$B, A37,'A. Population Info'!$C:$C) -> 7842 | D37: =SUM($C$4:C37) -> 366902 | E37: 262707 | F37: 14277.92276 | G37: 11955.98561 | H37: =COUNTIF('A. Population Info'!$B:$B, 'A. Age Profile'!A37) -> 8
A38: 34 | B38: 34.5 | C38: =SUMIF('A. Population Info'!$B:$B, A38,'A. Population Info'!$C:$C) -> 6841 | D38: =SUM($C$4:C38) -> 373743 | E38: 236014.5 | F38: 37757.97503 | G38: 11912.23057 | H38: =COUNTIF('A. Population Info'!$B:$B, 'A. Age Profile'!A38) -> 8
A39: 35 | B39: 35.5 | C39: =SUMIF('A. Population Info'!$B:$B, A39,'A. Population Info'!$C:$C) -> 5248 | D39: =SUM($C$4:C39) -> 378991 | E39: 186304 | F39: 58872.22444 | G39: 11845.12883 | H39: =COUNTIF('A. Population Info'!$B:$B, 'A. Age Profile'!A39) -> 9
A40: 36 | B40: 36.5 | C40: =SUMIF('A. Population Info'!$B:$B, A40,'A. Population Info'!$C:$C) -> 4448 | D40: =SUM($C$4:C40) -> 383439 | E40: 162352 | F40: 84141.46506 | G40: 11755.07697 | H40: =COUNTIF('A. Population Info'!$B:$B, 'A. Age Profile'!A40) -> 8
A41: 37 | B41: 37.5 | C41: =SUMIF('A. Population Info'!$B:$B, A41,'A. Population Info'!$C:$C) -> 5959 | D41: =SUM($C$4:C41) -> 389398 | E41: 223462.5 | F41: 170518.9421 | G41: 11642.60481 | H41: =COUNTIF('A. Population Info'!$B:$B, 'A. Age Profile'!A41) -> 8
A42: 38 | B42: 38.5 | C42: =SUMIF('A. Population Info'!$B:$B, A42,'A. Population Info'!$C:$C) -> 6194 | D42: =SUM($C$4:C42) -> 395592 | E42: 238469 | F42: 249705.0876 | G42: 11508.37026 | H42: =COUNTIF('A. Population Info'!$B:$B, 'A. Age Profile'!A42) -> 8
A43: 39 | B43: 39.5 | C43: =SUMIF('A. Population Info'!$B:$B, A43,'A. Population Info'!$C:$C) -> 12011 | D43: =SUM($C$4:C43) -> 407603 | E43: 474434.5 | F43: 648746.4606 | G43: 11353.15289 | H43: =COUNTIF('A. Population Info'!$B:$B, 'A. Age Profile'!A43) -> 8
A44: 40 | B44: 40.5 | C44: =SUMIF('A. Population Info'!$B:$B, A44,'A. Population Info'!$C:$C) -> 7406 | D44: =SUM($C$4:C44) -> 415009 | E44: 299943 | F44: 516282.3256 | G44: 11177.84641 | H44: =COUNTIF('A. Population Info'!$B:$B, 'A. Age Profile'!A44) -> 8
A45: 41 | B45: 41.5 | C45: =SUMIF('A. Population Info'!$B:$B, A45,'A. Population Info'!$C:$C) -> 4742 | D45: =SUM($C$4:C45) -> 419751 | E45: 196793 | F45: 414498.3377 | G45: 10983.45006 | H45: =COUNTIF('A. Population Info'!$B:$B, 'A. Age Profile'!A45) -> 8
A46: 42 | B46: 42.5 | C46: =SUMIF('A. Population Info'!$B:$B, A46,'A. Population Info'!$C:$C) -> 4478 | D46: =SUM($C$4:C46) -> 424229 | E46: 190315 | F46: 479632.7162 | G46: 10771.05918 | H46: =COUNTIF('A. Population Info'!$B:$B, 'A. Age Profile'!A46) -> 8
A47: 43 | B47: 43.5 | C47: =SUMIF('A. Population Info'!$B:$B, A47,'A. Population Info'!$C:$C) -> 3562 | D47: =SUM($C$4:C47) -> 427791 | E47: 154947 | F47: 458811.803 | G47: 10541.85492 | H47: =COUNTIF('A. Population Info'!$B:$B, 'A. Age Profile'!A47) -> 8
A48: 44 | B48: 44.5 | C48: =SUMIF('A. Population Info'!$B:$B, A48,'A. Population Info'!$C:$C) -> 4495 | D48: =SUM($C$4:C48) -> 432286 | E48: 200027.5 | F48: 685514.5687 | G48: 10297.09333 | H48: =COUNTIF('A. Population Info'!$B:$B, 'A. Age Profile'!A48) -> 8
A49: 45 | B49: 45.5 | C49: =SUMIF('A. Population Info'!$B:$B, A49,'A. Population Info'!$C:$C) -> 7561 | D49: =SUM($C$4:C49) -> 439847 | E49: 344025.5 | F49: 1347405.643 | G49: 10038.09389 | H49: =COUNTIF('A. Population Info'!$B:$B, 'A. Age Profile'!A49) -> 8
A50: 46 | B50: 46.5 | C50: =SUMIF('A. Population Info'!$B:$B, A50,'A. Population Info'!$C:$C) -> 3751 | D50: =SUM($C$4:C50) -> 443598 | E50: 174421.5 | F50: 772343.4785 | G50: 9766.227765 | H50: =COUNTIF('A. Population Info'!$B:$B, 'A. Age Profile'!A50) -> 8
A51: 47 | B51: 47.5 | C51: =SUMIF('A. Population Info'!$B:$B, A51,'A. Population Info'!$C:$C) -> 4743 | D51: =SUM($C$4:C51) -> 448341 | E51: 225292.5 | F51: 1117460.377 | G51: 9482.905754 | H51: =COUNTIF('A. Population Info'!$B:$B, 'A. Age Profile'!A51) -> 9
A52: 48 | B52: 48.5 | C52: =SUMIF('A. Population Info'!$B:$B, A52,'A. Population Info'!$C:$C) -> 5592 | D52: =SUM($C$4:C52) -> 453933 | E52: 271212 | F52: 1494745.429 | G52: 9189.566202 | H52: =COUNTIF('A. Population Info'!$B:$B, 'A. Age Profile'!A52) -> 8
A53: 49 | B53: 49.5 | C53: =SUMIF('A. Population Info'!$B:$B, A53,'A. Population Info'!$C:$C) -> 6114 | D53: =SUM($C$4:C53) -> 460047 | E53: 302643 | F53: 1840310.029 | G53: 8887.662982 | H53: =COUNTIF('A. Population Info'!$B:$B, 'A. Age Profile'!A53) -> 7
A54: 50 | B54: 50.5 | C54: =SUMIF('A. Population Info'!$B:$B, A54,'A. Population Info'!$C:$C) -> 7178 | D54: =SUM($C$4:C54) -> 467225 | E54: 362489 | F54: 2416818.36 | G54: 8578.65368 | H54: =COUNTIF('A. Population Info'!$B:$B, 'A. Age Profile'!A54) -> 8
A55: 51 | B55: 51.5 | C55: =SUMIF('A. Population Info'!$B:$B, A55,'A. Population Info'!$C:$C) -> 10900 | D55: =SUM($C$4:C55) -> 478125 | E55: 561350 | F55: 4080923.833 | G55: 8263.98812 | H55: =COUNTIF('A. Population Info'!$B:$B, 'A. Age Profile'!A55) -> 8
A56: 52 | B56: 52.5 | C56: =SUMIF('A. Population Info'!$B:$B, A56,'A. Population Info'!$C:$C) -> 10645 | D56: =SUM($C$4:C56) -> 488770 | E56: 558862.5 | F56: 4408044.976 | G56: 7945.097357 | H56: =COUNTIF('A. Population Info'!$B:$B, 'A. Age Profile'!A56) -> 8
A57: 53 | B57: 53.5 | C57: =SUMIF('A. Population Info'!$B:$B, A57,'A. Population Info'!$C:$C) -> 10552 | D57: =SUM($C$4:C57) -> 499322 | E57: 564532 | F57: 4809538.429 | G57: 7623.383241 | H57: =COUNTIF('A. Population Info'!$B:$B, 'A. Age Profile'!A57) -> 8
A58: 54 | B58: 54.5 | C58: =SUMIF('A. Population Info'!$B:$B, A58,'A. Population Info'!$C:$C) -> 10450 | D58: =SUM($C$4:C58) -> 509772 | E58: 569525 | F58: 5219698.496 | G58: 7300.208658 | H58: =COUNTIF('A. Population Info'!$B:$B, 'A. Age Profile'!A58) -> 8
A59: 55 | B59: 55.5 | C59: =SUMIF('A. Population Info'!$B:$B, A59,'A. Population Info'!$C:$C) -> 13233 | D59: =SUM($C$4:C59) -> 523005 | E59: 734431.5 | F59: 7214517.065 | G59: 6976.888536 | H59: =COUNTIF('A. Population Info'!$B:$B, 'A. Age Profile'!A59) -> 8
A60: 56 | B60: 56.5 | C60: =SUMIF('A. Population Info'!$B:$B, A60,'A. Population Info'!$C:$C) -> 22878 | D60: =SUM($C$4:C60) -> 545883 | E60: 1292607 | F60: 13564137.66 | G60: 6654.681682 | H60: =COUNTIF('A. Population Info'!$B:$B, 'A. Age Profile'!A60) -> 8
A61: 57 | B61: 57.5 | C61: =SUMIF('A. Population Info'!$B:$B, A61,'A. Population Info'!$C:$C) -> 16820 | D61: =SUM($C$4:C61) -> 562703 | E61: 967150 | F61: 10808341.53 | G61: 6334.783529 | H61: =COUNTIF('A. Population Info'!$B:$B, 'A. Age Profile'!A61) -> 8
A62: 58 | B62: 58.5 | C62: =SUMIF('A. Population Info'!$B:$B, A62,'A. Population Info'!$C:$C) -> 14896 | D62: =SUM($C$4:C62) -> 577599 | E62: 871416 | F62: 10342104.24 | G62: 6018.319807 | H62: =COUNTIF('A. Population Info'!$B:$B, 'A. Age Profile'!A62) -> 8
A63: 59 | B63: 59.5 | C63: =SUMIF('A. Population Info'!$B:$B, A63,'A. Population Info'!$C:$C) -> 21251 | D63: =SUM($C$4:C63) -> 598850 | E63: 1264434.5 | F63: 15895450.65 | G63: 5706.341198 | H63: =COUNTIF('A. Population Info'!$B:$B, 'A. Age Profile'!A63) -> 8
A64: 60 | B64: 60.5 | C64: =SUMIF('A. Population Info'!$B:$B, A64,'A. Population Info'!$C:$C) -> 18374 | D64: =SUM($C$4:C64) -> 617224 | E64: 1111627 | F64: 14766902.19 | G64: 5399.818969 | H64: =COUNTIF('A. Population Info'!$B:$B, 'A. Age Profile'!A64) -> 8
A65: 61 | B65: 61.5 | C65: =SUMIF('A. Population Info'!$B:$B, A65,'A. Population Info'!$C:$C) -> 10981 | D65: =SUM($C$4:C65) -> 628205 | E65: 675331.5 | F65: 9458850.446 | G65: 5099.641601 | H65: =COUNTIF('A. Population Info'!$B:$B, 'A. Age Profile'!A65) -> 8
A66: 62 | B66: 62.5 | C66: =SUMIF('A. Population Info'!$B:$B, A66,'A. Population Info'!$C:$C) -> 8410 | D66: =SUM($C$4:C66) -> 636615 | E66: 525625 | F66: 7746299.66 | G66: 4806.612384 | H66: =COUNTIF('A. Population Info'!$B:$B, 'A. Age Profile'!A66) -> 6
A67: 63 | B67: 63.5 | C67: =SUMIF('A. Population Info'!$B:$B, A67,'A. Population Info'!$C:$C) -> 12061 | D67: =SUM($C$4:C67) -> 648676 | E67: 765873.5 | F67: 11853317.67 | G67: 4521.447969 | H67: =COUNTIF('A. Population Info'!$B:$B, 'A. Age Profile'!A67) -> 8
A68: 64 | B68: 64.5 | C68: =SUMIF('A. Population Info'!$B:$B, A68,'A. Population Info'!$C:$C) -> 4955 | D68: =SUM($C$4:C68) -> 653631 | E68: 319597.5 | F68: =(B68-$L$6)^2*C68 -> 5185305.111 | G68: 4244.777832 | H68: =COUNTIF('A. Population Info'!$B:$B, 'A. Age Profile'!A68) -> 6
A69: 65 | B69: 65.5 | C69: =SUMIF('A. Population Info'!$B:$B, A69,'A. Population Info'!$C:$C) -> 3180 | D69: =SUM($C$4:C69) -> 656811 | E69: 208290 | F69: 3536726.046 | G69: =_xlfn.NORM.DIST(B69,$L$6,$L$7,FALSE)*$L$4 -> 3977.14461 | H69: =COUNTIF('A. Population Info'!$B:$B, 'A. Age Profile'!A69) -> 6
A70: 66 | B70: 66.5 | C70: =SUMIF('A. Population Info'!$B:$B, A70,'A. Population Info'!$C:$C) -> 542 | D70: =SUM($C$4:C70) -> 657353 | E70: =B70*C70 -> 36043 | F70: 639493.1538 | G70: 3719.005245 | H70: =COUNTIF('A. Population Info'!$B:$B, 'A. Age Profile'!A70) -> 3
A71: 67 | B71: 67.5 | C71: =SUMIF('A. Population Info'!$B:$B, A71,'A. Population Info'!$C:$C) -> 2716 | D71: =SUM($C$4:C71) -> 660069 | E71: 183330 | F71: 3393846.605 | G71: 3470.732878 | H71: =COUNTIF('A. Population Info'!$B:$B, 'A. Age Profile'!A71) -> 3
A72: 68 | B72: 68.5 | C72: =SUMIF('A. Population Info'!$B:$B, A72,'A. Population Info'!$C:$C) -> 811 | D72: =SUM($C$4:C72) -> 660880 | E72: 55553.5 | F72: 1071553.213 | G72: 3232.619435 | H72: =COUNTIF('A. Population Info'!$B:$B, 'A. Age Profile'!A72) -> 5
A73: 69 | B73: 69.5 | C73: =SUMIF('A. Population Info'!$B:$B, A73,'A. Population Info'!$C:$C) -> 1602 | D73: =SUM($C$4:C73) -> 662482 | E73: 111339 | F73: 2234746.209 | G73: 3004.878803 | H73: =COUNTIF('A. Population Info'!$B:$B, 'A. Age Profile'!A73) -> 7
A74: 70 | B74: 70.5 | C74: =SUMIF('A. Population Info'!$B:$B, A74,'A. Population Info'!$C:$C) -> 594 | D74: =SUM($C$4:C74) -> 663076 | E74: 41877 | F74: 873578.7703 | G74: 2787.65055 | H74: =COUNTIF('A. Population Info'!$B:$B, 'A. Age Profile'!A74) -> 4
A75: 71 | B75: 71.5 | C75: =SUMIF('A. Population Info'!$B:$B, A75,'A. Population Info'!$C:$C) -> 648 | D75: =SUM($C$4:C75) -> 663724 | E75: 46332 | F75: 1003343.757 | G75: 2581.004091 | H75: =COUNTIF('A. Population Info'!$B:$B, 'A. Age Profile'!A75) -> 4
A76: 72 | B76: 72.5 | C76: =SUMIF('A. Population Info'!$B:$B, A76,'A. Population Info'!$C:$C) -> 225 | D76: =SUM($C$4:C76) -> 663949 | E76: 16312.5 | F76: 366315.4489 | G76: 2384.943228 | H76: =COUNTIF('A. Population Info'!$B:$B, 'A. Age Profile'!A76) -> 6
A77: 73 | B77: 73.5 | C77: =SUMIF('A. Population Info'!$B:$B, A77,'A. Population Info'!$C:$C) -> 277 | D77: =SUM($C$4:C77) -> 664226 | E77: 20359.5 | F77: 473605.5497 | G77: 2199.410978 | H77: =COUNTIF('A. Population Info'!$B:$B, 'A. Age Profile'!A77) -> 4
A78: 74 | B78: 74.5 | C78: =SUMIF('A. Population Info'!$B:$B, A78,'A. Population Info'!$C:$C) -> 716 | D78: =SUM($C$4:C78) -> 664942 | E78: 53342 | F78: 1284121.651 | G78: 2024.294626 | H78: =COUNTIF('A. Population Info'!$B:$B, 'A. Age Profile'!A78) -> 4
A79: 75 | B79: 75.5 | C79: =SUMIF('A. Population Info'!$B:$B, A79,'A. Population Info'!$C:$C) -> 236 | D79: =SUM($C$4:C79) -> 665178 | E79: 17818 | F79: 443482.8595 | G79: 1859.430912 | H79: =COUNTIF('A. Population Info'!$B:$B, 'A. Age Profile'!A79) -> 4
A80: 76 | B80: 76.5 | C80: =SUMIF('A. Population Info'!$B:$B, A80,'A. Population Info'!$C:$C) -> 0 | D80: =SUM($C$4:C80) -> 665178 | E80: 0 | F80: 0 | G80: 1704.611295 | H80: =COUNTIF('A. Population Info'!$B:$B, 'A. Age Profile'!A80) -> 0
A81: 77 | B81: 77.5 | C81: =SUMIF('A. Population Info'!$B:$B, A81,'A. Population Info'!$C:$C) -> 1 | D81: =SUM($C$4:C81) -> 665179 | E81: 77.5 | F81: 2056.56199 | G81: 1559.587219 | H81: =COUNTIF('A. Population Info'!$B:$B, 'A. Age Profile'!A81) -> 1
A82: 78 | B82: 78.5 | C82: =SUMIF('A. Population Info'!$B:$B, A82,'A. Population Info'!$C:$C) -> 0 | D82: =SUM($C$4:C82) -> 665179 | E82: 0 | F82: 0 | G82: 1424.075333 | H82: =COUNTIF('A. Population Info'!$B:$B, 'A. Age Profile'!A82) -> 0
A83: 79 | B83: 79.5 | C83: =SUMIF('A. Population Info'!$B:$B, A83,'A. Population Info'!$C:$C) -> 1534 | D83: =SUM($C$4:C83) -> 666713 | E83: 121953 | F83: 3439165.6 | G83: 1297.76259 | H83: =COUNTIF('A. Population Info'!$B:$B, 'A. Age Profile'!A83) -> 4
A84: 80 | B84: 80.5 | C84: =SUMIF('A. Population Info'!$B:$B, A84,'A. Population Info'!$C:$C) -> 1 | D84: =SUM($C$4:C84) -> 666714 | E84: 80.5 | F84: 2337.657988 | G84: 1180.311201 | H84: =COUNTIF('A. Population Info'!$B:$B, 'A. Age Profile'!A84) -> 1
A85: 81 | B85: 81.5 | C85: =SUMIF('A. Population Info'!$B:$B, A85,'A. Population Info'!$C:$C) -> 1 | D85: =SUM($C$4:C85) -> 666715 | E85: 81.5 | F85: 2435.356653 | G85: 1071.363378 | H85: =COUNTIF('A. Population Info'!$B:$B, 'A. Age Profile'!A85) -> 1
A86: 82 | B86: 82.5 | C86: =SUMIF('A. Population Info'!$B:$B, A86,'A. Population Info'!$C:$C) -> 4 | D86: =SUM($C$4:C86) -> 666719 | E86: 330 | F86: 10140.22128 | G86: 970.5458483 | H86: =COUNTIF('A. Population Info'!$B:$B, 'A. Age Profile'!A86) -> 1
A87: 83 | B87: 83.5 | C87: =SUMIF('A. Population Info'!$B:$B, A87,'A. Population Info'!$C:$C) -> 0 | D87: =SUM($C$4:C87) -> 666719 | E87: 0 | F87: 0 | G87: 877.4740989 | H87: =COUNTIF('A. Population Info'!$B:$B, 'A. Age Profile'!A87) -> 0
A88: 84 | B88: 84.5 | C88: =SUMIF('A. Population Info'!$B:$B, A88,'A. Population Info'!$C:$C) -> 0 | D88: =SUM($C$4:C88) -> 666719 | E88: 0 | F88: 0 | G88: 791.7563339 | H88: =COUNTIF('A. Population Info'!$B:$B, 'A. Age Profile'!A88) -> 0
A89: 85 | B89: 85.5 | C89: =SUMIF('A. Population Info'!$B:$B, A89,'A. Population Info'!$C:$C) -> 0 | D89: =SUM($C$4:C89) -> 666719 | E89: 0 | F89: 0 | G89: 712.9971229 | H89: =COUNTIF('A. Population Info'!$B:$B, 'A. Age Profile'!A89) -> 0
A90: 86 | B90: 86.5 | C90: =SUMIF('A. Population Info'!$B:$B, A90,'A. Population Info'!$C:$C) -> 0 | D90: =SUM($C$4:C90) -> 666719 | E90: 0 | F90: 0 | G90: 640.8007319 | H90: =COUNTIF('A. Population Info'!$B:$B, 'A. Age Profile'!A90) -> 0
A91: 87 | B91: 87.5 | C91: =SUMIF('A. Population Info'!$B:$B, A91,'A. Population Info'!$C:$C) -> 0 | D91: =SUM($C$4:C91) -> 666719 | E91: 0 | F91: 0 | G91: 574.7741284 | H91: =COUNTIF('A. Population Info'!$B:$B, 'A. Age Profile'!A91) -> 0
A92: 88 | B92: 88.5 | C92: =SUMIF('A. Population Info'!$B:$B, A92,'A. Population Info'!$C:$C) -> 0 | D92: =SUM($C$4:C92) -> 666719 | E92: 0 | F92: 0 | G92: 514.5296599 | H92: =COUNTIF('A. Population Info'!$B:$B, 'A. Age Profile'!A92) -> 0
A93: 89 | B93: 89.5 | C93: =SUMIF('A. Population Info'!$B:$B, A93,'A. Population Info'!$C:$C) -> 0 | D93: =SUM($C$4:C93) -> 666719 | E93: 0 | F93: 0 | G93: 459.6874089 | H93: =COUNTIF('A. Population Info'!$B:$B, 'A. Age Profile'!A93) -> 0
A94: 90 | B94: 90.5 | C94: =SUMIF('A. Population Info'!$B:$B, A94,'A. Population Info'!$C:$C) -> 0 | D94: =SUM($C$4:C94) -> 666719 | E94: =B94*C94 -> 0 | F94: 0 | G94: 409.8772302 | H94: =COUNTIF('A. Population Info'!$B:$B, 'A. Age Profile'!A94) -> 0
A95: 91 | B95: 91.5 | C95: =SUMIF('A. Population Info'!$B:$B, A95,'A. Population Info'!$C:$C) -> 3152 | D95: =SUM($C$4:C95) -> 669871 | E95: =B95*C95 -> 288408 | F95: 11102426.11 | G95: 364.7404821 | H95: =COUNTIF('A. Population Info'!$B:$B, 'A. Age Profile'!A95) -> 7
A96: 92 | B96: 92.5 | C96: =SUMIF('A. Population Info'!$B:$B, A96,'A. Population Info'!$C:$C) -> 1069 | D96: =SUM($C$4:C96) -> 670940 | E96: 98882.5 | F96: 3893342.872 | G96: 323.9314638 | H96: =COUNTIF('A. Population Info'!$B:$B, 'A. Age Profile'!A96) -> 4
A97: 93 | B97: 93.5 | C97: =SUMIF('A. Population Info'!$B:$B, A97,'A. Population Info'!$C:$C) -> 0 | D97: =SUM($C$4:C97) -> 670940 | E97: 0 | F97: 0 | G97: 287.118575 | H97: =COUNTIF('A. Population Info'!$B:$B, 'A. Age Profile'!A97) -> 0
A98: 94 | B98: 94.5 | C98: =SUMIF('A. Population Info'!$B:$B, A98,'A. Population Info'!$C:$C) -> 0 | D98: =SUM($C$4:C98) -> 670940 | E98: 0 | F98: 0 | G98: 253.9852154 | H98: =COUNTIF('A. Population Info'!$B:$B, 'A. Age Profile'!A98) -> 0
A99: 95 | B99: 95.5 | C99: =SUMIF('A. Population Info'!$B:$B, A99,'A. Population Info'!$C:$C) -> 0 | D99: =SUM($C$4:C99) -> 670940 | E99: 0 | F99: 0 | G99: 224.2304428 | H99: =COUNTIF('A. Population Info'!$B:$B, 'A. Age Profile'!A99) -> 0
A100: 96 | B100: 96.5 | C100: =SUMIF('A. Population Info'!$B:$B, A100,'A. Population Info'!$C:$C) -> 0 | D100: =SUM($C$4:C100) -> 670940 | E100: 0 | F100: 0 | G100: 197.56941 | H100: =COUNTIF('A. Population Info'!$B:$B, 'A. Age Profile'!A100) -> 0
A101: 97 | B101: 97.5 | C101: =SUMIF('A. Population Info'!$B:$B, A101,'A. Population Info'!$C:$C) -> 0 | D101: =SUM($C$4:C101) -> 670940 | E101: 0 | F101: 0 | G101: 173.7336013 | H101: =COUNTIF('A. Population Info'!$B:$B, 'A. Age Profile'!A101) -> 0
A102: 98 | B102: 98.5 | C102: =SUMIF('A. Population Info'!$B:$B, A102,'A. Population Info'!$C:$C) -> 0 | D102: =SUM($C$4:C102) -> 670940 | E102: 0 | F102: 0 | G102: 152.4708887 | H102: =COUNTIF('A. Population Info'!$B:$B, 'A. Age Profile'!A102) -> 0
A103: 99 | B103: 99.5 | C103: =SUMIF('A. Population Info'!$B:$B, A103,'A. Population Info'!$C:$C) -> 3351 | D103: =SUM($C$4:C103) -> 674291 | E103: 333424.5 | F103: 15199910.26 | G103: 133.5454304 | H103: =COUNTIF('A. Population Info'!$B:$B, 'A. Age Profile'!A103) -> 6
A104: 100 | B104: 100.5 | C104: =SUMIF('A. Population Info'!$B:$B, A104,'A. Population Info'!$C:$C) -> 0 | D104: =SUM($C$4:C104) -> 674291 | E104: 0 | F104: 0 | G104: 116.7374287 | H104: =COUNTIF('A. Population Info'!$B:$B, 'A. Age Profile'!A104) -> 0

Sheet A. Initial PoF
B1: Initial Probability of Failure
A3: Age Label | B3: No. of Asset Units | C3: PoFpoor (Upper 95%) | D3: PoFavg | E3: PoFgood (Lower 95%)
A4: 0 | B4: 1 | C4: =IF('B. PoF Summary Stats & Params'!$C$12="C", B4*'B. PoF Summary Stats & Params'!$I$8*'B. PoF Summary Stats & Params'!$I$10*A4^('B. PoF Summary Stats & Params'!$I$10-1), IF('B. PoF Summary Stats & Params'!$C$12="W", B4*(('B. PoF Summary Stats & Params'!$M$14/'B. PoF Summary Stats & Params'!$O$14)*((A4)/'B. PoF Summary Stats & Params'!$O$14)^('B. PoF Summary Stats & Params'!$M$14-1)), "Choose Model")) -> 0 | D4: =IF('B. PoF Summary Stats & Params'!$C$12="C", B4*'B. PoF Summary Stats & Params'!$I$8*'B. PoF Summary Stats & Params'!$I$6*A4^('B. PoF Summary Stats & Params'!$I$6-1), IF('B. PoF Summary Stats & Params'!$C$12="W", B4*(('B. PoF Summary Stats & Params'!$M$6/'B. PoF Summary Stats & Params'!$M$8)*((A4)/'B. PoF Summary Stats & Params'!$M$8)^('B. PoF Summary Stats & Params'!$M$6-1)), "Choose Model")) -> 0 | E4: =IF('B. PoF Summary Stats & Params'!$C$12="C", B4*'B. PoF Summary Stats & Params'!$I$8*'B. PoF Summary Stats & Params'!$I$12*A4^('B. PoF Summary Stats & Params'!$I$12-1), IF('B. PoF Summary Stats & Params'!$C$12="W", B4*(('B. PoF Summary Stats & Params'!$M$12/'B. PoF Summary Stats & Params'!$O$12)*((A4)/'B. PoF Summary Stats & Params'!$O$12)^('B. PoF Summary Stats & Params'!$M$12-1)), "Choose Model")) -> 0
A5: 1 | B5: 1 | C5: =IF('B. PoF Summary Stats & Params'!$C$12="C", B5*'B. PoF Summary Stats & Params'!$I$8*'B. PoF Summary Stats & Params'!$I$10*A5^('B. PoF Summary Stats & Params'!$I$10-1), IF('B. PoF Summary Stats & Params'!$C$12="W", B5*(('B. PoF Summary Stats & Params'!$M$14/'B. PoF Summary Stats & Params'!$O$14)*((A5)/'B. PoF Summary Stats & Params'!$O$14)^('B. PoF Summary Stats & Params'!$M$14-1)), "Choose Model")) -> 5.535042951e-06 | D5: =IF('B. PoF Summary Stats & Params'!$C$12="C", B5*'B. PoF Summary Stats & Params'!$I$8*'B. PoF Summary Stats & Params'!$I$6*A5^('B. PoF Summary Stats & Params'!$I$6-1), IF('B. PoF Summary Stats & Params'!$C$12="W", B5*(('B. PoF Summary Stats & Params'!$M$6/'B. PoF Summary Stats & Params'!$M$8)*((A5)/'B. PoF Summary Stats & Params'!$M$8)^('B. PoF Summary Stats & Params'!$M$6-1)), "Choose Model")) -> 5.522514776e-06 | E5: =IF('B. PoF Summary Stats & Params'!$C$12="C", B5*'B. PoF Summary Stats & Params'!$I$8*'B. PoF Summary Stats & Params'!$I$12*A5^('B. PoF Summary Stats & Params'!$I$12-1), IF('B. PoF Summary Stats & Params'!$C$12="W", B5*(('B. PoF Summary Stats & Params'!$M$12/'B. PoF Summary Stats & Params'!$O$12)*((A5)/'B. PoF Summary Stats & Params'!$O$12)^('B. PoF Summary Stats & Params'!$M$12-1)), "Choose Model")) -> 5.512340483e-06
A6: 2 | B6: 1 | C6: =IF('B. PoF Summary Stats & Params'!$C$12="C", B6*'B. PoF Summary Stats & Params'!$I$8*'B. PoF Summary Stats & Params'!$I$10*A6^('B. PoF Summary Stats & Params'!$I$10-1), IF('B. PoF Summary Stats & Params'!$C$12="W", B6*(('B. PoF Summary Stats & Params'!$M$14/'B. PoF Summary Stats & Params'!$O$14)*((A6)/'B. PoF Summary Stats & Params'!$O$14)^('B. PoF Summary Stats & Params'!$M$14-1)), "Choose Model")) -> 1.995384008e-05 | D6: =IF('B. PoF Summary Stats & Params'!$C$12="C", B6*'B. PoF Summary Stats & Params'!$I$8*'B. PoF Summary Stats & Params'!$I$6*A6^('B. PoF Summary Stats & Params'!$I$6-1), IF('B. PoF Summary Stats & Params'!$C$12="W", B6*(('B. PoF Summary Stats & Params'!$M$6/'B. PoF Summary Stats & Params'!$M$8)*((A6)/'B. PoF Summary Stats & Params'!$M$8)^('B. PoF Summary Stats & Params'!$M$6-1)), "Choose Model")) -> 1.982605007e-05 | E6: =IF('B. PoF Summary Stats & Params'!$C$12="C", B6*'B. PoF Summary Stats & Params'!$I$8*'B. PoF Summary Stats & Params'!$I$12*A6^('B. PoF Summary Stats & Params'!$I$12-1), IF('B. PoF Summary Stats & Params'!$C$12="W", B6*(('B. PoF Summary Stats & Params'!$M$12/'B. PoF Summary Stats & Params'!$O$12)*((A6)/'B. PoF Summary Stats & Params'!$O$12)^('B. PoF Summary Stats & Params'!$M$12-1)), "Choose Model")) -> 1.970602657e-05
A7: 3 | B7: 1 | C7: =IF('B. PoF Summary Stats & Params'!$C$12="C", B7*'B. PoF Summary Stats & Params'!$I$8*'B. PoF Summary Stats & Params'!$I$10*A7^('B. PoF Summary Stats & Params'!$I$10-1), IF('B. PoF Summary Stats & Params'!$C$12="W", B7*(('B. PoF Summary Stats & Params'!$M$14/'B. PoF Summary Stats & Params'!$O$14)*((A7)/'B. PoF Summary Stats & Params'!$O$14)^('B. PoF Summary Stats & Params'!$M$14-1)), "Choose Model")) -> 4.22469457e-05 | D7: =IF('B. PoF Summary Stats & Params'!$C$12="C", B7*'B. PoF Summary Stats & Params'!$I$8*'B. PoF Summary Stats & Params'!$I$6*A7^('B. PoF Summary Stats & Params'!$I$6-1), IF('B. PoF Summary Stats & Params'!$C$12="W", B7*(('B. PoF Summary Stats & Params'!$M$6/'B. PoF Summary Stats & Params'!$M$8)*((A7)/'B. PoF Summary Stats & Params'!$M$8)^('B. PoF Summary Stats & Params'!$M$6-1)), "Choose Model")) -> 4.187438872e-05 | E7: =IF('B. PoF Summary Stats & Params'!$C$12="C", B7*'B. PoF Summary Stats & Params'!$I$8*'B. PoF Summary Stats & Params'!$I$12*A7^('B. PoF Summary Stats & Params'!$I$12-1), IF('B. PoF Summary Stats & Params'!$C$12="W", B7*(('B. PoF Summary Stats & Params'!$M$12/'B. PoF Summary Stats & Params'!$O$12)*((A7)/'B. PoF Summary Stats & Params'!$O$12)^('B. PoF Summary Stats & Params'!$M$12-1)), "Choose Model")) -> 4.151807308e-05
A8: 4 | B8: 1 | C8: =IF('B. PoF Summary Stats & Params'!$C$12="C", B8*'B. PoF Summary Stats & Params'!$I$8*'B. PoF Summary Stats & Params'!$I$10*A8^('B. PoF Summary Stats & Params'!$I$10-1), IF('B. PoF Summary Stats & Params'!$C$12="W", B8*(('B. PoF Summary Stats & Params'!$M$14/'B. PoF Summary Stats & Params'!$O$14)*((A8)/'B. PoF Summary Stats & Params'!$O$14)^('B. PoF Summary Stats & Params'!$M$14-1)), "Choose Model")) -> 7.193363041e-05 | D8: =IF('B. PoF Summary Stats & Params'!$C$12="C", B8*'B. PoF Summary Stats & Params'!$I$8*'B. PoF Summary Stats & Params'!$I$6*A8^('B. PoF Summary Stats & Params'!$I$6-1), IF('B. PoF Summary Stats & Params'!$C$12="W", B8*(('B. PoF Summary Stats & Params'!$M$6/'B. PoF Summary Stats & Params'!$M$8)*((A8)/'B. PoF Summary Stats & Params'!$M$8)^('B. PoF Summary Stats & Params'!$M$6-1)), "Choose Model")) -> 7.11763168e-05 | E8: =IF('B. PoF Summary Stats & Params'!$C$12="C", B8*'B. PoF Summary Stats & Params'!$I$8*'B. PoF Summary Stats & Params'!$I$12*A8^('B. PoF Summary Stats & Params'!$I$12-1), IF('B. PoF Summary Stats & Params'!$C$12="W", B8*(('B. PoF Summary Stats & Params'!$M$12/'B. PoF Summary Stats & Params'!$O$12)*((A8)/'B. PoF Summary Stats & Params'!$O$12)^('B. PoF Summary Stats & Params'!$M$12-1)), "Choose Model")) -> 7.044693344e-05
A9: 5 | B9: 1 | C9: =IF('B. PoF Summary Stats & Params'!$C$12="C", B9*'B. PoF Summary Stats & Params'!$I$8*'B. PoF Summary Stats & Params'!$I$10*A9^('B. PoF Summary Stats & Params'!$I$10-1), IF('B. PoF Summary Stats & Params'!$C$12="W", B9*(('B. PoF Summary Stats & Params'!$M$14/'B. PoF Summary Stats & Params'!$O$14)*((A9)/'B. PoF Summary Stats & Params'!$O$14)^('B. PoF Summary Stats & Params'!$M$14-1)), "Choose Model")) -> 0.0001086964858 | D9: =IF('B. PoF Summary Stats & Params'!$C$12="C", B9*'B. PoF Summary Stats & Params'!$I$8*'B. PoF Summary Stats & Params'!$I$6*A9^('B. PoF Summary Stats & Params'!$I$6-1), IF('B. PoF Summary Stats & Params'!$C$12="W", B9*(('B. PoF Summary Stats & Params'!$M$6/'B. PoF Summary Stats & Params'!$M$8)*((A9)/'B. PoF Summary Stats & Params'!$M$8)^('B. PoF Summary Stats & Params'!$M$6-1)), "Choose Model")) -> 0.0001074082336 | E9: =IF('B. PoF Summary Stats & Params'!$C$12="C", B9*'B. PoF Summary Stats & Params'!$I$8*'B. PoF Summary Stats & Params'!$I$12*A9^('B. PoF Summary Stats & Params'!$I$12-1), IF('B. PoF Summary Stats & Params'!$C$12="W", B9*(('B. PoF Summary Stats & Params'!$M$12/'B. PoF Summary Stats & Params'!$O$12)*((A9)/'B. PoF Summary Stats & Params'!$O$12)^('B. PoF Summary Stats & Params'!$M$12-1)), "Choose Model")) -> 0.0001061629568
A10: 6 | B10: 1 | C10: =IF('B. PoF Summary Stats & Params'!$C$12="C", B10*'B. PoF Summary Stats & Params'!$I$8*'B. PoF Summary Stats & Params'!$I$10*A10^('B. PoF Summary Stats & Params'!$I$10-1), IF('B. PoF Summary Stats & Params'!$C$12="W", B10*(('B. PoF Summary Stats & Params'!$M$14/'B. PoF Summary Stats & Params'!$O$14)*((A10)/'B. PoF Summary Stats & Params'!$O$14)^('B. PoF Summary Stats & Params'!$M$14-1)), "Choose Model")) -> 0.0001523003174 | D10: =IF('B. PoF Summary Stats & Params'!$C$12="C", B10*'B. PoF Summary Stats & Params'!$I$8*'B. PoF Summary Stats & Params'!$I$6*A10^('B. PoF Summary Stats & Params'!$I$6-1), IF('B. PoF Summary Stats & Params'!$C$12="W", B10*(('B. PoF Summary Stats & Params'!$M$6/'B. PoF Summary Stats & Params'!$M$8)*((A10)/'B. PoF Summary Stats & Params'!$M$8)^('B. PoF Summary Stats & Params'!$M$6-1)), "Choose Model")) -> 0.000150330739 | E10: =IF('B. PoF Summary Stats & Params'!$C$12="C", B10*'B. PoF Summary Stats & Params'!$I$8*'B. PoF Summary Stats & Params'!$I$12*A10^('B. PoF Summary Stats & Params'!$I$12-1), IF('B. PoF Summary Stats & Params'!$C$12="W", B10*(('B. PoF Summary Stats & Params'!$M$12/'B. PoF Summary Stats & Params'!$O$12)*((A10)/'B. PoF Summary Stats & Params'!$O$12)^('B. PoF Summary Stats & Params'!$M$12-1)), "Choose Model")) -> 0.0001484226625
A11: 7 | B11: 1 | C11: =IF('B. PoF Summary Stats & Params'!$C$12="C", B11*'B. PoF Summary Stats & Params'!$I$8*'B. PoF Summary Stats & Params'!$I$10*A11^('B. PoF Summary Stats & Params'!$I$10-1), IF('B. PoF Summary Stats & Params'!$C$12="W", B11*(('B. PoF Summary Stats & Params'!$M$14/'B. PoF Summary Stats & Params'!$O$14)*((A11)/'B. PoF Summary Stats & Params'!$O$14)^('B. PoF Summary Stats & Params'!$M$14-1)), "Choose Model")) -> 0.0002025593848 | D11: =IF('B. PoF Summary Stats & Params'!$C$12="C", B11*'B. PoF Summary Stats & Params'!$I$8*'B. PoF Summary Stats & Params'!$I$6*A11^('B. PoF Summary Stats & Params'!$I$6-1), IF('B. PoF Summary Stats & Params'!$C$12="W", B11*(('B. PoF Summary Stats & Params'!$M$6/'B. PoF Summary Stats & Params'!$M$8)*((A11)/'B. PoF Summary Stats & Params'!$M$8)^('B. PoF Summary Stats & Params'!$M$6-1)), "Choose Model")) -> 0.0001997550062 | E11: =IF('B. PoF Summary Stats & Params'!$C$12="C", B11*'B. PoF Summary Stats & Params'!$I$8*'B. PoF Summary Stats & Params'!$I$12*A11^('B. PoF Summary Stats & Params'!$I$12-1), IF('B. PoF Summary Stats & Params'!$C$12="W", B11*(('B. PoF Summary Stats & Params'!$M$12/'B. PoF Summary Stats & Params'!$O$12)*((A11)/'B. PoF Summary Stats & Params'!$O$12)^('B. PoF Summary Stats & Params'!$M$12-1)), "Choose Model")) -> 0.0001970342489
A12: 8 | B12: 1 | C12: =IF('B. PoF Summary Stats & Params'!$C$12="C", B12*'B. PoF Summary Stats & Params'!$I$8*'B. PoF Summary Stats & Params'!$I$10*A12^('B. PoF Summary Stats & Params'!$I$10-1), IF('B. PoF Summary Stats & Params'!$C$12="W", B12*(('B. PoF Summary Stats & Params'!$M$14/'B. PoF Summary Stats & Params'!$O$14)*((A12)/'B. PoF Summary Stats & Params'!$O$14)^('B. PoF Summary Stats & Params'!$M$14-1)), "Choose Model")) -> 0.0002593208708 | D12: =IF('B. PoF Summary Stats & Params'!$C$12="C", B12*'B. PoF Summary Stats & Params'!$I$8*'B. PoF Summary Stats & Params'!$I$6*A12^('B. PoF Summary Stats & Params'!$I$6-1), IF('B. PoF Summary Stats & Params'!$C$12="W", B12*(('B. PoF Summary Stats & Params'!$M$6/'B. PoF Summary Stats & Params'!$M$8)*((A12)/'B. PoF Summary Stats & Params'!$M$8)^('B. PoF Summary Stats & Params'!$M$6-1)), "Choose Model")) -> 0.0002555258388 | E12: =IF('B. PoF Summary Stats & Params'!$C$12="C", B12*'B. PoF Summary Stats & Params'!$I$8*'B. PoF Summary Stats & Params'!$I$12*A12^('B. PoF Summary Stats & Params'!$I$12-1), IF('B. PoF Summary Stats & Params'!$C$12="W", B12*(('B. PoF Summary Stats & Params'!$M$12/'B. PoF Summary Stats & Params'!$O$12)*((A12)/'B. PoF Summary Stats & Params'!$O$12)^('B. PoF Summary Stats & Params'!$M$12-1)), "Choose Model")) -> 0.0002518402385
A13: 9 | B13: 1 | C13: =IF('B. PoF Summary Stats & Params'!$C$12="C", B13*'B. PoF Summary Stats & Params'!$I$8*'B. PoF Summary Stats & Params'!$I$10*A13^('B. PoF Summary Stats & Params'!$I$10-1), IF('B. PoF Summary Stats & Params'!$C$12="W", B13*(('B. PoF Summary Stats & Params'!$M$14/'B. PoF Summary Stats & Params'!$O$14)*((A13)/'B. PoF Summary Stats & Params'!$O$14)^('B. PoF Summary Stats & Params'!$M$14-1)), "Choose Model")) -> 0.0003224553877 | D13: =IF('B. PoF Summary Stats & Params'!$C$12="C", B13*'B. PoF Summary Stats & Params'!$I$8*'B. PoF Summary Stats & Params'!$I$6*A13^('B. PoF Summary Stats & Params'!$I$6-1), IF('B. PoF Summary Stats & Params'!$C$12="W", B13*(('B. PoF Summary Stats & Params'!$M$6/'B. PoF Summary Stats & Params'!$M$8)*((A13)/'B. PoF Summary Stats & Params'!$M$8)^('B. PoF Summary Stats & Params'!$M$6-1)), "Choose Model")) -> 0.0003175119491 | E13: =IF('B. PoF Summary Stats & Params'!$C$12="C", B13*'B. PoF Summary Stats & Params'!$I$8*'B. PoF Summary Stats & Params'!$I$12*A13^('B. PoF Summary Stats & Params'!$I$12-1), IF('B. PoF Summary Stats & Params'!$C$12="W", B13*(('B. PoF Summary Stats & Params'!$M$12/'B. PoF Summary Stats & Params'!$O$12)*((A13)/'B. PoF Summary Stats & Params'!$O$12)^('B. PoF Summary Stats & Params'!$M$12-1)), "Choose Model")) -> 0.0003127075328
A14: 10 | B14: 1 | C14: =IF('B. PoF Summary Stats & Params'!$C$12="C", B14*'B. PoF Summary Stats & Params'!$I$8*'B. PoF Summary Stats & Params'!$I$10*A14^('B. PoF Summary Stats & Params'!$I$10-1), IF('B. PoF Summary Stats & Params'!$C$12="W", B14*(('B. PoF Summary Stats & Params'!$M$14/'B. PoF Summary Stats & Params'!$O$14)*((A14)/'B. PoF Summary Stats & Params'!$O$14)^('B. PoF Summary Stats & Params'!$M$14-1)), "Choose Model")) -> 0.0003918510324 | D14: =IF('B. PoF Summary Stats & Params'!$C$12="C", B14*'B. PoF Summary Stats & Params'!$I$8*'B. PoF Summary Stats & Params'!$I$6*A14^('B. PoF Summary Stats & Params'!$I$6-1), IF('B. PoF Summary Stats & Params'!$C$12="W", B14*(('B. PoF Summary Stats & Params'!$M$6/'B. PoF Summary Stats & Params'!$M$8)*((A14)/'B. PoF Summary Stats & Params'!$M$8)^('B. PoF Summary Stats & Params'!$M$6-1)), "Choose Model")) -> 0.0003855998769 | E14: =IF('B. PoF Summary Stats & Params'!$C$12="C", B14*'B. PoF Summary Stats & Params'!$I$8*'B. PoF Summary Stats & Params'!$I$12*A14^('B. PoF Summary Stats & Params'!$I$12-1), IF('B. PoF Summary Stats & Params'!$C$12="W", B14*(('B. PoF Summary Stats & Params'!$M$12/'B. PoF Summary Stats & Params'!$O$12)*((A14)/'B. PoF Summary Stats & Params'!$O$12)^('B. PoF Summary Stats & Params'!$M$12-1)), "Choose Model")) -> 0.0003795211951
A15: 11 | B15: 1 | C15: =IF('B. PoF Summary Stats & Params'!$C$12="C", B15*'B. PoF Summary Stats & Params'!$I$8*'B. PoF Summary Stats & Params'!$I$10*A15^('B. PoF Summary Stats & Params'!$I$10-1), IF('B. PoF Summary Stats & Params'!$C$12="W", B15*(('B. PoF Summary Stats & Params'!$M$14/'B. PoF Summary Stats & Params'!$O$14)*((A15)/'B. PoF Summary Stats & Params'!$O$14)^('B. PoF Summary Stats & Params'!$M$14-1)), "Choose Model")) -> 0.0004674094222 | D15: =IF('B. PoF Summary Stats & Params'!$C$12="C", B15*'B. PoF Summary Stats & Params'!$I$8*'B. PoF Summary Stats & Params'!$I$6*A15^('B. PoF Summary Stats & Params'!$I$6-1), IF('B. PoF Summary Stats & Params'!$C$12="W", B15*(('B. PoF Summary Stats & Params'!$M$6/'B. PoF Summary Stats & Params'!$M$8)*((A15)/'B. PoF Summary Stats & Params'!$M$8)^('B. PoF Summary Stats & Params'!$M$6-1)), "Choose Model")) -> 0.0004596899383 | E15: =IF('B. PoF Summary Stats & Params'!$C$12="C", B15*'B. PoF Summary Stats & Params'!$I$8*'B. PoF Summary Stats & Params'!$I$12*A15^('B. PoF Summary Stats & Params'!$I$12-1), IF('B. PoF Summary Stats & Params'!$C$12="W", B15*(('B. PoF Summary Stats & Params'!$M$12/'B. PoF Summary Stats & Params'!$O$12)*((A15)/'B. PoF Summary Stats & Params'!$O$12)^('B. PoF Summary Stats & Params'!$M$12-1)), "Choose Model")) -> 0.0004521803139
A16: 12 | B16: 1 | C16: =IF('B. PoF Summary Stats & Params'!$C$12="C", B16*'B. PoF Summary Stats & Params'!$I$8*'B. PoF Summary Stats & Params'!$I$10*A16^('B. PoF Summary Stats & Params'!$I$10-1), IF('B. PoF Summary Stats & Params'!$C$12="W", B16*(('B. PoF Summary Stats & Params'!$M$14/'B. PoF Summary Stats & Params'!$O$14)*((A16)/'B. PoF Summary Stats & Params'!$O$14)^('B. PoF Summary Stats & Params'!$M$14-1)), "Choose Model")) -> 0.0005490429261 | D16: =IF('B. PoF Summary Stats & Params'!$C$12="C", B16*'B. PoF Summary Stats & Params'!$I$8*'B. PoF Summary Stats & Params'!$I$6*A16^('B. PoF Summary Stats & Params'!$I$6-1), IF('B. PoF Summary Stats & Params'!$C$12="W", B16*(('B. PoF Summary Stats & Params'!$M$6/'B. PoF Summary Stats & Params'!$M$8)*((A16)/'B. PoF Summary Stats & Params'!$M$8)^('B. PoF Summary Stats & Params'!$M$6-1)), "Choose Model")) -> 0.0005396933966 | E16: =IF('B. PoF Summary Stats & Params'!$C$12="C", B16*'B. PoF Summary Stats & Params'!$I$8*'B. PoF Summary Stats & Params'!$I$12*A16^('B. PoF Summary Stats & Params'!$I$12-1), IF('B. PoF Summary Stats & Params'!$C$12="W", B16*(('B. PoF Summary Stats & Params'!$M$12/'B. PoF Summary Stats & Params'!$O$12)*((A16)/'B. PoF Summary Stats & Params'!$O$12)^('B. PoF Summary Stats & Params'!$M$12-1)), "Choose Model")) -> 0.0005305951147
A17: 13 | B17: 1 | C17: =IF('B. PoF Summary Stats & Params'!$C$12="C", B17*'B. PoF Summary Stats & Params'!$I$8*'B. PoF Summary Stats & Params'!$I$10*A17^('B. PoF Summary Stats & Params'!$I$10-1), IF('B. PoF Summary Stats & Params'!$C$12="W", B17*(('B. PoF Summary Stats & Params'!$M$14/'B. PoF Summary Stats & Params'!$O$14)*((A17)/'B. PoF Summary Stats & Params'!$O$14)^('B. PoF Summary Stats & Params'!$M$14-1)), "Choose Model")) -> 0.0006366726545 | D17: =IF('B. PoF Summary Stats & Params'!$C$12="C", B17*'B. PoF Summary Stats & Params'!$I$8*'B. PoF Summary Stats & Params'!$I$6*A17^('B. PoF Summary Stats & Params'!$I$6-1), IF('B. PoF Summary Stats & Params'!$C$12="W", B17*(('B. PoF Summary Stats & Params'!$M$6/'B. PoF Summary Stats & Params'!$M$8)*((A17)/'B. PoF Summary Stats & Params'!$M$8)^('B. PoF Summary Stats & Params'!$M$6-1)), "Choose Model")) -> 0.0006255304108 | E17: =IF('B. PoF Summary Stats & Params'!$C$12="C", B17*'B. PoF Summary Stats & Params'!$I$8*'B. PoF Summary Stats & Params'!$I$12*A17^('B. PoF Summary Stats & Params'!$I$12-1), IF('B. PoF Summary Stats & Params'!$C$12="W", B17*(('B. PoF Summary Stats & Params'!$M$12/'B. PoF Summary Stats & Params'!$O$12)*((A17)/'B. PoF Summary Stats & Params'!$O$12)^('B. PoF Summary Stats & Params'!$M$12-1)), "Choose Model")) -> 0.0006146848682
A18: 14 | B18: 1 | C18: =IF('B. PoF Summary Stats & Params'!$C$12="C", B18*'B. PoF Summary Stats & Params'!$I$8*'B. PoF Summary Stats & Params'!$I$10*A18^('B. PoF Summary Stats & Params'!$I$10-1), IF('B. PoF Summary Stats & Params'!$C$12="W", B18*(('B. PoF Summary Stats & Params'!$M$14/'B. PoF Summary Stats & Params'!$O$14)*((A18)/'B. PoF Summary Stats & Params'!$O$14)^('B. PoF Summary Stats & Params'!$M$14-1)), "Choose Model")) -> 0.000730226957 | D18: =IF('B. PoF Summary Stats & Params'!$C$12="C", B18*'B. PoF Summary Stats & Params'!$I$8*'B. PoF Summary Stats & Params'!$I$6*A18^('B. PoF Summary Stats & Params'!$I$6-1), IF('B. PoF Summary Stats & Params'!$C$12="W", B18*(('B. PoF Summary Stats & Params'!$M$6/'B. PoF Summary Stats & Params'!$M$8)*((A18)/'B. PoF Summary Stats & Params'!$M$8)^('B. PoF Summary Stats & Params'!$M$6-1)), "Choose Model")) -> 0.000717128503 | E18: =IF('B. PoF Summary Stats & Params'!$C$12="C", B18*'B. PoF Summary Stats & Params'!$I$8*'B. PoF Summary Stats & Params'!$I$12*A18^('B. PoF Summary Stats & Params'!$I$12-1), IF('B. PoF Summary Stats & Params'!$C$12="W", B18*(('B. PoF Summary Stats & Params'!$M$12/'B. PoF Summary Stats & Params'!$O$12)*((A18)/'B. PoF Summary Stats & Params'!$O$12)^('B. PoF Summary Stats & Params'!$M$12-1)), "Choose Model")) -> 0.0007043763272
A19: 15 | B19: 1 | C19: =IF('B. PoF Summary Stats & Params'!$C$12="C", B19*'B. PoF Summary Stats & Params'!$I$8*'B. PoF Summary Stats & Params'!$I$10*A19^('B. PoF Summary Stats & Params'!$I$10-1), IF('B. PoF Summary Stats & Params'!$C$12="W", B19*(('B. PoF Summary Stats & Params'!$M$14/'B. PoF Summary Stats & Params'!$O$14)*((A19)/'B. PoF Summary Stats & Params'!$O$14)^('B. PoF Summary Stats & Params'!$M$14-1)), "Choose Model")) -> 0.0008296402707 | D19: =IF('B. PoF Summary Stats & Params'!$C$12="C", B19*'B. PoF Summary Stats & Params'!$I$8*'B. PoF Summary Stats & Params'!$I$6*A19^('B. PoF Summary Stats & Params'!$I$6-1), IF('B. PoF Summary Stats & Params'!$C$12="W", B19*(('B. PoF Summary Stats & Params'!$M$6/'B. PoF Summary Stats & Params'!$M$8)*((A19)/'B. PoF Summary Stats & Params'!$M$8)^('B. PoF Summary Stats & Params'!$M$6-1)), "Choose Model")) -> 0.000814421384 | E19: =IF('B. PoF Summary Stats & Params'!$C$12="C", B19*'B. PoF Summary Stats & Params'!$I$8*'B. PoF Summary Stats & Params'!$I$12*A19^('B. PoF Summary Stats & Params'!$I$12-1), IF('B. PoF Summary Stats & Params'!$C$12="W", B19*(('B. PoF Summary Stats & Params'!$M$12/'B. PoF Summary Stats & Params'!$O$12)*((A19)/'B. PoF Summary Stats & Params'!$O$12)^('B. PoF Summary Stats & Params'!$M$12-1)), "Choose Model")) -> 0.0007996025307
A20: 16 | B20: 1 | C20: =IF('B. PoF Summary Stats & Params'!$C$12="C", B20*'B. PoF Summary Stats & Params'!$I$8*'B. PoF Summary Stats & Params'!$I$10*A20^('B. PoF Summary Stats & Params'!$I$10-1), IF('B. PoF Summary Stats & Params'!$C$12="W", B20*(('B. PoF Summary Stats & Params'!$M$14/'B. PoF Summary Stats & Params'!$O$14)*((A20)/'B. PoF Summary Stats & Params'!$O$14)^('B. PoF Summary Stats & Params'!$M$14-1)), "Choose Model")) -> 0.0009348522189 | D20: =IF('B. PoF Summary Stats & Params'!$C$12="C", B20*'B. PoF Summary Stats & Params'!$I$8*'B. PoF Summary Stats & Params'!$I$6*A20^('B. PoF Summary Stats & Params'!$I$6-1), IF('B. PoF Summary Stats & Params'!$C$12="W", B20*(('B. PoF Summary Stats & Params'!$M$6/'B. PoF Summary Stats & Params'!$M$8)*((A20)/'B. PoF Summary Stats & Params'!$M$8)^('B. PoF Summary Stats & Params'!$M$6-1)), "Choose Model")) -> 0.000917348034 | E20: =IF('B. PoF Summary Stats & Params'!$C$12="C", B20*'B. PoF Summary Stats & Params'!$I$8*'B. PoF Summary Stats & Params'!$I$12*A20^('B. PoF Summary Stats & Params'!$I$12-1), IF('B. PoF Summary Stats & Params'!$C$12="W", B20*(('B. PoF Summary Stats & Params'!$M$12/'B. PoF Summary Stats & Params'!$O$12)*((A20)/'B. PoF Summary Stats & Params'!$O$12)^('B. PoF Summary Stats & Params'!$M$12-1)), "Choose Model")) -> 0.0009003018676
A21: 17 | B21: 1 | C21: =IF('B. PoF Summary Stats & Params'!$C$12="C", B21*'B. PoF Summary Stats & Params'!$I$8*'B. PoF Summary Stats & Params'!$I$10*A21^('B. PoF Summary Stats & Params'!$I$10-1), IF('B. PoF Summary Stats & Params'!$C$12="W", B21*(('B. PoF Summary Stats & Params'!$M$14/'B. PoF Summary Stats & Params'!$O$14)*((A21)/'B. PoF Summary Stats & Params'!$O$14)^('B. PoF Summary Stats & Params'!$M$14-1)), "Choose Model")) -> 0.001045806893 | D21: =IF('B. PoF Summary Stats & Params'!$C$12="C", B21*'B. PoF Summary Stats & Params'!$I$8*'B. PoF Summary Stats & Params'!$I$6*A21^('B. PoF Summary Stats & Params'!$I$6-1), IF('B. PoF Summary Stats & Params'!$C$12="W", B21*(('B. PoF Summary Stats & Params'!$M$6/'B. PoF Summary Stats & Params'!$M$8)*((A21)/'B. PoF Summary Stats & Params'!$M$8)^('B. PoF Summary Stats & Params'!$M$6-1)), "Choose Model")) -> 0.001025851972 | E21: =IF('B. PoF Summary Stats & Params'!$C$12="C", B21*'B. PoF Summary Stats & Params'!$I$8*'B. PoF Summary Stats & Params'!$I$12*A21^('B. PoF Summary Stats & Params'!$I$12-1), IF('B. PoF Summary Stats & Params'!$C$12="W", B21*(('B. PoF Summary Stats & Params'!$M$12/'B. PoF Summary Stats & Params'!$O$12)*((A21)/'B. PoF Summary Stats & Params'!$O$12)^('B. PoF Summary Stats & Params'!$M$12-1)), "Choose Model")) -> 0.001006417332
A22: 18 | B22: 1 | C22: =IF('B. PoF Summary Stats & Params'!$C$12="C", B22*'B. PoF Summary Stats & Params'!$I$8*'B. PoF Summary Stats & Params'!$I$10*A22^('B. PoF Summary Stats & Params'!$I$10-1), IF('B. PoF Summary Stats & Params'!$C$12="W", B22*(('B. PoF Summary Stats & Params'!$M$14/'B. PoF Summary Stats & Params'!$O$14)*((A22)/'B. PoF Summary Stats & Params'!$O$14)^('B. PoF Summary Stats & Params'!$M$14-1)), "Choose Model")) -> 0.00116245227 | D22: =IF('B. PoF Summary Stats & Params'!$C$12="C", B22*'B. PoF Summary Stats & Params'!$I$8*'B. PoF Summary Stats & Params'!$I$6*A22^('B. PoF Summary Stats & Params'!$I$6-1), IF('B. PoF Summary Stats & Params'!$C$12="W", B22*(('B. PoF Summary Stats & Params'!$M$6/'B. PoF Summary Stats & Params'!$M$8)*((A22)/'B. PoF Summary Stats & Params'!$M$8)^('B. PoF Summary Stats & Params'!$M$6-1)), "Choose Model")) -> 0.001139880662 | E22: =IF('B. PoF Summary Stats & Params'!$C$12="C", B22*'B. PoF Summary Stats & Params'!$I$8*'B. PoF Summary Stats & Params'!$I$12*A22^('B. PoF Summary Stats & Params'!$I$12-1), IF('B. PoF Summary Stats & Params'!$C$12="W", B22*(('B. PoF Summary Stats & Params'!$M$12/'B. PoF Summary Stats & Params'!$O$12)*((A22)/'B. PoF Summary Stats & Params'!$O$12)^('B. PoF Summary Stats & Params'!$M$12-1)), "Choose Model")) -> 0.001117895923
A23: 19 | B23: 1 | C23: =IF('B. PoF Summary Stats & Params'!$C$12="C", B23*'B. PoF Summary Stats & Params'!$I$8*'B. PoF Summary Stats & Params'!$I$10*A23^('B. PoF Summary Stats & Params'!$I$10-1), IF('B. PoF Summary Stats & Params'!$C$12="W", B23*(('B. PoF Summary Stats & Params'!$M$14/'B. PoF Summary Stats & Params'!$O$14)*((A23)/'B. PoF Summary Stats & Params'!$O$14)^('B. PoF Summary Stats & Params'!$M$14-1)), "Choose Model")) -> 0.001284739737 | D23: =IF('B. PoF Summary Stats & Params'!$C$12="C", B23*'B. PoF Summary Stats & Params'!$I$8*'B. PoF Summary Stats & Params'!$I$6*A23^('B. PoF Summary Stats & Params'!$I$6-1), IF('B. PoF Summary Stats & Params'!$C$12="W", B23*(('B. PoF Summary Stats & Params'!$M$6/'B. PoF Summary Stats & Params'!$M$8)*((A23)/'B. PoF Summary Stats & Params'!$M$8)^('B. PoF Summary Stats & Params'!$M$6-1)), "Choose Model")) -> 0.00125938503 | E23: =IF('B. PoF Summary Stats & Params'!$C$12="C", B23*'B. PoF Summary Stats & Params'!$I$8*'B. PoF Summary Stats & Params'!$I$12*A23^('B. PoF Summary Stats & Params'!$I$12-1), IF('B. PoF Summary Stats & Params'!$C$12="W", B23*(('B. PoF Summary Stats & Params'!$M$12/'B. PoF Summary Stats & Params'!$O$12)*((A23)/'B. PoF Summary Stats & Params'!$O$12)^('B. PoF Summary Stats & Params'!$M$12-1)), "Choose Model")) -> 0.001234688145
A24: 20 | B24: 1 | C24: =IF('B. PoF Summary Stats & Params'!$C$12="C", B24*'B. PoF Summary Stats & Params'!$I$8*'B. PoF Summary Stats & Params'!$I$10*A24^('B. PoF Summary Stats & Params'!$I$10-1), IF('B. PoF Summary Stats & Params'!$C$12="W", B24*(('B. PoF Summary Stats & Params'!$M$14/'B. PoF Summary Stats & Params'!$O$14)*((A24)/'B. PoF Summary Stats & Params'!$O$14)^('B. PoF Summary Stats & Params'!$M$14-1)), "Choose Model")) -> 0.001412623697 | D24: =IF('B. PoF Summary Stats & Params'!$C$12="C", B24*'B. PoF Summary Stats & Params'!$I$8*'B. PoF Summary Stats & Params'!$I$6*A24^('B. PoF Summary Stats & Params'!$I$6-1), IF('B. PoF Summary Stats & Params'!$C$12="W", B24*(('B. PoF Summary Stats & Params'!$M$6/'B. PoF Summary Stats & Params'!$M$8)*((A24)/'B. PoF Summary Stats & Params'!$M$8)^('B. PoF Summary Stats & Params'!$M$6-1)), "Choose Model")) -> 0.00138431906 | E24: =IF('B. PoF Summary Stats & Params'!$C$12="C", B24*'B. PoF Summary Stats & Params'!$I$8*'B. PoF Summary Stats & Params'!$I$12*A24^('B. PoF Summary Stats & Params'!$I$12-1), IF('B. PoF Summary Stats & Params'!$C$12="W", B24*(('B. PoF Summary Stats & Params'!$M$12/'B. PoF Summary Stats & Params'!$O$12)*((A24)/'B. PoF Summary Stats & Params'!$O$12)^('B. PoF Summary Stats & Params'!$M$12-1)), "Choose Model")) -> 0.001356747606
A25: 21 | B25: 1 | C25: =IF('B. PoF Summary Stats & Params'!$C$12="C", B25*'B. PoF Summary Stats & Params'!$I$8*'B. PoF Summary Stats & Params'!$I$10*A25^('B. PoF Summary Stats & Params'!$I$10-1), IF('B. PoF Summary Stats & Params'!$C$12="W", B25*(('B. PoF Summary Stats & Params'!$M$14/'B. PoF Summary Stats & Params'!$O$14)*((A25)/'B. PoF Summary Stats & Params'!$O$14)^('B. PoF Summary Stats & Params'!$M$14-1)), "Choose Model")) -> 0.001546061233 | D25: =IF('B. PoF Summary Stats & Params'!$C$12="C", B25*'B. PoF Summary Stats & Params'!$I$8*'B. PoF Summary Stats & Params'!$I$6*A25^('B. PoF Summary Stats & Params'!$I$6-1), IF('B. PoF Summary Stats & Params'!$C$12="W", B25*(('B. PoF Summary Stats & Params'!$M$6/'B. PoF Summary Stats & Params'!$M$8)*((A25)/'B. PoF Summary Stats & Params'!$M$8)^('B. PoF Summary Stats & Params'!$M$6-1)), "Choose Model")) -> 0.001514639456 | E25: =IF('B. PoF Summary Stats & Params'!$C$12="C", B25*'B. PoF Summary Stats & Params'!$I$8*'B. PoF Summary Stats & Params'!$I$12*A25^('B. PoF Summary Stats & Params'!$I$12-1), IF('B. PoF Summary Stats & Params'!$C$12="W", B25*(('B. PoF Summary Stats & Params'!$M$12/'B. PoF Summary Stats & Params'!$O$12)*((A25)/'B. PoF Summary Stats & Params'!$O$12)^('B. PoF Summary Stats & Params'!$M$12-1)), "Choose Model")) -> 0.001484030671
A26: 22 | B26: 1 | C26: =IF('B. PoF Summary Stats & Params'!$C$12="C", B26*'B. PoF Summary Stats & Params'!$I$8*'B. PoF Summary Stats & Params'!$I$10*A26^('B. PoF Summary Stats & Params'!$I$10-1), IF('B. PoF Summary Stats & Params'!$C$12="W", B26*(('B. PoF Summary Stats & Params'!$M$14/'B. PoF Summary Stats & Params'!$O$14)*((A26)/'B. PoF Summary Stats & Params'!$O$14)^('B. PoF Summary Stats & Params'!$M$14-1)), "Choose Model")) -> 0.001685011832 | D26: =IF('B. PoF Summary Stats & Params'!$C$12="C", B26*'B. PoF Summary Stats & Params'!$I$8*'B. PoF Summary Stats & Params'!$I$6*A26^('B. PoF Summary Stats & Params'!$I$6-1), IF('B. PoF Summary Stats & Params'!$C$12="W", B26*(('B. PoF Summary Stats & Params'!$M$6/'B. PoF Summary Stats & Params'!$M$8)*((A26)/'B. PoF Summary Stats & Params'!$M$8)^('B. PoF Summary Stats & Params'!$M$6-1)), "Choose Model")) -> 0.001650305359 | E26: =IF('B. PoF Summary Stats & Params'!$C$12="C", B26*'B. PoF Summary Stats & Params'!$I$8*'B. PoF Summary Stats & Params'!$I$12*A26^('B. PoF Summary Stats & Params'!$I$12-1), IF('B. PoF Summary Stats & Params'!$C$12="W", B26*(('B. PoF Summary Stats & Params'!$M$12/'B. PoF Summary Stats & Params'!$O$12)*((A26)/'B. PoF Summary Stats & Params'!$O$12)^('B. PoF Summary Stats & Params'!$M$12-1)), "Choose Model")) -> 0.00161649617
A27: 23 | B27: 1 | C27: =IF('B. PoF Summary Stats & Params'!$C$12="C", B27*'B. PoF Summary Stats & Params'!$I$8*'B. PoF Summary Stats & Params'!$I$10*A27^('B. PoF Summary Stats & Params'!$I$10-1), IF('B. PoF Summary Stats & Params'!$C$12="W", B27*(('B. PoF Summary Stats & Params'!$M$14/'B. PoF Summary Stats & Params'!$O$14)*((A27)/'B. PoF Summary Stats & Params'!$O$14)^('B. PoF Summary Stats & Params'!$M$14-1)), "Choose Model")) -> 0.001829437141 | D27: =IF('B. PoF Summary Stats & Params'!$C$12="C", B27*'B. PoF Summary Stats & Params'!$I$8*'B. PoF Summary Stats & Params'!$I$6*A27^('B. PoF Summary Stats & Params'!$I$6-1), IF('B. PoF Summary Stats & Params'!$C$12="W", B27*(('B. PoF Summary Stats & Params'!$M$6/'B. PoF Summary Stats & Params'!$M$8)*((A27)/'B. PoF Summary Stats & Params'!$M$8)^('B. PoF Summary Stats & Params'!$M$6-1)), "Choose Model")) -> 0.0017912781 | E27: =IF('B. PoF Summary Stats & Params'!$C$12="C", B27*'B. PoF Summary Stats & Params'!$I$8*'B. PoF Summary Stats & Params'!$I$12*A27^('B. PoF Summary Stats & Params'!$I$12-1), IF('B. PoF Summary Stats & Params'!$C$12="W", B27*(('B. PoF Summary Stats & Params'!$M$12/'B. PoF Summary Stats & Params'!$O$12)*((A27)/'B. PoF Summary Stats & Params'!$O$12)^('B. PoF Summary Stats & Params'!$M$12-1)), "Choose Model")) -> 0.001754105155
A28: 24 | B28: 1 | C28: =IF('B. PoF Summary Stats & Params'!$C$12="C", B28*'B. PoF Summary Stats & Params'!$I$8*'B. PoF Summary Stats & Params'!$I$10*A28^('B. PoF Summary Stats & Params'!$I$10-1), IF('B. PoF Summary Stats & Params'!$C$12="W", B28*(('B. PoF Summary Stats & Params'!$M$14/'B. PoF Summary Stats & Params'!$O$14)*((A28)/'B. PoF Summary Stats & Params'!$O$14)^('B. PoF Summary Stats & Params'!$M$14-1)), "Choose Model")) -> 0.001979300765 | D28: =IF('B. PoF Summary Stats & Params'!$C$12="C", B28*'B. PoF Summary Stats & Params'!$I$8*'B. PoF Summary Stats & Params'!$I$6*A28^('B. PoF Summary Stats & Params'!$I$6-1), IF('B. PoF Summary Stats & Params'!$C$12="W", B28*(('B. PoF Summary Stats & Params'!$M$6/'B. PoF Summary Stats & Params'!$M$8)*((A28)/'B. PoF Summary Stats & Params'!$M$8)^('B. PoF Summary Stats & Params'!$M$6-1)), "Choose Model")) -> 0.001937520991 | E28: =IF('B. PoF Summary Stats & Params'!$C$12="C", B28*'B. PoF Summary Stats & Params'!$I$8*'B. PoF Summary Stats & Params'!$I$12*A28^('B. PoF Summary Stats & Params'!$I$12-1), IF('B. PoF Summary Stats & Params'!$C$12="W", B28*(('B. PoF Summary Stats & Params'!$M$12/'B. PoF Summary Stats & Params'!$O$12)*((A28)/'B. PoF Summary Stats & Params'!$O$12)^('B. PoF Summary Stats & Params'!$M$12-1)), "Choose Model")) -> 0.001896820681
A29: 25 | B29: 1 | C29: =IF('B. PoF Summary Stats & Params'!$C$12="C", B29*'B. PoF Summary Stats & Params'!$I$8*'B. PoF Summary Stats & Params'!$I$10*A29^('B. PoF Summary Stats & Params'!$I$10-1), IF('B. PoF Summary Stats & Params'!$C$12="W", B29*(('B. PoF Summary Stats & Params'!$M$14/'B. PoF Summary Stats & Params'!$O$14)*((A29)/'B. PoF Summary Stats & Params'!$O$14)^('B. PoF Summary Stats & Params'!$M$14-1)), "Choose Model")) -> 0.002134568083 | D29: =IF('B. PoF Summary Stats & Params'!$C$12="C", B29*'B. PoF Summary Stats & Params'!$I$8*'B. PoF Summary Stats & Params'!$I$6*A29^('B. PoF Summary Stats & Params'!$I$6-1), IF('B. PoF Summary Stats & Params'!$C$12="W", B29*(('B. PoF Summary Stats & Params'!$M$6/'B. PoF Summary Stats & Params'!$M$8)*((A29)/'B. PoF Summary Stats & Params'!$M$8)^('B. PoF Summary Stats & Params'!$M$6-1)), "Choose Model")) -> 0.002088999147 | E29: =IF('B. PoF Summary Stats & Params'!$C$12="C", B29*'B. PoF Summary Stats & Params'!$I$8*'B. PoF Summary Stats & Params'!$I$12*A29^('B. PoF Summary Stats & Params'!$I$12-1), IF('B. PoF Summary Stats & Params'!$C$12="W", B29*(('B. PoF Summary Stats & Params'!$M$12/'B. PoF Summary Stats & Params'!$O$12)*((A29)/'B. PoF Summary Stats & Params'!$O$12)^('B. PoF Summary Stats & Params'!$M$12-1)), "Choose Model")) -> 0.002044607629
A30: 26 | B30: 1 | C30: =IF('B. PoF Summary Stats & Params'!$C$12="C", B30*'B. PoF Summary Stats & Params'!$I$8*'B. PoF Summary Stats & Params'!$I$10*A30^('B. PoF Summary Stats & Params'!$I$10-1), IF('B. PoF Summary Stats & Params'!$C$12="W", B30*(('B. PoF Summary Stats & Params'!$M$14/'B. PoF Summary Stats & Params'!$O$14)*((A30)/'B. PoF Summary Stats & Params'!$O$14)^('B. PoF Summary Stats & Params'!$M$14-1)), "Choose Model")) -> 0.002295206098 | D30: =IF('B. PoF Summary Stats & Params'!$C$12="C", B30*'B. PoF Summary Stats & Params'!$I$8*'B. PoF Summary Stats & Params'!$I$6*A30^('B. PoF Summary Stats & Params'!$I$6-1), IF('B. PoF Summary Stats & Params'!$C$12="W", B30*(('B. PoF Summary Stats & Params'!$M$6/'B. PoF Summary Stats & Params'!$M$8)*((A30)/'B. PoF Summary Stats & Params'!$M$8)^('B. PoF Summary Stats & Params'!$M$6-1)), "Choose Model")) -> 0.002245679323 | E30: =IF('B. PoF Summary Stats & Params'!$C$12="C", B30*'B. PoF Summary Stats & Params'!$I$8*'B. PoF Summary Stats & Params'!$I$12*A30^('B. PoF Summary Stats & Params'!$I$12-1), IF('B. PoF Summary Stats & Params'!$C$12="W", B30*(('B. PoF Summary Stats & Params'!$M$12/'B. PoF Summary Stats & Params'!$O$12)*((A30)/'B. PoF Summary Stats & Params'!$O$12)^('B. PoF Summary Stats & Params'!$M$12-1)), "Choose Model")) -> 0.002197432539
A31: 27 | B31: 1 | C31: =IF('B. PoF Summary Stats & Params'!$C$12="C", B31*'B. PoF Summary Stats & Params'!$I$8*'B. PoF Summary Stats & Params'!$I$10*A31^('B. PoF Summary Stats & Params'!$I$10-1), IF('B. PoF Summary Stats & Params'!$C$12="W", B31*(('B. PoF Summary Stats & Params'!$M$14/'B. PoF Summary Stats & Params'!$O$14)*((A31)/'B. PoF Summary Stats & Params'!$O$14)^('B. PoF Summary Stats & Params'!$M$14-1)), "Choose Model")) -> 0.002461183297 | D31: =IF('B. PoF Summary Stats & Params'!$C$12="C", B31*'B. PoF Summary Stats & Params'!$I$8*'B. PoF Summary Stats & Params'!$I$6*A31^('B. PoF Summary Stats & Params'!$I$6-1), IF('B. PoF Summary Stats & Params'!$C$12="W", B31*(('B. PoF Summary Stats & Params'!$M$6/'B. PoF Summary Stats & Params'!$M$8)*((A31)/'B. PoF Summary Stats & Params'!$M$8)^('B. PoF Summary Stats & Params'!$M$6-1)), "Choose Model")) -> 0.002407529779 | E31: =IF('B. PoF Summary Stats & Params'!$C$12="C", B31*'B. PoF Summary Stats & Params'!$I$8*'B. PoF Summary Stats & Params'!$I$12*A31^('B. PoF Summary Stats & Params'!$I$12-1), IF('B. PoF Summary Stats & Params'!$C$12="W", B31*(('B. PoF Summary Stats & Params'!$M$12/'B. PoF Summary Stats & Params'!$O$12)*((A31)/'B. PoF Summary Stats & Params'!$O$12)^('B. PoF Summary Stats & Params'!$M$12-1)), "Choose Model")) -> 0.002355263475
A32: 28 | B32: 1 | C32: =IF('B. PoF Summary Stats & Params'!$C$12="C", B32*'B. PoF Summary Stats & Params'!$I$8*'B. PoF Summary Stats & Params'!$I$10*A32^('B. PoF Summary Stats & Params'!$I$10-1), IF('B. PoF Summary Stats & Params'!$C$12="W", B32*(('B. PoF Summary Stats & Params'!$M$14/'B. PoF Summary Stats & Params'!$O$14)*((A32)/'B. PoF Summary Stats & Params'!$O$14)^('B. PoF Summary Stats & Params'!$M$14-1)), "Choose Model")) -> 0.002632469531 | D32: =IF('B. PoF Summary Stats & Params'!$C$12="C", B32*'B. PoF Summary Stats & Params'!$I$8*'B. PoF Summary Stats & Params'!$I$6*A32^('B. PoF Summary Stats & Params'!$I$6-1), IF('B. PoF Summary Stats & Params'!$C$12="W", B32*(('B. PoF Summary Stats & Params'!$M$6/'B. PoF Summary Stats & Params'!$M$8)*((A32)/'B. PoF Summary Stats & Params'!$M$8)^('B. PoF Summary Stats & Params'!$M$6-1)), "Choose Model")) -> 0.002574520156 | E32: =IF('B. PoF Summary Stats & Params'!$C$12="C", B32*'B. PoF Summary Stats & Params'!$I$8*'B. PoF Summary Stats & Params'!$I$12*A32^('B. PoF Summary Stats & Params'!$I$12-1), IF('B. PoF Summary Stats & Params'!$C$12="W", B32*(('B. PoF Summary Stats & Params'!$M$12/'B. PoF Summary Stats & Params'!$O$12)*((A32)/'B. PoF Summary Stats & Params'!$O$12)^('B. PoF Summary Stats & Params'!$M$12-1)), "Choose Model")) -> 0.002518069895
A33: 29 | B33: 1 | C33: =IF('B. PoF Summary Stats & Params'!$C$12="C", B33*'B. PoF Summary Stats & Params'!$I$8*'B. PoF Summary Stats & Params'!$I$10*A33^('B. PoF Summary Stats & Params'!$I$10-1), IF('B. PoF Summary Stats & Params'!$C$12="W", B33*(('B. PoF Summary Stats & Params'!$M$14/'B. PoF Summary Stats & Params'!$O$14)*((A33)/'B. PoF Summary Stats & Params'!$O$14)^('B. PoF Summary Stats & Params'!$M$14-1)), "Choose Model")) -> 0.002809035912 | D33: =IF('B. PoF Summary Stats & Params'!$C$12="C", B33*'B. PoF Summary Stats & Params'!$I$8*'B. PoF Summary Stats & Params'!$I$6*A33^('B. PoF Summary Stats & Params'!$I$6-1), IF('B. PoF Summary Stats & Params'!$C$12="W", B33*(('B. PoF Summary Stats & Params'!$M$6/'B. PoF Summary Stats & Params'!$M$8)*((A33)/'B. PoF Summary Stats & Params'!$M$8)^('B. PoF Summary Stats & Params'!$M$6-1)), "Choose Model")) -> 0.00274662137 | E33: =IF('B. PoF Summary Stats & Params'!$C$12="C", B33*'B. PoF Summary Stats & Params'!$I$8*'B. PoF Summary Stats & Params'!$I$12*A33^('B. PoF Summary Stats & Params'!$I$12-1), IF('B. PoF Summary Stats & Params'!$C$12="W", B33*(('B. PoF Summary Stats & Params'!$M$12/'B. PoF Summary Stats & Params'!$O$12)*((A33)/'B. PoF Summary Stats & Params'!$O$12)^('B. PoF Summary Stats & Params'!$M$12-1)), "Choose Model")) -> 0.002685822547
A34: 30 | B34: 1 | C34: =IF('B. PoF Summary Stats & Params'!$C$12="C", B34*'B. PoF Summary Stats & Params'!$I$8*'B. PoF Summary Stats & Params'!$I$10*A34^('B. PoF Summary Stats & Params'!$I$10-1), IF('B. PoF Summary Stats & Params'!$C$12="W", B34*(('B. PoF Summary Stats & Params'!$M$14/'B. PoF Summary Stats & Params'!$O$14)*((A34)/'B. PoF Summary Stats & Params'!$O$14)^('B. PoF Summary Stats & Params'!$M$14-1)), "Choose Model")) -> 0.002990854711 | D34: =IF('B. PoF Summary Stats & Params'!$C$12="C", B34*'B. PoF Summary Stats & Params'!$I$8*'B. PoF Summary Stats & Params'!$I$6*A34^('B. PoF Summary Stats & Params'!$I$6-1), IF('B. PoF Summary Stats & Params'!$C$12="W", B34*(('B. PoF Summary Stats & Params'!$M$6/'B. PoF Summary Stats & Params'!$M$8)*((A34)/'B. PoF Summary Stats & Params'!$M$8)^('B. PoF Summary Stats & Params'!$M$6-1)), "Choose Model")) -> 0.00292380551 | E34: =IF('B. PoF Summary Stats & Params'!$C$12="C", B34*'B. PoF Summary Stats & Params'!$I$8*'B. PoF Summary Stats & Params'!$I$12*A34^('B. PoF Summary Stats & Params'!$I$12-1), IF('B. PoF Summary Stats & Params'!$C$12="W", B34*(('B. PoF Summary Stats & Params'!$M$12/'B. PoF Summary Stats & Params'!$O$12)*((A34)/'B. PoF Summary Stats & Params'!$O$12)^('B. PoF Summary Stats & Params'!$M$12-1)), "Choose Model")) -> 0.002858493368
A35: 31 | B35: 1 | C35: =IF('B. PoF Summary Stats & Params'!$C$12="C", B35*'B. PoF Summary Stats & Params'!$I$8*'B. PoF Summary Stats & Params'!$I$10*A35^('B. PoF Summary Stats & Params'!$I$10-1), IF('B. PoF Summary Stats & Params'!$C$12="W", B35*(('B. PoF Summary Stats & Params'!$M$14/'B. PoF Summary Stats & Params'!$O$14)*((A35)/'B. PoF Summary Stats & Params'!$O$14)^('B. PoF Summary Stats & Params'!$M$14-1)), "Choose Model")) -> 0.003177899282 | D35: =IF('B. PoF Summary Stats & Params'!$C$12="C", B35*'B. PoF Summary Stats & Params'!$I$8*'B. PoF Summary Stats & Params'!$I$6*A35^('B. PoF Summary Stats & Params'!$I$6-1), IF('B. PoF Summary Stats & Params'!$C$12="W", B35*(('B. PoF Summary Stats & Params'!$M$6/'B. PoF Summary Stats & Params'!$M$8)*((A35)/'B. PoF Summary Stats & Params'!$M$8)^('B. PoF Summary Stats & Params'!$M$6-1)), "Choose Model")) -> 0.003106045762 | E35: =IF('B. PoF Summary Stats & Params'!$C$12="C", B35*'B. PoF Summary Stats & Params'!$I$8*'B. PoF Summary Stats & Params'!$I$12*A35^('B. PoF Summary Stats & Params'!$I$12-1), IF('B. PoF Summary Stats & Params'!$C$12="W", B35*(('B. PoF Summary Stats & Params'!$M$12/'B. PoF Summary Stats & Params'!$O$12)*((A35)/'B. PoF Summary Stats & Params'!$O$12)^('B. PoF Summary Stats & Params'!$M$12-1)), "Choose Model")) -> 0.0030360554
A36: 32 | B36: 1 | C36: =IF('B. PoF Summary Stats & Params'!$C$12="C", B36*'B. PoF Summary Stats & Params'!$I$8*'B. PoF Summary Stats & Params'!$I$10*A36^('B. PoF Summary Stats & Params'!$I$10-1), IF('B. PoF Summary Stats & Params'!$C$12="W", B36*(('B. PoF Summary Stats & Params'!$M$14/'B. PoF Summary Stats & Params'!$O$14)*((A36)/'B. PoF Summary Stats & Params'!$O$14)^('B. PoF Summary Stats & Params'!$M$14-1)), "Choose Model")) -> 0.003370143979 | D36: =IF('B. PoF Summary Stats & Params'!$C$12="C", B36*'B. PoF Summary Stats & Params'!$I$8*'B. PoF Summary Stats & Params'!$I$6*A36^('B. PoF Summary Stats & Params'!$I$6-1), IF('B. PoF Summary Stats & Params'!$C$12="W", B36*(('B. PoF Summary Stats & Params'!$M$6/'B. PoF Summary Stats & Params'!$M$8)*((A36)/'B. PoF Summary Stats & Params'!$M$8)^('B. PoF Summary Stats & Params'!$M$6-1)), "Choose Model")) -> 0.003293316322 | E36: =IF('B. PoF Summary Stats & Params'!$C$12="C", B36*'B. PoF Summary Stats & Params'!$I$8*'B. PoF Summary Stats & Params'!$I$12*A36^('B. PoF Summary Stats & Params'!$I$12-1), IF('B. PoF Summary Stats & Params'!$C$12="W", B36*(('B. PoF Summary Stats & Params'!$M$12/'B. PoF Summary Stats & Params'!$O$12)*((A36)/'B. PoF Summary Stats & Params'!$O$12)^('B. PoF Summary Stats & Params'!$M$12-1)), "Choose Model")) -> 0.003218482708
A37: 33 | B37: 1 | C37: =IF('B. PoF Summary Stats & Params'!$C$12="C", B37*'B. PoF Summary Stats & Params'!$I$8*'B. PoF Summary Stats & Params'!$I$10*A37^('B. PoF Summary Stats & Params'!$I$10-1), IF('B. PoF Summary Stats & Params'!$C$12="W", B37*(('B. PoF Summary Stats & Params'!$M$14/'B. PoF Summary Stats & Params'!$O$14)*((A37)/'B. PoF Summary Stats & Params'!$O$14)^('B. PoF Summary Stats & Params'!$M$14-1)), "Choose Model")) -> 0.003567564092 | D37: =IF('B. PoF Summary Stats & Params'!$C$12="C", B37*'B. PoF Summary Stats & Params'!$I$8*'B. PoF Summary Stats & Params'!$I$6*A37^('B. PoF Summary Stats & Params'!$I$6-1), IF('B. PoF Summary Stats & Params'!$C$12="W", B37*(('B. PoF Summary Stats & Params'!$M$6/'B. PoF Summary Stats & Params'!$M$8)*((A37)/'B. PoF Summary Stats & Params'!$M$8)^('B. PoF Summary Stats & Params'!$M$6-1)), "Choose Model")) -> 0.003485592333 | E37: =IF('B. PoF Summary Stats & Params'!$C$12="C", B37*'B. PoF Summary Stats & Params'!$I$8*'B. PoF Summary Stats & Params'!$I$12*A37^('B. PoF Summary Stats & Params'!$I$12-1), IF('B. PoF Summary Stats & Params'!$C$12="W", B37*(('B. PoF Summary Stats & Params'!$M$12/'B. PoF Summary Stats & Params'!$O$12)*((A37)/'B. PoF Summary Stats & Params'!$O$12)^('B. PoF Summary Stats & Params'!$M$12-1)), "Choose Model")) -> 0.003405750312
A38: 34 | B38: 1 | C38: =IF('B. PoF Summary Stats & Params'!$C$12="C", B38*'B. PoF Summary Stats & Params'!$I$8*'B. PoF Summary Stats & Params'!$I$10*A38^('B. PoF Summary Stats & Params'!$I$10-1), IF('B. PoF Summary Stats & Params'!$C$12="W", B38*(('B. PoF Summary Stats & Params'!$M$14/'B. PoF Summary Stats & Params'!$O$14)*((A38)/'B. PoF Summary Stats & Params'!$O$14)^('B. PoF Summary Stats & Params'!$M$14-1)), "Choose Model")) -> 0.003770135783 | D38: =IF('B. PoF Summary Stats & Params'!$C$12="C", B38*'B. PoF Summary Stats & Params'!$I$8*'B. PoF Summary Stats & Params'!$I$6*A38^('B. PoF Summary Stats & Params'!$I$6-1), IF('B. PoF Summary Stats & Params'!$C$12="W", B38*(('B. PoF Summary Stats & Params'!$M$6/'B. PoF Summary Stats & Params'!$M$8)*((A38)/'B. PoF Summary Stats & Params'!$M$8)^('B. PoF Summary Stats & Params'!$M$6-1)), "Choose Model")) -> 0.003682849821 | E38: =IF('B. PoF Summary Stats & Params'!$C$12="C", B38*'B. PoF Summary Stats & Params'!$I$8*'B. PoF Summary Stats & Params'!$I$12*A38^('B. PoF Summary Stats & Params'!$I$12-1), IF('B. PoF Summary Stats & Params'!$C$12="W", B38*(('B. PoF Summary Stats & Params'!$M$12/'B. PoF Summary Stats & Params'!$O$12)*((A38)/'B. PoF Summary Stats & Params'!$O$12)^('B. PoF Summary Stats & Params'!$M$12-1)), "Choose Model")) -> 0.003597834124
A39: 35 | B39: 1 | C39: =IF('B. PoF Summary Stats & Params'!$C$12="C", B39*'B. PoF Summary Stats & Params'!$I$8*'B. PoF Summary Stats & Params'!$I$10*A39^('B. PoF Summary Stats & Params'!$I$10-1), IF('B. PoF Summary Stats & Params'!$C$12="W", B39*(('B. PoF Summary Stats & Params'!$M$14/'B. PoF Summary Stats & Params'!$O$14)*((A39)/'B. PoF Summary Stats & Params'!$O$14)^('B. PoF Summary Stats & Params'!$M$14-1)), "Choose Model")) -> 0.003977836032 | D39: =IF('B. PoF Summary Stats & Params'!$C$12="C", B39*'B. PoF Summary Stats & Params'!$I$8*'B. PoF Summary Stats & Params'!$I$6*A39^('B. PoF Summary Stats & Params'!$I$6-1), IF('B. PoF Summary Stats & Params'!$C$12="W", B39*(('B. PoF Summary Stats & Params'!$M$6/'B. PoF Summary Stats & Params'!$M$8)*((A39)/'B. PoF Summary Stats & Params'!$M$8)^('B. PoF Summary Stats & Params'!$M$6-1)), "Choose Model")) -> 0.003885065636 | E39: =IF('B. PoF Summary Stats & Params'!$C$12="C", B39*'B. PoF Summary Stats & Params'!$I$8*'B. PoF Summary Stats & Params'!$I$12*A39^('B. PoF Summary Stats & Params'!$I$12-1), IF('B. PoF Summary Stats & Params'!$C$12="W", B39*(('B. PoF Summary Stats & Params'!$M$12/'B. PoF Summary Stats & Params'!$O$12)*((A39)/'B. PoF Summary Stats & Params'!$O$12)^('B. PoF Summary Stats & Params'!$M$12-1)), "Choose Model")) -> 0.00379471089
A40: 36 | B40: 1 | C40: =IF('B. PoF Summary Stats & Params'!$C$12="C", B40*'B. PoF Summary Stats & Params'!$I$8*'B. PoF Summary Stats & Params'!$I$10*A40^('B. PoF Summary Stats & Params'!$I$10-1), IF('B. PoF Summary Stats & Params'!$C$12="W", B40*(('B. PoF Summary Stats & Params'!$M$14/'B. PoF Summary Stats & Params'!$O$14)*((A40)/'B. PoF Summary Stats & Params'!$O$14)^('B. PoF Summary Stats & Params'!$M$14-1)), "Choose Model")) -> 0.004190642583 | D40: =IF('B. PoF Summary Stats & Params'!$C$12="C", B40*'B. PoF Summary Stats & Params'!$I$8*'B. PoF Summary Stats & Params'!$I$6*A40^('B. PoF Summary Stats & Params'!$I$6-1), IF('B. PoF Summary Stats & Params'!$C$12="W", B40*(('B. PoF Summary Stats & Params'!$M$6/'B. PoF Summary Stats & Params'!$M$8)*((A40)/'B. PoF Summary Stats & Params'!$M$8)^('B. PoF Summary Stats & Params'!$M$6-1)), "Choose Model")) -> 0.004092217403 | E40: =IF('B. PoF Summary Stats & Params'!$C$12="C", B40*'B. PoF Summary Stats & Params'!$I$8*'B. PoF Summary Stats & Params'!$I$12*A40^('B. PoF Summary Stats & Params'!$I$12-1), IF('B. PoF Summary Stats & Params'!$C$12="W", B40*(('B. PoF Summary Stats & Params'!$M$12/'B. PoF Summary Stats & Params'!$O$12)*((A40)/'B. PoF Summary Stats & Params'!$O$12)^('B. PoF Summary Stats & Params'!$M$12-1)), "Choose Model")) -> 0.003996358138
A41: 37 | B41: 1 | C41: =IF('B. PoF Summary Stats & Params'!$C$12="C", B41*'B. PoF Summary Stats & Params'!$I$8*'B. PoF Summary Stats & Params'!$I$10*A41^('B. PoF Summary Stats & Params'!$I$10-1), IF('B. PoF Summary Stats & Params'!$C$12="W", B41*(('B. PoF Summary Stats & Params'!$M$14/'B. PoF Summary Stats & Params'!$O$14)*((A41)/'B. PoF Summary Stats & Params'!$O$14)^('B. PoF Summary Stats & Params'!$M$14-1)), "Choose Model")) -> 0.004408533901 | D41: =IF('B. PoF Summary Stats & Params'!$C$12="C", B41*'B. PoF Summary Stats & Params'!$I$8*'B. PoF Summary Stats & Params'!$I$6*A41^('B. PoF Summary Stats & Params'!$I$6-1), IF('B. PoF Summary Stats & Params'!$C$12="W", B41*(('B. PoF Summary Stats & Params'!$M$6/'B. PoF Summary Stats & Params'!$M$8)*((A41)/'B. PoF Summary Stats & Params'!$M$8)^('B. PoF Summary Stats & Params'!$M$6-1)), "Choose Model")) -> 0.004304283475 | E41: =IF('B. PoF Summary Stats & Params'!$C$12="C", B41*'B. PoF Summary Stats & Params'!$I$8*'B. PoF Summary Stats & Params'!$I$12*A41^('B. PoF Summary Stats & Params'!$I$12-1), IF('B. PoF Summary Stats & Params'!$C$12="W", B41*(('B. PoF Summary Stats & Params'!$M$12/'B. PoF Summary Stats & Params'!$O$12)*((A41)/'B. PoF Summary Stats & Params'!$O$12)^('B. PoF Summary Stats & Params'!$M$12-1)), "Choose Model")) -> 0.00420275413
A42: 38 | B42: 1 | C42: =IF('B. PoF Summary Stats & Params'!$C$12="C", B42*'B. PoF Summary Stats & Params'!$I$8*'B. PoF Summary Stats & Params'!$I$10*A42^('B. PoF Summary Stats & Params'!$I$10-1), IF('B. PoF Summary Stats & Params'!$C$12="W", B42*(('B. PoF Summary Stats & Params'!$M$14/'B. PoF Summary Stats & Params'!$O$14)*((A42)/'B. PoF Summary Stats & Params'!$O$14)^('B. PoF Summary Stats & Params'!$M$14-1)), "Choose Model")) -> 0.004631489129 | D42: =IF('B. PoF Summary Stats & Params'!$C$12="C", B42*'B. PoF Summary Stats & Params'!$I$8*'B. PoF Summary Stats & Params'!$I$6*A42^('B. PoF Summary Stats & Params'!$I$6-1), IF('B. PoF Summary Stats & Params'!$C$12="W", B42*(('B. PoF Summary Stats & Params'!$M$6/'B. PoF Summary Stats & Params'!$M$8)*((A42)/'B. PoF Summary Stats & Params'!$M$8)^('B. PoF Summary Stats & Params'!$M$6-1)), "Choose Model")) -> 0.004521242889 | E42: =IF('B. PoF Summary Stats & Params'!$C$12="C", B42*'B. PoF Summary Stats & Params'!$I$8*'B. PoF Summary Stats & Params'!$I$12*A42^('B. PoF Summary Stats & Params'!$I$12-1), IF('B. PoF Summary Stats & Params'!$C$12="W", B42*(('B. PoF Summary Stats & Params'!$M$12/'B. PoF Summary Stats & Params'!$O$12)*((A42)/'B. PoF Summary Stats & Params'!$O$12)^('B. PoF Summary Stats & Params'!$M$12-1)), "Choose Model")) -> 0.004413877818
A43: 39 | B43: 1 | C43: =IF('B. PoF Summary Stats & Params'!$C$12="C", B43*'B. PoF Summary Stats & Params'!$I$8*'B. PoF Summary Stats & Params'!$I$10*A43^('B. PoF Summary Stats & Params'!$I$10-1), IF('B. PoF Summary Stats & Params'!$C$12="W", B43*(('B. PoF Summary Stats & Params'!$M$14/'B. PoF Summary Stats & Params'!$O$14)*((A43)/'B. PoF Summary Stats & Params'!$O$14)^('B. PoF Summary Stats & Params'!$M$14-1)), "Choose Model")) -> 0.004859488048 | D43: =IF('B. PoF Summary Stats & Params'!$C$12="C", B43*'B. PoF Summary Stats & Params'!$I$8*'B. PoF Summary Stats & Params'!$I$6*A43^('B. PoF Summary Stats & Params'!$I$6-1), IF('B. PoF Summary Stats & Params'!$C$12="W", B43*(('B. PoF Summary Stats & Params'!$M$6/'B. PoF Summary Stats & Params'!$M$8)*((A43)/'B. PoF Summary Stats & Params'!$M$8)^('B. PoF Summary Stats & Params'!$M$6-1)), "Choose Model")) -> 0.004743075327 | E43: =IF('B. PoF Summary Stats & Params'!$C$12="C", B43*'B. PoF Summary Stats & Params'!$I$8*'B. PoF Summary Stats & Params'!$I$12*A43^('B. PoF Summary Stats & Params'!$I$12-1), IF('B. PoF Summary Stats & Params'!$C$12="W", B43*(('B. PoF Summary Stats & Params'!$M$12/'B. PoF Summary Stats & Params'!$O$12)*((A43)/'B. PoF Summary Stats & Params'!$O$12)^('B. PoF Summary Stats & Params'!$M$12-1)), "Choose Model")) -> 0.004629708807
A44: 40 | B44: 1 | C44: =IF('B. PoF Summary Stats & Params'!$C$12="C", B44*'B. PoF Summary Stats & Params'!$I$8*'B. PoF Summary Stats & Params'!$I$10*A44^('B. PoF Summary Stats & Params'!$I$10-1), IF('B. PoF Summary Stats & Params'!$C$12="W", B44*(('B. PoF Summary Stats & Params'!$M$14/'B. PoF Summary Stats & Params'!$O$14)*((A44)/'B. PoF Summary Stats & Params'!$O$14)^('B. PoF Summary Stats & Params'!$M$14-1)), "Choose Model")) -> 0.005092511041 | D44: =IF('B. PoF Summary Stats & Params'!$C$12="C", B44*'B. PoF Summary Stats & Params'!$I$8*'B. PoF Summary Stats & Params'!$I$6*A44^('B. PoF Summary Stats & Params'!$I$6-1), IF('B. PoF Summary Stats & Params'!$C$12="W", B44*(('B. PoF Summary Stats & Params'!$M$6/'B. PoF Summary Stats & Params'!$M$8)*((A44)/'B. PoF Summary Stats & Params'!$M$8)^('B. PoF Summary Stats & Params'!$M$6-1)), "Choose Model")) -> 0.004969761079 | E44: =IF('B. PoF Summary Stats & Params'!$C$12="C", B44*'B. PoF Summary Stats & Params'!$I$8*'B. PoF Summary Stats & Params'!$I$12*A44^('B. PoF Summary Stats & Params'!$I$12-1), IF('B. PoF Summary Stats & Params'!$C$12="W", B44*(('B. PoF Summary Stats & Params'!$M$12/'B. PoF Summary Stats & Params'!$O$12)*((A44)/'B. PoF Summary Stats & Params'!$O$12)^('B. PoF Summary Stats & Params'!$M$12-1)), "Choose Model")) -> 0.004850227314
A45: 41 | B45: 1 | C45: =IF('B. PoF Summary Stats & Params'!$C$12="C", B45*'B. PoF Summary Stats & Params'!$I$8*'B. PoF Summary Stats & Params'!$I$10*A45^('B. PoF Summary Stats & Params'!$I$10-1), IF('B. PoF Summary Stats & Params'!$C$12="W", B45*(('B. PoF Summary Stats & Params'!$M$14/'B. PoF Summary Stats & Params'!$O$14)*((A45)/'B. PoF Summary Stats & Params'!$O$14)^('B. PoF Summary Stats & Params'!$M$14-1)), "Choose Model")) -> 0.005330539062 | D45: =IF('B. PoF Summary Stats & Params'!$C$12="C", B45*'B. PoF Summary Stats & Params'!$I$8*'B. PoF Summary Stats & Params'!$I$6*A45^('B. PoF Summary Stats & Params'!$I$6-1), IF('B. PoF Summary Stats & Params'!$C$12="W", B45*(('B. PoF Summary Stats & Params'!$M$6/'B. PoF Summary Stats & Params'!$M$8)*((A45)/'B. PoF Summary Stats & Params'!$M$8)^('B. PoF Summary Stats & Params'!$M$6-1)), "Choose Model")) -> 0.005201281013 | E45: =IF('B. PoF Summary Stats & Params'!$C$12="C", B45*'B. PoF Summary Stats & Params'!$I$8*'B. PoF Summary Stats & Params'!$I$12*A45^('B. PoF Summary Stats & Params'!$I$12-1), IF('B. PoF Summary Stats & Params'!$C$12="W", B45*(('B. PoF Summary Stats & Params'!$M$12/'B. PoF Summary Stats & Params'!$O$12)*((A45)/'B. PoF Summary Stats & Params'!$O$12)^('B. PoF Summary Stats & Params'!$M$12-1)), "Choose Model")) -> 0.005075414139
A46: 42 | B46: 1 | C46: =IF('B. PoF Summary Stats & Params'!$C$12="C", B46*'B. PoF Summary Stats & Params'!$I$8*'B. PoF Summary Stats & Params'!$I$10*A46^('B. PoF Summary Stats & Params'!$I$10-1), IF('B. PoF Summary Stats & Params'!$C$12="W", B46*(('B. PoF Summary Stats & Params'!$M$14/'B. PoF Summary Stats & Params'!$O$14)*((A46)/'B. PoF Summary Stats & Params'!$O$14)^('B. PoF Summary Stats & Params'!$M$14-1)), "Choose Model")) -> 0.005573553606 | D46: =IF('B. PoF Summary Stats & Params'!$C$12="C", B46*'B. PoF Summary Stats & Params'!$I$8*'B. PoF Summary Stats & Params'!$I$6*A46^('B. PoF Summary Stats & Params'!$I$6-1), IF('B. PoF Summary Stats & Params'!$C$12="W", B46*(('B. PoF Summary Stats & Params'!$M$6/'B. PoF Summary Stats & Params'!$M$8)*((A46)/'B. PoF Summary Stats & Params'!$M$8)^('B. PoF Summary Stats & Params'!$M$6-1)), "Choose Model")) -> 0.005437616541 | E46: =IF('B. PoF Summary Stats & Params'!$C$12="C", B46*'B. PoF Summary Stats & Params'!$I$8*'B. PoF Summary Stats & Params'!$I$12*A46^('B. PoF Summary Stats & Params'!$I$12-1), IF('B. PoF Summary Stats & Params'!$C$12="W", B46*(('B. PoF Summary Stats & Params'!$M$12/'B. PoF Summary Stats & Params'!$O$12)*((A46)/'B. PoF Summary Stats & Params'!$O$12)^('B. PoF Summary Stats & Params'!$M$12-1)), "Choose Model")) -> 0.005305250632
A47: 43 | B47: 1 | C47: =IF('B. PoF Summary Stats & Params'!$C$12="C", B47*'B. PoF Summary Stats & Params'!$I$8*'B. PoF Summary Stats & Params'!$I$10*A47^('B. PoF Summary Stats & Params'!$I$10-1), IF('B. PoF Summary Stats & Params'!$C$12="W", B47*(('B. PoF Summary Stats & Params'!$M$14/'B. PoF Summary Stats & Params'!$O$14)*((A47)/'B. PoF Summary Stats & Params'!$O$14)^('B. PoF Summary Stats & Params'!$M$14-1)), "Choose Model")) -> 0.005821536679 | D47: =IF('B. PoF Summary Stats & Params'!$C$12="C", B47*'B. PoF Summary Stats & Params'!$I$8*'B. PoF Summary Stats & Params'!$I$6*A47^('B. PoF Summary Stats & Params'!$I$6-1), IF('B. PoF Summary Stats & Params'!$C$12="W", B47*(('B. PoF Summary Stats & Params'!$M$6/'B. PoF Summary Stats & Params'!$M$8)*((A47)/'B. PoF Summary Stats & Params'!$M$8)^('B. PoF Summary Stats & Params'!$M$6-1)), "Choose Model")) -> 0.005678749592 | E47: =IF('B. PoF Summary Stats & Params'!$C$12="C", B47*'B. PoF Summary Stats & Params'!$I$8*'B. PoF Summary Stats & Params'!$I$12*A47^('B. PoF Summary Stats & Params'!$I$12-1), IF('B. PoF Summary Stats & Params'!$C$12="W", B47*(('B. PoF Summary Stats & Params'!$M$12/'B. PoF Summary Stats & Params'!$O$12)*((A47)/'B. PoF Summary Stats & Params'!$O$12)^('B. PoF Summary Stats & Params'!$M$12-1)), "Choose Model")) -> 0.005539718663
A48: 44 | B48: 1 | C48: =IF('B. PoF Summary Stats & Params'!$C$12="C", B48*'B. PoF Summary Stats & Params'!$I$8*'B. PoF Summary Stats & Params'!$I$10*A48^('B. PoF Summary Stats & Params'!$I$10-1), IF('B. PoF Summary Stats & Params'!$C$12="W", B48*(('B. PoF Summary Stats & Params'!$M$14/'B. PoF Summary Stats & Params'!$O$14)*((A48)/'B. PoF Summary Stats & Params'!$O$14)^('B. PoF Summary Stats & Params'!$M$14-1)), "Choose Model")) -> 0.006074470773 | D48: =IF('B. PoF Summary Stats & Params'!$C$12="C", B48*'B. PoF Summary Stats & Params'!$I$8*'B. PoF Summary Stats & Params'!$I$6*A48^('B. PoF Summary Stats & Params'!$I$6-1), IF('B. PoF Summary Stats & Params'!$C$12="W", B48*(('B. PoF Summary Stats & Params'!$M$6/'B. PoF Summary Stats & Params'!$M$8)*((A48)/'B. PoF Summary Stats & Params'!$M$8)^('B. PoF Summary Stats & Params'!$M$6-1)), "Choose Model")) -> 0.005924662586 | E48: =IF('B. PoF Summary Stats & Params'!$C$12="C", B48*'B. PoF Summary Stats & Params'!$I$8*'B. PoF Summary Stats & Params'!$I$12*A48^('B. PoF Summary Stats & Params'!$I$12-1), IF('B. PoF Summary Stats & Params'!$C$12="W", B48*(('B. PoF Summary Stats & Params'!$M$12/'B. PoF Summary Stats & Params'!$O$12)*((A48)/'B. PoF Summary Stats & Params'!$O$12)^('B. PoF Summary Stats & Params'!$M$12-1)), "Choose Model")) -> 0.005778800598
A49: 45 | B49: 1 | C49: =IF('B. PoF Summary Stats & Params'!$C$12="C", B49*'B. PoF Summary Stats & Params'!$I$8*'B. PoF Summary Stats & Params'!$I$10*A49^('B. PoF Summary Stats & Params'!$I$10-1), IF('B. PoF Summary Stats & Params'!$C$12="W", B49*(('B. PoF Summary Stats & Params'!$M$14/'B. PoF Summary Stats & Params'!$O$14)*((A49)/'B. PoF Summary Stats & Params'!$O$14)^('B. PoF Summary Stats & Params'!$M$14-1)), "Choose Model")) -> 0.006332338841 | D49: =IF('B. PoF Summary Stats & Params'!$C$12="C", B49*'B. PoF Summary Stats & Params'!$I$8*'B. PoF Summary Stats & Params'!$I$6*A49^('B. PoF Summary Stats & Params'!$I$6-1), IF('B. PoF Summary Stats & Params'!$C$12="W", B49*(('B. PoF Summary Stats & Params'!$M$6/'B. PoF Summary Stats & Params'!$M$8)*((A49)/'B. PoF Summary Stats & Params'!$M$8)^('B. PoF Summary Stats & Params'!$M$6-1)), "Choose Model")) -> 0.006175338409 | E49: =IF('B. PoF Summary Stats & Params'!$C$12="C", B49*'B. PoF Summary Stats & Params'!$I$8*'B. PoF Summary Stats & Params'!$I$12*A49^('B. PoF Summary Stats & Params'!$I$12-1), IF('B. PoF Summary Stats & Params'!$C$12="W", B49*(('B. PoF Summary Stats & Params'!$M$12/'B. PoF Summary Stats & Params'!$O$12)*((A49)/'B. PoF Summary Stats & Params'!$O$12)^('B. PoF Summary Stats & Params'!$M$12-1)), "Choose Model")) -> 0.006022479273
A50: 46 | B50: 1 | C50: =IF('B. PoF Summary Stats & Params'!$C$12="C", B50*'B. PoF Summary Stats & Params'!$I$8*'B. PoF Summary Stats & Params'!$I$10*A50^('B. PoF Summary Stats & Params'!$I$10-1), IF('B. PoF Summary Stats & Params'!$C$12="W", B50*(('B. PoF Summary Stats & Params'!$M$14/'B. PoF Summary Stats & Params'!$O$14)*((A50)/'B. PoF Summary Stats & Params'!$O$14)^('B. PoF Summary Stats & Params'!$M$14-1)), "Choose Model")) -> 0.00659512428 | D50: =IF('B. PoF Summary Stats & Params'!$C$12="C", B50*'B. PoF Summary Stats & Params'!$I$8*'B. PoF Summary Stats & Params'!$I$6*A50^('B. PoF Summary Stats & Params'!$I$6-1), IF('B. PoF Summary Stats & Params'!$C$12="W", B50*(('B. PoF Summary Stats & Params'!$M$6/'B. PoF Summary Stats & Params'!$M$8)*((A50)/'B. PoF Summary Stats & Params'!$M$8)^('B. PoF Summary Stats & Params'!$M$6-1)), "Choose Model")) -> 0.006430760391 | E50: =IF('B. PoF Summary Stats & Params'!$C$12="C", B50*'B. PoF Summary Stats & Params'!$I$8*'B. PoF Summary Stats & Params'!$I$12*A50^('B. PoF Summary Stats & Params'!$I$12-1), IF('B. PoF Summary Stats & Params'!$C$12="W", B50*(('B. PoF Summary Stats & Params'!$M$12/'B. PoF Summary Stats & Params'!$O$12)*((A50)/'B. PoF Summary Stats & Params'!$O$12)^('B. PoF Summary Stats & Params'!$M$12-1)), "Choose Model")) -> 0.006270737972
A51: 47 | B51: 1 | C51: =IF('B. PoF Summary Stats & Params'!$C$12="C", B51*'B. PoF Summary Stats & Params'!$I$8*'B. PoF Summary Stats & Params'!$I$10*A51^('B. PoF Summary Stats & Params'!$I$10-1), IF('B. PoF Summary Stats & Params'!$C$12="W", B51*(('B. PoF Summary Stats & Params'!$M$14/'B. PoF Summary Stats & Params'!$O$14)*((A51)/'B. PoF Summary Stats & Params'!$O$14)^('B. PoF Summary Stats & Params'!$M$14-1)), "Choose Model")) -> 0.006862810901 | D51: =IF('B. PoF Summary Stats & Params'!$C$12="C", B51*'B. PoF Summary Stats & Params'!$I$8*'B. PoF Summary Stats & Params'!$I$6*A51^('B. PoF Summary Stats & Params'!$I$6-1), IF('B. PoF Summary Stats & Params'!$C$12="W", B51*(('B. PoF Summary Stats & Params'!$M$6/'B. PoF Summary Stats & Params'!$M$8)*((A51)/'B. PoF Summary Stats & Params'!$M$8)^('B. PoF Summary Stats & Params'!$M$6-1)), "Choose Model")) -> 0.006690912286 | E51: =IF('B. PoF Summary Stats & Params'!$C$12="C", B51*'B. PoF Summary Stats & Params'!$I$8*'B. PoF Summary Stats & Params'!$I$12*A51^('B. PoF Summary Stats & Params'!$I$12-1), IF('B. PoF Summary Stats & Params'!$C$12="W", B51*(('B. PoF Summary Stats & Params'!$M$12/'B. PoF Summary Stats & Params'!$O$12)*((A51)/'B. PoF Summary Stats & Params'!$O$12)^('B. PoF Summary Stats & Params'!$M$12-1)), "Choose Model")) -> 0.006523560404
A52: 48 | B52: 1 | C52: =IF('B. PoF Summary Stats & Params'!$C$12="C", B52*'B. PoF Summary Stats & Params'!$I$8*'B. PoF Summary Stats & Params'!$I$10*A52^('B. PoF Summary Stats & Params'!$I$10-1), IF('B. PoF Summary Stats & Params'!$C$12="W", B52*(('B. PoF Summary Stats & Params'!$M$14/'B. PoF Summary Stats & Params'!$O$14)*((A52)/'B. PoF Summary Stats & Params'!$O$14)^('B. PoF Summary Stats & Params'!$M$14-1)), "Choose Model")) -> 0.007135382919 | D52: =IF('B. PoF Summary Stats & Params'!$C$12="C", B52*'B. PoF Summary Stats & Params'!$I$8*'B. PoF Summary Stats & Params'!$I$6*A52^('B. PoF Summary Stats & Params'!$I$6-1), IF('B. PoF Summary Stats & Params'!$C$12="W", B52*(('B. PoF Summary Stats & Params'!$M$6/'B. PoF Summary Stats & Params'!$M$8)*((A52)/'B. PoF Summary Stats & Params'!$M$8)^('B. PoF Summary Stats & Params'!$M$6-1)), "Choose Model")) -> 0.00695577825 | E52: =IF('B. PoF Summary Stats & Params'!$C$12="C", B52*'B. PoF Summary Stats & Params'!$I$8*'B. PoF Summary Stats & Params'!$I$12*A52^('B. PoF Summary Stats & Params'!$I$12-1), IF('B. PoF Summary Stats & Params'!$C$12="W", B52*(('B. PoF Summary Stats & Params'!$M$12/'B. PoF Summary Stats & Params'!$O$12)*((A52)/'B. PoF Summary Stats & Params'!$O$12)^('B. PoF Summary Stats & Params'!$M$12-1)), "Choose Model")) -> 0.006780930687
A53: 49 | B53: 1 | C53: =IF('B. PoF Summary Stats & Params'!$C$12="C", B53*'B. PoF Summary Stats & Params'!$I$8*'B. PoF Summary Stats & Params'!$I$10*A53^('B. PoF Summary Stats & Params'!$I$10-1), IF('B. PoF Summary Stats & Params'!$C$12="W", B53*(('B. PoF Summary Stats & Params'!$M$14/'B. PoF Summary Stats & Params'!$O$14)*((A53)/'B. PoF Summary Stats & Params'!$O$14)^('B. PoF Summary Stats & Params'!$M$14-1)), "Choose Model")) -> 0.007412824928 | D53: =IF('B. PoF Summary Stats & Params'!$C$12="C", B53*'B. PoF Summary Stats & Params'!$I$8*'B. PoF Summary Stats & Params'!$I$6*A53^('B. PoF Summary Stats & Params'!$I$6-1), IF('B. PoF Summary Stats & Params'!$C$12="W", B53*(('B. PoF Summary Stats & Params'!$M$6/'B. PoF Summary Stats & Params'!$M$8)*((A53)/'B. PoF Summary Stats & Params'!$M$8)^('B. PoF Summary Stats & Params'!$M$6-1)), "Choose Model")) -> 0.007225342825 | E53: =IF('B. PoF Summary Stats & Params'!$C$12="C", B53*'B. PoF Summary Stats & Params'!$I$8*'B. PoF Summary Stats & Params'!$I$12*A53^('B. PoF Summary Stats & Params'!$I$12-1), IF('B. PoF Summary Stats & Params'!$C$12="W", B53*(('B. PoF Summary Stats & Params'!$M$12/'B. PoF Summary Stats & Params'!$O$12)*((A53)/'B. PoF Summary Stats & Params'!$O$12)^('B. PoF Summary Stats & Params'!$M$12-1)), "Choose Model")) -> 0.007042833323
A54: 50 | B54: 1 | C54: =IF('B. PoF Summary Stats & Params'!$C$12="C", B54*'B. PoF Summary Stats & Params'!$I$8*'B. PoF Summary Stats & Params'!$I$10*A54^('B. PoF Summary Stats & Params'!$I$10-1), IF('B. PoF Summary Stats & Params'!$C$12="W", B54*(('B. PoF Summary Stats & Params'!$M$14/'B. PoF Summary Stats & Params'!$O$14)*((A54)/'B. PoF Summary Stats & Params'!$O$14)^('B. PoF Summary Stats & Params'!$M$14-1)), "Choose Model")) -> 0.007695121888 | D54: =IF('B. PoF Summary Stats & Params'!$C$12="C", B54*'B. PoF Summary Stats & Params'!$I$8*'B. PoF Summary Stats & Params'!$I$6*A54^('B. PoF Summary Stats & Params'!$I$6-1), IF('B. PoF Summary Stats & Params'!$C$12="W", B54*(('B. PoF Summary Stats & Params'!$M$6/'B. PoF Summary Stats & Params'!$M$8)*((A54)/'B. PoF Summary Stats & Params'!$M$8)^('B. PoF Summary Stats & Params'!$M$6-1)), "Choose Model")) -> 0.007499590919 | E54: =IF('B. PoF Summary Stats & Params'!$C$12="C", B54*'B. PoF Summary Stats & Params'!$I$8*'B. PoF Summary Stats & Params'!$I$12*A54^('B. PoF Summary Stats & Params'!$I$12-1), IF('B. PoF Summary Stats & Params'!$C$12="W", B54*(('B. PoF Summary Stats & Params'!$M$12/'B. PoF Summary Stats & Params'!$O$12)*((A54)/'B. PoF Summary Stats & Params'!$O$12)^('B. PoF Summary Stats & Params'!$M$12-1)), "Choose Model")) -> 0.007309253189
A55: 51 | B55: 1 | C55: =IF('B. PoF Summary Stats & Params'!$C$12="C", B55*'B. PoF Summary Stats & Params'!$I$8*'B. PoF Summary Stats & Params'!$I$10*A55^('B. PoF Summary Stats & Params'!$I$10-1), IF('B. PoF Summary Stats & Params'!$C$12="W", B55*(('B. PoF Summary Stats & Params'!$M$14/'B. PoF Summary Stats & Params'!$O$14)*((A55)/'B. PoF Summary Stats & Params'!$O$14)^('B. PoF Summary Stats & Params'!$M$14-1)), "Choose Model")) -> 0.007982259108 | D55: =IF('B. PoF Summary Stats & Params'!$C$12="C", B55*'B. PoF Summary Stats & Params'!$I$8*'B. PoF Summary Stats & Params'!$I$6*A55^('B. PoF Summary Stats & Params'!$I$6-1), IF('B. PoF Summary Stats & Params'!$C$12="W", B55*(('B. PoF Summary Stats & Params'!$M$6/'B. PoF Summary Stats & Params'!$M$8)*((A55)/'B. PoF Summary Stats & Params'!$M$8)^('B. PoF Summary Stats & Params'!$M$6-1)), "Choose Model")) -> 0.007778507795 | E55: =IF('B. PoF Summary Stats & Params'!$C$12="C", B55*'B. PoF Summary Stats & Params'!$I$8*'B. PoF Summary Stats & Params'!$I$12*A55^('B. PoF Summary Stats & Params'!$I$12-1), IF('B. PoF Summary Stats & Params'!$C$12="W", B55*(('B. PoF Summary Stats & Params'!$M$12/'B. PoF Summary Stats & Params'!$O$12)*((A55)/'B. PoF Summary Stats & Params'!$O$12)^('B. PoF Summary Stats & Params'!$M$12-1)), "Choose Model")) -> 0.007580175515
A56: 52 | B56: 1 | C56: =IF('B. PoF Summary Stats & Params'!$C$12="C", B56*'B. PoF Summary Stats & Params'!$I$8*'B. PoF Summary Stats & Params'!$I$10*A56^('B. PoF Summary Stats & Params'!$I$10-1), IF('B. PoF Summary Stats & Params'!$C$12="W", B56*(('B. PoF Summary Stats & Params'!$M$14/'B. PoF Summary Stats & Params'!$O$14)*((A56)/'B. PoF Summary Stats & Params'!$O$14)^('B. PoF Summary Stats & Params'!$M$14-1)), "Choose Model")) -> 0.008274222229 | D56: =IF('B. PoF Summary Stats & Params'!$C$12="C", B56*'B. PoF Summary Stats & Params'!$I$8*'B. PoF Summary Stats & Params'!$I$6*A56^('B. PoF Summary Stats & Params'!$I$6-1), IF('B. PoF Summary Stats & Params'!$C$12="W", B56*(('B. PoF Summary Stats & Params'!$M$6/'B. PoF Summary Stats & Params'!$M$8)*((A56)/'B. PoF Summary Stats & Params'!$M$8)^('B. PoF Summary Stats & Params'!$M$6-1)), "Choose Model")) -> 0.008062079051 | E56: =IF('B. PoF Summary Stats & Params'!$C$12="C", B56*'B. PoF Summary Stats & Params'!$I$8*'B. PoF Summary Stats & Params'!$I$12*A56^('B. PoF Summary Stats & Params'!$I$12-1), IF('B. PoF Summary Stats & Params'!$C$12="W", B56*(('B. PoF Summary Stats & Params'!$M$12/'B. PoF Summary Stats & Params'!$O$12)*((A56)/'B. PoF Summary Stats & Params'!$O$12)^('B. PoF Summary Stats & Params'!$M$12-1)), "Choose Model")) -> 0.007855585869
A57: 53 | B57: 1 | C57: =IF('B. PoF Summary Stats & Params'!$C$12="C", B57*'B. PoF Summary Stats & Params'!$I$8*'B. PoF Summary Stats & Params'!$I$10*A57^('B. PoF Summary Stats & Params'!$I$10-1), IF('B. PoF Summary Stats & Params'!$C$12="W", B57*(('B. PoF Summary Stats & Params'!$M$14/'B. PoF Summary Stats & Params'!$O$14)*((A57)/'B. PoF Summary Stats & Params'!$O$14)^('B. PoF Summary Stats & Params'!$M$14-1)), "Choose Model")) -> 0.008570997216 | D57: =IF('B. PoF Summary Stats & Params'!$C$12="C", B57*'B. PoF Summary Stats & Params'!$I$8*'B. PoF Summary Stats & Params'!$I$6*A57^('B. PoF Summary Stats & Params'!$I$6-1), IF('B. PoF Summary Stats & Params'!$C$12="W", B57*(('B. PoF Summary Stats & Params'!$M$6/'B. PoF Summary Stats & Params'!$M$8)*((A57)/'B. PoF Summary Stats & Params'!$M$8)^('B. PoF Summary Stats & Params'!$M$6-1)), "Choose Model")) -> 0.008350290607 | E57: =IF('B. PoF Summary Stats & Params'!$C$12="C", B57*'B. PoF Summary Stats & Params'!$I$8*'B. PoF Summary Stats & Params'!$I$12*A57^('B. PoF Summary Stats & Params'!$I$12-1), IF('B. PoF Summary Stats & Params'!$C$12="W", B57*(('B. PoF Summary Stats & Params'!$M$12/'B. PoF Summary Stats & Params'!$O$12)*((A57)/'B. PoF Summary Stats & Params'!$O$12)^('B. PoF Summary Stats & Params'!$M$12-1)), "Choose Model")) -> 0.008135470145
A58: 54 | B58: 1 | C58: =IF('B. PoF Summary Stats & Params'!$C$12="C", B58*'B. PoF Summary Stats & Params'!$I$8*'B. PoF Summary Stats & Params'!$I$10*A58^('B. PoF Summary Stats & Params'!$I$10-1), IF('B. PoF Summary Stats & Params'!$C$12="W", B58*(('B. PoF Summary Stats & Params'!$M$14/'B. PoF Summary Stats & Params'!$O$14)*((A58)/'B. PoF Summary Stats & Params'!$O$14)^('B. PoF Summary Stats & Params'!$M$14-1)), "Choose Model")) -> 0.008872570338 | D58: =IF('B. PoF Summary Stats & Params'!$C$12="C", B58*'B. PoF Summary Stats & Params'!$I$8*'B. PoF Summary Stats & Params'!$I$6*A58^('B. PoF Summary Stats & Params'!$I$6-1), IF('B. PoF Summary Stats & Params'!$C$12="W", B58*(('B. PoF Summary Stats & Params'!$M$6/'B. PoF Summary Stats & Params'!$M$8)*((A58)/'B. PoF Summary Stats & Params'!$M$8)^('B. PoF Summary Stats & Params'!$M$6-1)), "Choose Model")) -> 0.008643128696 | E58: =IF('B. PoF Summary Stats & Params'!$C$12="C", B58*'B. PoF Summary Stats & Params'!$I$8*'B. PoF Summary Stats & Params'!$I$12*A58^('B. PoF Summary Stats & Params'!$I$12-1), IF('B. PoF Summary Stats & Params'!$C$12="W", B58*(('B. PoF Summary Stats & Params'!$M$12/'B. PoF Summary Stats & Params'!$O$12)*((A58)/'B. PoF Summary Stats & Params'!$O$12)^('B. PoF Summary Stats & Params'!$M$12-1)), "Choose Model")) -> 0.008419814551
A59: 55 | B59: 1 | C59: =IF('B. PoF Summary Stats & Params'!$C$12="C", B59*'B. PoF Summary Stats & Params'!$I$8*'B. PoF Summary Stats & Params'!$I$10*A59^('B. PoF Summary Stats & Params'!$I$10-1), IF('B. PoF Summary Stats & Params'!$C$12="W", B59*(('B. PoF Summary Stats & Params'!$M$14/'B. PoF Summary Stats & Params'!$O$14)*((A59)/'B. PoF Summary Stats & Params'!$O$14)^('B. PoF Summary Stats & Params'!$M$14-1)), "Choose Model")) -> 0.009178928161 | D59: =IF('B. PoF Summary Stats & Params'!$C$12="C", B59*'B. PoF Summary Stats & Params'!$I$8*'B. PoF Summary Stats & Params'!$I$6*A59^('B. PoF Summary Stats & Params'!$I$6-1), IF('B. PoF Summary Stats & Params'!$C$12="W", B59*(('B. PoF Summary Stats & Params'!$M$6/'B. PoF Summary Stats & Params'!$M$8)*((A59)/'B. PoF Summary Stats & Params'!$M$8)^('B. PoF Summary Stats & Params'!$M$6-1)), "Choose Model")) -> 0.008940579843 | E59: =IF('B. PoF Summary Stats & Params'!$C$12="C", B59*'B. PoF Summary Stats & Params'!$I$8*'B. PoF Summary Stats & Params'!$I$12*A59^('B. PoF Summary Stats & Params'!$I$12-1), IF('B. PoF Summary Stats & Params'!$C$12="W", B59*(('B. PoF Summary Stats & Params'!$M$12/'B. PoF Summary Stats & Params'!$O$12)*((A59)/'B. PoF Summary Stats & Params'!$O$12)^('B. PoF Summary Stats & Params'!$M$12-1)), "Choose Model")) -> 0.008708605591
A60: 56 | B60: 1 | C60: =IF('B. PoF Summary Stats & Params'!$C$12="C", B60*'B. PoF Summary Stats & Params'!$I$8*'B. PoF Summary Stats & Params'!$I$10*A60^('B. PoF Summary Stats & Params'!$I$10-1), IF('B. PoF Summary Stats & Params'!$C$12="W", B60*(('B. PoF Summary Stats & Params'!$M$14/'B. PoF Summary Stats & Params'!$O$14)*((A60)/'B. PoF Summary Stats & Params'!$O$14)^('B. PoF Summary Stats & Params'!$M$14-1)), "Choose Model")) -> 0.009490057531 | D60: =IF('B. PoF Summary Stats & Params'!$C$12="C", B60*'B. PoF Summary Stats & Params'!$I$8*'B. PoF Summary Stats & Params'!$I$6*A60^('B. PoF Summary Stats & Params'!$I$6-1), IF('B. PoF Summary Stats & Params'!$C$12="W", B60*(('B. PoF Summary Stats & Params'!$M$6/'B. PoF Summary Stats & Params'!$M$8)*((A60)/'B. PoF Summary Stats & Params'!$M$8)^('B. PoF Summary Stats & Params'!$M$6-1)), "Choose Model")) -> 0.009242630864 | E60: =IF('B. PoF Summary Stats & Params'!$C$12="C", B60*'B. PoF Summary Stats & Params'!$I$8*'B. PoF Summary Stats & Params'!$I$12*A60^('B. PoF Summary Stats & Params'!$I$12-1), IF('B. PoF Summary Stats & Params'!$C$12="W", B60*(('B. PoF Summary Stats & Params'!$M$12/'B. PoF Summary Stats & Params'!$O$12)*((A60)/'B. PoF Summary Stats & Params'!$O$12)^('B. PoF Summary Stats & Params'!$M$12-1)), "Choose Model")) -> 0.009001830058
A61: 57 | B61: 1 | C61: =IF('B. PoF Summary Stats & Params'!$C$12="C", B61*'B. PoF Summary Stats & Params'!$I$8*'B. PoF Summary Stats & Params'!$I$10*A61^('B. PoF Summary Stats & Params'!$I$10-1), IF('B. PoF Summary Stats & Params'!$C$12="W", B61*(('B. PoF Summary Stats & Params'!$M$14/'B. PoF Summary Stats & Params'!$O$14)*((A61)/'B. PoF Summary Stats & Params'!$O$14)^('B. PoF Summary Stats & Params'!$M$14-1)), "Choose Model")) -> 0.00980594557 | D61: =IF('B. PoF Summary Stats & Params'!$C$12="C", B61*'B. PoF Summary Stats & Params'!$I$8*'B. PoF Summary Stats & Params'!$I$6*A61^('B. PoF Summary Stats & Params'!$I$6-1), IF('B. PoF Summary Stats & Params'!$C$12="W", B61*(('B. PoF Summary Stats & Params'!$M$6/'B. PoF Summary Stats & Params'!$M$8)*((A61)/'B. PoF Summary Stats & Params'!$M$8)^('B. PoF Summary Stats & Params'!$M$6-1)), "Choose Model")) -> 0.009549268845 | E61: =IF('B. PoF Summary Stats & Params'!$C$12="C", B61*'B. PoF Summary Stats & Params'!$I$8*'B. PoF Summary Stats & Params'!$I$12*A61^('B. PoF Summary Stats & Params'!$I$12-1), IF('B. PoF Summary Stats & Params'!$C$12="W", B61*(('B. PoF Summary Stats & Params'!$M$12/'B. PoF Summary Stats & Params'!$O$12)*((A61)/'B. PoF Summary Stats & Params'!$O$12)^('B. PoF Summary Stats & Params'!$M$12-1)), "Choose Model")) -> 0.00929947502
A62: 58 | B62: 1 | C62: =IF('B. PoF Summary Stats & Params'!$C$12="C", B62*'B. PoF Summary Stats & Params'!$I$8*'B. PoF Summary Stats & Params'!$I$10*A62^('B. PoF Summary Stats & Params'!$I$10-1), IF('B. PoF Summary Stats & Params'!$C$12="W", B62*(('B. PoF Summary Stats & Params'!$M$14/'B. PoF Summary Stats & Params'!$O$14)*((A62)/'B. PoF Summary Stats & Params'!$O$14)^('B. PoF Summary Stats & Params'!$M$14-1)), "Choose Model")) -> 0.01012657966 | D62: =IF('B. PoF Summary Stats & Params'!$C$12="C", B62*'B. PoF Summary Stats & Params'!$I$8*'B. PoF Summary Stats & Params'!$I$6*A62^('B. PoF Summary Stats & Params'!$I$6-1), IF('B. PoF Summary Stats & Params'!$C$12="W", B62*(('B. PoF Summary Stats & Params'!$M$6/'B. PoF Summary Stats & Params'!$M$8)*((A62)/'B. PoF Summary Stats & Params'!$M$8)^('B. PoF Summary Stats & Params'!$M$6-1)), "Choose Model")) -> 0.009860481138 | E62: =IF('B. PoF Summary Stats & Params'!$C$12="C", B62*'B. PoF Summary Stats & Params'!$I$8*'B. PoF Summary Stats & Params'!$I$12*A62^('B. PoF Summary Stats & Params'!$I$12-1), IF('B. PoF Summary Stats & Params'!$C$12="W", B62*(('B. PoF Summary Stats & Params'!$M$12/'B. PoF Summary Stats & Params'!$O$12)*((A62)/'B. PoF Summary Stats & Params'!$O$12)^('B. PoF Summary Stats & Params'!$M$12-1)), "Choose Model")) -> 0.009601527814
A63: 59 | B63: 1 | C63: =IF('B. PoF Summary Stats & Params'!$C$12="C", B63*'B. PoF Summary Stats & Params'!$I$8*'B. PoF Summary Stats & Params'!$I$10*A63^('B. PoF Summary Stats & Params'!$I$10-1), IF('B. PoF Summary Stats & Params'!$C$12="W", B63*(('B. PoF Summary Stats & Params'!$M$14/'B. PoF Summary Stats & Params'!$O$14)*((A63)/'B. PoF Summary Stats & Params'!$O$14)^('B. PoF Summary Stats & Params'!$M$14-1)), "Choose Model")) -> 0.01045194743 | D63: =IF('B. PoF Summary Stats & Params'!$C$12="C", B63*'B. PoF Summary Stats & Params'!$I$8*'B. PoF Summary Stats & Params'!$I$6*A63^('B. PoF Summary Stats & Params'!$I$6-1), IF('B. PoF Summary Stats & Params'!$C$12="W", B63*(('B. PoF Summary Stats & Params'!$M$6/'B. PoF Summary Stats & Params'!$M$8)*((A63)/'B. PoF Summary Stats & Params'!$M$8)^('B. PoF Summary Stats & Params'!$M$6-1)), "Choose Model")) -> 0.01017625535 | E63: =IF('B. PoF Summary Stats & Params'!$C$12="C", B63*'B. PoF Summary Stats & Params'!$I$8*'B. PoF Summary Stats & Params'!$I$12*A63^('B. PoF Summary Stats & Params'!$I$12-1), IF('B. PoF Summary Stats & Params'!$C$12="W", B63*(('B. PoF Summary Stats & Params'!$M$12/'B. PoF Summary Stats & Params'!$O$12)*((A63)/'B. PoF Summary Stats & Params'!$O$12)^('B. PoF Summary Stats & Params'!$M$12-1)), "Choose Model")) -> 0.009907976028
A64: 60 | B64: 1 | C64: =IF('B. PoF Summary Stats & Params'!$C$12="C", B64*'B. PoF Summary Stats & Params'!$I$8*'B. PoF Summary Stats & Params'!$I$10*A64^('B. PoF Summary Stats & Params'!$I$10-1), IF('B. PoF Summary Stats & Params'!$C$12="W", B64*(('B. PoF Summary Stats & Params'!$M$14/'B. PoF Summary Stats & Params'!$O$14)*((A64)/'B. PoF Summary Stats & Params'!$O$14)^('B. PoF Summary Stats & Params'!$M$14-1)), "Choose Model")) -> 0.01078203677 | D64: =IF('B. PoF Summary Stats & Params'!$C$12="C", B64*'B. PoF Summary Stats & Params'!$I$8*'B. PoF Summary Stats & Params'!$I$6*A64^('B. PoF Summary Stats & Params'!$I$6-1), IF('B. PoF Summary Stats & Params'!$C$12="W", B64*(('B. PoF Summary Stats & Params'!$M$6/'B. PoF Summary Stats & Params'!$M$8)*((A64)/'B. PoF Summary Stats & Params'!$M$8)^('B. PoF Summary Stats & Params'!$M$6-1)), "Choose Model")) -> 0.01049657933 | E64: =IF('B. PoF Summary Stats & Params'!$C$12="C", B64*'B. PoF Summary Stats & Params'!$I$8*'B. PoF Summary Stats & Params'!$I$12*A64^('B. PoF Summary Stats & Params'!$I$12-1), IF('B. PoF Summary Stats & Params'!$C$12="W", B64*(('B. PoF Summary Stats & Params'!$M$12/'B. PoF Summary Stats & Params'!$O$12)*((A64)/'B. PoF Summary Stats & Params'!$O$12)^('B. PoF Summary Stats & Params'!$M$12-1)), "Choose Model")) -> 0.0102188075
A65: 61 | B65: 1 | C65: =IF('B. PoF Summary Stats & Params'!$C$12="C", B65*'B. PoF Summary Stats & Params'!$I$8*'B. PoF Summary Stats & Params'!$I$10*A65^('B. PoF Summary Stats & Params'!$I$10-1), IF('B. PoF Summary Stats & Params'!$C$12="W", B65*(('B. PoF Summary Stats & Params'!$M$14/'B. PoF Summary Stats & Params'!$O$14)*((A65)/'B. PoF Summary Stats & Params'!$O$14)^('B. PoF Summary Stats & Params'!$M$14-1)), "Choose Model")) -> 0.01111683578 | D65: =IF('B. PoF Summary Stats & Params'!$C$12="C", B65*'B. PoF Summary Stats & Params'!$I$8*'B. PoF Summary Stats & Params'!$I$6*A65^('B. PoF Summary Stats & Params'!$I$6-1), IF('B. PoF Summary Stats & Params'!$C$12="W", B65*(('B. PoF Summary Stats & Params'!$M$6/'B. PoF Summary Stats & Params'!$M$8)*((A65)/'B. PoF Summary Stats & Params'!$M$8)^('B. PoF Summary Stats & Params'!$M$6-1)), "Choose Model")) -> 0.01082144116 | E65: =IF('B. PoF Summary Stats & Params'!$C$12="C", B65*'B. PoF Summary Stats & Params'!$I$8*'B. PoF Summary Stats & Params'!$I$12*A65^('B. PoF Summary Stats & Params'!$I$12-1), IF('B. PoF Summary Stats & Params'!$C$12="W", B65*(('B. PoF Summary Stats & Params'!$M$12/'B. PoF Summary Stats & Params'!$O$12)*((A65)/'B. PoF Summary Stats & Params'!$O$12)^('B. PoF Summary Stats & Params'!$M$12-1)), "Choose Model")) -> 0.0105340103
A66: 62 | B66: 1 | C66: =IF('B. PoF Summary Stats & Params'!$C$12="C", B66*'B. PoF Summary Stats & Params'!$I$8*'B. PoF Summary Stats & Params'!$I$10*A66^('B. PoF Summary Stats & Params'!$I$10-1), IF('B. PoF Summary Stats & Params'!$C$12="W", B66*(('B. PoF Summary Stats & Params'!$M$14/'B. PoF Summary Stats & Params'!$O$14)*((A66)/'B. PoF Summary Stats & Params'!$O$14)^('B. PoF Summary Stats & Params'!$M$14-1)), "Choose Model")) -> 0.01145633279 | D66: =IF('B. PoF Summary Stats & Params'!$C$12="C", B66*'B. PoF Summary Stats & Params'!$I$8*'B. PoF Summary Stats & Params'!$I$6*A66^('B. PoF Summary Stats & Params'!$I$6-1), IF('B. PoF Summary Stats & Params'!$C$12="W", B66*(('B. PoF Summary Stats & Params'!$M$6/'B. PoF Summary Stats & Params'!$M$8)*((A66)/'B. PoF Summary Stats & Params'!$M$8)^('B. PoF Summary Stats & Params'!$M$6-1)), "Choose Model")) -> 0.01115082916 | E66: =IF('B. PoF Summary Stats & Params'!$C$12="C", B66*'B. PoF Summary Stats & Params'!$I$8*'B. PoF Summary Stats & Params'!$I$12*A66^('B. PoF Summary Stats & Params'!$I$12-1), IF('B. PoF Summary Stats & Params'!$C$12="W", B66*(('B. PoF Summary Stats & Params'!$M$12/'B. PoF Summary Stats & Params'!$O$12)*((A66)/'B. PoF Summary Stats & Params'!$O$12)^('B. PoF Summary Stats & Params'!$M$12-1)), "Choose Model")) -> 0.01085357274
A67: 63 | B67: 1 | C67: =IF('B. PoF Summary Stats & Params'!$C$12="C", B67*'B. PoF Summary Stats & Params'!$I$8*'B. PoF Summary Stats & Params'!$I$10*A67^('B. PoF Summary Stats & Params'!$I$10-1), IF('B. PoF Summary Stats & Params'!$C$12="W", B67*(('B. PoF Summary Stats & Params'!$M$14/'B. PoF Summary Stats & Params'!$O$14)*((A67)/'B. PoF Summary Stats & Params'!$O$14)^('B. PoF Summary Stats & Params'!$M$14-1)), "Choose Model")) -> 0.01180051637 | D67: =IF('B. PoF Summary Stats & Params'!$C$12="C", B67*'B. PoF Summary Stats & Params'!$I$8*'B. PoF Summary Stats & Params'!$I$6*A67^('B. PoF Summary Stats & Params'!$I$6-1), IF('B. PoF Summary Stats & Params'!$C$12="W", B67*(('B. PoF Summary Stats & Params'!$M$6/'B. PoF Summary Stats & Params'!$M$8)*((A67)/'B. PoF Summary Stats & Params'!$M$8)^('B. PoF Summary Stats & Params'!$M$6-1)), "Choose Model")) -> 0.01148473185 | E67: =IF('B. PoF Summary Stats & Params'!$C$12="C", B67*'B. PoF Summary Stats & Params'!$I$8*'B. PoF Summary Stats & Params'!$I$12*A67^('B. PoF Summary Stats & Params'!$I$12-1), IF('B. PoF Summary Stats & Params'!$C$12="W", B67*(('B. PoF Summary Stats & Params'!$M$12/'B. PoF Summary Stats & Params'!$O$12)*((A67)/'B. PoF Summary Stats & Params'!$O$12)^('B. PoF Summary Stats & Params'!$M$12-1)), "Choose Model")) -> 0.01117748333
A68: 64 | B68: 1 | C68: =IF('B. PoF Summary Stats & Params'!$C$12="C", B68*'B. PoF Summary Stats & Params'!$I$8*'B. PoF Summary Stats & Params'!$I$10*A68^('B. PoF Summary Stats & Params'!$I$10-1), IF('B. PoF Summary Stats & Params'!$C$12="W", B68*(('B. PoF Summary Stats & Params'!$M$14/'B. PoF Summary Stats & Params'!$O$14)*((A68)/'B. PoF Summary Stats & Params'!$O$14)^('B. PoF Summary Stats & Params'!$M$14-1)), "Choose Model")) -> 0.01214937528 | D68: =IF('B. PoF Summary Stats & Params'!$C$12="C", B68*'B. PoF Summary Stats & Params'!$I$8*'B. PoF Summary Stats & Params'!$I$6*A68^('B. PoF Summary Stats & Params'!$I$6-1), IF('B. PoF Summary Stats & Params'!$C$12="W", B68*(('B. PoF Summary Stats & Params'!$M$6/'B. PoF Summary Stats & Params'!$M$8)*((A68)/'B. PoF Summary Stats & Params'!$M$8)^('B. PoF Summary Stats & Params'!$M$6-1)), "Choose Model")) -> 0.011823138 | E68: =IF('B. PoF Summary Stats & Params'!$C$12="C", B68*'B. PoF Summary Stats & Params'!$I$8*'B. PoF Summary Stats & Params'!$I$12*A68^('B. PoF Summary Stats & Params'!$I$12-1), IF('B. PoF Summary Stats & Params'!$C$12="W", B68*(('B. PoF Summary Stats & Params'!$M$12/'B. PoF Summary Stats & Params'!$O$12)*((A68)/'B. PoF Summary Stats & Params'!$O$12)^('B. PoF Summary Stats & Params'!$M$12-1)), "Choose Model")) -> 0.01150573081
A69: 65 | B69: 1 | C69: =IF('B. PoF Summary Stats & Params'!$C$12="C", B69*'B. PoF Summary Stats & Params'!$I$8*'B. PoF Summary Stats & Params'!$I$10*A69^('B. PoF Summary Stats & Params'!$I$10-1), IF('B. PoF Summary Stats & Params'!$C$12="W", B69*(('B. PoF Summary Stats & Params'!$M$14/'B. PoF Summary Stats & Params'!$O$14)*((A69)/'B. PoF Summary Stats & Params'!$O$14)^('B. PoF Summary Stats & Params'!$M$14-1)), "Choose Model")) -> 0.01250289849 | D69: =IF('B. PoF Summary Stats & Params'!$C$12="C", B69*'B. PoF Summary Stats & Params'!$I$8*'B. PoF Summary Stats & Params'!$I$6*A69^('B. PoF Summary Stats & Params'!$I$6-1), IF('B. PoF Summary Stats & Params'!$C$12="W", B69*(('B. PoF Summary Stats & Params'!$M$6/'B. PoF Summary Stats & Params'!$M$8)*((A69)/'B. PoF Summary Stats & Params'!$M$8)^('B. PoF Summary Stats & Params'!$M$6-1)), "Choose Model")) -> 0.01216603653 | E69: =IF('B. PoF Summary Stats & Params'!$C$12="C", B69*'B. PoF Summary Stats & Params'!$I$8*'B. PoF Summary Stats & Params'!$I$12*A69^('B. PoF Summary Stats & Params'!$I$12-1), IF('B. PoF Summary Stats & Params'!$C$12="W", B69*(('B. PoF Summary Stats & Params'!$M$12/'B. PoF Summary Stats & Params'!$O$12)*((A69)/'B. PoF Summary Stats & Params'!$O$12)^('B. PoF Summary Stats & Params'!$M$12-1)), "Choose Model")) -> 0.01183830413
A70: 66 | B70: 1 | C70: =IF('B. PoF Summary Stats & Params'!$C$12="C", B70*'B. PoF Summary Stats & Params'!$I$8*'B. PoF Summary Stats & Params'!$I$10*A70^('B. PoF Summary Stats & Params'!$I$10-1), IF('B. PoF Summary Stats & Params'!$C$12="W", B70*(('B. PoF Summary Stats & Params'!$M$14/'B. PoF Summary Stats & Params'!$O$14)*((A70)/'B. PoF Summary Stats & Params'!$O$14)^('B. PoF Summary Stats & Params'!$M$14-1)), "Choose Model")) -> 0.01286107515 | D70: =IF('B. PoF Summary Stats & Params'!$C$12="C", B70*'B. PoF Summary Stats & Params'!$I$8*'B. PoF Summary Stats & Params'!$I$6*A70^('B. PoF Summary Stats & Params'!$I$6-1), IF('B. PoF Summary Stats & Params'!$C$12="W", B70*(('B. PoF Summary Stats & Params'!$M$6/'B. PoF Summary Stats & Params'!$M$8)*((A70)/'B. PoF Summary Stats & Params'!$M$8)^('B. PoF Summary Stats & Params'!$M$6-1)), "Choose Model")) -> 0.01251341661 | E70: =IF('B. PoF Summary Stats & Params'!$C$12="C", B70*'B. PoF Summary Stats & Params'!$I$8*'B. PoF Summary Stats & Params'!$I$12*A70^('B. PoF Summary Stats & Params'!$I$12-1), IF('B. PoF Summary Stats & Params'!$C$12="W", B70*(('B. PoF Summary Stats & Params'!$M$12/'B. PoF Summary Stats & Params'!$O$12)*((A70)/'B. PoF Summary Stats & Params'!$O$12)^('B. PoF Summary Stats & Params'!$M$12-1)), "Choose Model")) -> 0.01217519243
A71: 67 | B71: 1 | C71: =IF('B. PoF Summary Stats & Params'!$C$12="C", B71*'B. PoF Summary Stats & Params'!$I$8*'B. PoF Summary Stats & Params'!$I$10*A71^('B. PoF Summary Stats & Params'!$I$10-1), IF('B. PoF Summary Stats & Params'!$C$12="W", B71*(('B. PoF Summary Stats & Params'!$M$14/'B. PoF Summary Stats & Params'!$O$14)*((A71)/'B. PoF Summary Stats & Params'!$O$14)^('B. PoF Summary Stats & Params'!$M$14-1)), "Choose Model")) -> 0.01322389464 | D71: =IF('B. PoF Summary Stats & Params'!$C$12="C", B71*'B. PoF Summary Stats & Params'!$I$8*'B. PoF Summary Stats & Params'!$I$6*A71^('B. PoF Summary Stats & Params'!$I$6-1), IF('B. PoF Summary Stats & Params'!$C$12="W", B71*(('B. PoF Summary Stats & Params'!$M$6/'B. PoF Summary Stats & Params'!$M$8)*((A71)/'B. PoF Summary Stats & Params'!$M$8)^('B. PoF Summary Stats & Params'!$M$6-1)), "Choose Model")) -> 0.01286526756 | E71: =IF('B. PoF Summary Stats & Params'!$C$12="C", B71*'B. PoF Summary Stats & Params'!$I$8*'B. PoF Summary Stats & Params'!$I$12*A71^('B. PoF Summary Stats & Params'!$I$12-1), IF('B. PoF Summary Stats & Params'!$C$12="W", B71*(('B. PoF Summary Stats & Params'!$M$12/'B. PoF Summary Stats & Params'!$O$12)*((A71)/'B. PoF Summary Stats & Params'!$O$12)^('B. PoF Summary Stats & Params'!$M$12-1)), "Choose Model")) -> 0.01251638504
A72: 68 | B72: 1 | C72: =IF('B. PoF Summary Stats & Params'!$C$12="C", B72*'B. PoF Summary Stats & Params'!$I$8*'B. PoF Summary Stats & Params'!$I$10*A72^('B. PoF Summary Stats & Params'!$I$10-1), IF('B. PoF Summary Stats & Params'!$C$12="W", B72*(('B. PoF Summary Stats & Params'!$M$14/'B. PoF Summary Stats & Params'!$O$14)*((A72)/'B. PoF Summary Stats & Params'!$O$14)^('B. PoF Summary Stats & Params'!$M$14-1)), "Choose Model")) -> 0.01359134648 | D72: =IF('B. PoF Summary Stats & Params'!$C$12="C", B72*'B. PoF Summary Stats & Params'!$I$8*'B. PoF Summary Stats & Params'!$I$6*A72^('B. PoF Summary Stats & Params'!$I$6-1), IF('B. PoF Summary Stats & Params'!$C$12="W", B72*(('B. PoF Summary Stats & Params'!$M$6/'B. PoF Summary Stats & Params'!$M$8)*((A72)/'B. PoF Summary Stats & Params'!$M$8)^('B. PoF Summary Stats & Params'!$M$6-1)), "Choose Model")) -> 0.01322157892 | E72: =IF('B. PoF Summary Stats & Params'!$C$12="C", B72*'B. PoF Summary Stats & Params'!$I$8*'B. PoF Summary Stats & Params'!$I$12*A72^('B. PoF Summary Stats & Params'!$I$12-1), IF('B. PoF Summary Stats & Params'!$C$12="W", B72*(('B. PoF Summary Stats & Params'!$M$12/'B. PoF Summary Stats & Params'!$O$12)*((A72)/'B. PoF Summary Stats & Params'!$O$12)^('B. PoF Summary Stats & Params'!$M$12-1)), "Choose Model")) -> 0.01286187148
A73: 69 | B73: 1 | C73: =IF('B. PoF Summary Stats & Params'!$C$12="C", B73*'B. PoF Summary Stats & Params'!$I$8*'B. PoF Summary Stats & Params'!$I$10*A73^('B. PoF Summary Stats & Params'!$I$10-1), IF('B. PoF Summary Stats & Params'!$C$12="W", B73*(('B. PoF Summary Stats & Params'!$M$14/'B. PoF Summary Stats & Params'!$O$14)*((A73)/'B. PoF Summary Stats & Params'!$O$14)^('B. PoF Summary Stats & Params'!$M$14-1)), "Choose Model")) -> 0.01396342038 | D73: =IF('B. PoF Summary Stats & Params'!$C$12="C", B73*'B. PoF Summary Stats & Params'!$I$8*'B. PoF Summary Stats & Params'!$I$6*A73^('B. PoF Summary Stats & Params'!$I$6-1), IF('B. PoF Summary Stats & Params'!$C$12="W", B73*(('B. PoF Summary Stats & Params'!$M$6/'B. PoF Summary Stats & Params'!$M$8)*((A73)/'B. PoF Summary Stats & Params'!$M$8)^('B. PoF Summary Stats & Params'!$M$6-1)), "Choose Model")) -> 0.01358234038 | E73: =IF('B. PoF Summary Stats & Params'!$C$12="C", B73*'B. PoF Summary Stats & Params'!$I$8*'B. PoF Summary Stats & Params'!$I$12*A73^('B. PoF Summary Stats & Params'!$I$12-1), IF('B. PoF Summary Stats & Params'!$C$12="W", B73*(('B. PoF Summary Stats & Params'!$M$12/'B. PoF Summary Stats & Params'!$O$12)*((A73)/'B. PoF Summary Stats & Params'!$O$12)^('B. PoF Summary Stats & Params'!$M$12-1)), "Choose Model")) -> 0.01321164145
A74: 70 | B74: 1 | C74: =IF('B. PoF Summary Stats & Params'!$C$12="C", B74*'B. PoF Summary Stats & Params'!$I$8*'B. PoF Summary Stats & Params'!$I$10*A74^('B. PoF Summary Stats & Params'!$I$10-1), IF('B. PoF Summary Stats & Params'!$C$12="W", B74*(('B. PoF Summary Stats & Params'!$M$14/'B. PoF Summary Stats & Params'!$O$14)*((A74)/'B. PoF Summary Stats & Params'!$O$14)^('B. PoF Summary Stats & Params'!$M$14-1)), "Choose Model")) -> 0.01434010626 | D74: =IF('B. PoF Summary Stats & Params'!$C$12="C", B74*'B. PoF Summary Stats & Params'!$I$8*'B. PoF Summary Stats & Params'!$I$6*A74^('B. PoF Summary Stats & Params'!$I$6-1), IF('B. PoF Summary Stats & Params'!$C$12="W", B74*(('B. PoF Summary Stats & Params'!$M$6/'B. PoF Summary Stats & Params'!$M$8)*((A74)/'B. PoF Summary Stats & Params'!$M$8)^('B. PoF Summary Stats & Params'!$M$6-1)), "Choose Model")) -> 0.01394754182 | E74: =IF('B. PoF Summary Stats & Params'!$C$12="C", B74*'B. PoF Summary Stats & Params'!$I$8*'B. PoF Summary Stats & Params'!$I$12*A74^('B. PoF Summary Stats & Params'!$I$12-1), IF('B. PoF Summary Stats & Params'!$C$12="W", B74*(('B. PoF Summary Stats & Params'!$M$12/'B. PoF Summary Stats & Params'!$O$12)*((A74)/'B. PoF Summary Stats & Params'!$O$12)^('B. PoF Summary Stats & Params'!$M$12-1)), "Choose Model")) -> 0.01356568482
A75: 71 | B75: 1 | C75: =IF('B. PoF Summary Stats & Params'!$C$12="C", B75*'B. PoF Summary Stats & Params'!$I$8*'B. PoF Summary Stats & Params'!$I$10*A75^('B. PoF Summary Stats & Params'!$I$10-1), IF('B. PoF Summary Stats & Params'!$C$12="W", B75*(('B. PoF Summary Stats & Params'!$M$14/'B. PoF Summary Stats & Params'!$O$14)*((A75)/'B. PoF Summary Stats & Params'!$O$14)^('B. PoF Summary Stats & Params'!$M$14-1)), "Choose Model")) -> 0.01472139414 | D75: =IF('B. PoF Summary Stats & Params'!$C$12="C", B75*'B. PoF Summary Stats & Params'!$I$8*'B. PoF Summary Stats & Params'!$I$6*A75^('B. PoF Summary Stats & Params'!$I$6-1), IF('B. PoF Summary Stats & Params'!$C$12="W", B75*(('B. PoF Summary Stats & Params'!$M$6/'B. PoF Summary Stats & Params'!$M$8)*((A75)/'B. PoF Summary Stats & Params'!$M$8)^('B. PoF Summary Stats & Params'!$M$6-1)), "Choose Model")) -> 0.01431717329 | E75: =IF('B. PoF Summary Stats & Params'!$C$12="C", B75*'B. PoF Summary Stats & Params'!$I$8*'B. PoF Summary Stats & Params'!$I$12*A75^('B. PoF Summary Stats & Params'!$I$12-1), IF('B. PoF Summary Stats & Params'!$C$12="W", B75*(('B. PoF Summary Stats & Params'!$M$12/'B. PoF Summary Stats & Params'!$O$12)*((A75)/'B. PoF Summary Stats & Params'!$O$12)^('B. PoF Summary Stats & Params'!$M$12-1)), "Choose Model")) -> 0.01392399165
A76: 72 | B76: 1 | C76: =IF('B. PoF Summary Stats & Params'!$C$12="C", B76*'B. PoF Summary Stats & Params'!$I$8*'B. PoF Summary Stats & Params'!$I$10*A76^('B. PoF Summary Stats & Params'!$I$10-1), IF('B. PoF Summary Stats & Params'!$C$12="W", B76*(('B. PoF Summary Stats & Params'!$M$14/'B. PoF Summary Stats & Params'!$O$14)*((A76)/'B. PoF Summary Stats & Params'!$O$14)^('B. PoF Summary Stats & Params'!$M$14-1)), "Choose Model")) -> 0.01510727427 | D76: =IF('B. PoF Summary Stats & Params'!$C$12="C", B76*'B. PoF Summary Stats & Params'!$I$8*'B. PoF Summary Stats & Params'!$I$6*A76^('B. PoF Summary Stats & Params'!$I$6-1), IF('B. PoF Summary Stats & Params'!$C$12="W", B76*(('B. PoF Summary Stats & Params'!$M$6/'B. PoF Summary Stats & Params'!$M$8)*((A76)/'B. PoF Summary Stats & Params'!$M$8)^('B. PoF Summary Stats & Params'!$M$6-1)), "Choose Model")) -> 0.01469122499 | E76: =IF('B. PoF Summary Stats & Params'!$C$12="C", B76*'B. PoF Summary Stats & Params'!$I$8*'B. PoF Summary Stats & Params'!$I$12*A76^('B. PoF Summary Stats & Params'!$I$12-1), IF('B. PoF Summary Stats & Params'!$C$12="W", B76*(('B. PoF Summary Stats & Params'!$M$12/'B. PoF Summary Stats & Params'!$O$12)*((A76)/'B. PoF Summary Stats & Params'!$O$12)^('B. PoF Summary Stats & Params'!$M$12-1)), "Choose Model")) -> 0.01428655213
A77: 73 | B77: 1 | C77: =IF('B. PoF Summary Stats & Params'!$C$12="C", B77*'B. PoF Summary Stats & Params'!$I$8*'B. PoF Summary Stats & Params'!$I$10*A77^('B. PoF Summary Stats & Params'!$I$10-1), IF('B. PoF Summary Stats & Params'!$C$12="W", B77*(('B. PoF Summary Stats & Params'!$M$14/'B. PoF Summary Stats & Params'!$O$14)*((A77)/'B. PoF Summary Stats & Params'!$O$14)^('B. PoF Summary Stats & Params'!$M$14-1)), "Choose Model")) -> 0.015497737 | D77: =IF('B. PoF Summary Stats & Params'!$C$12="C", B77*'B. PoF Summary Stats & Params'!$I$8*'B. PoF Summary Stats & Params'!$I$6*A77^('B. PoF Summary Stats & Params'!$I$6-1), IF('B. PoF Summary Stats & Params'!$C$12="W", B77*(('B. PoF Summary Stats & Params'!$M$6/'B. PoF Summary Stats & Params'!$M$8)*((A77)/'B. PoF Summary Stats & Params'!$M$8)^('B. PoF Summary Stats & Params'!$M$6-1)), "Choose Model")) -> 0.0150696873 | E77: =IF('B. PoF Summary Stats & Params'!$C$12="C", B77*'B. PoF Summary Stats & Params'!$I$8*'B. PoF Summary Stats & Params'!$I$12*A77^('B. PoF Summary Stats & Params'!$I$12-1), IF('B. PoF Summary Stats & Params'!$C$12="W", B77*(('B. PoF Summary Stats & Params'!$M$12/'B. PoF Summary Stats & Params'!$O$12)*((A77)/'B. PoF Summary Stats & Params'!$O$12)^('B. PoF Summary Stats & Params'!$M$12-1)), "Choose Model")) -> 0.01465335663
A78: 74 | B78: 1 | C78: =IF('B. PoF Summary Stats & Params'!$C$12="C", B78*'B. PoF Summary Stats & Params'!$I$8*'B. PoF Summary Stats & Params'!$I$10*A78^('B. PoF Summary Stats & Params'!$I$10-1), IF('B. PoF Summary Stats & Params'!$C$12="W", B78*(('B. PoF Summary Stats & Params'!$M$14/'B. PoF Summary Stats & Params'!$O$14)*((A78)/'B. PoF Summary Stats & Params'!$O$14)^('B. PoF Summary Stats & Params'!$M$14-1)), "Choose Model")) -> 0.01589277287 | D78: =IF('B. PoF Summary Stats & Params'!$C$12="C", B78*'B. PoF Summary Stats & Params'!$I$8*'B. PoF Summary Stats & Params'!$I$6*A78^('B. PoF Summary Stats & Params'!$I$6-1), IF('B. PoF Summary Stats & Params'!$C$12="W", B78*(('B. PoF Summary Stats & Params'!$M$6/'B. PoF Summary Stats & Params'!$M$8)*((A78)/'B. PoF Summary Stats & Params'!$M$8)^('B. PoF Summary Stats & Params'!$M$6-1)), "Choose Model")) -> 0.01545255072 | E78: =IF('B. PoF Summary Stats & Params'!$C$12="C", B78*'B. PoF Summary Stats & Params'!$I$8*'B. PoF Summary Stats & Params'!$I$12*A78^('B. PoF Summary Stats & Params'!$I$12-1), IF('B. PoF Summary Stats & Params'!$C$12="W", B78*(('B. PoF Summary Stats & Params'!$M$12/'B. PoF Summary Stats & Params'!$O$12)*((A78)/'B. PoF Summary Stats & Params'!$O$12)^('B. PoF Summary Stats & Params'!$M$12-1)), "Choose Model")) -> 0.01502439568
A79: 75 | B79: 1 | C79: =IF('B. PoF Summary Stats & Params'!$C$12="C", B79*'B. PoF Summary Stats & Params'!$I$8*'B. PoF Summary Stats & Params'!$I$10*A79^('B. PoF Summary Stats & Params'!$I$10-1), IF('B. PoF Summary Stats & Params'!$C$12="W", B79*(('B. PoF Summary Stats & Params'!$M$14/'B. PoF Summary Stats & Params'!$O$14)*((A79)/'B. PoF Summary Stats & Params'!$O$14)^('B. PoF Summary Stats & Params'!$M$14-1)), "Choose Model")) -> 0.01629237256 | D79: =IF('B. PoF Summary Stats & Params'!$C$12="C", B79*'B. PoF Summary Stats & Params'!$I$8*'B. PoF Summary Stats & Params'!$I$6*A79^('B. PoF Summary Stats & Params'!$I$6-1), IF('B. PoF Summary Stats & Params'!$C$12="W", B79*(('B. PoF Summary Stats & Params'!$M$6/'B. PoF Summary Stats & Params'!$M$8)*((A79)/'B. PoF Summary Stats & Params'!$M$8)^('B. PoF Summary Stats & Params'!$M$6-1)), "Choose Model")) -> 0.01583980593 | E79: =IF('B. PoF Summary Stats & Params'!$C$12="C", B79*'B. PoF Summary Stats & Params'!$I$8*'B. PoF Summary Stats & Params'!$I$12*A79^('B. PoF Summary Stats & Params'!$I$12-1), IF('B. PoF Summary Stats & Params'!$C$12="W", B79*(('B. PoF Summary Stats & Params'!$M$12/'B. PoF Summary Stats & Params'!$O$12)*((A79)/'B. PoF Summary Stats & Params'!$O$12)^('B. PoF Summary Stats & Params'!$M$12-1)), "Choose Model")) -> 0.01539965995
A80: 76 | B80: 1 | C80: =IF('B. PoF Summary Stats & Params'!$C$12="C", B80*'B. PoF Summary Stats & Params'!$I$8*'B. PoF Summary Stats & Params'!$I$10*A80^('B. PoF Summary Stats & Params'!$I$10-1), IF('B. PoF Summary Stats & Params'!$C$12="W", B80*(('B. PoF Summary Stats & Params'!$M$14/'B. PoF Summary Stats & Params'!$O$14)*((A80)/'B. PoF Summary Stats & Params'!$O$14)^('B. PoF Summary Stats & Params'!$M$14-1)), "Choose Model")) -> 0.01669652688 | D80: =IF('B. PoF Summary Stats & Params'!$C$12="C", B80*'B. PoF Summary Stats & Params'!$I$8*'B. PoF Summary Stats & Params'!$I$6*A80^('B. PoF Summary Stats & Params'!$I$6-1), IF('B. PoF Summary Stats & Params'!$C$12="W", B80*(('B. PoF Summary Stats & Params'!$M$6/'B. PoF Summary Stats & Params'!$M$8)*((A80)/'B. PoF Summary Stats & Params'!$M$8)^('B. PoF Summary Stats & Params'!$M$6-1)), "Choose Model")) -> 0.01623144374 | E80: =IF('B. PoF Summary Stats & Params'!$C$12="C", B80*'B. PoF Summary Stats & Params'!$I$8*'B. PoF Summary Stats & Params'!$I$12*A80^('B. PoF Summary Stats & Params'!$I$12-1), IF('B. PoF Summary Stats & Params'!$C$12="W", B80*(('B. PoF Summary Stats & Params'!$M$12/'B. PoF Summary Stats & Params'!$O$12)*((A80)/'B. PoF Summary Stats & Params'!$O$12)^('B. PoF Summary Stats & Params'!$M$12-1)), "Choose Model")) -> 0.01577914025
A81: 77 | B81: 1 | C81: =IF('B. PoF Summary Stats & Params'!$C$12="C", B81*'B. PoF Summary Stats & Params'!$I$8*'B. PoF Summary Stats & Params'!$I$10*A81^('B. PoF Summary Stats & Params'!$I$10-1), IF('B. PoF Summary Stats & Params'!$C$12="W", B81*(('B. PoF Summary Stats & Params'!$M$14/'B. PoF Summary Stats & Params'!$O$14)*((A81)/'B. PoF Summary Stats & Params'!$O$14)^('B. PoF Summary Stats & Params'!$M$14-1)), "Choose Model")) -> 0.0171052268 | D81: =IF('B. PoF Summary Stats & Params'!$C$12="C", B81*'B. PoF Summary Stats & Params'!$I$8*'B. PoF Summary Stats & Params'!$I$6*A81^('B. PoF Summary Stats & Params'!$I$6-1), IF('B. PoF Summary Stats & Params'!$C$12="W", B81*(('B. PoF Summary Stats & Params'!$M$6/'B. PoF Summary Stats & Params'!$M$8)*((A81)/'B. PoF Summary Stats & Params'!$M$8)^('B. PoF Summary Stats & Params'!$M$6-1)), "Choose Model")) -> 0.0166274551 | E81: =IF('B. PoF Summary Stats & Params'!$C$12="C", B81*'B. PoF Summary Stats & Params'!$I$8*'B. PoF Summary Stats & Params'!$I$12*A81^('B. PoF Summary Stats & Params'!$I$12-1), IF('B. PoF Summary Stats & Params'!$C$12="W", B81*(('B. PoF Summary Stats & Params'!$M$12/'B. PoF Summary Stats & Params'!$O$12)*((A81)/'B. PoF Summary Stats & Params'!$O$12)^('B. PoF Summary Stats & Params'!$M$12-1)), "Choose Model")) -> 0.01616282753
A82: 78 | B82: 1 | C82: =IF('B. PoF Summary Stats & Params'!$C$12="C", B82*'B. PoF Summary Stats & Params'!$I$8*'B. PoF Summary Stats & Params'!$I$10*A82^('B. PoF Summary Stats & Params'!$I$10-1), IF('B. PoF Summary Stats & Params'!$C$12="W", B82*(('B. PoF Summary Stats & Params'!$M$14/'B. PoF Summary Stats & Params'!$O$14)*((A82)/'B. PoF Summary Stats & Params'!$O$14)^('B. PoF Summary Stats & Params'!$M$14-1)), "Choose Model")) -> 0.0175184634 | D82: =IF('B. PoF Summary Stats & Params'!$C$12="C", B82*'B. PoF Summary Stats & Params'!$I$8*'B. PoF Summary Stats & Params'!$I$6*A82^('B. PoF Summary Stats & Params'!$I$6-1), IF('B. PoF Summary Stats & Params'!$C$12="W", B82*(('B. PoF Summary Stats & Params'!$M$6/'B. PoF Summary Stats & Params'!$M$8)*((A82)/'B. PoF Summary Stats & Params'!$M$8)^('B. PoF Summary Stats & Params'!$M$6-1)), "Choose Model")) -> 0.01702783111 | E82: =IF('B. PoF Summary Stats & Params'!$C$12="C", B82*'B. PoF Summary Stats & Params'!$I$8*'B. PoF Summary Stats & Params'!$I$12*A82^('B. PoF Summary Stats & Params'!$I$12-1), IF('B. PoF Summary Stats & Params'!$C$12="W", B82*(('B. PoF Summary Stats & Params'!$M$12/'B. PoF Summary Stats & Params'!$O$12)*((A82)/'B. PoF Summary Stats & Params'!$O$12)^('B. PoF Summary Stats & Params'!$M$12-1)), "Choose Model")) -> 0.0165507129
A83: 79 | B83: 1 | C83: =IF('B. PoF Summary Stats & Params'!$C$12="C", B83*'B. PoF Summary Stats & Params'!$I$8*'B. PoF Summary Stats & Params'!$I$10*A83^('B. PoF Summary Stats & Params'!$I$10-1), IF('B. PoF Summary Stats & Params'!$C$12="W", B83*(('B. PoF Summary Stats & Params'!$M$14/'B. PoF Summary Stats & Params'!$O$14)*((A83)/'B. PoF Summary Stats & Params'!$O$14)^('B. PoF Summary Stats & Params'!$M$14-1)), "Choose Model")) -> 0.01793622793 | D83: =IF('B. PoF Summary Stats & Params'!$C$12="C", B83*'B. PoF Summary Stats & Params'!$I$8*'B. PoF Summary Stats & Params'!$I$6*A83^('B. PoF Summary Stats & Params'!$I$6-1), IF('B. PoF Summary Stats & Params'!$C$12="W", B83*(('B. PoF Summary Stats & Params'!$M$6/'B. PoF Summary Stats & Params'!$M$8)*((A83)/'B. PoF Summary Stats & Params'!$M$8)^('B. PoF Summary Stats & Params'!$M$6-1)), "Choose Model")) -> 0.01743256298 | E83: =IF('B. PoF Summary Stats & Params'!$C$12="C", B83*'B. PoF Summary Stats & Params'!$I$8*'B. PoF Summary Stats & Params'!$I$12*A83^('B. PoF Summary Stats & Params'!$I$12-1), IF('B. PoF Summary Stats & Params'!$C$12="W", B83*(('B. PoF Summary Stats & Params'!$M$12/'B. PoF Summary Stats & Params'!$O$12)*((A83)/'B. PoF Summary Stats & Params'!$O$12)^('B. PoF Summary Stats & Params'!$M$12-1)), "Choose Model")) -> 0.01694278758
A84: 80 | B84: 1 | C84: =IF('B. PoF Summary Stats & Params'!$C$12="C", B84*'B. PoF Summary Stats & Params'!$I$8*'B. PoF Summary Stats & Params'!$I$10*A84^('B. PoF Summary Stats & Params'!$I$10-1), IF('B. PoF Summary Stats & Params'!$C$12="W", B84*(('B. PoF Summary Stats & Params'!$M$14/'B. PoF Summary Stats & Params'!$O$14)*((A84)/'B. PoF Summary Stats & Params'!$O$14)^('B. PoF Summary Stats & Params'!$M$14-1)), "Choose Model")) -> 0.01835851173 | D84: =IF('B. PoF Summary Stats & Params'!$C$12="C", B84*'B. PoF Summary Stats & Params'!$I$8*'B. PoF Summary Stats & Params'!$I$6*A84^('B. PoF Summary Stats & Params'!$I$6-1), IF('B. PoF Summary Stats & Params'!$C$12="W", B84*(('B. PoF Summary Stats & Params'!$M$6/'B. PoF Summary Stats & Params'!$M$8)*((A84)/'B. PoF Summary Stats & Params'!$M$8)^('B. PoF Summary Stats & Params'!$M$6-1)), "Choose Model")) -> 0.01784164207 | E84: =IF('B. PoF Summary Stats & Params'!$C$12="C", B84*'B. PoF Summary Stats & Params'!$I$8*'B. PoF Summary Stats & Params'!$I$12*A84^('B. PoF Summary Stats & Params'!$I$12-1), IF('B. PoF Summary Stats & Params'!$C$12="W", B84*(('B. PoF Summary Stats & Params'!$M$12/'B. PoF Summary Stats & Params'!$O$12)*((A84)/'B. PoF Summary Stats & Params'!$O$12)^('B. PoF Summary Stats & Params'!$M$12-1)), "Choose Model")) -> 0.01733904294
A85: 81 | B85: 1 | C85: =IF('B. PoF Summary Stats & Params'!$C$12="C", B85*'B. PoF Summary Stats & Params'!$I$8*'B. PoF Summary Stats & Params'!$I$10*A85^('B. PoF Summary Stats & Params'!$I$10-1), IF('B. PoF Summary Stats & Params'!$C$12="W", B85*(('B. PoF Summary Stats & Params'!$M$14/'B. PoF Summary Stats & Params'!$O$14)*((A85)/'B. PoF Summary Stats & Params'!$O$14)^('B. PoF Summary Stats & Params'!$M$14-1)), "Choose Model")) -> 0.01878530628 | D85: =IF('B. PoF Summary Stats & Params'!$C$12="C", B85*'B. PoF Summary Stats & Params'!$I$8*'B. PoF Summary Stats & Params'!$I$6*A85^('B. PoF Summary Stats & Params'!$I$6-1), IF('B. PoF Summary Stats & Params'!$C$12="W", B85*(('B. PoF Summary Stats & Params'!$M$6/'B. PoF Summary Stats & Params'!$M$8)*((A85)/'B. PoF Summary Stats & Params'!$M$8)^('B. PoF Summary Stats & Params'!$M$6-1)), "Choose Model")) -> 0.01825505986 | E85: =IF('B. PoF Summary Stats & Params'!$C$12="C", B85*'B. PoF Summary Stats & Params'!$I$8*'B. PoF Summary Stats & Params'!$I$12*A85^('B. PoF Summary Stats & Params'!$I$12-1), IF('B. PoF Summary Stats & Params'!$C$12="W", B85*(('B. PoF Summary Stats & Params'!$M$12/'B. PoF Summary Stats & Params'!$O$12)*((A85)/'B. PoF Summary Stats & Params'!$O$12)^('B. PoF Summary Stats & Params'!$M$12-1)), "Choose Model")) -> 0.01773947044
A86: 82 | B86: 1 | C86: =IF('B. PoF Summary Stats & Params'!$C$12="C", B86*'B. PoF Summary Stats & Params'!$I$8*'B. PoF Summary Stats & Params'!$I$10*A86^('B. PoF Summary Stats & Params'!$I$10-1), IF('B. PoF Summary Stats & Params'!$C$12="W", B86*(('B. PoF Summary Stats & Params'!$M$14/'B. PoF Summary Stats & Params'!$O$14)*((A86)/'B. PoF Summary Stats & Params'!$O$14)^('B. PoF Summary Stats & Params'!$M$14-1)), "Choose Model")) -> 0.01921660318 | D86: =IF('B. PoF Summary Stats & Params'!$C$12="C", B86*'B. PoF Summary Stats & Params'!$I$8*'B. PoF Summary Stats & Params'!$I$6*A86^('B. PoF Summary Stats & Params'!$I$6-1), IF('B. PoF Summary Stats & Params'!$C$12="W", B86*(('B. PoF Summary Stats & Params'!$M$6/'B. PoF Summary Stats & Params'!$M$8)*((A86)/'B. PoF Summary Stats & Params'!$M$8)^('B. PoF Summary Stats & Params'!$M$6-1)), "Choose Model")) -> 0.01867280794 | E86: =IF('B. PoF Summary Stats & Params'!$C$12="C", B86*'B. PoF Summary Stats & Params'!$I$8*'B. PoF Summary Stats & Params'!$I$12*A86^('B. PoF Summary Stats & Params'!$I$12-1), IF('B. PoF Summary Stats & Params'!$C$12="W", B86*(('B. PoF Summary Stats & Params'!$M$12/'B. PoF Summary Stats & Params'!$O$12)*((A86)/'B. PoF Summary Stats & Params'!$O$12)^('B. PoF Summary Stats & Params'!$M$12-1)), "Choose Model")) -> 0.01814406171
A87: 83 | B87: 1 | C87: =IF('B. PoF Summary Stats & Params'!$C$12="C", B87*'B. PoF Summary Stats & Params'!$I$8*'B. PoF Summary Stats & Params'!$I$10*A87^('B. PoF Summary Stats & Params'!$I$10-1), IF('B. PoF Summary Stats & Params'!$C$12="W", B87*(('B. PoF Summary Stats & Params'!$M$14/'B. PoF Summary Stats & Params'!$O$14)*((A87)/'B. PoF Summary Stats & Params'!$O$14)^('B. PoF Summary Stats & Params'!$M$14-1)), "Choose Model")) -> 0.01965239417 | D87: =IF('B. PoF Summary Stats & Params'!$C$12="C", B87*'B. PoF Summary Stats & Params'!$I$8*'B. PoF Summary Stats & Params'!$I$6*A87^('B. PoF Summary Stats & Params'!$I$6-1), IF('B. PoF Summary Stats & Params'!$C$12="W", B87*(('B. PoF Summary Stats & Params'!$M$6/'B. PoF Summary Stats & Params'!$M$8)*((A87)/'B. PoF Summary Stats & Params'!$M$8)^('B. PoF Summary Stats & Params'!$M$6-1)), "Choose Model")) -> 0.01909487804 | E87: =IF('B. PoF Summary Stats & Params'!$C$12="C", B87*'B. PoF Summary Stats & Params'!$I$8*'B. PoF Summary Stats & Params'!$I$12*A87^('B. PoF Summary Stats & Params'!$I$12-1), IF('B. PoF Summary Stats & Params'!$C$12="W", B87*(('B. PoF Summary Stats & Params'!$M$12/'B. PoF Summary Stats & Params'!$O$12)*((A87)/'B. PoF Summary Stats & Params'!$O$12)^('B. PoF Summary Stats & Params'!$M$12-1)), "Choose Model")) -> 0.01855280846
A88: 84 | B88: 1 | C88: =IF('B. PoF Summary Stats & Params'!$C$12="C", B88*'B. PoF Summary Stats & Params'!$I$8*'B. PoF Summary Stats & Params'!$I$10*A88^('B. PoF Summary Stats & Params'!$I$10-1), IF('B. PoF Summary Stats & Params'!$C$12="W", B88*(('B. PoF Summary Stats & Params'!$M$14/'B. PoF Summary Stats & Params'!$O$14)*((A88)/'B. PoF Summary Stats & Params'!$O$14)^('B. PoF Summary Stats & Params'!$M$14-1)), "Choose Model")) -> 0.02009267106 | D88: =IF('B. PoF Summary Stats & Params'!$C$12="C", B88*'B. PoF Summary Stats & Params'!$I$8*'B. PoF Summary Stats & Params'!$I$6*A88^('B. PoF Summary Stats & Params'!$I$6-1), IF('B. PoF Summary Stats & Params'!$C$12="W", B88*(('B. PoF Summary Stats & Params'!$M$6/'B. PoF Summary Stats & Params'!$M$8)*((A88)/'B. PoF Summary Stats & Params'!$M$8)^('B. PoF Summary Stats & Params'!$M$6-1)), "Choose Model")) -> 0.01952126199 | E88: =IF('B. PoF Summary Stats & Params'!$C$12="C", B88*'B. PoF Summary Stats & Params'!$I$8*'B. PoF Summary Stats & Params'!$I$12*A88^('B. PoF Summary Stats & Params'!$I$12-1), IF('B. PoF Summary Stats & Params'!$C$12="W", B88*(('B. PoF Summary Stats & Params'!$M$12/'B. PoF Summary Stats & Params'!$O$12)*((A88)/'B. PoF Summary Stats & Params'!$O$12)^('B. PoF Summary Stats & Params'!$M$12-1)), "Choose Model")) -> 0.01896570254
A89: 85 | B89: 1 | C89: =IF('B. PoF Summary Stats & Params'!$C$12="C", B89*'B. PoF Summary Stats & Params'!$I$8*'B. PoF Summary Stats & Params'!$I$10*A89^('B. PoF Summary Stats & Params'!$I$10-1), IF('B. PoF Summary Stats & Params'!$C$12="W", B89*(('B. PoF Summary Stats & Params'!$M$14/'B. PoF Summary Stats & Params'!$O$14)*((A89)/'B. PoF Summary Stats & Params'!$O$14)^('B. PoF Summary Stats & Params'!$M$14-1)), "Choose Model")) -> 0.02053742582 | D89: =IF('B. PoF Summary Stats & Params'!$C$12="C", B89*'B. PoF Summary Stats & Params'!$I$8*'B. PoF Summary Stats & Params'!$I$6*A89^('B. PoF Summary Stats & Params'!$I$6-1), IF('B. PoF Summary Stats & Params'!$C$12="W", B89*(('B. PoF Summary Stats & Params'!$M$6/'B. PoF Summary Stats & Params'!$M$8)*((A89)/'B. PoF Summary Stats & Params'!$M$8)^('B. PoF Summary Stats & Params'!$M$6-1)), "Choose Model")) -> 0.01995195174 | E89: =IF('B. PoF Summary Stats & Params'!$C$12="C", B89*'B. PoF Summary Stats & Params'!$I$8*'B. PoF Summary Stats & Params'!$I$12*A89^('B. PoF Summary Stats & Params'!$I$12-1), IF('B. PoF Summary Stats & Params'!$C$12="W", B89*(('B. PoF Summary Stats & Params'!$M$12/'B. PoF Summary Stats & Params'!$O$12)*((A89)/'B. PoF Summary Stats & Params'!$O$12)^('B. PoF Summary Stats & Params'!$M$12-1)), "Choose Model")) -> 0.01938273591
A90: 86 | B90: 1 | C90: =IF('B. PoF Summary Stats & Params'!$C$12="C", B90*'B. PoF Summary Stats & Params'!$I$8*'B. PoF Summary Stats & Params'!$I$10*A90^('B. PoF Summary Stats & Params'!$I$10-1), IF('B. PoF Summary Stats & Params'!$C$12="W", B90*(('B. PoF Summary Stats & Params'!$M$14/'B. PoF Summary Stats & Params'!$O$14)*((A90)/'B. PoF Summary Stats & Params'!$O$14)^('B. PoF Summary Stats & Params'!$M$14-1)), "Choose Model")) -> 0.0209866505 | D90: =IF('B. PoF Summary Stats & Params'!$C$12="C", B90*'B. PoF Summary Stats & Params'!$I$8*'B. PoF Summary Stats & Params'!$I$6*A90^('B. PoF Summary Stats & Params'!$I$6-1), IF('B. PoF Summary Stats & Params'!$C$12="W", B90*(('B. PoF Summary Stats & Params'!$M$6/'B. PoF Summary Stats & Params'!$M$8)*((A90)/'B. PoF Summary Stats & Params'!$M$8)^('B. PoF Summary Stats & Params'!$M$6-1)), "Choose Model")) -> 0.02038693934 | E90: =IF('B. PoF Summary Stats & Params'!$C$12="C", B90*'B. PoF Summary Stats & Params'!$I$8*'B. PoF Summary Stats & Params'!$I$12*A90^('B. PoF Summary Stats & Params'!$I$12-1), IF('B. PoF Summary Stats & Params'!$C$12="W", B90*(('B. PoF Summary Stats & Params'!$M$12/'B. PoF Summary Stats & Params'!$O$12)*((A90)/'B. PoF Summary Stats & Params'!$O$12)^('B. PoF Summary Stats & Params'!$M$12-1)), "Choose Model")) -> 0.01980390063
A91: 87 | B91: 1 | C91: =IF('B. PoF Summary Stats & Params'!$C$12="C", B91*'B. PoF Summary Stats & Params'!$I$8*'B. PoF Summary Stats & Params'!$I$10*A91^('B. PoF Summary Stats & Params'!$I$10-1), IF('B. PoF Summary Stats & Params'!$C$12="W", B91*(('B. PoF Summary Stats & Params'!$M$14/'B. PoF Summary Stats & Params'!$O$14)*((A91)/'B. PoF Summary Stats & Params'!$O$14)^('B. PoF Summary Stats & Params'!$M$14-1)), "Choose Model")) -> 0.02144033726 | D91: =IF('B. PoF Summary Stats & Params'!$C$12="C", B91*'B. PoF Summary Stats & Params'!$I$8*'B. PoF Summary Stats & Params'!$I$6*A91^('B. PoF Summary Stats & Params'!$I$6-1), IF('B. PoF Summary Stats & Params'!$C$12="W", B91*(('B. PoF Summary Stats & Params'!$M$6/'B. PoF Summary Stats & Params'!$M$8)*((A91)/'B. PoF Summary Stats & Params'!$M$8)^('B. PoF Summary Stats & Params'!$M$6-1)), "Choose Model")) -> 0.02082621696 | E91: =IF('B. PoF Summary Stats & Params'!$C$12="C", B91*'B. PoF Summary Stats & Params'!$I$8*'B. PoF Summary Stats & Params'!$I$12*A91^('B. PoF Summary Stats & Params'!$I$12-1), IF('B. PoF Summary Stats & Params'!$C$12="W", B91*(('B. PoF Summary Stats & Params'!$M$12/'B. PoF Summary Stats & Params'!$O$12)*((A91)/'B. PoF Summary Stats & Params'!$O$12)^('B. PoF Summary Stats & Params'!$M$12-1)), "Choose Model")) -> 0.02022918888
A92: 88 | B92: 1 | C92: =IF('B. PoF Summary Stats & Params'!$C$12="C", B92*'B. PoF Summary Stats & Params'!$I$8*'B. PoF Summary Stats & Params'!$I$10*A92^('B. PoF Summary Stats & Params'!$I$10-1), IF('B. PoF Summary Stats & Params'!$C$12="W", B92*(('B. PoF Summary Stats & Params'!$M$14/'B. PoF Summary Stats & Params'!$O$14)*((A92)/'B. PoF Summary Stats & Params'!$O$14)^('B. PoF Summary Stats & Params'!$M$14-1)), "Choose Model")) -> 0.02189847838 | D92: =IF('B. PoF Summary Stats & Params'!$C$12="C", B92*'B. PoF Summary Stats & Params'!$I$8*'B. PoF Summary Stats & Params'!$I$6*A92^('B. PoF Summary Stats & Params'!$I$6-1), IF('B. PoF Summary Stats & Params'!$C$12="W", B92*(('B. PoF Summary Stats & Params'!$M$6/'B. PoF Summary Stats & Params'!$M$8)*((A92)/'B. PoF Summary Stats & Params'!$M$8)^('B. PoF Summary Stats & Params'!$M$6-1)), "Choose Model")) -> 0.02126977687 | E92: =IF('B. PoF Summary Stats & Params'!$C$12="C", B92*'B. PoF Summary Stats & Params'!$I$8*'B. PoF Summary Stats & Params'!$I$12*A92^('B. PoF Summary Stats & Params'!$I$12-1), IF('B. PoF Summary Stats & Params'!$C$12="W", B92*(('B. PoF Summary Stats & Params'!$M$12/'B. PoF Summary Stats & Params'!$O$12)*((A92)/'B. PoF Summary Stats & Params'!$O$12)^('B. PoF Summary Stats & Params'!$M$12-1)), "Choose Model")) -> 0.02065859293
A93: 89 | B93: 1 | C93: =IF('B. PoF Summary Stats & Params'!$C$12="C", B93*'B. PoF Summary Stats & Params'!$I$8*'B. PoF Summary Stats & Params'!$I$10*A93^('B. PoF Summary Stats & Params'!$I$10-1), IF('B. PoF Summary Stats & Params'!$C$12="W", B93*(('B. PoF Summary Stats & Params'!$M$14/'B. PoF Summary Stats & Params'!$O$14)*((A93)/'B. PoF Summary Stats & Params'!$O$14)^('B. PoF Summary Stats & Params'!$M$14-1)), "Choose Model")) -> 0.02236106621 | D93: =IF('B. PoF Summary Stats & Params'!$C$12="C", B93*'B. PoF Summary Stats & Params'!$I$8*'B. PoF Summary Stats & Params'!$I$6*A93^('B. PoF Summary Stats & Params'!$I$6-1), IF('B. PoF Summary Stats & Params'!$C$12="W", B93*(('B. PoF Summary Stats & Params'!$M$6/'B. PoF Summary Stats & Params'!$M$8)*((A93)/'B. PoF Summary Stats & Params'!$M$8)^('B. PoF Summary Stats & Params'!$M$6-1)), "Choose Model")) -> 0.02171761145 | E93: =IF('B. PoF Summary Stats & Params'!$C$12="C", B93*'B. PoF Summary Stats & Params'!$I$8*'B. PoF Summary Stats & Params'!$I$12*A93^('B. PoF Summary Stats & Params'!$I$12-1), IF('B. PoF Summary Stats & Params'!$C$12="W", B93*(('B. PoF Summary Stats & Params'!$M$12/'B. PoF Summary Stats & Params'!$O$12)*((A93)/'B. PoF Summary Stats & Params'!$O$12)^('B. PoF Summary Stats & Params'!$M$12-1)), "Choose Model")) -> 0.02109210517
A94: 90 | B94: 1 | C94: =IF('B. PoF Summary Stats & Params'!$C$12="C", B94*'B. PoF Summary Stats & Params'!$I$8*'B. PoF Summary Stats & Params'!$I$10*A94^('B. PoF Summary Stats & Params'!$I$10-1), IF('B. PoF Summary Stats & Params'!$C$12="W", B94*(('B. PoF Summary Stats & Params'!$M$14/'B. PoF Summary Stats & Params'!$O$14)*((A94)/'B. PoF Summary Stats & Params'!$O$14)^('B. PoF Summary Stats & Params'!$M$14-1)), "Choose Model")) -> 0.02282809324 | D94: =IF('B. PoF Summary Stats & Params'!$C$12="C", B94*'B. PoF Summary Stats & Params'!$I$8*'B. PoF Summary Stats & Params'!$I$6*A94^('B. PoF Summary Stats & Params'!$I$6-1), IF('B. PoF Summary Stats & Params'!$C$12="W", B94*(('B. PoF Summary Stats & Params'!$M$6/'B. PoF Summary Stats & Params'!$M$8)*((A94)/'B. PoF Summary Stats & Params'!$M$8)^('B. PoF Summary Stats & Params'!$M$6-1)), "Choose Model")) -> 0.02216971315 | E94: =IF('B. PoF Summary Stats & Params'!$C$12="C", B94*'B. PoF Summary Stats & Params'!$I$8*'B. PoF Summary Stats & Params'!$I$12*A94^('B. PoF Summary Stats & Params'!$I$12-1), IF('B. PoF Summary Stats & Params'!$C$12="W", B94*(('B. PoF Summary Stats & Params'!$M$12/'B. PoF Summary Stats & Params'!$O$12)*((A94)/'B. PoF Summary Stats & Params'!$O$12)^('B. PoF Summary Stats & Params'!$M$12-1)), "Choose Model")) -> 0.02152971808
A95: 91 | B95: 1 | C95: =IF('B. PoF Summary Stats & Params'!$C$12="C", B95*'B. PoF Summary Stats & Params'!$I$8*'B. PoF Summary Stats & Params'!$I$10*A95^('B. PoF Summary Stats & Params'!$I$10-1), IF('B. PoF Summary Stats & Params'!$C$12="W", B95*(('B. PoF Summary Stats & Params'!$M$14/'B. PoF Summary Stats & Params'!$O$14)*((A95)/'B. PoF Summary Stats & Params'!$O$14)^('B. PoF Summary Stats & Params'!$M$14-1)), "Choose Model")) -> 0.02329955203 | D95: =IF('B. PoF Summary Stats & Params'!$C$12="C", B95*'B. PoF Summary Stats & Params'!$I$8*'B. PoF Summary Stats & Params'!$I$6*A95^('B. PoF Summary Stats & Params'!$I$6-1), IF('B. PoF Summary Stats & Params'!$C$12="W", B95*(('B. PoF Summary Stats & Params'!$M$6/'B. PoF Summary Stats & Params'!$M$8)*((A95)/'B. PoF Summary Stats & Params'!$M$8)^('B. PoF Summary Stats & Params'!$M$6-1)), "Choose Model")) -> 0.02262607456 | E95: =IF('B. PoF Summary Stats & Params'!$C$12="C", B95*'B. PoF Summary Stats & Params'!$I$8*'B. PoF Summary Stats & Params'!$I$12*A95^('B. PoF Summary Stats & Params'!$I$12-1), IF('B. PoF Summary Stats & Params'!$C$12="W", B95*(('B. PoF Summary Stats & Params'!$M$12/'B. PoF Summary Stats & Params'!$O$12)*((A95)/'B. PoF Summary Stats & Params'!$O$12)^('B. PoF Summary Stats & Params'!$M$12-1)), "Choose Model")) -> 0.02197142424
A96: 92 | B96: 1 | C96: =IF('B. PoF Summary Stats & Params'!$C$12="C", B96*'B. PoF Summary Stats & Params'!$I$8*'B. PoF Summary Stats & Params'!$I$10*A96^('B. PoF Summary Stats & Params'!$I$10-1), IF('B. PoF Summary Stats & Params'!$C$12="W", B96*(('B. PoF Summary Stats & Params'!$M$14/'B. PoF Summary Stats & Params'!$O$14)*((A96)/'B. PoF Summary Stats & Params'!$O$14)^('B. PoF Summary Stats & Params'!$M$14-1)), "Choose Model")) -> 0.02377543523 | D96: =IF('B. PoF Summary Stats & Params'!$C$12="C", B96*'B. PoF Summary Stats & Params'!$I$8*'B. PoF Summary Stats & Params'!$I$6*A96^('B. PoF Summary Stats & Params'!$I$6-1), IF('B. PoF Summary Stats & Params'!$C$12="W", B96*(('B. PoF Summary Stats & Params'!$M$6/'B. PoF Summary Stats & Params'!$M$8)*((A96)/'B. PoF Summary Stats & Params'!$M$8)^('B. PoF Summary Stats & Params'!$M$6-1)), "Choose Model")) -> 0.02308668834 | E96: =IF('B. PoF Summary Stats & Params'!$C$12="C", B96*'B. PoF Summary Stats & Params'!$I$8*'B. PoF Summary Stats & Params'!$I$12*A96^('B. PoF Summary Stats & Params'!$I$12-1), IF('B. PoF Summary Stats & Params'!$C$12="W", B96*(('B. PoF Summary Stats & Params'!$M$12/'B. PoF Summary Stats & Params'!$O$12)*((A96)/'B. PoF Summary Stats & Params'!$O$12)^('B. PoF Summary Stats & Params'!$M$12-1)), "Choose Model")) -> 0.02241721633
A97: 93 | B97: 1 | C97: =IF('B. PoF Summary Stats & Params'!$C$12="C", B97*'B. PoF Summary Stats & Params'!$I$8*'B. PoF Summary Stats & Params'!$I$10*A97^('B. PoF Summary Stats & Params'!$I$10-1), IF('B. PoF Summary Stats & Params'!$C$12="W", B97*(('B. PoF Summary Stats & Params'!$M$14/'B. PoF Summary Stats & Params'!$O$14)*((A97)/'B. PoF Summary Stats & Params'!$O$14)^('B. PoF Summary Stats & Params'!$M$14-1)), "Choose Model")) -> 0.02425573561 | D97: =IF('B. PoF Summary Stats & Params'!$C$12="C", B97*'B. PoF Summary Stats & Params'!$I$8*'B. PoF Summary Stats & Params'!$I$6*A97^('B. PoF Summary Stats & Params'!$I$6-1), IF('B. PoF Summary Stats & Params'!$C$12="W", B97*(('B. PoF Summary Stats & Params'!$M$6/'B. PoF Summary Stats & Params'!$M$8)*((A97)/'B. PoF Summary Stats & Params'!$M$8)^('B. PoF Summary Stats & Params'!$M$6-1)), "Choose Model")) -> 0.02355154724 | E97: =IF('B. PoF Summary Stats & Params'!$C$12="C", B97*'B. PoF Summary Stats & Params'!$I$8*'B. PoF Summary Stats & Params'!$I$12*A97^('B. PoF Summary Stats & Params'!$I$12-1), IF('B. PoF Summary Stats & Params'!$C$12="W", B97*(('B. PoF Summary Stats & Params'!$M$12/'B. PoF Summary Stats & Params'!$O$12)*((A97)/'B. PoF Summary Stats & Params'!$O$12)^('B. PoF Summary Stats & Params'!$M$12-1)), "Choose Model")) -> 0.02286708711
A98: 94 | B98: 1 | C98: =IF('B. PoF Summary Stats & Params'!$C$12="C", B98*'B. PoF Summary Stats & Params'!$I$8*'B. PoF Summary Stats & Params'!$I$10*A98^('B. PoF Summary Stats & Params'!$I$10-1), IF('B. PoF Summary Stats & Params'!$C$12="W", B98*(('B. PoF Summary Stats & Params'!$M$14/'B. PoF Summary Stats & Params'!$O$14)*((A98)/'B. PoF Summary Stats & Params'!$O$14)^('B. PoF Summary Stats & Params'!$M$14-1)), "Choose Model")) -> 0.024740446 | D98: =IF('B. PoF Summary Stats & Params'!$C$12="C", B98*'B. PoF Summary Stats & Params'!$I$8*'B. PoF Summary Stats & Params'!$I$6*A98^('B. PoF Summary Stats & Params'!$I$6-1), IF('B. PoF Summary Stats & Params'!$C$12="W", B98*(('B. PoF Summary Stats & Params'!$M$6/'B. PoF Summary Stats & Params'!$M$8)*((A98)/'B. PoF Summary Stats & Params'!$M$8)^('B. PoF Summary Stats & Params'!$M$6-1)), "Choose Model")) -> 0.0240206441 | E98: =IF('B. PoF Summary Stats & Params'!$C$12="C", B98*'B. PoF Summary Stats & Params'!$I$8*'B. PoF Summary Stats & Params'!$I$12*A98^('B. PoF Summary Stats & Params'!$I$12-1), IF('B. PoF Summary Stats & Params'!$C$12="W", B98*(('B. PoF Summary Stats & Params'!$M$12/'B. PoF Summary Stats & Params'!$O$12)*((A98)/'B. PoF Summary Stats & Params'!$O$12)^('B. PoF Summary Stats & Params'!$M$12-1)), "Choose Model")) -> 0.02332102943
A99: 95 | B99: 1 | C99: =IF('B. PoF Summary Stats & Params'!$C$12="C", B99*'B. PoF Summary Stats & Params'!$I$8*'B. PoF Summary Stats & Params'!$I$10*A99^('B. PoF Summary Stats & Params'!$I$10-1), IF('B. PoF Summary Stats & Params'!$C$12="W", B99*(('B. PoF Summary Stats & Params'!$M$14/'B. PoF Summary Stats & Params'!$O$14)*((A99)/'B. PoF Summary Stats & Params'!$O$14)^('B. PoF Summary Stats & Params'!$M$14-1)), "Choose Model")) -> 0.02522955933 | D99: =IF('B. PoF Summary Stats & Params'!$C$12="C", B99*'B. PoF Summary Stats & Params'!$I$8*'B. PoF Summary Stats & Params'!$I$6*A99^('B. PoF Summary Stats & Params'!$I$6-1), IF('B. PoF Summary Stats & Params'!$C$12="W", B99*(('B. PoF Summary Stats & Params'!$M$6/'B. PoF Summary Stats & Params'!$M$8)*((A99)/'B. PoF Summary Stats & Params'!$M$8)^('B. PoF Summary Stats & Params'!$M$6-1)), "Choose Model")) -> 0.02449397187 | E99: =IF('B. PoF Summary Stats & Params'!$C$12="C", B99*'B. PoF Summary Stats & Params'!$I$8*'B. PoF Summary Stats & Params'!$I$12*A99^('B. PoF Summary Stats & Params'!$I$12-1), IF('B. PoF Summary Stats & Params'!$C$12="W", B99*(('B. PoF Summary Stats & Params'!$M$12/'B. PoF Summary Stats & Params'!$O$12)*((A99)/'B. PoF Summary Stats & Params'!$O$12)^('B. PoF Summary Stats & Params'!$M$12-1)), "Choose Model")) -> 0.02377903626
A100: 96 | B100: 1 | C100: =IF('B. PoF Summary Stats & Params'!$C$12="C", B100*'B. PoF Summary Stats & Params'!$I$8*'B. PoF Summary Stats & Params'!$I$10*A100^('B. PoF Summary Stats & Params'!$I$10-1), IF('B. PoF Summary Stats & Params'!$C$12="W", B100*(('B. PoF Summary Stats & Params'!$M$14/'B. PoF Summary Stats & Params'!$O$14)*((A100)/'B. PoF Summary Stats & Params'!$O$14)^('B. PoF Summary Stats & Params'!$M$14-1)), "Choose Model")) -> 0.02572306863 | D100: =IF('B. PoF Summary Stats & Params'!$C$12="C", B100*'B. PoF Summary Stats & Params'!$I$8*'B. PoF Summary Stats & Params'!$I$6*A100^('B. PoF Summary Stats & Params'!$I$6-1), IF('B. PoF Summary Stats & Params'!$C$12="W", B100*(('B. PoF Summary Stats & Params'!$M$6/'B. PoF Summary Stats & Params'!$M$8)*((A100)/'B. PoF Summary Stats & Params'!$M$8)^('B. PoF Summary Stats & Params'!$M$6-1)), "Choose Model")) -> 0.02497152356 | E100: =IF('B. PoF Summary Stats & Params'!$C$12="C", B100*'B. PoF Summary Stats & Params'!$I$8*'B. PoF Summary Stats & Params'!$I$12*A100^('B. PoF Summary Stats & Params'!$I$12-1), IF('B. PoF Summary Stats & Params'!$C$12="W", B100*(('B. PoF Summary Stats & Params'!$M$12/'B. PoF Summary Stats & Params'!$O$12)*((A100)/'B. PoF Summary Stats & Params'!$O$12)^('B. PoF Summary Stats & Params'!$M$12-1)), "Choose Model")) -> 0.02424110062
A101: 97 | B101: 1 | C101: =IF('B. PoF Summary Stats & Params'!$C$12="C", B101*'B. PoF Summary Stats & Params'!$I$8*'B. PoF Summary Stats & Params'!$I$10*A101^('B. PoF Summary Stats & Params'!$I$10-1), IF('B. PoF Summary Stats & Params'!$C$12="W", B101*(('B. PoF Summary Stats & Params'!$M$14/'B. PoF Summary Stats & Params'!$O$14)*((A101)/'B. PoF Summary Stats & Params'!$O$14)^('B. PoF Summary Stats & Params'!$M$14-1)), "Choose Model")) -> 0.02622096698 | D101: =IF('B. PoF Summary Stats & Params'!$C$12="C", B101*'B. PoF Summary Stats & Params'!$I$8*'B. PoF Summary Stats & Params'!$I$6*A101^('B. PoF Summary Stats & Params'!$I$6-1), IF('B. PoF Summary Stats & Params'!$C$12="W", B101*(('B. PoF Summary Stats & Params'!$M$6/'B. PoF Summary Stats & Params'!$M$8)*((A101)/'B. PoF Summary Stats & Params'!$M$8)^('B. PoF Summary Stats & Params'!$M$6-1)), "Choose Model")) -> 0.02545329228 | E101: =IF('B. PoF Summary Stats & Params'!$C$12="C", B101*'B. PoF Summary Stats & Params'!$I$8*'B. PoF Summary Stats & Params'!$I$12*A101^('B. PoF Summary Stats & Params'!$I$12-1), IF('B. PoF Summary Stats & Params'!$C$12="W", B101*(('B. PoF Summary Stats & Params'!$M$12/'B. PoF Summary Stats & Params'!$O$12)*((A101)/'B. PoF Summary Stats & Params'!$O$12)^('B. PoF Summary Stats & Params'!$M$12-1)), "Choose Model")) -> 0.02470721562
A102: 98 | B102: 1 | C102: =IF('B. PoF Summary Stats & Params'!$C$12="C", B102*'B. PoF Summary Stats & Params'!$I$8*'B. PoF Summary Stats & Params'!$I$10*A102^('B. PoF Summary Stats & Params'!$I$10-1), IF('B. PoF Summary Stats & Params'!$C$12="W", B102*(('B. PoF Summary Stats & Params'!$M$14/'B. PoF Summary Stats & Params'!$O$14)*((A102)/'B. PoF Summary Stats & Params'!$O$14)^('B. PoF Summary Stats & Params'!$M$14-1)), "Choose Model")) -> 0.02672324758 | D102: =IF('B. PoF Summary Stats & Params'!$C$12="C", B102*'B. PoF Summary Stats & Params'!$I$8*'B. PoF Summary Stats & Params'!$I$6*A102^('B. PoF Summary Stats & Params'!$I$6-1), IF('B. PoF Summary Stats & Params'!$C$12="W", B102*(('B. PoF Summary Stats & Params'!$M$6/'B. PoF Summary Stats & Params'!$M$8)*((A102)/'B. PoF Summary Stats & Params'!$M$8)^('B. PoF Summary Stats & Params'!$M$6-1)), "Choose Model")) -> 0.02593927122 | E102: =IF('B. PoF Summary Stats & Params'!$C$12="C", B102*'B. PoF Summary Stats & Params'!$I$8*'B. PoF Summary Stats & Params'!$I$12*A102^('B. PoF Summary Stats & Params'!$I$12-1), IF('B. PoF Summary Stats & Params'!$C$12="W", B102*(('B. PoF Summary Stats & Params'!$M$12/'B. PoF Summary Stats & Params'!$O$12)*((A102)/'B. PoF Summary Stats & Params'!$O$12)^('B. PoF Summary Stats & Params'!$M$12-1)), "Choose Model")) -> 0.02517737448
A103: 99 | B103: 1 | C103: =IF('B. PoF Summary Stats & Params'!$C$12="C", B103*'B. PoF Summary Stats & Params'!$I$8*'B. PoF Summary Stats & Params'!$I$10*A103^('B. PoF Summary Stats & Params'!$I$10-1), IF('B. PoF Summary Stats & Params'!$C$12="W", B103*(('B. PoF Summary Stats & Params'!$M$14/'B. PoF Summary Stats & Params'!$O$14)*((A103)/'B. PoF Summary Stats & Params'!$O$14)^('B. PoF Summary Stats & Params'!$M$14-1)), "Choose Model")) -> 0.02722990369 | D103: =IF('B. PoF Summary Stats & Params'!$C$12="C", B103*'B. PoF Summary Stats & Params'!$I$8*'B. PoF Summary Stats & Params'!$I$6*A103^('B. PoF Summary Stats & Params'!$I$6-1), IF('B. PoF Summary Stats & Params'!$C$12="W", B103*(('B. PoF Summary Stats & Params'!$M$6/'B. PoF Summary Stats & Params'!$M$8)*((A103)/'B. PoF Summary Stats & Params'!$M$8)^('B. PoF Summary Stats & Params'!$M$6-1)), "Choose Model")) -> 0.02642945364 | E103: =IF('B. PoF Summary Stats & Params'!$C$12="C", B103*'B. PoF Summary Stats & Params'!$I$8*'B. PoF Summary Stats & Params'!$I$12*A103^('B. PoF Summary Stats & Params'!$I$12-1), IF('B. PoF Summary Stats & Params'!$C$12="W", B103*(('B. PoF Summary Stats & Params'!$M$12/'B. PoF Summary Stats & Params'!$O$12)*((A103)/'B. PoF Summary Stats & Params'!$O$12)^('B. PoF Summary Stats & Params'!$M$12-1)), "Choose Model")) -> 0.02565157047
A104: 100 | B104: 1 | C104: =IF('B. PoF Summary Stats & Params'!$C$12="C", B104*'B. PoF Summary Stats & Params'!$I$8*'B. PoF Summary Stats & Params'!$I$10*A104^('B. PoF Summary Stats & Params'!$I$10-1), IF('B. PoF Summary Stats & Params'!$C$12="W", B104*(('B. PoF Summary Stats & Params'!$M$14/'B. PoF Summary Stats & Params'!$O$14)*((A104)/'B. PoF Summary Stats & Params'!$O$14)^('B. PoF Summary Stats & Params'!$M$14-1)), "Choose Model")) -> 0.02774092865 | D104: =IF('B. PoF Summary Stats & Params'!$C$12="C", B104*'B. PoF Summary Stats & Params'!$I$8*'B. PoF Summary Stats & Params'!$I$6*A104^('B. PoF Summary Stats & Params'!$I$6-1), IF('B. PoF Summary Stats & Params'!$C$12="W", B104*(('B. PoF Summary Stats & Params'!$M$6/'B. PoF Summary Stats & Params'!$M$8)*((A104)/'B. PoF Summary Stats & Params'!$M$8)^('B. PoF Summary Stats & Params'!$M$6-1)), "Choose Model")) -> 0.0269238329 | E104: =IF('B. PoF Summary Stats & Params'!$C$12="C", B104*'B. PoF Summary Stats & Params'!$I$8*'B. PoF Summary Stats & Params'!$I$12*A104^('B. PoF Summary Stats & Params'!$I$12-1), IF('B. PoF Summary Stats & Params'!$C$12="W", B104*(('B. PoF Summary Stats & Params'!$M$12/'B. PoF Summary Stats & Params'!$O$12)*((A104)/'B. PoF Summary Stats & Params'!$O$12)^('B. PoF Summary Stats & Params'!$M$12-1)), "Choose Model")) -> 0.02612979695

Sheet B. PoF Summary Stats & Params
C1: PoF Summary Statistics and Parameters
B3: Summary Statisitics | E3: Failure Model Parameters | H3: Crow-AMSAA Parameters | L3: Weibull Parameters | R3: Health Index Parameters
B5: Number of PoF Adjustment Factors | C5: =COUNTIF('B. Population PoF Scores'!$O$5:$S$5,">"&0) -> 1
B6: Min Score | C6: =C5*1 -> 1 | E6: βavg | F6: =IF($C$12="C", I6, IF($C$12="W", M6, "Choose Model")) -> 2.844 | H6: βavg | L6: βavg | M6: 2.844 | S6: Earliest Age Asset Considered (Years) | V6: 0.5 | X6: Min PoF | Y6: =IF($C$12="C", I8*I12*V6^(I12-1), IF($C$12="W", (($M12/$O12)*((V6)/$O12)^(M12-1)), "Choose Model")) -> 1.541959638e-06
B7: Max Score | C7: =C5*5 -> 5 | E7: 95%CI Adj (β) | F7: =(F6-F14)/F6 -> 0.002144866385 | S7: Asset Standard Life (Years) | V7: 52.07 | X7: Max PoF | Y7: =IF($C$12="C", I8*I10*V9^(I10-1), IF($C$12="W", (($M14/$O14)*((V9)/$O14)^(M14-1)), "Choose Model")) -> 0.00980594557
B8: No. of Z-Scores | C8: =5^C5 -> 5 | F8: =F6*F7 -> 0.0061 | H8: λavg | L8: havg | M8: 101.945 | S8: Asset Standard Life Addition (%) | V8: 0.1 | X8: HI Categories | Y8: 10
E9: Std. Dev | F9: =SQRT(_xlfn.STDEV.P(({1;2;3;4;5}*'B. Population PoF Scores'!O5))^2+_xlfn.STDEV.P(({1;2;3;4;5}*'B. Population PoF Scores'!P5))^2+_xlfn.STDEV.P(({1;2;3;4;5}*'B. Population PoF Scores'!Q5))^2+_xlfn.STDEV.P(({1;2;3;4;5}*'B. Population PoF Scores'!R5))^2+_xlfn.STDEV.P(({1;2;3;4;5}*'B. Population PoF Scores'!S5))^2) -> 1.414213562 | S9: Asset Standard Life + Addition (%) | V9: =ROUND(V7*(1+V8), 0) -> 57 | X9: Delta per Cat. | Y9: =(Y7-Y6)/Y8 -> 0.000980440361
B10: Reference Date | C10: 2018 | E10: Max Std. Dev | F10: =(SUM('B. Population PoF Scores'!O5:S5)-F11)/F9*-1 -> 1.414213562 | H10: βpoor | L10: b | M10: -13.1518
E11: Average PoF Factor Score | F11: =SUM('B. Population PoF Scores'!O5:S5)*3 -> 3
B12: Crow-AMSAA or Weibull Failure Model | C12: W | E12: β ZCF Scalar | F12: =F8/F10 -> 0.004313351365 | H12: βgood | L12: βgood | M12: 2.8379 | N12: hgood | O12: 102.9524 | S12: HEALTH INDEX | T12: PoF Range
S13: 1 | T13: 0 | U13: =$Y$6+S13*$Y$9 -> 0.0009819823207
B14: Replacement Type | C14: Like-for-like | E14: βgood | F14: =IF($C$12="C", I12, IF($C$12="W", M12, "Choose Model")) -> 2.8379 | L14: βpoor | M14: 2.85 | N14: hpoor | O14: 100.9517 | S14: 2 | T14: =U13 -> 0.0009819823207 | U14: 0.001962422682
E15: βpoor | F15: =IF($C$12="C", I10, IF($C$12="W", M14, "Choose Model")) -> 2.85 | S15: 3 | T15: 0.001962422682 | U15: 0.002942863043
E16: λpopulation | F16: =IF($C$12="C", I8, "Not Applicable") -> Not Applicable | S16: 4 | T16: 0.002942863043 | U16: 0.003923303404
S17: 5 | T17: 0.003923303404 | U17: 0.004903743765
E18: havg | F18: =IF($C$12="C", "Not Applicable", M8) -> 101.945 | S18: 6 | T18: 0.004903743765 | U18: 0.005884184126
E19: Intercept (b) | F19: =IF($C$12="C", "Not Applicable", M10) -> -13.1518 | S19: 7 | T19: 0.005884184126 | U19: 0.006864624487
E20: hgood | F20: =IF($C$12="C", "Not Applicable", O12) -> 102.9524 | S20: 8 | T20: 0.006864624487 | U20: 0.007845064848
E21: 95%CI Adj (hgood) | F21: =IF($C$12="C", "Not Applicable", (F20-M8)/M8) -> 0.009881799009 | S21: 9 | T21: 0.007845064848 | U21: 0.008825505209
S22: 10 | T22: 0.008825505209 | U22: 0.00980594557
E23: hpoor | F23: =IF($C$12="C", "Not Applicable", O14) -> 100.9517
E24: 95%CI Adj (hpoor) | F24: =IF($C$12="C", "Not Applicable", (F23-M8)/M8) -> -0.009743489136
E26: Replacement Asset PoF | F26: =IF($C$14="Like-for-like",IF($C$12="C",I8*I6*V6^(I12-1),IF($C$12="W",(($M6/$M8)*((V6)/$M8)^(M6-1)),"Choose Model")),IF($C$14="New model",IF($C$12="C", I8*I12*V6^(I12-1), IF($C$12="W", (($M12/$O12)*((V6)/$O12)^(M12-1)), "Choose Model")))) -> 1.538287725e-06

Sheet B. PoF Adj Factor Scoring
C1: PoF Adjustment Factors and Scores
B3: PoF Affect | C3: PoF Score | E3: ='B. Population PoF Scores'!B4 -> Construction Type | G3: ='B. Population PoF Scores'!C4 -> 0 | I3: ='B. Population PoF Scores'!D4 -> 0 | K3: ='B. Population PoF Scores'!E4 -> 0 | M3: ='B. Population PoF Scores'!F4 -> 0
E4: Factor Value | F4: PoF Score | G4: Factor Value | H4: PoF Score | I4: Factor Value | J4: PoF Score | K4: Factor Value | L4: PoF Score | M4: Factor Value | N4: PoF Score
E5: Bare | F5: 3 | G5: 0 | H5: 0 | I5: 0 | J5: 0 | K5: 0 | L5: 0 | M5: 0 | N5: 0
B6: Insignificant | C6: 1 | E6: PVC | F6: 5
B7: Minor | C7: 2 | E7: Unknown | F7: 4
B8: Moderate | C8: 3 | E8: XLPE | F8: 1
B9: Major | C9: 4
B10: Severe | C10: 5

Sheet B. Population PoF Scores
C1: Population PoF Scores
A3: Asset Identifier | B3: POF ADJUSTMENT FACTORS | G3: POF SCORES
B4: ='A. Population Info'!G5 -> Construction Type | C4: ='A. Population Info'!H5 -> 0 | D4: ='A. Population Info'!I5 -> 0 | E4: ='A. Population Info'!J5 -> 0 | F4: ='A. Population Info'!K5 -> 0 | G4: =B4 -> Construction Type | H4: =C4 -> 0 | I4: =D4 -> 0 | J4: =E4 -> 0 | K4: =F4 -> 0 | O4: =B4 -> Construction Type | P4: =C4 -> 0 | Q4: =D4 -> 0 | R4: =E4 -> 0 | S4: =F4 -> 0
G5: =O5 -> 1 | H5: =P5 -> 0 | I5: =Q5 -> 0 | J5: =R5 -> 0 | K5: =S5 -> 0 | N5: Weighting 1 | O5: 1 | P5: 0 | Q5: 0 | R5: 0 | S5: 0
A6: 1 | B6: BARE | C6: ='A. Population Info'!H6 -> 0 | D6: ='A. Population Info'!I6 -> 0 | E6: ='A. Population Info'!J6 -> 0 | F6: ='A. Population Info'!K6 -> 0 | G6: =VLOOKUP(B:B,OFFSET('B. PoF Adj Factor Scoring'!$E$5:$F$282,,MATCH(G$4,'B. PoF Adj Factor Scoring'!$E$3:$N$3,0)-1),2,TRUE) -> 3 | H6: =VLOOKUP(C:C,OFFSET('B. PoF Adj Factor Scoring'!$E$5:$F$282,,MATCH(H$4,'B. PoF Adj Factor Scoring'!$E$3:$N$3,0)-1),2,TRUE) -> 0 | I6: =VLOOKUP(D:D,OFFSET('B. PoF Adj Factor Scoring'!$E$5:$F$282,,MATCH(I$4,'B. PoF Adj Factor Scoring'!$E$3:$N$3,0)-1),2,TRUE) -> 0 | J6: =VLOOKUP(E:E,OFFSET('B. PoF Adj Factor Scoring'!$E$5:$F$282,,MATCH(J$4,'B. PoF Adj Factor Scoring'!$E$3:$N$3,0)-1),2,TRUE) -> 0 | K6: =VLOOKUP(F:F,OFFSET('B. PoF Adj Factor Scoring'!$E$5:$F$282,,MATCH(K$4,'B. PoF Adj Factor Scoring'!$E$3:$N$3,0)-1),2,TRUE) -> 0
A7: 2 | B7: BARE | C7: ='A. Population Info'!H7 -> 0 | D7: ='A. Population Info'!I7 -> 0 | E7: ='A. Population Info'!J7 -> 0 | F7: ='A. Population Info'!K7 -> 0 | G7: =VLOOKUP(B:B,OFFSET('B. PoF Adj Factor Scoring'!$E$5:$F$282,,MATCH(G$4,'B. PoF Adj Factor Scoring'!$E$3:$N$3,0)-1),2,TRUE) -> 3 | H7: =VLOOKUP(C:C,OFFSET('B. PoF Adj Factor Scoring'!$E$5:$F$282,,MATCH(H$4,'B. PoF Adj Factor Scoring'!$E$3:$N$3,0)-1),2,TRUE) -> 0 | I7: =VLOOKUP(D:D,OFFSET('B. PoF Adj Factor Scoring'!$E$5:$F$282,,MATCH(I$4,'B. PoF Adj Factor Scoring'!$E$3:$N$3,0)-1),2,TRUE) -> 0 | J7: =VLOOKUP(E:E,OFFSET('B. PoF Adj Factor Scoring'!$E$5:$F$282,,MATCH(J$4,'B. PoF Adj Factor Scoring'!$E$3:$N$3,0)-1),2,TRUE) -> 0 | K7: =VLOOKUP(F:F,OFFSET('B. PoF Adj Factor Scoring'!$E$5:$F$282,,MATCH(K$4,'B. PoF Adj Factor Scoring'!$E$3:$N$3,0)-1),2,TRUE) -> 0
A8: 3 | B8: BARE | C8: ='A. Population Info'!H8 -> 0 | D8: ='A. Population Info'!I8 -> 0 | E8: ='A. Population Info'!J8 -> 0 | F8: ='A. Population Info'!K8 -> 0 | G8: =VLOOKUP(B:B,OFFSET('B. PoF Adj Factor Scoring'!$E$5:$F$282,,MATCH(G$4,'B. PoF Adj Factor Scoring'!$E$3:$N$3,0)-1),2,TRUE) -> 3 | H8: =VLOOKUP(C:C,OFFSET('B. PoF Adj Factor Scoring'!$E$5:$F$282,,MATCH(H$4,'B. PoF Adj Factor Scoring'!$E$3:$N$3,0)-1),2,TRUE) -> 0 | I8: =VLOOKUP(D:D,OFFSET('B. PoF Adj Factor Scoring'!$E$5:$F$282,,MATCH(I$4,'B. PoF Adj Factor Scoring'!$E$3:$N$3,0)-1),2,TRUE) -> 0 | J8: =VLOOKUP(E:E,OFFSET('B. PoF Adj Factor Scoring'!$E$5:$F$282,,MATCH(J$4,'B. PoF Adj Factor Scoring'!$E$3:$N$3,0)-1),2,TRUE) -> 0 | K8: =VLOOKUP(F:F,OFFSET('B. PoF Adj Factor Scoring'!$E$5:$F$282,,MATCH(K$4,'B. PoF Adj Factor Scoring'!$E$3:$N$3,0)-1),2,TRUE) -> 0
A9: 4 | B9: BARE | C9: ='A. Population Info'!H9 -> 0 | D9: ='A. Population Info'!I9 -> 0 | E9: ='A. Population Info'!J9 -> 0 | F9: ='A. Population Info'!K9 -> 0 | G9: =VLOOKUP(B:B,OFFSET('B. PoF Adj Factor Scoring'!$E$5:$F$282,,MATCH(G$4,'B. PoF Adj Factor Scoring'!$E$3:$N$3,0)-1),2,TRUE) -> 3 | H9: =VLOOKUP(C:C,OFFSET('B. PoF Adj Factor Scoring'!$E$5:$F$282,,MATCH(H$4,'B. PoF Adj Factor Scoring'!$E$3:$N$3,0)-1),2,TRUE) -> 0 | I9: =VLOOKUP(D:D,OFFSET('B. PoF Adj Factor Scoring'!$E$5:$F$282,,MATCH(I$4,'B. PoF Adj Factor Scoring'!$E$3:$N$3,0)-1),2,TRUE) -> 0 | J9: =VLOOKUP(E:E,OFFSET('B. PoF Adj Factor Scoring'!$E$5:$F$282,,MATCH(J$4,'B. PoF Adj Factor Scoring'!$E$3:$N$3,0)-1),2,TRUE) -> 0 | K9: =VLOOKUP(F:F,OFFSET('B. PoF Adj Factor Scoring'!$E$5:$F$282,,MATCH(K$4,'B. PoF Adj Factor Scoring'!$E$3:$N$3,0)-1),2,TRUE) -> 0
A10: 5 | B10: BARE | C10: ='A. Population Info'!H10 -> 0 | D10: ='A. Population Info'!I10 -> 0 | E10: ='A. Population Info'!J10 -> 0 | F10: ='A. Population Info'!K10 -> 0 | G10: =VLOOKUP(B:B,OFFSET('B. PoF Adj Factor Scoring'!$E$5:$F$282,,MATCH(G$4,'B. PoF Adj Factor Scoring'!$E$3:$N$3,0)-1),2,TRUE) -> 3 | H10: =VLOOKUP(C:C,OFFSET('B. PoF Adj Factor Scoring'!$E$5:$F$282,,MATCH(H$4,'B. PoF Adj Factor Scoring'!$E$3:$N$3,0)-1),2,TRUE) -> 0 | I10: =VLOOKUP(D:D,OFFSET('B. PoF Adj Factor Scoring'!$E$5:$F$282,,MATCH(I$4,'B. PoF Adj Factor Scoring'!$E$3:$N$3,0)-1),2,TRUE) -> 0 | J10: =VLOOKUP(E:E,OFFSET('B. PoF Adj Factor Scoring'!$E$5:$F$282,,MATCH(J$4,'B. PoF Adj Factor Scoring'!$E$3:$N$3,0)-1),2,TRUE) -> 0 | K10: =VLOOKUP(F:F,OFFSET('B. PoF Adj Factor Scoring'!$E$5:$F$282,,MATCH(K$4,'B. PoF Adj Factor Scoring'!$E$3:$N$3,0)-1),2,TRUE) -> 0
A11: 6 | B11: BARE | C11: ='A. Population Info'!H11 -> 0 | D11: ='A. Population Info'!I11 -> 0 | E11: ='A. Population Info'!J11 -> 0 | F11: ='A. Population Info'!K11 -> 0 | G11: =VLOOKUP(B:B,OFFSET('B. PoF Adj Factor Scoring'!$E$5:$F$282,,MATCH(G$4,'B. PoF Adj Factor Scoring'!$E$3:$N$3,0)-1),2,TRUE) -> 3 | H11: =VLOOKUP(C:C,OFFSET('B. PoF Adj Factor Scoring'!$E$5:$F$282,,MATCH(H$4,'B. PoF Adj Factor Scoring'!$E$3:$N$3,0)-1),2,TRUE) -> 0 | I11: =VLOOKUP(D:D,OFFSET('B. PoF Adj Factor Scoring'!$E$5:$F$282,,MATCH(I$4,'B. PoF Adj Factor Scoring'!$E$3:$N$3,0)-1),2,TRUE) -> 0 | J11: =VLOOKUP(E:E,OFFSET('B. PoF Adj Factor Scoring'!$E$5:$F$282,,MATCH(J$4,'B. PoF Adj Factor Scoring'!$E$3:$N$3,0)-1),2,TRUE) -> 0 | K11: =VLOOKUP(F:F,OFFSET('B. PoF Adj Factor Scoring'!$E$5:$F$282,,MATCH(K$4,'B. PoF Adj Factor Scoring'!$E$3:$N$3,0)-1),2,TRUE) -> 0
A12: 7 | B12: BARE | C12: ='A. Population Info'!H12 -> 0 | D12: ='A. Population Info'!I12 -> 0 | E12: ='A. Population Info'!J12 -> 0 | F12: ='A. Population Info'!K12 -> 0 | G12: =VLOOKUP(B:B,OFFSET('B. PoF Adj Factor Scoring'!$E$5:$F$282,,MATCH(G$4,'B. PoF Adj Factor Scoring'!$E$3:$N$3,0)-1),2,TRUE) -> 3 | H12: =VLOOKUP(C:C,OFFSET('B. PoF Adj Factor Scoring'!$E$5:$F$282,,MATCH(H$4,'B. PoF Adj Factor Scoring'!$E$3:$N$3,0)-1),2,TRUE) -> 0 | I12: =VLOOKUP(D:D,OFFSET('B. PoF Adj Factor Scoring'!$E$5:$F$282,,MATCH(I$4,'B. PoF Adj Factor Scoring'!$E$3:$N$3,0)-1),2,TRUE) -> 0 | J12: =VLOOKUP(E:E,OFFSET('B. PoF Adj Factor Scoring'!$E$5:$F$282,,MATCH(J$4,'B. PoF Adj Factor Scoring'!$E$3:$N$3,0)-1),2,TRUE) -> 0 | K12: =VLOOKUP(F:F,OFFSET('B. PoF Adj Factor Scoring'!$E$5:$F$282,,MATCH(K$4,'B. PoF Adj Factor Scoring'!$E$3:$N$3,0)-1),2,TRUE) -> 0
A13: 8 | B13: BARE | C13: ='A. Population Info'!H13 -> 0 | D13: ='A. Population Info'!I13 -> 0 | E13: ='A. Population Info'!J13 -> 0 | F13: ='A. Population Info'!K13 -> 0 | G13: =VLOOKUP(B:B,OFFSET('B. PoF Adj Factor Scoring'!$E$5:$F$282,,MATCH(G$4,'B. PoF Adj Factor Scoring'!$E$3:$N$3,0)-1),2,TRUE) -> 3 | H13: =VLOOKUP(C:C,OFFSET('B. PoF Adj Factor Scoring'!$E$5:$F$282,,MATCH(H$4,'B. PoF Adj Factor Scoring'!$E$3:$N$3,0)-1),2,TRUE) -> 0 | I13: =VLOOKUP(D:D,OFFSET('B. PoF Adj Factor Scoring'!$E$5:$F$282,,MATCH(I$4,'B. PoF Adj Factor Scoring'!$E$3:$N$3,0)-1),2,TRUE) -> 0 | J13: =VLOOKUP(E:E,OFFSET('B. PoF Adj Factor Scoring'!$E$5:$F$282,,MATCH(J$4,'B. PoF Adj Factor Scoring'!$E$3:$N$3,0)-1),2,TRUE) -> 0 | K13: =VLOOKUP(F:F,OFFSET('B. PoF Adj Factor Scoring'!$E$5:$F$282,,MATCH(K$4,'B. PoF Adj Factor Scoring'!$E$3:$N$3,0)-1),2,TRUE) -> 0
A14: 9 | B14: BARE | C14: ='A. Population Info'!H14 -> 0 | D14: ='A. Population Info'!I14 -> 0 | E14: ='A. Population Info'!J14 -> 0 | F14: ='A. Population Info'!K14 -> 0 | G14: =VLOOKUP(B:B,OFFSET('B. PoF Adj Factor Scoring'!$E$5:$F$282,,MATCH(G$4,'B. PoF Adj Factor Scoring'!$E$3:$N$3,0)-1),2,TRUE) -> 3 | H14: =VLOOKUP(C:C,OFFSET('B. PoF Adj Factor Scoring'!$E$5:$F$282,,MATCH(H$4,'B. PoF Adj Factor Scoring'!$E$3:$N$3,0)-1),2,TRUE) -> 0 | I14: =VLOOKUP(D:D,OFFSET('B. PoF Adj Factor Scoring'!$E$5:$F$282,,MATCH(I$4,'B. PoF Adj Factor Scoring'!$E$3:$N$3,0)-1),2,TRUE) -> 0 | J14: =VLOOKUP(E:E,OFFSET('B. PoF Adj Factor Scoring'!$E$5:$F$282,,MATCH(J$4,'B. PoF Adj Factor Scoring'!$E$3:$N$3,0)-1),2,TRUE) -> 0 | K14: =VLOOKUP(F:F,OFFSET('B. PoF Adj Factor Scoring'!$E$5:$F$282,,MATCH(K$4,'B. PoF Adj Factor Scoring'!$E$3:$N$3,0)-1),2,TRUE) -> 0
A15: 10 | B15: BARE | C15: ='A. Population Info'!H15 -> 0 | D15: ='A. Population Info'!I15 -> 0 | E15: ='A. Population Info'!J15 -> 0 | F15: ='A. Population Info'!K15 -> 0 | G15: =VLOOKUP(B:B,OFFSET('B. PoF Adj Factor Scoring'!$E$5:$F$282,,MATCH(G$4,'B. PoF Adj Factor Scoring'!$E$3:$N$3,0)-1),2,TRUE) -> 3 | H15: =VLOOKUP(C:C,OFFSET('B. PoF Adj Factor Scoring'!$E$5:$F$282,,MATCH(H$4,'B. PoF Adj Factor Scoring'!$E$3:$N$3,0)-1),2,TRUE) -> 0 | I15: =VLOOKUP(D:D,OFFSET('B. PoF Adj Factor Scoring'!$E$5:$F$282,,MATCH(I$4,'B. PoF Adj Factor Scoring'!$E$3:$N$3,0)-1),2,TRUE) -> 0 | J15: =VLOOKUP(E:E,OFFSET('B. PoF Adj Factor Scoring'!$E$5:$F$282,,MATCH(J$4,'B. PoF Adj Factor Scoring'!$E$3:$N$3,0)-1),2,TRUE) -> 0 | K15: =VLOOKUP(F:F,OFFSET('B. PoF Adj Factor Scoring'!$E$5:$F$282,,MATCH(K$4,'B. PoF Adj Factor Scoring'!$E$3:$N$3,0)-1),2,TRUE) -> 0
A16: 11 | B16: BARE | C16: ='A. Population Info'!H16 -> 0 | D16: ='A. Population Info'!I16 -> 0 | E16: ='A. Population Info'!J16 -> 0 | F16: ='A. Population Info'!K16 -> 0 | G16: =VLOOKUP(B:B,OFFSET('B. PoF Adj Factor Scoring'!$E$5:$F$282,,MATCH(G$4,'B. PoF Adj Factor Scoring'!$E$3:$N$3,0)-1),2,TRUE) -> 3 | H16: =VLOOKUP(C:C,OFFSET('B. PoF Adj Factor Scoring'!$E$5:$F$282,,MATCH(H$4,'B. PoF Adj Factor Scoring'!$E$3:$N$3,0)-1),2,TRUE) -> 0 | I16: =VLOOKUP(D:D,OFFSET('B. PoF Adj Factor Scoring'!$E$5:$F$282,,MATCH(I$4,'B. PoF Adj Factor Scoring'!$E$3:$N$3,0)-1),2,TRUE) -> 0 | J16: =VLOOKUP(E:E,OFFSET('B. PoF Adj Factor Scoring'!$E$5:$F$282,,MATCH(J$4,'B. PoF Adj Factor Scoring'!$E$3:$N$3,0)-1),2,TRUE) -> 0 | K16: =VLOOKUP(F:F,OFFSET('B. PoF Adj Factor Scoring'!$E$5:$F$282,,MATCH(K$4,'B. PoF Adj Factor Scoring'!$E$3:$N$3,0)-1),2,TRUE) -> 0
A17: 12 | B17: BARE | C17: ='A. Population Info'!H17 -> 0 | D17: ='A. Population Info'!I17 -> 0 | E17: ='A. Population Info'!J17 -> 0 | F17: ='A. Population Info'!K17 -> 0 | G17: =VLOOKUP(B:B,OFFSET('B. PoF Adj Factor Scoring'!$E$5:$F$282,,MATCH(G$4,'B. PoF Adj Factor Scoring'!$E$3:$N$3,0)-1),2,TRUE) -> 3 | H17: =VLOOKUP(C:C,OFFSET('B. PoF Adj Factor Scoring'!$E$5:$F$282,,MATCH(H$4,'B. PoF Adj Factor Scoring'!$E$3:$N$3,0)-1),2,TRUE) -> 0 | I17: =VLOOKUP(D:D,OFFSET('B. PoF Adj Factor Scoring'!$E$5:$F$282,,MATCH(I$4,'B. PoF Adj Factor Scoring'!$E$3:$N$3,0)-1),2,TRUE) -> 0 | J17: =VLOOKUP(E:E,OFFSET('B. PoF Adj Factor Scoring'!$E$5:$F$282,,MATCH(J$4,'B. PoF Adj Factor Scoring'!$E$3:$N$3,0)-1),2,TRUE) -> 0 | K17: =VLOOKUP(F:F,OFFSET('B. PoF Adj Factor Scoring'!$E$5:$F$282,,MATCH(K$4,'B. PoF Adj Factor Scoring'!$E$3:$N$3,0)-1),2,TRUE) -> 0
A18: 13 | B18: BARE | C18: ='A. Population Info'!H18 -> 0 | D18: ='A. Population Info'!I18 -> 0 | E18: ='A. Population Info'!J18 -> 0 | F18: ='A. Population Info'!K18 -> 0 | G18: =VLOOKUP(B:B,OFFSET('B. PoF Adj Factor Scoring'!$E$5:$F$282,,MATCH(G$4,'B. PoF Adj Factor Scoring'!$E$3:$N$3,0)-1),2,TRUE) -> 3 | H18: =VLOOKUP(C:C,OFFSET('B. PoF Adj Factor Scoring'!$E$5:$F$282,,MATCH(H$4,'B. PoF Adj Factor Scoring'!$E$3:$N$3,0)-1),2,TRUE) -> 0 | I18: =VLOOKUP(D:D,OFFSET('B. PoF Adj Factor Scoring'!$E$5:$F$282,,MATCH(I$4,'B. PoF Adj Factor Scoring'!$E$3:$N$3,0)-1),2,TRUE) -> 0 | J18: =VLOOKUP(E:E,OFFSET('B. PoF Adj Factor Scoring'!$E$5:$F$282,,MATCH(J$4,'B. PoF Adj Factor Scoring'!$E$3:$N$3,0)-1),2,TRUE) -> 0 | K18: =VLOOKUP(F:F,OFFSET('B. PoF Adj Factor Scoring'!$E$5:$F$282,,MATCH(K$4,'B. PoF Adj Factor Scoring'!$E$3:$N$3,0)-1),2,TRUE) -> 0
A19: 14 | B19: BARE | C19: ='A. Population Info'!H19 -> 0 | D19: ='A. Population Info'!I19 -> 0 | E19: ='A. Population Info'!J19 -> 0 | F19: ='A. Population Info'!K19 -> 0 | G19: =VLOOKUP(B:B,OFFSET('B. PoF Adj Factor Scoring'!$E$5:$F$282,,MATCH(G$4,'B. PoF Adj Factor Scoring'!$E$3:$N$3,0)-1),2,TRUE) -> 3 | H19: =VLOOKUP(C:C,OFFSET('B. PoF Adj Factor Scoring'!$E$5:$F$282,,MATCH(H$4,'B. PoF Adj Factor Scoring'!$E$3:$N$3,0)-1),2,TRUE) -> 0 | I19: =VLOOKUP(D:D,OFFSET('B. PoF Adj Factor Scoring'!$E$5:$F$282,,MATCH(I$4,'B. PoF Adj Factor Scoring'!$E$3:$N$3,0)-1),2,TRUE) -> 0 | J19: =VLOOKUP(E:E,OFFSET('B. PoF Adj Factor Scoring'!$E$5:$F$282,,MATCH(J$4,'B. PoF Adj Factor Scoring'!$E$3:$N$3,0)-1),2,TRUE) -> 0 | K19: =VLOOKUP(F:F,OFFSET('B. PoF Adj Factor Scoring'!$E$5:$F$282,,MATCH(K$4,'B. PoF Adj Factor Scoring'!$E$3:$N$3,0)-1),2,TRUE) -> 0
A20: 15 | B20: BARE | C20: ='A. Population Info'!H20 -> 0 | D20: ='A. Population Info'!I20 -> 0 | E20: ='A. Population Info'!J20 -> 0 | F20: ='A. Population Info'!K20 -> 0 | G20: =VLOOKUP(B:B,OFFSET('B. PoF Adj Factor Scoring'!$E$5:$F$282,,MATCH(G$4,'B. PoF Adj Factor Scoring'!$E$3:$N$3,0)-1),2,TRUE) -> 3 | H20: =VLOOKUP(C:C,OFFSET('B. PoF Adj Factor Scoring'!$E$5:$F$282,,MATCH(H$4,'B. PoF Adj Factor Scoring'!$E$3:$N$3,0)-1),2,TRUE) -> 0 | I20: =VLOOKUP(D:D,OFFSET('B. PoF Adj Factor Scoring'!$E$5:$F$282,,MATCH(I$4,'B. PoF Adj Factor Scoring'!$E$3:$N$3,0)-1),2,TRUE) -> 0 | J20: =VLOOKUP(E:E,OFFSET('B. PoF Adj Factor Scoring'!$E$5:$F$282,,MATCH(J$4,'B. PoF Adj Factor Scoring'!$E$3:$N$3,0)-1),2,TRUE) -> 0 | K20: =VLOOKUP(F:F,OFFSET('B. PoF Adj Factor Scoring'!$E$5:$F$282,,MATCH(K$4,'B. PoF Adj Factor Scoring'!$E$3:$N$3,0)-1),2,TRUE) -> 0
A21: 16 | B21: BARE | C21: ='A. Population Info'!H21 -> 0 | D21: ='A. Population Info'!I21 -> 0 | E21: ='A. Population Info'!J21 -> 0 | F21: ='A. Population Info'!K21 -> 0 | G21: =VLOOKUP(B:B,OFFSET('B. PoF Adj Factor Scoring'!$E$5:$F$282,,MATCH(G$4,'B. PoF Adj Factor Scoring'!$E$3:$N$3,0)-1),2,TRUE) -> 3 | H21: =VLOOKUP(C:C,OFFSET('B. PoF Adj Factor Scoring'!$E$5:$F$282,,MATCH(H$4,'B. PoF Adj Factor Scoring'!$E$3:$N$3,0)-1),2,TRUE) -> 0 | I21: =VLOOKUP(D:D,OFFSET('B. PoF Adj Factor Scoring'!$E$5:$F$282,,MATCH(I$4,'B. PoF Adj Factor Scoring'!$E$3:$N$3,0)-1),2,TRUE) -> 0 | J21: =VLOOKUP(E:E,OFFSET('B. PoF Adj Factor Scoring'!$E$5:$F$282,,MATCH(J$4,'B. PoF Adj Factor Scoring'!$E$3:$N$3,0)-1),2,TRUE) -> 0 | K21: =VLOOKUP(F:F,OFFSET('B. PoF Adj Factor Scoring'!$E$5:$F$282,,MATCH(K$4,'B. PoF Adj Factor Scoring'!$E$3:$N$3,0)-1),2,TRUE) -> 0
A22: 17 | B22: BARE | C22: ='A. Population Info'!H22 -> 0 | D22: ='A. Population Info'!I22 -> 0 | E22: ='A. Population Info'!J22 -> 0 | F22: ='A. Population Info'!K22 -> 0 | G22: =VLOOKUP(B:B,OFFSET('B. PoF Adj Factor Scoring'!$E$5:$F$282,,MATCH(G$4,'B. PoF Adj Factor Scoring'!$E$3:$N$3,0)-1),2,TRUE) -> 3 | H22: =VLOOKUP(C:C,OFFSET('B. PoF Adj Factor Scoring'!$E$5:$F$282,,MATCH(H$4,'B. PoF Adj Factor Scoring'!$E$3:$N$3,0)-1),2,TRUE) -> 0 | I22: =VLOOKUP(D:D,OFFSET('B. PoF Adj Factor Scoring'!$E$5:$F$282,,MATCH(I$4,'B. PoF Adj Factor Scoring'!$E$3:$N$3,0)-1),2,TRUE) -> 0 | J22: =VLOOKUP(E:E,OFFSET('B. PoF Adj Factor Scoring'!$E$5:$F$282,,MATCH(J$4,'B. PoF Adj Factor Scoring'!$E$3:$N$3,0)-1),2,TRUE) -> 0 | K22: =VLOOKUP(F:F,OFFSET('B. PoF Adj Factor Scoring'!$E$5:$F$282,,MATCH(K$4,'B. PoF Adj Factor Scoring'!$E$3:$N$3,0)-1),2,TRUE) -> 0
A23: 18 | B23: BARE | C23: ='A. Population Info'!H23 -> 0 | D23: ='A. Population Info'!I23 -> 0 | E23: ='A. Population Info'!J23 -> 0 | F23: ='A. Population Info'!K23 -> 0 | G23: =VLOOKUP(B:B,OFFSET('B. PoF Adj Factor Scoring'!$E$5:$F$282,,MATCH(G$4,'B. PoF Adj Factor Scoring'!$E$3:$N$3,0)-1),2,TRUE) -> 3 | H23: =VLOOKUP(C:C,OFFSET('B. PoF Adj Factor Scoring'!$E$5:$F$282,,MATCH(H$4,'B. PoF Adj Factor Scoring'!$E$3:$N$3,0)-1),2,TRUE) -> 0 | I23: =VLOOKUP(D:D,OFFSET('B. PoF Adj Factor Scoring'!$E$5:$F$282,,MATCH(I$4,'B. PoF Adj Factor Scoring'!$E$3:$N$3,0)-1),2,TRUE) -> 0 | J23: =VLOOKUP(E:E,OFFSET('B. PoF Adj Factor Scoring'!$E$5:$F$282,,MATCH(J$4,'B. PoF Adj Factor Scoring'!$E$3:$N$3,0)-1),2,TRUE) -> 0 | K23: =VLOOKUP(F:F,OFFSET('B. PoF Adj Factor Scoring'!$E$5:$F$282,,MATCH(K$4,'B. PoF Adj Factor Scoring'!$E$3:$N$3,0)-1),2,TRUE) -> 0
A24: 19 | B24: BARE | C24: ='A. Population Info'!H24 -> 0 | D24: ='A. Population Info'!I24 -> 0 | E24: ='A. Population Info'!J24 -> 0 | F24: ='A. Population Info'!K24 -> 0 | G24: =VLOOKUP(B:B,OFFSET('B. PoF Adj Factor Scoring'!$E$5:$F$282,,MATCH(G$4,'B. PoF Adj Factor Scoring'!$E$3:$N$3,0)-1),2,TRUE) -> 3 | H24: =VLOOKUP(C:C,OFFSET('B. PoF Adj Factor Scoring'!$E$5:$F$282,,MATCH(H$4,'B. PoF Adj Factor Scoring'!$E$3:$N$3,0)-1),2,TRUE) -> 0 | I24: =VLOOKUP(D:D,OFFSET('B. PoF Adj Factor Scoring'!$E$5:$F$282,,MATCH(I$4,'B. PoF Adj Factor Scoring'!$E$3:$N$3,0)-1),2,TRUE) -> 0 | J24: =VLOOKUP(E:E,OFFSET('B. PoF Adj Factor Scoring'!$E$5:$F$282,,MATCH(J$4,'B. PoF Adj Factor Scoring'!$E$3:$N$3,0)-1),2,TRUE) -> 0 | K24: =VLOOKUP(F:F,OFFSET('B. PoF Adj Factor Scoring'!$E$5:$F$282,,MATCH(K$4,'B. PoF Adj Factor Scoring'!$E$3:$N$3,0)-1),2,TRUE) -> 0
A25: 20 | B25: BARE | C25: ='A. Population Info'!H25 -> 0 | D25: ='A. Population Info'!I25 -> 0 | E25: ='A. Population Info'!J25 -> 0 | F25: ='A. Population Info'!K25 -> 0 | G25: =VLOOKUP(B:B,OFFSET('B. PoF Adj Factor Scoring'!$E$5:$F$282,,MATCH(G$4,'B. PoF Adj Factor Scoring'!$E$3:$N$3,0)-1),2,TRUE) -> 3 | H25: =VLOOKUP(C:C,OFFSET('B. PoF Adj Factor Scoring'!$E$5:$F$282,,MATCH(H$4,'B. PoF Adj Factor Scoring'!$E$3:$N$3,0)-1),2,TRUE) -> 0 | I25: =VLOOKUP(D:D,OFFSET('B. PoF Adj Factor Scoring'!$E$5:$F$282,,MATCH(I$4,'B. PoF Adj Factor Scoring'!$E$3:$N$3,0)-1),2,TRUE) -> 0 | J25: =VLOOKUP(E:E,OFFSET('B. PoF Adj Factor Scoring'!$E$5:$F$282,,MATCH(J$4,'B. PoF Adj Factor Scoring'!$E$3:$N$3,0)-1),2,TRUE) -> 0 | K25: =VLOOKUP(F:F,OFFSET('B. PoF Adj Factor Scoring'!$E$5:$F$282,,MATCH(K$4,'B. PoF Adj Factor Scoring'!$E$3:$N$3,0)-1),2,TRUE) -> 0
A26: 21 | B26: BARE | C26: ='A. Population Info'!H26 -> 0 | D26: ='A. Population Info'!I26 -> 0 | E26: ='A. Population Info'!J26 -> 0 | F26: ='A. Population Info'!K26 -> 0 | G26: =VLOOKUP(B:B,OFFSET('B. PoF Adj Factor Scoring'!$E$5:$F$282,,MATCH(G$4,'B. PoF Adj Factor Scoring'!$E$3:$N$3,0)-1),2,TRUE) -> 3 | H26: =VLOOKUP(C:C,OFFSET('B. PoF Adj Factor Scoring'!$E$5:$F$282,,MATCH(H$4,'B. PoF Adj Factor Scoring'!$E$3:$N$3,0)-1),2,TRUE) -> 0 | I26: =VLOOKUP(D:D,OFFSET('B. PoF Adj Factor Scoring'!$E$5:$F$282,,MATCH(I$4,'B. PoF Adj Factor Scoring'!$E$3:$N$3,0)-1),2,TRUE) -> 0 | J26: =VLOOKUP(E:E,OFFSET('B. PoF Adj Factor Scoring'!$E$5:$F$282,,MATCH(J$4,'B. PoF Adj Factor Scoring'!$E$3:$N$3,0)-1),2,TRUE) -> 0 | K26: =VLOOKUP(F:F,OFFSET('B. PoF Adj Factor Scoring'!$E$5:$F$282,,MATCH(K$4,'B. PoF Adj Factor Scoring'!$E$3:$N$3,0)-1),2,TRUE) -> 0
A27: 22 | B27: BARE | C27: ='A. Population Info'!H27 -> 0 | D27: ='A. Population Info'!I27 -> 0 | E27: ='A. Population Info'!J27 -> 0 | F27: ='A. Population Info'!K27 -> 0 | G27: =VLOOKUP(B:B,OFFSET('B. PoF Adj Factor Scoring'!$E$5:$F$282,,MATCH(G$4,'B. PoF Adj Factor Scoring'!$E$3:$N$3,0)-1),2,TRUE) -> 3 | H27: =VLOOKUP(C:C,OFFSET('B. PoF Adj Factor Scoring'!$E$5:$F$282,,MATCH(H$4,'B. PoF Adj Factor Scoring'!$E$3:$N$3,0)-1),2,TRUE) -> 0 | I27: =VLOOKUP(D:D,OFFSET('B. PoF Adj Factor Scoring'!$E$5:$F$282,,MATCH(I$4,'B. PoF Adj Factor Scoring'!$E$3:$N$3,0)-1),2,TRUE) -> 0 | J27: =VLOOKUP(E:E,OFFSET('B. PoF Adj Factor Scoring'!$E$5:$F$282,,MATCH(J$4,'B. PoF Adj Factor Scoring'!$E$3:$N$3,0)-1),2,TRUE) -> 0 | K27: =VLOOKUP(F:F,OFFSET('B. PoF Adj Factor Scoring'!$E$5:$F$282,,MATCH(K$4,'B. PoF Adj Factor Scoring'!$E$3:$N$3,0)-1),2,TRUE) -> 0
A28: 23 | B28: BARE | C28: ='A. Population Info'!H28 -> 0 | D28: ='A. Population Info'!I28 -> 0 | E28: ='A. Population Info'!J28 -> 0 | F28: ='A. Population Info'!K28 -> 0 | G28: =VLOOKUP(B:B,OFFSET('B. PoF Adj Factor Scoring'!$E$5:$F$282,,MATCH(G$4,'B. PoF Adj Factor Scoring'!$E$3:$N$3,0)-1),2,TRUE) -> 3 | H28: =VLOOKUP(C:C,OFFSET('B. PoF Adj Factor Scoring'!$E$5:$F$282,,MATCH(H$4,'B. PoF Adj Factor Scoring'!$E$3:$N$3,0)-1),2,TRUE) -> 0 | I28: =VLOOKUP(D:D,OFFSET('B. PoF Adj Factor Scoring'!$E$5:$F$282,,MATCH(I$4,'B. PoF Adj Factor Scoring'!$E$3:$N$3,0)-1),2,TRUE) -> 0 | J28: =VLOOKUP(E:E,OFFSET('B. PoF Adj Factor Scoring'!$E$5:$F$282,,MATCH(J$4,'B. PoF Adj Factor Scoring'!$E$3:$N$3,0)-1),2,TRUE) -> 0 | K28: =VLOOKUP(F:F,OFFSET('B. PoF Adj Factor Scoring'!$E$5:$F$282,,MATCH(K$4,'B. PoF Adj Factor Scoring'!$E$3:$N$3,0)-1),2,TRUE) -> 0
A29: 24 | B29: BARE | C29: ='A. Population Info'!H29 -> 0 | D29: ='A. Population Info'!I29 -> 0 | E29: ='A. Population Info'!J29 -> 0 | F29: ='A. Population Info'!K29 -> 0 | G29: =VLOOKUP(B:B,OFFSET('B. PoF Adj Factor Scoring'!$E$5:$F$282,,MATCH(G$4,'B. PoF Adj Factor Scoring'!$E$3:$N$3,0)-1),2,TRUE) -> 3 | H29: =VLOOKUP(C:C,OFFSET('B. PoF Adj Factor Scoring'!$E$5:$F$282,,MATCH(H$4,'B. PoF Adj Factor Scoring'!$E$3:$N$3,0)-1),2,TRUE) -> 0 | I29: =VLOOKUP(D:D,OFFSET('B. PoF Adj Factor Scoring'!$E$5:$F$282,,MATCH(I$4,'B. PoF Adj Factor Scoring'!$E$3:$N$3,0)-1),2,TRUE) -> 0 | J29: =VLOOKUP(E:E,OFFSET('B. PoF Adj Factor Scoring'!$E$5:$F$282,,MATCH(J$4,'B. PoF Adj Factor Scoring'!$E$3:$N$3,0)-1),2,TRUE) -> 0 | K29: =VLOOKUP(F:F,OFFSET('B. PoF Adj Factor Scoring'!$E$5:$F$282,,MATCH(K$4,'B. PoF Adj Factor Scoring'!$E$3:$N$3,0)-1),2,TRUE) -> 0
A30: 25 | B30: BARE OR PVC SINGLE | C30: ='A. Population Info'!H30 -> 0 | D30: ='A. Population Info'!I30 -> 0 | E30: ='A. Population Info'!J30 -> 0 | F30: ='A. Population Info'!K30 -> 0 | G30: =VLOOKUP(B:B,OFFSET('B. PoF Adj Factor Scoring'!$E$5:$F$282,,MATCH(G$4,'B. PoF Adj Factor Scoring'!$E$3:$N$3,0)-1),2,TRUE) -> 3 | H30: =VLOOKUP(C:C,OFFSET('B. PoF Adj Factor Scoring'!$E$5:$F$282,,MATCH(H$4,'B. PoF Adj Factor Scoring'!$E$3:$N$3,0)-1),2,TRUE) -> 0 | I30: =VLOOKUP(D:D,OFFSET('B. PoF Adj Factor Scoring'!$E$5:$F$282,,MATCH(I$4,'B. PoF Adj Factor Scoring'!$E$3:$N$3,0)-1),2,TRUE) -> 0 | J30: =VLOOKUP(E:E,OFFSET('B. PoF Adj Factor Scoring'!$E$5:$F$282,,MATCH(J$4,'B. PoF Adj Factor Scoring'!$E$3:$N$3,0)-1),2,TRUE) -> 0 | K30: =VLOOKUP(F:F,OFFSET('B. PoF Adj Factor Scoring'!$E$5:$F$282,,MATCH(K$4,'B. PoF Adj Factor Scoring'!$E$3:$N$3,0)-1),2,TRUE) -> 0
A31: 26 | B31: BARE OR PVC SINGLE | C31: ='A. Population Info'!H31 -> 0 | D31: ='A. Population Info'!I31 -> 0 | E31: ='A. Population Info'!J31 -> 0 | F31: ='A. Population Info'!K31 -> 0 | G31: =VLOOKUP(B:B,OFFSET('B. PoF Adj Factor Scoring'!$E$5:$F$282,,MATCH(G$4,'B. PoF Adj Factor Scoring'!$E$3:$N$3,0)-1),2,TRUE) -> 3 | H31: =VLOOKUP(C:C,OFFSET('B. PoF Adj Factor Scoring'!$E$5:$F$282,,MATCH(H$4,'B. PoF Adj Factor Scoring'!$E$3:$N$3,0)-1),2,TRUE) -> 0 | I31: =VLOOKUP(D:D,OFFSET('B. PoF Adj Factor Scoring'!$E$5:$F$282,,MATCH(I$4,'B. PoF Adj Factor Scoring'!$E$3:$N$3,0)-1),2,TRUE) -> 0 | J31: =VLOOKUP(E:E,OFFSET('B. PoF Adj Factor Scoring'!$E$5:$F$282,,MATCH(J$4,'B. PoF Adj Factor Scoring'!$E$3:$N$3,0)-1),2,TRUE) -> 0 | K31: =VLOOKUP(F:F,OFFSET('B. PoF Adj Factor Scoring'!$E$5:$F$282,,MATCH(K$4,'B. PoF Adj Factor Scoring'!$E$3:$N$3,0)-1),2,TRUE) -> 0
A32: 27 | B32: BARE OR PVC SINGLE | C32: ='A. Population Info'!H32 -> 0 | D32: ='A. Population Info'!I32 -> 0 | E32: ='A. Population Info'!J32 -> 0 | F32: ='A. Population Info'!K32 -> 0 | G32: =VLOOKUP(B:B,OFFSET('B. PoF Adj Factor Scoring'!$E$5:$F$282,,MATCH(G$4,'B. PoF Adj Factor Scoring'!$E$3:$N$3,0)-1),2,TRUE) -> 3 | H32: =VLOOKUP(C:C,OFFSET('B. PoF Adj Factor Scoring'!$E$5:$F$282,,MATCH(H$4,'B. PoF Adj Factor Scoring'!$E$3:$N$3,0)-1),2,TRUE) -> 0 | I32: =VLOOKUP(D:D,OFFSET('B. PoF Adj Factor Scoring'!$E$5:$F$282,,MATCH(I$4,'B. PoF Adj Factor Scoring'!$E$3:$N$3,0)-1),2,TRUE) -> 0 | J32: =VLOOKUP(E:E,OFFSET('B. PoF Adj Factor Scoring'!$E$5:$F$282,,MATCH(J$4,'B. PoF Adj Factor Scoring'!$E$3:$N$3,0)-1),2,TRUE) -> 0 | K32: =VLOOKUP(F:F,OFFSET('B. PoF Adj Factor Scoring'!$E$5:$F$282,,MATCH(K$4,'B. PoF Adj Factor Scoring'!$E$3:$N$3,0)-1),2,TRUE) -> 0
A33: 28 | B33: BARE OR PVC SINGLE | C33: ='A. Population Info'!H33 -> 0 | D33: ='A. Population Info'!I33 -> 0 | E33: ='A. Population Info'!J33 -> 0 | F33: ='A. Population Info'!K33 -> 0 | G33: =VLOOKUP(B:B,OFFSET('B. PoF Adj Factor Scoring'!$E$5:$F$282,,MATCH(G$4,'B. PoF Adj Factor Scoring'!$E$3:$N$3,0)-1),2,TRUE) -> 3 | H33: =VLOOKUP(C:C,OFFSET('B. PoF Adj Factor Scoring'!$E$5:$F$282,,MATCH(H$4,'B. PoF Adj Factor Scoring'!$E$3:$N$3,0)-1),2,TRUE) -> 0 | I33: =VLOOKUP(D:D,OFFSET('B. PoF Adj Factor Scoring'!$E$5:$F$282,,MATCH(I$4,'B. PoF Adj Factor Scoring'!$E$3:$N$3,0)-1),2,TRUE) -> 0 | J33: =VLOOKUP(E:E,OFFSET('B. PoF Adj Factor Scoring'!$E$5:$F$282,,MATCH(J$4,'B. PoF Adj Factor Scoring'!$E$3:$N$3,0)-1),2,TRUE) -> 0 | K33: =VLOOKUP(F:F,OFFSET('B. PoF Adj Factor Scoring'!$E$5:$F$282,,MATCH(K$4,'B. PoF Adj Factor Scoring'!$E$3:$N$3,0)-1),2,TRUE) -> 0
A34: 29 | B34: BARE OR PVC SINGLE | C34: ='A. Population Info'!H34 -> 0 | D34: ='A. Population Info'!I34 -> 0 | E34: ='A. Population Info'!J34 -> 0 | F34: ='A. Population Info'!K34 -> 0 | G34: =VLOOKUP(B:B,OFFSET('B. PoF Adj Factor Scoring'!$E$5:$F$282,,MATCH(G$4,'B. PoF Adj Factor Scoring'!$E$3:$N$3,0)-1),2,TRUE) -> 3 | H34: =VLOOKUP(C:C,OFFSET('B. PoF Adj Factor Scoring'!$E$5:$F$282,,MATCH(H$4,'B. PoF Adj Factor Scoring'!$E$3:$N$3,0)-1),2,TRUE) -> 0 | I34: =VLOOKUP(D:D,OFFSET('B. PoF Adj Factor Scoring'!$E$5:$F$282,,MATCH(I$4,'B. PoF Adj Factor Scoring'!$E$3:$N$3,0)-1),2,TRUE) -> 0 | J34: =VLOOKUP(E:E,OFFSET('B. PoF Adj Factor Scoring'!$E$5:$F$282,,MATCH(J$4,'B. PoF Adj Factor Scoring'!$E$3:$N$3,0)-1),2,TRUE) -> 0 | K34: =VLOOKUP(F:F,OFFSET('B. PoF Adj Factor Scoring'!$E$5:$F$282,,MATCH(K$4,'B. PoF Adj Factor Scoring'!$E$3:$N$3,0)-1),2,TRUE) -> 0
A35: 30 | B35: BARE OR PVC SINGLE | C35: ='A. Population Info'!H35 -> 0 | D35: ='A. Population Info'!I35 -> 0 | E35: ='A. Population Info'!J35 -> 0 | F35: ='A. Population Info'!K35 -> 0 | G35: =VLOOKUP(B:B,OFFSET('B. PoF Adj Factor Scoring'!$E$5:$F$282,,MATCH(G$4,'B. PoF Adj Factor Scoring'!$E$3:$N$3,0)-1),2,TRUE) -> 3 | H35: =VLOOKUP(C:C,OFFSET('B. PoF Adj Factor Scoring'!$E$5:$F$282,,MATCH(H$4,'B. PoF Adj Factor Scoring'!$E$3:$N$3,0)-1),2,TRUE) -> 0 | I35: =VLOOKUP(D:D,OFFSET('B. PoF Adj Factor Scoring'!$E$5:$F$282,,MATCH(I$4,'B. PoF Adj Factor Scoring'!$E$3:$N$3,0)-1),2,TRUE) -> 0 | J35: =VLOOKUP(E:E,OFFSET('B. PoF Adj Factor Scoring'!$E$5:$F$282,,MATCH(J$4,'B. PoF Adj Factor Scoring'!$E$3:$N$3,0)-1),2,TRUE) -> 0 | K35: =VLOOKUP(F:F,OFFSET('B. PoF Adj Factor Scoring'!$E$5:$F$282,,MATCH(K$4,'B. PoF Adj Factor Scoring'!$E$3:$N$3,0)-1),2,TRUE) -> 0
A36: 31 | B36: BARE OR PVC SINGLE | C36: ='A. Population Info'!H36 -> 0 | D36: ='A. Population Info'!I36 -> 0 | E36: ='A. Population Info'!J36 -> 0 | F36: ='A. Population Info'!K36 -> 0 | G36: =VLOOKUP(B:B,OFFSET('B. PoF Adj Factor Scoring'!$E$5:$F$282,,MATCH(G$4,'B. PoF Adj Factor Scoring'!$E$3:$N$3,0)-1),2,TRUE) -> 3 | H36: =VLOOKUP(C:C,OFFSET('B. PoF Adj Factor Scoring'!$E$5:$F$282,,MATCH(H$4,'B. PoF Adj Factor Scoring'!$E$3:$N$3,0)-1),2,TRUE) -> 0 | I36: =VLOOKUP(D:D,OFFSET('B. PoF Adj Factor Scoring'!$E$5:$F$282,,MATCH(I$4,'B. PoF Adj Factor Scoring'!$E$3:$N$3,0)-1),2,TRUE) -> 0 | J36: =VLOOKUP(E:E,OFFSET('B. PoF Adj Factor Scoring'!$E$5:$F$282,,MATCH(J$4,'B. PoF Adj Factor Scoring'!$E$3:$N$3,0)-1),2,TRUE) -> 0 | K36: =VLOOKUP(F:F,OFFSET('B. PoF Adj Factor Scoring'!$E$5:$F$282,,MATCH(K$4,'B. PoF Adj Factor Scoring'!$E$3:$N$3,0)-1),2,TRUE) -> 0
A37: 32 | B37: BARE OR PVC SINGLE | C37: ='A. Population Info'!H37 -> 0 | D37: ='A. Population Info'!I37 -> 0 | E37: ='A. Population Info'!J37 -> 0 | F37: ='A. Population Info'!K37 -> 0 | G37: =VLOOKUP(B:B,OFFSET('B. PoF Adj Factor Scoring'!$E$5:$F$282,,MATCH(G$4,'B. PoF Adj Factor Scoring'!$E$3:$N$3,0)-1),2,TRUE) -> 3 | H37: =VLOOKUP(C:C,OFFSET('B. PoF Adj Factor Scoring'!$E$5:$F$282,,MATCH(H$4,'B. PoF Adj Factor Scoring'!$E$3:$N$3,0)-1),2,TRUE) -> 0 | I37: =VLOOKUP(D:D,OFFSET('B. PoF Adj Factor Scoring'!$E$5:$F$282,,MATCH(I$4,'B. PoF Adj Factor Scoring'!$E$3:$N$3,0)-1),2,TRUE) -> 0 | J37: =VLOOKUP(E:E,OFFSET('B. PoF Adj Factor Scoring'!$E$5:$F$282,,MATCH(J$4,'B. PoF Adj Factor Scoring'!$E$3:$N$3,0)-1),2,TRUE) -> 0 | K37: =VLOOKUP(F:F,OFFSET('B. PoF Adj Factor Scoring'!$E$5:$F$282,,MATCH(K$4,'B. PoF Adj Factor Scoring'!$E$3:$N$3,0)-1),2,TRUE) -> 0
A38: 33 | B38: BARE OR PVC SINGLE | C38: ='A. Population Info'!H38 -> 0 | D38: ='A. Population Info'!I38 -> 0 | E38: ='A. Population Info'!J38 -> 0 | F38: ='A. Population Info'!K38 -> 0 | G38: =VLOOKUP(B:B,OFFSET('B. PoF Adj Factor Scoring'!$E$5:$F$282,,MATCH(G$4,'B. PoF Adj Factor Scoring'!$E$3:$N$3,0)-1),2,TRUE) -> 3 | H38: =VLOOKUP(C:C,OFFSET('B. PoF Adj Factor Scoring'!$E$5:$F$282,,MATCH(H$4,'B. PoF Adj Factor Scoring'!$E$3:$N$3,0)-1),2,TRUE) -> 0 | I38: =VLOOKUP(D:D,OFFSET('B. PoF Adj Factor Scoring'!$E$5:$F$282,,MATCH(I$4,'B. PoF Adj Factor Scoring'!$E$3:$N$3,0)-1),2,TRUE) -> 0 | J38: =VLOOKUP(E:E,OFFSET('B. PoF Adj Factor Scoring'!$E$5:$F$282,,MATCH(J$4,'B. PoF Adj Factor Scoring'!$E$3:$N$3,0)-1),2,TRUE) -> 0 | K38: =VLOOKUP(F:F,OFFSET('B. PoF Adj Factor Scoring'!$E$5:$F$282,,MATCH(K$4,'B. PoF Adj Factor Scoring'!$E$3:$N$3,0)-1),2,TRUE) -> 0
A39: 34 | B39: BARE OR PVC SINGLE | C39: ='A. Population Info'!H39 -> 0 | D39: ='A. Population Info'!I39 -> 0 | E39: ='A. Population Info'!J39 -> 0 | F39: ='A. Population Info'!K39 -> 0 | G39: =VLOOKUP(B:B,OFFSET('B. PoF Adj Factor Scoring'!$E$5:$F$282,,MATCH(G$4,'B. PoF Adj Factor Scoring'!$E$3:$N$3,0)-1),2,TRUE) -> 3 | H39: =VLOOKUP(C:C,OFFSET('B. PoF Adj Factor Scoring'!$E$5:$F$282,,MATCH(H$4,'B. PoF Adj Factor Scoring'!$E$3:$N$3,0)-1),2,TRUE) -> 0 | I39: =VLOOKUP(D:D,OFFSET('B. PoF Adj Factor Scoring'!$E$5:$F$282,,MATCH(I$4,'B. PoF Adj Factor Scoring'!$E$3:$N$3,0)-1),2,TRUE) -> 0 | J39: =VLOOKUP(E:E,OFFSET('B. PoF Adj Factor Scoring'!$E$5:$F$282,,MATCH(J$4,'B. PoF Adj Factor Scoring'!$E$3:$N$3,0)-1),2,TRUE) -> 0 | K39: =VLOOKUP(F:F,OFFSET('B. PoF Adj Factor Scoring'!$E$5:$F$282,,MATCH(K$4,'B. PoF Adj Factor Scoring'!$E$3:$N$3,0)-1),2,TRUE) -> 0
A40: 35 | B40: BARE OR PVC SINGLE | C40: ='A. Population Info'!H40 -> 0 | D40: ='A. Population Info'!I40 -> 0 | E40: ='A. Population Info'!J40 -> 0 | F40: ='A. Population Info'!K40 -> 0 | G40: =VLOOKUP(B:B,OFFSET('B. PoF Adj Factor Scoring'!$E$5:$F$282,,MATCH(G$4,'B. PoF Adj Factor Scoring'!$E$3:$N$3,0)-1),2,TRUE) -> 3 | H40: =VLOOKUP(C:C,OFFSET('B. PoF Adj Factor Scoring'!$E$5:$F$282,,MATCH(H$4,'B. PoF Adj Factor Scoring'!$E$3:$N$3,0)-1),2,TRUE) -> 0 | I40: =VLOOKUP(D:D,OFFSET('B. PoF Adj Factor Scoring'!$E$5:$F$282,,MATCH(I$4,'B. PoF Adj Factor Scoring'!$E$3:$N$3,0)-1),2,TRUE) -> 0 | J40: =VLOOKUP(E:E,OFFSET('B. PoF Adj Factor Scoring'!$E$5:$F$282,,MATCH(J$4,'B. PoF Adj Factor Scoring'!$E$3:$N$3,0)-1),2,TRUE) -> 0 | K40: =VLOOKUP(F:F,OFFSET('B. PoF Adj Factor Scoring'!$E$5:$F$282,,MATCH(K$4,'B. PoF Adj Factor Scoring'!$E$3:$N$3,0)-1),2,TRUE) -> 0
A41: 36 | B41: BARE OR PVC SINGLE | C41: ='A. Population Info'!H41 -> 0 | D41: ='A. Population Info'!I41 -> 0 | E41: ='A. Population Info'!J41 -> 0 | F41: ='A. Population Info'!K41 -> 0 | G41: =VLOOKUP(B:B,OFFSET('B. PoF Adj Factor Scoring'!$E$5:$F$282,,MATCH(G$4,'B. PoF Adj Factor Scoring'!$E$3:$N$3,0)-1),2,TRUE) -> 3 | H41: =VLOOKUP(C:C,OFFSET('B. PoF Adj Factor Scoring'!$E$5:$F$282,,MATCH(H$4,'B. PoF Adj Factor Scoring'!$E$3:$N$3,0)-1),2,TRUE) -> 0 | I41: =VLOOKUP(D:D,OFFSET('B. PoF Adj Factor Scoring'!$E$5:$F$282,,MATCH(I$4,'B. PoF Adj Factor Scoring'!$E$3:$N$3,0)-1),2,TRUE) -> 0 | J41: =VLOOKUP(E:E,OFFSET('B. PoF Adj Factor Scoring'!$E$5:$F$282,,MATCH(J$4,'B. PoF Adj Factor Scoring'!$E$3:$N$3,0)-1),2,TRUE) -> 0 | K41: =VLOOKUP(F:F,OFFSET('B. PoF Adj Factor Scoring'!$E$5:$F$282,,MATCH(K$4,'B. PoF Adj Factor Scoring'!$E$3:$N$3,0)-1),2,TRUE) -> 0
A42: 37 | B42: BARE OR PVC SINGLE | C42: ='A. Population Info'!H42 -> 0 | D42: ='A. Population Info'!I42 -> 0 | E42: ='A. Population Info'!J42 -> 0 | F42: ='A. Population Info'!K42 -> 0 | G42: =VLOOKUP(B:B,OFFSET('B. PoF Adj Factor Scoring'!$E$5:$F$282,,MATCH(G$4,'B. PoF Adj Factor Scoring'!$E$3:$N$3,0)-1),2,TRUE) -> 3 | H42: =VLOOKUP(C:C,OFFSET('B. PoF Adj Factor Scoring'!$E$5:$F$282,,MATCH(H$4,'B. PoF Adj Factor Scoring'!$E$3:$N$3,0)-1),2,TRUE) -> 0 | I42: =VLOOKUP(D:D,OFFSET('B. PoF Adj Factor Scoring'!$E$5:$F$282,,MATCH(I$4,'B. PoF Adj Factor Scoring'!$E$3:$N$3,0)-1),2,TRUE) -> 0 | J42: =VLOOKUP(E:E,OFFSET('B. PoF Adj Factor Scoring'!$E$5:$F$282,,MATCH(J$4,'B. PoF Adj Factor Scoring'!$E$3:$N$3,0)-1),2,TRUE) -> 0 | K42: =VLOOKUP(F:F,OFFSET('B. PoF Adj Factor Scoring'!$E$5:$F$282,,MATCH(K$4,'B. PoF Adj Factor Scoring'!$E$3:$N$3,0)-1),2,TRUE) -> 0
A43: 38 | B43: BARE OR PVC SINGLE | C43: ='A. Population Info'!H43 -> 0 | D43: ='A. Population Info'!I43 -> 0 | E43: ='A. Population Info'!J43 -> 0 | F43: ='A. Population Info'!K43 -> 0 | G43: =VLOOKUP(B:B,OFFSET('B. PoF Adj Factor Scoring'!$E$5:$F$282,,MATCH(G$4,'B. PoF Adj Factor Scoring'!$E$3:$N$3,0)-1),2,TRUE) -> 3 | H43: =VLOOKUP(C:C,OFFSET('B. PoF Adj Factor Scoring'!$E$5:$F$282,,MATCH(H$4,'B. PoF Adj Factor Scoring'!$E$3:$N$3,0)-1),2,TRUE) -> 0 | I43: =VLOOKUP(D:D,OFFSET('B. PoF Adj Factor Scoring'!$E$5:$F$282,,MATCH(I$4,'B. PoF Adj Factor Scoring'!$E$3:$N$3,0)-1),2,TRUE) -> 0 | J43: =VLOOKUP(E:E,OFFSET('B. PoF Adj Factor Scoring'!$E$5:$F$282,,MATCH(J$4,'B. PoF Adj Factor Scoring'!$E$3:$N$3,0)-1),2,TRUE) -> 0 | K43: =VLOOKUP(F:F,OFFSET('B. PoF Adj Factor Scoring'!$E$5:$F$282,,MATCH(K$4,'B. PoF Adj Factor Scoring'!$E$3:$N$3,0)-1),2,TRUE) -> 0
A44: 39 | B44: BARE OR PVC SINGLE | C44: ='A. Population Info'!H44 -> 0 | D44: ='A. Population Info'!I44 -> 0 | E44: ='A. Population Info'!J44 -> 0 | F44: ='A. Population Info'!K44 -> 0 | G44: =VLOOKUP(B:B,OFFSET('B. PoF Adj Factor Scoring'!$E$5:$F$282,,MATCH(G$4,'B. PoF Adj Factor Scoring'!$E$3:$N$3,0)-1),2,TRUE) -> 3 | H44: =VLOOKUP(C:C,OFFSET('B. PoF Adj Factor Scoring'!$E$5:$F$282,,MATCH(H$4,'B. PoF Adj Factor Scoring'!$E$3:$N$3,0)-1),2,TRUE) -> 0 | I44: =VLOOKUP(D:D,OFFSET('B. PoF Adj Factor Scoring'!$E$5:$F$282,,MATCH(I$4,'B. PoF Adj Factor Scoring'!$E$3:$N$3,0)-1),2,TRUE) -> 0 | J44: =VLOOKUP(E:E,OFFSET('B. PoF Adj Factor Scoring'!$E$5:$F$282,,MATCH(J$4,'B. PoF Adj Factor Scoring'!$E$3:$N$3,0)-1),2,TRUE) -> 0 | K44: =VLOOKUP(F:F,OFFSET('B. PoF Adj Factor Scoring'!$E$5:$F$282,,MATCH(K$4,'B. PoF Adj Factor Scoring'!$E$3:$N$3,0)-1),2,TRUE) -> 0
A45: 40 | B45: BARE OR PVC SINGLE | C45: ='A. Population Info'!H45 -> 0 | D45: ='A. Population Info'!I45 -> 0 | E45: ='A. Population Info'!J45 -> 0 | F45: ='A. Population Info'!K45 -> 0 | G45: =VLOOKUP(B:B,OFFSET('B. PoF Adj Factor Scoring'!$E$5:$F$282,,MATCH(G$4,'B. PoF Adj Factor Scoring'!$E$3:$N$3,0)-1),2,TRUE) -> 3 | H45: =VLOOKUP(C:C,OFFSET('B. PoF Adj Factor Scoring'!$E$5:$F$282,,MATCH(H$4,'B. PoF Adj Factor Scoring'!$E$3:$N$3,0)-1),2,TRUE) -> 0 | I45: =VLOOKUP(D:D,OFFSET('B. PoF Adj Factor Scoring'!$E$5:$F$282,,MATCH(I$4,'B. PoF Adj Factor Scoring'!$E$3:$N$3,0)-1),2,TRUE) -> 0 | J45: =VLOOKUP(E:E,OFFSET('B. PoF Adj Factor Scoring'!$E$5:$F$282,,MATCH(J$4,'B. PoF Adj Factor Scoring'!$E$3:$N$3,0)-1),2,TRUE) -> 0 | K45: =VLOOKUP(F:F,OFFSET('B. PoF Adj Factor Scoring'!$E$5:$F$282,,MATCH(K$4,'B. PoF Adj Factor Scoring'!$E$3:$N$3,0)-1),2,TRUE) -> 0
A46: 41 | B46: BARE OR PVC SINGLE | C46: ='A. Population Info'!H46 -> 0 | D46: ='A. Population Info'!I46 -> 0 | E46: ='A. Population Info'!J46 -> 0 | F46: ='A. Population Info'!K46 -> 0 | G46: =VLOOKUP(B:B,OFFSET('B. PoF Adj Factor Scoring'!$E$5:$F$282,,MATCH(G$4,'B. PoF Adj Factor Scoring'!$E$3:$N$3,0)-1),2,TRUE) -> 3 | H46: =VLOOKUP(C:C,OFFSET('B. PoF Adj Factor Scoring'!$E$5:$F$282,,MATCH(H$4,'B. PoF Adj Factor Scoring'!$E$3:$N$3,0)-1),2,TRUE) -> 0 | I46: =VLOOKUP(D:D,OFFSET('B. PoF Adj Factor Scoring'!$E$5:$F$282,,MATCH(I$4,'B. PoF Adj Factor Scoring'!$E$3:$N$3,0)-1),2,TRUE) -> 0 | J46: =VLOOKUP(E:E,OFFSET('B. PoF Adj Factor Scoring'!$E$5:$F$282,,MATCH(J$4,'B. PoF Adj Factor Scoring'!$E$3:$N$3,0)-1),2,TRUE) -> 0 | K46: =VLOOKUP(F:F,OFFSET('B. PoF Adj Factor Scoring'!$E$5:$F$282,,MATCH(K$4,'B. PoF Adj Factor Scoring'!$E$3:$N$3,0)-1),2,TRUE) -> 0
A47: 42 | B47: BARE OR PVC SINGLE | C47: ='A. Population Info'!H47 -> 0 | D47: ='A. Population Info'!I47 -> 0 | E47: ='A. Population Info'!J47 -> 0 | F47: ='A. Population Info'!K47 -> 0 | G47: =VLOOKUP(B:B,OFFSET('B. PoF Adj Factor Scoring'!$E$5:$F$282,,MATCH(G$4,'B. PoF Adj Factor Scoring'!$E$3:$N$3,0)-1),2,TRUE) -> 3 | H47: =VLOOKUP(C:C,OFFSET('B. PoF Adj Factor Scoring'!$E$5:$F$282,,MATCH(H$4,'B. PoF Adj Factor Scoring'!$E$3:$N$3,0)-1),2,TRUE) -> 0 | I47: =VLOOKUP(D:D,OFFSET('B. PoF Adj Factor Scoring'!$E$5:$F$282,,MATCH(I$4,'B. PoF Adj Factor Scoring'!$E$3:$N$3,0)-1),2,TRUE) -> 0 | J47: =VLOOKUP(E:E,OFFSET('B. PoF Adj Factor Scoring'!$E$5:$F$282,,MATCH(J$4,'B. PoF Adj Factor Scoring'!$E$3:$N$3,0)-1),2,TRUE) -> 0 | K47: =VLOOKUP(F:F,OFFSET('B. PoF Adj Factor Scoring'!$E$5:$F$282,,MATCH(K$4,'B. PoF Adj Factor Scoring'!$E$3:$N$3,0)-1),2,TRUE) -> 0
A48: 43 | B48: BARE OR PVC SINGLE | C48: ='A. Population Info'!H48 -> 0 | D48: ='A. Population Info'!I48 -> 0 | E48: ='A. Population Info'!J48 -> 0 | F48: ='A. Population Info'!K48 -> 0 | G48: =VLOOKUP(B:B,OFFSET('B. PoF Adj Factor Scoring'!$E$5:$F$282,,MATCH(G$4,'B. PoF Adj Factor Scoring'!$E$3:$N$3,0)-1),2,TRUE) -> 3 | H48: =VLOOKUP(C:C,OFFSET('B. PoF Adj Factor Scoring'!$E$5:$F$282,,MATCH(H$4,'B. PoF Adj Factor Scoring'!$E$3:$N$3,0)-1),2,TRUE) -> 0 | I48: =VLOOKUP(D:D,OFFSET('B. PoF Adj Factor Scoring'!$E$5:$F$282,,MATCH(I$4,'B. PoF Adj Factor Scoring'!$E$3:$N$3,0)-1),2,TRUE) -> 0 | J48: =VLOOKUP(E:E,OFFSET('B. PoF Adj Factor Scoring'!$E$5:$F$282,,MATCH(J$4,'B. PoF Adj Factor Scoring'!$E$3:$N$3,0)-1),2,TRUE) -> 0 | K48: =VLOOKUP(F:F,OFFSET('B. PoF Adj Factor Scoring'!$E$5:$F$282,,MATCH(K$4,'B. PoF Adj Factor Scoring'!$E$3:$N$3,0)-1),2,TRUE) -> 0
A49: 44 | B49: BARE OR PVC SINGLE | C49: ='A. Population Info'!H49 -> 0 | D49: ='A. Population Info'!I49 -> 0 | E49: ='A. Population Info'!J49 -> 0 | F49: ='A. Population Info'!K49 -> 0 | G49: =VLOOKUP(B:B,OFFSET('B. PoF Adj Factor Scoring'!$E$5:$F$282,,MATCH(G$4,'B. PoF Adj Factor Scoring'!$E$3:$N$3,0)-1),2,TRUE) -> 3 | H49: =VLOOKUP(C:C,OFFSET('B. PoF Adj Factor Scoring'!$E$5:$F$282,,MATCH(H$4,'B. PoF Adj Factor Scoring'!$E$3:$N$3,0)-1),2,TRUE) -> 0 | I49: =VLOOKUP(D:D,OFFSET('B. PoF Adj Factor Scoring'!$E$5:$F$282,,MATCH(I$4,'B. PoF Adj Factor Scoring'!$E$3:$N$3,0)-1),2,TRUE) -> 0 | J49: =VLOOKUP(E:E,OFFSET('B. PoF Adj Factor Scoring'!$E$5:$F$282,,MATCH(J$4,'B. PoF Adj Factor Scoring'!$E$3:$N$3,0)-1),2,TRUE) -> 0 | K49: =VLOOKUP(F:F,OFFSET('B. PoF Adj Factor Scoring'!$E$5:$F$282,,MATCH(K$4,'B. PoF Adj Factor Scoring'!$E$3:$N$3,0)-1),2,TRUE) -> 0
A50: 45 | B50: BARE OR PVC SINGLE | C50: ='A. Population Info'!H50 -> 0 | D50: ='A. Population Info'!I50 -> 0 | E50: ='A. Population Info'!J50 -> 0 | F50: ='A. Population Info'!K50 -> 0 | G50: =VLOOKUP(B:B,OFFSET('B. PoF Adj Factor Scoring'!$E$5:$F$282,,MATCH(G$4,'B. PoF Adj Factor Scoring'!$E$3:$N$3,0)-1),2,TRUE) -> 3 | H50: =VLOOKUP(C:C,OFFSET('B. PoF Adj Factor Scoring'!$E$5:$F$282,,MATCH(H$4,'B. PoF Adj Factor Scoring'!$E$3:$N$3,0)-1),2,TRUE) -> 0 | I50: =VLOOKUP(D:D,OFFSET('B. PoF Adj Factor Scoring'!$E$5:$F$282,,MATCH(I$4,'B. PoF Adj Factor Scoring'!$E$3:$N$3,0)-1),2,TRUE) -> 0 | J50: =VLOOKUP(E:E,OFFSET('B. PoF Adj Factor Scoring'!$E$5:$F$282,,MATCH(J$4,'B. PoF Adj Factor Scoring'!$E$3:$N$3,0)-1),2,TRUE) -> 0 | K50: =VLOOKUP(F:F,OFFSET('B. PoF Adj Factor Scoring'!$E$5:$F$282,,MATCH(K$4,'B. PoF Adj Factor Scoring'!$E$3:$N$3,0)-1),2,TRUE) -> 0
A51: 46 | B51: BARE OR PVC SINGLE | C51: ='A. Population Info'!H51 -> 0 | D51: ='A. Population Info'!I51 -> 0 | E51: ='A. Population Info'!J51 -> 0 | F51: ='A. Population Info'!K51 -> 0 | G51: =VLOOKUP(B:B,OFFSET('B. PoF Adj Factor Scoring'!$E$5:$F$282,,MATCH(G$4,'B. PoF Adj Factor Scoring'!$E$3:$N$3,0)-1),2,TRUE) -> 3 | H51: =VLOOKUP(C:C,OFFSET('B. PoF Adj Factor Scoring'!$E$5:$F$282,,MATCH(H$4,'B. PoF Adj Factor Scoring'!$E$3:$N$3,0)-1),2,TRUE) -> 0 | I51: =VLOOKUP(D:D,OFFSET('B. PoF Adj Factor Scoring'!$E$5:$F$282,,MATCH(I$4,'B. PoF Adj Factor Scoring'!$E$3:$N$3,0)-1),2,TRUE) -> 0 | J51: =VLOOKUP(E:E,OFFSET('B. PoF Adj Factor Scoring'!$E$5:$F$282,,MATCH(J$4,'B. PoF Adj Factor Scoring'!$E$3:$N$3,0)-1),2,TRUE) -> 0 | K51: =VLOOKUP(F:F,OFFSET('B. PoF Adj Factor Scoring'!$E$5:$F$282,,MATCH(K$4,'B. PoF Adj Factor Scoring'!$E$3:$N$3,0)-1),2,TRUE) -> 0
A52: 47 | B52: BARE OR PVC SINGLE | C52: ='A. Population Info'!H52 -> 0 | D52: ='A. Population Info'!I52 -> 0 | E52: ='A. Population Info'!J52 -> 0 | F52: ='A. Population Info'!K52 -> 0 | G52: =VLOOKUP(B:B,OFFSET('B. PoF Adj Factor Scoring'!$E$5:$F$282,,MATCH(G$4,'B. PoF Adj Factor Scoring'!$E$3:$N$3,0)-1),2,TRUE) -> 3 | H52: =VLOOKUP(C:C,OFFSET('B. PoF Adj Factor Scoring'!$E$5:$F$282,,MATCH(H$4,'B. PoF Adj Factor Scoring'!$E$3:$N$3,0)-1),2,TRUE) -> 0 | I52: =VLOOKUP(D:D,OFFSET('B. PoF Adj Factor Scoring'!$E$5:$F$282,,MATCH(I$4,'B. PoF Adj Factor Scoring'!$E$3:$N$3,0)-1),2,TRUE) -> 0 | J52: =VLOOKUP(E:E,OFFSET('B. PoF Adj Factor Scoring'!$E$5:$F$282,,MATCH(J$4,'B. PoF Adj Factor Scoring'!$E$3:$N$3,0)-1),2,TRUE) -> 0 | K52: =VLOOKUP(F:F,OFFSET('B. PoF Adj Factor Scoring'!$E$5:$F$282,,MATCH(K$4,'B. PoF Adj Factor Scoring'!$E$3:$N$3,0)-1),2,TRUE) -> 0
A53: 48 | B53: BARE OR PVC SINGLE | C53: ='A. Population Info'!H53 -> 0 | D53: ='A. Population Info'!I53 -> 0 | E53: ='A. Population Info'!J53 -> 0 | F53: ='A. Population Info'!K53 -> 0 | G53: =VLOOKUP(B:B,OFFSET('B. PoF Adj Factor Scoring'!$E$5:$F$282,,MATCH(G$4,'B. PoF Adj Factor Scoring'!$E$3:$N$3,0)-1),2,TRUE) -> 3 | H53: =VLOOKUP(C:C,OFFSET('B. PoF Adj Factor Scoring'!$E$5:$F$282,,MATCH(H$4,'B. PoF Adj Factor Scoring'!$E$3:$N$3,0)-1),2,TRUE) -> 0 | I53: =VLOOKUP(D:D,OFFSET('B. PoF Adj Factor Scoring'!$E$5:$F$282,,MATCH(I$4,'B. PoF Adj Factor Scoring'!$E$3:$N$3,0)-1),2,TRUE) -> 0 | J53: =VLOOKUP(E:E,OFFSET('B. PoF Adj Factor Scoring'!$E$5:$F$282,,MATCH(J$4,'B. PoF Adj Factor Scoring'!$E$3:$N$3,0)-1),2,TRUE) -> 0 | K53: =VLOOKUP(F:F,OFFSET('B. PoF Adj Factor Scoring'!$E$5:$F$282,,MATCH(K$4,'B. PoF Adj Factor Scoring'!$E$3:$N$3,0)-1),2,TRUE) -> 0
A54: 49 | B54: INVALID | C54: ='A. Population Info'!H54 -> 0 | D54: ='A. Population Info'!I54 -> 0 | E54: ='A. Population Info'!J54 -> 0 | F54: ='A. Population Info'!K54 -> 0 | G54: =VLOOKUP(B:B,OFFSET('B. PoF Adj Factor Scoring'!$E$5:$F$282,,MATCH(G$4,'B. PoF Adj Factor Scoring'!$E$3:$N$3,0)-1),2,TRUE) -> 3 | H54: =VLOOKUP(C:C,OFFSET('B. PoF Adj Factor Scoring'!$E$5:$F$282,,MATCH(H$4,'B. PoF Adj Factor Scoring'!$E$3:$N$3,0)-1),2,TRUE) -> 0 | I54: =VLOOKUP(D:D,OFFSET('B. PoF Adj Factor Scoring'!$E$5:$F$282,,MATCH(I$4,'B. PoF Adj Factor Scoring'!$E$3:$N$3,0)-1),2,TRUE) -> 0 | J54: =VLOOKUP(E:E,OFFSET('B. PoF Adj Factor Scoring'!$E$5:$F$282,,MATCH(J$4,'B. PoF Adj Factor Scoring'!$E$3:$N$3,0)-1),2,TRUE) -> 0 | K54: =VLOOKUP(F:F,OFFSET('B. PoF Adj Factor Scoring'!$E$5:$F$282,,MATCH(K$4,'B. PoF Adj Factor Scoring'!$E$3:$N$3,0)-1),2,TRUE) -> 0
A55: 50 | B55: INVALID | C55: ='A. Population Info'!H55 -> 0 | D55: ='A. Population Info'!I55 -> 0 | E55: ='A. Population Info'!J55 -> 0 | F55: ='A. Population Info'!K55 -> 0 | G55: =VLOOKUP(B:B,OFFSET('B. PoF Adj Factor Scoring'!$E$5:$F$282,,MATCH(G$4,'B. PoF Adj Factor Scoring'!$E$3:$N$3,0)-1),2,TRUE) -> 3 | H55: =VLOOKUP(C:C,OFFSET('B. PoF Adj Factor Scoring'!$E$5:$F$282,,MATCH(H$4,'B. PoF Adj Factor Scoring'!$E$3:$N$3,0)-1),2,TRUE) -> 0 | I55: =VLOOKUP(D:D,OFFSET('B. PoF Adj Factor Scoring'!$E$5:$F$282,,MATCH(I$4,'B. PoF Adj Factor Scoring'!$E$3:$N$3,0)-1),2,TRUE) -> 0 | J55: =VLOOKUP(E:E,OFFSET('B. PoF Adj Factor Scoring'!$E$5:$F$282,,MATCH(J$4,'B. PoF Adj Factor Scoring'!$E$3:$N$3,0)-1),2,TRUE) -> 0 | K55: =VLOOKUP(F:F,OFFSET('B. PoF Adj Factor Scoring'!$E$5:$F$282,,MATCH(K$4,'B. PoF Adj Factor Scoring'!$E$3:$N$3,0)-1),2,TRUE) -> 0
A56: 51 | B56: INVALID | C56: ='A. Population Info'!H56 -> 0 | D56: ='A. Population Info'!I56 -> 0 | E56: ='A. Population Info'!J56 -> 0 | F56: ='A. Population Info'!K56 -> 0 | G56: =VLOOKUP(B:B,OFFSET('B. PoF Adj Factor Scoring'!$E$5:$F$282,,MATCH(G$4,'B. PoF Adj Factor Scoring'!$E$3:$N$3,0)-1),2,TRUE) -> 3 | H56: =VLOOKUP(C:C,OFFSET('B. PoF Adj Factor Scoring'!$E$5:$F$282,,MATCH(H$4,'B. PoF Adj Factor Scoring'!$E$3:$N$3,0)-1),2,TRUE) -> 0 | I56: =VLOOKUP(D:D,OFFSET('B. PoF Adj Factor Scoring'!$E$5:$F$282,,MATCH(I$4,'B. PoF Adj Factor Scoring'!$E$3:$N$3,0)-1),2,TRUE) -> 0 | J56: =VLOOKUP(E:E,OFFSET('B. PoF Adj Factor Scoring'!$E$5:$F$282,,MATCH(J$4,'B. PoF Adj Factor Scoring'!$E$3:$N$3,0)-1),2,TRUE) -> 0 | K56: =VLOOKUP(F:F,OFFSET('B. PoF Adj Factor Scoring'!$E$5:$F$282,,MATCH(K$4,'B. PoF Adj Factor Scoring'!$E$3:$N$3,0)-1),2,TRUE) -> 0
A57: 52 | B57: INVALID | C57: ='A. Population Info'!H57 -> 0 | D57: ='A. Population Info'!I57 -> 0 | E57: ='A. Population Info'!J57 -> 0 | F57: ='A. Population Info'!K57 -> 0 | G57: =VLOOKUP(B:B,OFFSET('B. PoF Adj Factor Scoring'!$E$5:$F$282,,MATCH(G$4,'B. PoF Adj Factor Scoring'!$E$3:$N$3,0)-1),2,TRUE) -> 3 | H57: =VLOOKUP(C:C,OFFSET('B. PoF Adj Factor Scoring'!$E$5:$F$282,,MATCH(H$4,'B. PoF Adj Factor Scoring'!$E$3:$N$3,0)-1),2,TRUE) -> 0 | I57: =VLOOKUP(D:D,OFFSET('B. PoF Adj Factor Scoring'!$E$5:$F$282,,MATCH(I$4,'B. PoF Adj Factor Scoring'!$E$3:$N$3,0)-1),2,TRUE) -> 0 | J57: =VLOOKUP(E:E,OFFSET('B. PoF Adj Factor Scoring'!$E$5:$F$282,,MATCH(J$4,'B. PoF Adj Factor Scoring'!$E$3:$N$3,0)-1),2,TRUE) -> 0 | K57: =VLOOKUP(F:F,OFFSET('B. PoF Adj Factor Scoring'!$E$5:$F$282,,MATCH(K$4,'B. PoF Adj Factor Scoring'!$E$3:$N$3,0)-1),2,TRUE) -> 0
A58: 53 | B58: INVALID | C58: ='A. Population Info'!H58 -> 0 | D58: ='A. Population Info'!I58 -> 0 | E58: ='A. Population Info'!J58 -> 0 | F58: ='A. Population Info'!K58 -> 0 | G58: =VLOOKUP(B:B,OFFSET('B. PoF Adj Factor Scoring'!$E$5:$F$282,,MATCH(G$4,'B. PoF Adj Factor Scoring'!$E$3:$N$3,0)-1),2,TRUE) -> 3 | H58: =VLOOKUP(C:C,OFFSET('B. PoF Adj Factor Scoring'!$E$5:$F$282,,MATCH(H$4,'B. PoF Adj Factor Scoring'!$E$3:$N$3,0)-1),2,TRUE) -> 0 | I58: =VLOOKUP(D:D,OFFSET('B. PoF Adj Factor Scoring'!$E$5:$F$282,,MATCH(I$4,'B. PoF Adj Factor Scoring'!$E$3:$N$3,0)-1),2,TRUE) -> 0 | J58: =VLOOKUP(E:E,OFFSET('B. PoF Adj Factor Scoring'!$E$5:$F$282,,MATCH(J$4,'B. PoF Adj Factor Scoring'!$E$3:$N$3,0)-1),2,TRUE) -> 0 | K58: =VLOOKUP(F:F,OFFSET('B. PoF Adj Factor Scoring'!$E$5:$F$282,,MATCH(K$4,'B. PoF Adj Factor Scoring'!$E$3:$N$3,0)-1),2,TRUE) -> 0
A59: 54 | B59: INVALID | C59: ='A. Population Info'!H59 -> 0 | D59: ='A. Population Info'!I59 -> 0 | E59: ='A. Population Info'!J59 -> 0 | F59: ='A. Population Info'!K59 -> 0 | G59: =VLOOKUP(B:B,OFFSET('B. PoF Adj Factor Scoring'!$E$5:$F$282,,MATCH(G$4,'B. PoF Adj Factor Scoring'!$E$3:$N$3,0)-1),2,TRUE) -> 3 | H59: =VLOOKUP(C:C,OFFSET('B. PoF Adj Factor Scoring'!$E$5:$F$282,,MATCH(H$4,'B. PoF Adj Factor Scoring'!$E$3:$N$3,0)-1),2,TRUE) -> 0 | I59: =VLOOKUP(D:D,OFFSET('B. PoF Adj Factor Scoring'!$E$5:$F$282,,MATCH(I$4,'B. PoF Adj Factor Scoring'!$E$3:$N$3,0)-1),2,TRUE) -> 0 | J59: =VLOOKUP(E:E,OFFSET('B. PoF Adj Factor Scoring'!$E$5:$F$282,,MATCH(J$4,'B. PoF Adj Factor Scoring'!$E$3:$N$3,0)-1),2,TRUE) -> 0 | K59: =VLOOKUP(F:F,OFFSET('B. PoF Adj Factor Scoring'!$E$5:$F$282,,MATCH(K$4,'B. PoF Adj Factor Scoring'!$E$3:$N$3,0)-1),2,TRUE) -> 0
A60: 55 | B60: INVALID | C60: ='A. Population Info'!H60 -> 0 | D60: ='A. Population Info'!I60 -> 0 | E60: ='A. Population Info'!J60 -> 0 | F60: ='A. Population Info'!K60 -> 0 | G60: =VLOOKUP(B:B,OFFSET('B. PoF Adj Factor Scoring'!$E$5:$F$282,,MATCH(G$4,'B. PoF Adj Factor Scoring'!$E$3:$N$3,0)-1),2,TRUE) -> 3 | H60: =VLOOKUP(C:C,OFFSET('B. PoF Adj Factor Scoring'!$E$5:$F$282,,MATCH(H$4,'B. PoF Adj Factor Scoring'!$E$3:$N$3,0)-1),2,TRUE) -> 0 | I60: =VLOOKUP(D:D,OFFSET('B. PoF Adj Factor Scoring'!$E$5:$F$282,,MATCH(I$4,'B. PoF Adj Factor Scoring'!$E$3:$N$3,0)-1),2,TRUE) -> 0 | J60: =VLOOKUP(E:E,OFFSET('B. PoF Adj Factor Scoring'!$E$5:$F$282,,MATCH(J$4,'B. PoF Adj Factor Scoring'!$E$3:$N$3,0)-1),2,TRUE) -> 0 | K60: =VLOOKUP(F:F,OFFSET('B. PoF Adj Factor Scoring'!$E$5:$F$282,,MATCH(K$4,'B. PoF Adj Factor Scoring'!$E$3:$N$3,0)-1),2,TRUE) -> 0
A61: 56 | B61: INVALID | C61: ='A. Population Info'!H61 -> 0 | D61: ='A. Population Info'!I61 -> 0 | E61: ='A. Population Info'!J61 -> 0 | F61: ='A. Population Info'!K61 -> 0 | G61: =VLOOKUP(B:B,OFFSET('B. PoF Adj Factor Scoring'!$E$5:$F$282,,MATCH(G$4,'B. PoF Adj Factor Scoring'!$E$3:$N$3,0)-1),2,TRUE) -> 3 | H61: =VLOOKUP(C:C,OFFSET('B. PoF Adj Factor Scoring'!$E$5:$F$282,,MATCH(H$4,'B. PoF Adj Factor Scoring'!$E$3:$N$3,0)-1),2,TRUE) -> 0 | I61: =VLOOKUP(D:D,OFFSET('B. PoF Adj Factor Scoring'!$E$5:$F$282,,MATCH(I$4,'B. PoF Adj Factor Scoring'!$E$3:$N$3,0)-1),2,TRUE) -> 0 | J61: =VLOOKUP(E:E,OFFSET('B. PoF Adj Factor Scoring'!$E$5:$F$282,,MATCH(J$4,'B. PoF Adj Factor Scoring'!$E$3:$N$3,0)-1),2,TRUE) -> 0 | K61: =VLOOKUP(F:F,OFFSET('B. PoF Adj Factor Scoring'!$E$5:$F$282,,MATCH(K$4,'B. PoF Adj Factor Scoring'!$E$3:$N$3,0)-1),2,TRUE) -> 0
A62: 57 | B62: INVALID | C62: ='A. Population Info'!H62 -> 0 | D62: ='A. Population Info'!I62 -> 0 | E62: ='A. Population Info'!J62 -> 0 | F62: ='A. Population Info'!K62 -> 0 | G62: =VLOOKUP(B:B,OFFSET('B. PoF Adj Factor Scoring'!$E$5:$F$282,,MATCH(G$4,'B. PoF Adj Factor Scoring'!$E$3:$N$3,0)-1),2,TRUE) -> 3 | H62: =VLOOKUP(C:C,OFFSET('B. PoF Adj Factor Scoring'!$E$5:$F$282,,MATCH(H$4,'B. PoF Adj Factor Scoring'!$E$3:$N$3,0)-1),2,TRUE) -> 0 | I62: =VLOOKUP(D:D,OFFSET('B. PoF Adj Factor Scoring'!$E$5:$F$282,,MATCH(I$4,'B. PoF Adj Factor Scoring'!$E$3:$N$3,0)-1),2,TRUE) -> 0 | J62: =VLOOKUP(E:E,OFFSET('B. PoF Adj Factor Scoring'!$E$5:$F$282,,MATCH(J$4,'B. PoF Adj Factor Scoring'!$E$3:$N$3,0)-1),2,TRUE) -> 0 | K62: =VLOOKUP(F:F,OFFSET('B. PoF Adj Factor Scoring'!$E$5:$F$282,,MATCH(K$4,'B. PoF Adj Factor Scoring'!$E$3:$N$3,0)-1),2,TRUE) -> 0
A63: 58 | B63: INVALID | C63: ='A. Population Info'!H63 -> 0 | D63: ='A. Population Info'!I63 -> 0 | E63: ='A. Population Info'!J63 -> 0 | F63: ='A. Population Info'!K63 -> 0 | G63: =VLOOKUP(B:B,OFFSET('B. PoF Adj Factor Scoring'!$E$5:$F$282,,MATCH(G$4,'B. PoF Adj Factor Scoring'!$E$3:$N$3,0)-1),2,TRUE) -> 3 | H63: =VLOOKUP(C:C,OFFSET('B. PoF Adj Factor Scoring'!$E$5:$F$282,,MATCH(H$4,'B. PoF Adj Factor Scoring'!$E$3:$N$3,0)-1),2,TRUE) -> 0 | I63: =VLOOKUP(D:D,OFFSET('B. PoF Adj Factor Scoring'!$E$5:$F$282,,MATCH(I$4,'B. PoF Adj Factor Scoring'!$E$3:$N$3,0)-1),2,TRUE) -> 0 | J63: =VLOOKUP(E:E,OFFSET('B. PoF Adj Factor Scoring'!$E$5:$F$282,,MATCH(J$4,'B. PoF Adj Factor Scoring'!$E$3:$N$3,0)-1),2,TRUE) -> 0 | K63: =VLOOKUP(F:F,OFFSET('B. PoF Adj Factor Scoring'!$E$5:$F$282,,MATCH(K$4,'B. PoF Adj Factor Scoring'!$E$3:$N$3,0)-1),2,TRUE) -> 0
A64: 59 | B64: INVALID | C64: ='A. Population Info'!H64 -> 0 | D64: ='A. Population Info'!I64 -> 0 | E64: ='A. Population Info'!J64 -> 0 | F64: ='A. Population Info'!K64 -> 0 | G64: =VLOOKUP(B:B,OFFSET('B. PoF Adj Factor Scoring'!$E$5:$F$282,,MATCH(G$4,'B. PoF Adj Factor Scoring'!$E$3:$N$3,0)-1),2,TRUE) -> 3 | H64: =VLOOKUP(C:C,OFFSET('B. PoF Adj Factor Scoring'!$E$5:$F$282,,MATCH(H$4,'B. PoF Adj Factor Scoring'!$E$3:$N$3,0)-1),2,TRUE) -> 0 | I64: =VLOOKUP(D:D,OFFSET('B. PoF Adj Factor Scoring'!$E$5:$F$282,,MATCH(I$4,'B. PoF Adj Factor Scoring'!$E$3:$N$3,0)-1),2,TRUE) -> 0 | J64: =VLOOKUP(E:E,OFFSET('B. PoF Adj Factor Scoring'!$E$5:$F$282,,MATCH(J$4,'B. PoF Adj Factor Scoring'!$E$3:$N$3,0)-1),2,TRUE) -> 0 | K64: =VLOOKUP(F:F,OFFSET('B. PoF Adj Factor Scoring'!$E$5:$F$282,,MATCH(K$4,'B. PoF Adj Factor Scoring'!$E$3:$N$3,0)-1),2,TRUE) -> 0
A65: 60 | B65: INVALID | C65: ='A. Population Info'!H65 -> 0 | D65: ='A. Population Info'!I65 -> 0 | E65: ='A. Population Info'!J65 -> 0 | F65: ='A. Population Info'!K65 -> 0 | G65: =VLOOKUP(B:B,OFFSET('B. PoF Adj Factor Scoring'!$E$5:$F$282,,MATCH(G$4,'B. PoF Adj Factor Scoring'!$E$3:$N$3,0)-1),2,TRUE) -> 3 | H65: =VLOOKUP(C:C,OFFSET('B. PoF Adj Factor Scoring'!$E$5:$F$282,,MATCH(H$4,'B. PoF Adj Factor Scoring'!$E$3:$N$3,0)-1),2,TRUE) -> 0 | I65: =VLOOKUP(D:D,OFFSET('B. PoF Adj Factor Scoring'!$E$5:$F$282,,MATCH(I$4,'B. PoF Adj Factor Scoring'!$E$3:$N$3,0)-1),2,TRUE) -> 0 | J65: =VLOOKUP(E:E,OFFSET('B. PoF Adj Factor Scoring'!$E$5:$F$282,,MATCH(J$4,'B. PoF Adj Factor Scoring'!$E$3:$N$3,0)-1),2,TRUE) -> 0 | K65: =VLOOKUP(F:F,OFFSET('B. PoF Adj Factor Scoring'!$E$5:$F$282,,MATCH(K$4,'B. PoF Adj Factor Scoring'!$E$3:$N$3,0)-1),2,TRUE) -> 0
A66: 61 | B66: INVALID | C66: ='A. Population Info'!H66 -> 0 | D66: ='A. Population Info'!I66 -> 0 | E66: ='A. Population Info'!J66 -> 0 | F66: ='A. Population Info'!K66 -> 0 | G66: =VLOOKUP(B:B,OFFSET('B. PoF Adj Factor Scoring'!$E$5:$F$282,,MATCH(G$4,'B. PoF Adj Factor Scoring'!$E$3:$N$3,0)-1),2,TRUE) -> 3 | H66: =VLOOKUP(C:C,OFFSET('B. PoF Adj Factor Scoring'!$E$5:$F$282,,MATCH(H$4,'B. PoF Adj Factor Scoring'!$E$3:$N$3,0)-1),2,TRUE) -> 0 | I66: =VLOOKUP(D:D,OFFSET('B. PoF Adj Factor Scoring'!$E$5:$F$282,,MATCH(I$4,'B. PoF Adj Factor Scoring'!$E$3:$N$3,0)-1),2,TRUE) -> 0 | J66: =VLOOKUP(E:E,OFFSET('B. PoF Adj Factor Scoring'!$E$5:$F$282,,MATCH(J$4,'B. PoF Adj Factor Scoring'!$E$3:$N$3,0)-1),2,TRUE) -> 0 | K66: =VLOOKUP(F:F,OFFSET('B. PoF Adj Factor Scoring'!$E$5:$F$282,,MATCH(K$4,'B. PoF Adj Factor Scoring'!$E$3:$N$3,0)-1),2,TRUE) -> 0
A67: 62 | B67: INVALID | C67: ='A. Population Info'!H67 -> 0 | D67: ='A. Population Info'!I67 -> 0 | E67: ='A. Population Info'!J67 -> 0 | F67: ='A. Population Info'!K67 -> 0 | G67: =VLOOKUP(B:B,OFFSET('B. PoF Adj Factor Scoring'!$E$5:$F$282,,MATCH(G$4,'B. PoF Adj Factor Scoring'!$E$3:$N$3,0)-1),2,TRUE) -> 3 | H67: =VLOOKUP(C:C,OFFSET('B. PoF Adj Factor Scoring'!$E$5:$F$282,,MATCH(H$4,'B. PoF Adj Factor Scoring'!$E$3:$N$3,0)-1),2,TRUE) -> 0 | I67: =VLOOKUP(D:D,OFFSET('B. PoF Adj Factor Scoring'!$E$5:$F$282,,MATCH(I$4,'B. PoF Adj Factor Scoring'!$E$3:$N$3,0)-1),2,TRUE) -> 0 | J67: =VLOOKUP(E:E,OFFSET('B. PoF Adj Factor Scoring'!$E$5:$F$282,,MATCH(J$4,'B. PoF Adj Factor Scoring'!$E$3:$N$3,0)-1),2,TRUE) -> 0 | K67: =VLOOKUP(F:F,OFFSET('B. PoF Adj Factor Scoring'!$E$5:$F$282,,MATCH(K$4,'B. PoF Adj Factor Scoring'!$E$3:$N$3,0)-1),2,TRUE) -> 0
A68: 63 | B68: INVALID | C68: ='A. Population Info'!H68 -> 0 | D68: ='A. Population Info'!I68 -> 0 | E68: ='A. Population Info'!J68 -> 0 | F68: ='A. Population Info'!K68 -> 0 | G68: =VLOOKUP(B:B,OFFSET('B. PoF Adj Factor Scoring'!$E$5:$F$282,,MATCH(G$4,'B. PoF Adj Factor Scoring'!$E$3:$N$3,0)-1),2,TRUE) -> 3 | H68: =VLOOKUP(C:C,OFFSET('B. PoF Adj Factor Scoring'!$E$5:$F$282,,MATCH(H$4,'B. PoF Adj Factor Scoring'!$E$3:$N$3,0)-1),2,TRUE) -> 0 | I68: =VLOOKUP(D:D,OFFSET('B. PoF Adj Factor Scoring'!$E$5:$F$282,,MATCH(I$4,'B. PoF Adj Factor Scoring'!$E$3:$N$3,0)-1),2,TRUE) -> 0 | J68: =VLOOKUP(E:E,OFFSET('B. PoF Adj Factor Scoring'!$E$5:$F$282,,MATCH(J$4,'B. PoF Adj Factor Scoring'!$E$3:$N$3,0)-1),2,TRUE) -> 0 | K68: =VLOOKUP(F:F,OFFSET('B. PoF Adj Factor Scoring'!$E$5:$F$282,,MATCH(K$4,'B. PoF Adj Factor Scoring'!$E$3:$N$3,0)-1),2,TRUE) -> 0
A69: 64 | B69: INVALID | C69: ='A. Population Info'!H69 -> 0 | D69: ='A. Population Info'!I69 -> 0 | E69: ='A. Population Info'!J69 -> 0 | F69: ='A. Population Info'!K69 -> 0 | G69: =VLOOKUP(B:B,OFFSET('B. PoF Adj Factor Scoring'!$E$5:$F$282,,MATCH(G$4,'B. PoF Adj Factor Scoring'!$E$3:$N$3,0)-1),2,TRUE) -> 3 | H69: =VLOOKUP(C:C,OFFSET('B. PoF Adj Factor Scoring'!$E$5:$F$282,,MATCH(H$4,'B. PoF Adj Factor Scoring'!$E$3:$N$3,0)-1),2,TRUE) -> 0 | I69: =VLOOKUP(D:D,OFFSET('B. PoF Adj Factor Scoring'!$E$5:$F$282,,MATCH(I$4,'B. PoF Adj Factor Scoring'!$E$3:$N$3,0)-1),2,TRUE) -> 0 | J69: =VLOOKUP(E:E,OFFSET('B. PoF Adj Factor Scoring'!$E$5:$F$282,,MATCH(J$4,'B. PoF Adj Factor Scoring'!$E$3:$N$3,0)-1),2,TRUE) -> 0 | K69: =VLOOKUP(F:F,OFFSET('B. PoF Adj Factor Scoring'!$E$5:$F$282,,MATCH(K$4,'B. PoF Adj Factor Scoring'!$E$3:$N$3,0)-1),2,TRUE) -> 0
A70: 65 | B70: INVALID | C70: ='A. Population Info'!H70 -> 0 | D70: ='A. Population Info'!I70 -> 0 | E70: ='A. Population Info'!J70 -> 0 | F70: ='A. Population Info'!K70 -> 0 | G70: =VLOOKUP(B:B,OFFSET('B. PoF Adj Factor Scoring'!$E$5:$F$282,,MATCH(G$4,'B. PoF Adj Factor Scoring'!$E$3:$N$3,0)-1),2,TRUE) -> 3 | H70: =VLOOKUP(C:C,OFFSET('B. PoF Adj Factor Scoring'!$E$5:$F$282,,MATCH(H$4,'B. PoF Adj Factor Scoring'!$E$3:$N$3,0)-1),2,TRUE) -> 0 | I70: =VLOOKUP(D:D,OFFSET('B. PoF Adj Factor Scoring'!$E$5:$F$282,,MATCH(I$4,'B. PoF Adj Factor Scoring'!$E$3:$N$3,0)-1),2,TRUE) -> 0 | J70: =VLOOKUP(E:E,OFFSET('B. PoF Adj Factor Scoring'!$E$5:$F$282,,MATCH(J$4,'B. PoF Adj Factor Scoring'!$E$3:$N$3,0)-1),2,TRUE) -> 0 | K70: =VLOOKUP(F:F,OFFSET('B. PoF Adj Factor Scoring'!$E$5:$F$282,,MATCH(K$4,'B. PoF Adj Factor Scoring'!$E$3:$N$3,0)-1),2,TRUE) -> 0
A71: 66 | B71: INVALID | C71: ='A. Population Info'!H71 -> 0 | D71: ='A. Population Info'!I71 -> 0 | E71: ='A. Population Info'!J71 -> 0 | F71: ='A. Population Info'!K71 -> 0 | G71: =VLOOKUP(B:B,OFFSET('B. PoF Adj Factor Scoring'!$E$5:$F$282,,MATCH(G$4,'B. PoF Adj Factor Scoring'!$E$3:$N$3,0)-1),2,TRUE) -> 3 | H71: =VLOOKUP(C:C,OFFSET('B. PoF Adj Factor Scoring'!$E$5:$F$282,,MATCH(H$4,'B. PoF Adj Factor Scoring'!$E$3:$N$3,0)-1),2,TRUE) -> 0 | I71: =VLOOKUP(D:D,OFFSET('B. PoF Adj Factor Scoring'!$E$5:$F$282,,MATCH(I$4,'B. PoF Adj Factor Scoring'!$E$3:$N$3,0)-1),2,TRUE) -> 0 | J71: =VLOOKUP(E:E,OFFSET('B. PoF Adj Factor Scoring'!$E$5:$F$282,,MATCH(J$4,'B. PoF Adj Factor Scoring'!$E$3:$N$3,0)-1),2,TRUE) -> 0 | K71: =VLOOKUP(F:F,OFFSET('B. PoF Adj Factor Scoring'!$E$5:$F$282,,MATCH(K$4,'B. PoF Adj Factor Scoring'!$E$3:$N$3,0)-1),2,TRUE) -> 0
A72: 67 | B72: INVALID | C72: ='A. Population Info'!H72 -> 0 | D72: ='A. Population Info'!I72 -> 0 | E72: ='A. Population Info'!J72 -> 0 | F72: ='A. Population Info'!K72 -> 0 | G72: =VLOOKUP(B:B,OFFSET('B. PoF Adj Factor Scoring'!$E$5:$F$282,,MATCH(G$4,'B. PoF Adj Factor Scoring'!$E$3:$N$3,0)-1),2,TRUE) -> 3 | H72: =VLOOKUP(C:C,OFFSET('B. PoF Adj Factor Scoring'!$E$5:$F$282,,MATCH(H$4,'B. PoF Adj Factor Scoring'!$E$3:$N$3,0)-1),2,TRUE) -> 0 | I72: =VLOOKUP(D:D,OFFSET('B. PoF Adj Factor Scoring'!$E$5:$F$282,,MATCH(I$4,'B. PoF Adj Factor Scoring'!$E$3:$N$3,0)-1),2,TRUE) -> 0 | J72: =VLOOKUP(E:E,OFFSET('B. PoF Adj Factor Scoring'!$E$5:$F$282,,MATCH(J$4,'B. PoF Adj Factor Scoring'!$E$3:$N$3,0)-1),2,TRUE) -> 0 | K72: =VLOOKUP(F:F,OFFSET('B. PoF Adj Factor Scoring'!$E$5:$F$282,,MATCH(K$4,'B. PoF Adj Factor Scoring'!$E$3:$N$3,0)-1),2,TRUE) -> 0
A73: 68 | B73: INVALID | C73: ='A. Population Info'!H73 -> 0 | D73: ='A. Population Info'!I73 -> 0 | E73: ='A. Population Info'!J73 -> 0 | F73: ='A. Population Info'!K73 -> 0 | G73: =VLOOKUP(B:B,OFFSET('B. PoF Adj Factor Scoring'!$E$5:$F$282,,MATCH(G$4,'B. PoF Adj Factor Scoring'!$E$3:$N$3,0)-1),2,TRUE) -> 3 | H73: =VLOOKUP(C:C,OFFSET('B. PoF Adj Factor Scoring'!$E$5:$F$282,,MATCH(H$4,'B. PoF Adj Factor Scoring'!$E$3:$N$3,0)-1),2,TRUE) -> 0 | I73: =VLOOKUP(D:D,OFFSET('B. PoF Adj Factor Scoring'!$E$5:$F$282,,MATCH(I$4,'B. PoF Adj Factor Scoring'!$E$3:$N$3,0)-1),2,TRUE) -> 0 | J73: =VLOOKUP(E:E,OFFSET('B. PoF Adj Factor Scoring'!$E$5:$F$282,,MATCH(J$4,'B. PoF Adj Factor Scoring'!$E$3:$N$3,0)-1),2,TRUE) -> 0 | K73: =VLOOKUP(F:F,OFFSET('B. PoF Adj Factor Scoring'!$E$5:$F$282,,MATCH(K$4,'B. PoF Adj Factor Scoring'!$E$3:$N$3,0)-1),2,TRUE) -> 0
A74: 69 | B74: INVALID | C74: ='A. Population Info'!H74 -> 0 | D74: ='A. Population Info'!I74 -> 0 | E74: ='A. Population Info'!J74 -> 0 | F74: ='A. Population Info'!K74 -> 0 | G74: =VLOOKUP(B:B,OFFSET('B. PoF Adj Factor Scoring'!$E$5:$F$282,,MATCH(G$4,'B. PoF Adj Factor Scoring'!$E$3:$N$3,0)-1),2,TRUE) -> 3 | H74: =VLOOKUP(C:C,OFFSET('B. PoF Adj Factor Scoring'!$E$5:$F$282,,MATCH(H$4,'B. PoF Adj Factor Scoring'!$E$3:$N$3,0)-1),2,TRUE) -> 0 | I74: =VLOOKUP(D:D,OFFSET('B. PoF Adj Factor Scoring'!$E$5:$F$282,,MATCH(I$4,'B. PoF Adj Factor Scoring'!$E$3:$N$3,0)-1),2,TRUE) -> 0 | J74: =VLOOKUP(E:E,OFFSET('B. PoF Adj Factor Scoring'!$E$5:$F$282,,MATCH(J$4,'B. PoF Adj Factor Scoring'!$E$3:$N$3,0)-1),2,TRUE) -> 0 | K74: =VLOOKUP(F:F,OFFSET('B. PoF Adj Factor Scoring'!$E$5:$F$282,,MATCH(K$4,'B. PoF Adj Factor Scoring'!$E$3:$N$3,0)-1),2,TRUE) -> 0
A75: 70 | B75: INVALID | C75: ='A. Population Info'!H75 -> 0 | D75: ='A. Population Info'!I75 -> 0 | E75: ='A. Population Info'!J75 -> 0 | F75: ='A. Population Info'!K75 -> 0 | G75: =VLOOKUP(B:B,OFFSET('B. PoF Adj Factor Scoring'!$E$5:$F$282,,MATCH(G$4,'B. PoF Adj Factor Scoring'!$E$3:$N$3,0)-1),2,TRUE) -> 3 | H75: =VLOOKUP(C:C,OFFSET('B. PoF Adj Factor Scoring'!$E$5:$F$282,,MATCH(H$4,'B. PoF Adj Factor Scoring'!$E$3:$N$3,0)-1),2,TRUE) -> 0 | I75: =VLOOKUP(D:D,OFFSET('B. PoF Adj Factor Scoring'!$E$5:$F$282,,MATCH(I$4,'B. PoF Adj Factor Scoring'!$E$3:$N$3,0)-1),2,TRUE) -> 0 | J75: =VLOOKUP(E:E,OFFSET('B. PoF Adj Factor Scoring'!$E$5:$F$282,,MATCH(J$4,'B. PoF Adj Factor Scoring'!$E$3:$N$3,0)-1),2,TRUE) -> 0 | K75: =VLOOKUP(F:F,OFFSET('B. PoF Adj Factor Scoring'!$E$5:$F$282,,MATCH(K$4,'B. PoF Adj Factor Scoring'!$E$3:$N$3,0)-1),2,TRUE) -> 0
A76: 71 | B76: INVALID | C76: ='A. Population Info'!H76 -> 0 | D76: ='A. Population Info'!I76 -> 0 | E76: ='A. Population Info'!J76 -> 0 | F76: ='A. Population Info'!K76 -> 0 | G76: =VLOOKUP(B:B,OFFSET('B. PoF Adj Factor Scoring'!$E$5:$F$282,,MATCH(G$4,'B. PoF Adj Factor Scoring'!$E$3:$N$3,0)-1),2,TRUE) -> 3 | H76: =VLOOKUP(C:C,OFFSET('B. PoF Adj Factor Scoring'!$E$5:$F$282,,MATCH(H$4,'B. PoF Adj Factor Scoring'!$E$3:$N$3,0)-1),2,TRUE) -> 0 | I76: =VLOOKUP(D:D,OFFSET('B. PoF Adj Factor Scoring'!$E$5:$F$282,,MATCH(I$4,'B. PoF Adj Factor Scoring'!$E$3:$N$3,0)-1),2,TRUE) -> 0 | J76: =VLOOKUP(E:E,OFFSET('B. PoF Adj Factor Scoring'!$E$5:$F$282,,MATCH(J$4,'B. PoF Adj Factor Scoring'!$E$3:$N$3,0)-1),2,TRUE) -> 0 | K76: =VLOOKUP(F:F,OFFSET('B. PoF Adj Factor Scoring'!$E$5:$F$282,,MATCH(K$4,'B. PoF Adj Factor Scoring'!$E$3:$N$3,0)-1),2,TRUE) -> 0
A77: 72 | B77: MAYBE PVC SINGLE | C77: ='A. Population Info'!H77 -> 0 | D77: ='A. Population Info'!I77 -> 0 | E77: ='A. Population Info'!J77 -> 0 | F77: ='A. Population Info'!K77 -> 0 | G77: =VLOOKUP(B:B,OFFSET('B. PoF Adj Factor Scoring'!$E$5:$F$282,,MATCH(G$4,'B. PoF Adj Factor Scoring'!$E$3:$N$3,0)-1),2,TRUE) -> 3 | H77: =VLOOKUP(C:C,OFFSET('B. PoF Adj Factor Scoring'!$E$5:$F$282,,MATCH(H$4,'B. PoF Adj Factor Scoring'!$E$3:$N$3,0)-1),2,TRUE) -> 0 | I77: =VLOOKUP(D:D,OFFSET('B. PoF Adj Factor Scoring'!$E$5:$F$282,,MATCH(I$4,'B. PoF Adj Factor Scoring'!$E$3:$N$3,0)-1),2,TRUE) -> 0 | J77: =VLOOKUP(E:E,OFFSET('B. PoF Adj Factor Scoring'!$E$5:$F$282,,MATCH(J$4,'B. PoF Adj Factor Scoring'!$E$3:$N$3,0)-1),2,TRUE) -> 0 | K77: =VLOOKUP(F:F,OFFSET('B. PoF Adj Factor Scoring'!$E$5:$F$282,,MATCH(K$4,'B. PoF Adj Factor Scoring'!$E$3:$N$3,0)-1),2,TRUE) -> 0
A78: 73 | B78: MAYBE PVC SINGLE | C78: ='A. Population Info'!H78 -> 0 | D78: ='A. Population Info'!I78 -> 0 | E78: ='A. Population Info'!J78 -> 0 | F78: ='A. Population Info'!K78 -> 0 | G78: =VLOOKUP(B:B,OFFSET('B. PoF Adj Factor Scoring'!$E$5:$F$282,,MATCH(G$4,'B. PoF Adj Factor Scoring'!$E$3:$N$3,0)-1),2,TRUE) -> 3 | H78: =VLOOKUP(C:C,OFFSET('B. PoF Adj Factor Scoring'!$E$5:$F$282,,MATCH(H$4,'B. PoF Adj Factor Scoring'!$E$3:$N$3,0)-1),2,TRUE) -> 0 | I78: =VLOOKUP(D:D,OFFSET('B. PoF Adj Factor Scoring'!$E$5:$F$282,,MATCH(I$4,'B. PoF Adj Factor Scoring'!$E$3:$N$3,0)-1),2,TRUE) -> 0 | J78: =VLOOKUP(E:E,OFFSET('B. PoF Adj Factor Scoring'!$E$5:$F$282,,MATCH(J$4,'B. PoF Adj Factor Scoring'!$E$3:$N$3,0)-1),2,TRUE) -> 0 | K78: =VLOOKUP(F:F,OFFSET('B. PoF Adj Factor Scoring'!$E$5:$F$282,,MATCH(K$4,'B. PoF Adj Factor Scoring'!$E$3:$N$3,0)-1),2,TRUE) -> 0
A79: 74 | B79: MAYBE PVC SINGLE | C79: ='A. Population Info'!H79 -> 0 | D79: ='A. Population Info'!I79 -> 0 | E79: ='A. Population Info'!J79 -> 0 | F79: ='A. Population Info'!K79 -> 0 | G79: =VLOOKUP(B:B,OFFSET('B. PoF Adj Factor Scoring'!$E$5:$F$282,,MATCH(G$4,'B. PoF Adj Factor Scoring'!$E$3:$N$3,0)-1),2,TRUE) -> 3 | H79: =VLOOKUP(C:C,OFFSET('B. PoF Adj Factor Scoring'!$E$5:$F$282,,MATCH(H$4,'B. PoF Adj Factor Scoring'!$E$3:$N$3,0)-1),2,TRUE) -> 0 | I79: =VLOOKUP(D:D,OFFSET('B. PoF Adj Factor Scoring'!$E$5:$F$282,,MATCH(I$4,'B. PoF Adj Factor Scoring'!$E$3:$N$3,0)-1),2,TRUE) -> 0 | J79: =VLOOKUP(E:E,OFFSET('B. PoF Adj Factor Scoring'!$E$5:$F$282,,MATCH(J$4,'B. PoF Adj Factor Scoring'!$E$3:$N$3,0)-1),2,TRUE) -> 0 | K79: =VLOOKUP(F:F,OFFSET('B. PoF Adj Factor Scoring'!$E$5:$F$282,,MATCH(K$4,'B. PoF Adj Factor Scoring'!$E$3:$N$3,0)-1),2,TRUE) -> 0
A80: 75 | B80: MAYBE PVC SINGLE | C80: ='A. Population Info'!H80 -> 0 | D80: ='A. Population Info'!I80 -> 0 | E80: ='A. Population Info'!J80 -> 0 | F80: ='A. Population Info'!K80 -> 0 | G80: =VLOOKUP(B:B,OFFSET('B. PoF Adj Factor Scoring'!$E$5:$F$282,,MATCH(G$4,'B. PoF Adj Factor Scoring'!$E$3:$N$3,0)-1),2,TRUE) -> 3 | H80: =VLOOKUP(C:C,OFFSET('B. PoF Adj Factor Scoring'!$E$5:$F$282,,MATCH(H$4,'B. PoF Adj Factor Scoring'!$E$3:$N$3,0)-1),2,TRUE) -> 0 | I80: =VLOOKUP(D:D,OFFSET('B. PoF Adj Factor Scoring'!$E$5:$F$282,,MATCH(I$4,'B. PoF Adj Factor Scoring'!$E$3:$N$3,0)-1),2,TRUE) -> 0 | J80: =VLOOKUP(E:E,OFFSET('B. PoF Adj Factor Scoring'!$E$5:$F$282,,MATCH(J$4,'B. PoF Adj Factor Scoring'!$E$3:$N$3,0)-1),2,TRUE) -> 0 | K80: =VLOOKUP(F:F,OFFSET('B. PoF Adj Factor Scoring'!$E$5:$F$282,,MATCH(K$4,'B. PoF Adj Factor Scoring'!$E$3:$N$3,0)-1),2,TRUE) -> 0
A81: 76 | B81: MAYBE PVC SINGLE | C81: ='A. Population Info'!H81 -> 0 | D81: ='A. Population Info'!I81 -> 0 | E81: ='A. Population Info'!J81 -> 0 | F81: ='A. Population Info'!K81 -> 0 | G81: =VLOOKUP(B:B,OFFSET('B. PoF Adj Factor Scoring'!$E$5:$F$282,,MATCH(G$4,'B. PoF Adj Factor Scoring'!$E$3:$N$3,0)-1),2,TRUE) -> 3 | H81: =VLOOKUP(C:C,OFFSET('B. PoF Adj Factor Scoring'!$E$5:$F$282,,MATCH(H$4,'B. PoF Adj Factor Scoring'!$E$3:$N$3,0)-1),2,TRUE) -> 0 | I81: =VLOOKUP(D:D,OFFSET('B. PoF Adj Factor Scoring'!$E$5:$F$282,,MATCH(I$4,'B. PoF Adj Factor Scoring'!$E$3:$N$3,0)-1),2,TRUE) -> 0 | J81: =VLOOKUP(E:E,OFFSET('B. PoF Adj Factor Scoring'!$E$5:$F$282,,MATCH(J$4,'B. PoF Adj Factor Scoring'!$E$3:$N$3,0)-1),2,TRUE) -> 0 | K81: =VLOOKUP(F:F,OFFSET('B. PoF Adj Factor Scoring'!$E$5:$F$282,,MATCH(K$4,'B. PoF Adj Factor Scoring'!$E$3:$N$3,0)-1),2,TRUE) -> 0
A82: 77 | B82: MAYBE PVC SINGLE | C82: ='A. Population Info'!H82 -> 0 | D82: ='A. Population Info'!I82 -> 0 | E82: ='A. Population Info'!J82 -> 0 | F82: ='A. Population Info'!K82 -> 0 | G82: =VLOOKUP(B:B,OFFSET('B. PoF Adj Factor Scoring'!$E$5:$F$282,,MATCH(G$4,'B. PoF Adj Factor Scoring'!$E$3:$N$3,0)-1),2,TRUE) -> 3 | H82: =VLOOKUP(C:C,OFFSET('B. PoF Adj Factor Scoring'!$E$5:$F$282,,MATCH(H$4,'B. PoF Adj Factor Scoring'!$E$3:$N$3,0)-1),2,TRUE) -> 0 | I82: =VLOOKUP(D:D,OFFSET('B. PoF Adj Factor Scoring'!$E$5:$F$282,,MATCH(I$4,'B. PoF Adj Factor Scoring'!$E$3:$N$3,0)-1),2,TRUE) -> 0 | J82: =VLOOKUP(E:E,OFFSET('B. PoF Adj Factor Scoring'!$E$5:$F$282,,MATCH(J$4,'B. PoF Adj Factor Scoring'!$E$3:$N$3,0)-1),2,TRUE) -> 0 | K82: =VLOOKUP(F:F,OFFSET('B. PoF Adj Factor Scoring'!$E$5:$F$282,,MATCH(K$4,'B. PoF Adj Factor Scoring'!$E$3:$N$3,0)-1),2,TRUE) -> 0
A83: 78 | B83: MAYBE PVC SINGLE | C83: ='A. Population Info'!H83 -> 0 | D83: ='A. Population Info'!I83 -> 0 | E83: ='A. Population Info'!J83 -> 0 | F83: ='A. Population Info'!K83 -> 0 | G83: =VLOOKUP(B:B,OFFSET('B. PoF Adj Factor Scoring'!$E$5:$F$282,,MATCH(G$4,'B. PoF Adj Factor Scoring'!$E$3:$N$3,0)-1),2,TRUE) -> 3 | H83: =VLOOKUP(C:C,OFFSET('B. PoF Adj Factor Scoring'!$E$5:$F$282,,MATCH(H$4,'B. PoF Adj Factor Scoring'!$E$3:$N$3,0)-1),2,TRUE) -> 0 | I83: =VLOOKUP(D:D,OFFSET('B. PoF Adj Factor Scoring'!$E$5:$F$282,,MATCH(I$4,'B. PoF Adj Factor Scoring'!$E$3:$N$3,0)-1),2,TRUE) -> 0 | J83: =VLOOKUP(E:E,OFFSET('B. PoF Adj Factor Scoring'!$E$5:$F$282,,MATCH(J$4,'B. PoF Adj Factor Scoring'!$E$3:$N$3,0)-1),2,TRUE) -> 0 | K83: =VLOOKUP(F:F,OFFSET('B. PoF Adj Factor Scoring'!$E$5:$F$282,,MATCH(K$4,'B. PoF Adj Factor Scoring'!$E$3:$N$3,0)-1),2,TRUE) -> 0
A84: 79 | B84: MAYBE PVC SINGLE | C84: ='A. Population Info'!H84 -> 0 | D84: ='A. Population Info'!I84 -> 0 | E84: ='A. Population Info'!J84 -> 0 | F84: ='A. Population Info'!K84 -> 0 | G84: =VLOOKUP(B:B,OFFSET('B. PoF Adj Factor Scoring'!$E$5:$F$282,,MATCH(G$4,'B. PoF Adj Factor Scoring'!$E$3:$N$3,0)-1),2,TRUE) -> 3 | H84: =VLOOKUP(C:C,OFFSET('B. PoF Adj Factor Scoring'!$E$5:$F$282,,MATCH(H$4,'B. PoF Adj Factor Scoring'!$E$3:$N$3,0)-1),2,TRUE) -> 0 | I84: =VLOOKUP(D:D,OFFSET('B. PoF Adj Factor Scoring'!$E$5:$F$282,,MATCH(I$4,'B. PoF Adj Factor Scoring'!$E$3:$N$3,0)-1),2,TRUE) -> 0 | J84: =VLOOKUP(E:E,OFFSET('B. PoF Adj Factor Scoring'!$E$5:$F$282,,MATCH(J$4,'B. PoF Adj Factor Scoring'!$E$3:$N$3,0)-1),2,TRUE) -> 0 | K84: =VLOOKUP(F:F,OFFSET('B. PoF Adj Factor Scoring'!$E$5:$F$282,,MATCH(K$4,'B. PoF Adj Factor Scoring'!$E$3:$N$3,0)-1),2,TRUE) -> 0
A85: 80 | B85: MAYBE PVC SINGLE | C85: ='A. Population Info'!H85 -> 0 | D85: ='A. Population Info'!I85 -> 0 | E85: ='A. Population Info'!J85 -> 0 | F85: ='A. Population Info'!K85 -> 0 | G85: =VLOOKUP(B:B,OFFSET('B. PoF Adj Factor Scoring'!$E$5:$F$282,,MATCH(G$4,'B. PoF Adj Factor Scoring'!$E$3:$N$3,0)-1),2,TRUE) -> 3 | H85: =VLOOKUP(C:C,OFFSET('B. PoF Adj Factor Scoring'!$E$5:$F$282,,MATCH(H$4,'B. PoF Adj Factor Scoring'!$E$3:$N$3,0)-1),2,TRUE) -> 0 | I85: =VLOOKUP(D:D,OFFSET('B. PoF Adj Factor Scoring'!$E$5:$F$282,,MATCH(I$4,'B. PoF Adj Factor Scoring'!$E$3:$N$3,0)-1),2,TRUE) -> 0 | J85: =VLOOKUP(E:E,OFFSET('B. PoF Adj Factor Scoring'!$E$5:$F$282,,MATCH(J$4,'B. PoF Adj Factor Scoring'!$E$3:$N$3,0)-1),2,TRUE) -> 0 | K85: =VLOOKUP(F:F,OFFSET('B. PoF Adj Factor Scoring'!$E$5:$F$282,,MATCH(K$4,'B. PoF Adj Factor Scoring'!$E$3:$N$3,0)-1),2,TRUE) -> 0
A86: 81 | B86: MAYBE PVC SINGLE | C86: ='A. Population Info'!H86 -> 0 | D86: ='A. Population Info'!I86 -> 0 | E86: ='A. Population Info'!J86 -> 0 | F86: ='A. Population Info'!K86 -> 0 | G86: =VLOOKUP(B:B,OFFSET('B. PoF Adj Factor Scoring'!$E$5:$F$282,,MATCH(G$4,'B. PoF Adj Factor Scoring'!$E$3:$N$3,0)-1),2,TRUE) -> 3 | H86: =VLOOKUP(C:C,OFFSET('B. PoF Adj Factor Scoring'!$E$5:$F$282,,MATCH(H$4,'B. PoF Adj Factor Scoring'!$E$3:$N$3,0)-1),2,TRUE) -> 0 | I86: =VLOOKUP(D:D,OFFSET('B. PoF Adj Factor Scoring'!$E$5:$F$282,,MATCH(I$4,'B. PoF Adj Factor Scoring'!$E$3:$N$3,0)-1),2,TRUE) -> 0 | J86: =VLOOKUP(E:E,OFFSET('B. PoF Adj Factor Scoring'!$E$5:$F$282,,MATCH(J$4,'B. PoF Adj Factor Scoring'!$E$3:$N$3,0)-1),2,TRUE) -> 0 | K86: =VLOOKUP(F:F,OFFSET('B. PoF Adj Factor Scoring'!$E$5:$F$282,,MATCH(K$4,'B. PoF Adj Factor Scoring'!$E$3:$N$3,0)-1),2,TRUE) -> 0
A87: 82 | B87: MAYBE PVC SINGLE | C87: ='A. Population Info'!H87 -> 0 | D87: ='A. Population Info'!I87 -> 0 | E87: ='A. Population Info'!J87 -> 0 | F87: ='A. Population Info'!K87 -> 0 | G87: =VLOOKUP(B:B,OFFSET('B. PoF Adj Factor Scoring'!$E$5:$F$282,,MATCH(G$4,'B. PoF Adj Factor Scoring'!$E$3:$N$3,0)-1),2,TRUE) -> 3 | H87: =VLOOKUP(C:C,OFFSET('B. PoF Adj Factor Scoring'!$E$5:$F$282,,MATCH(H$4,'B. PoF Adj Factor Scoring'!$E$3:$N$3,0)-1),2,TRUE) -> 0 | I87: =VLOOKUP(D:D,OFFSET('B. PoF Adj Factor Scoring'!$E$5:$F$282,,MATCH(I$4,'B. PoF Adj Factor Scoring'!$E$3:$N$3,0)-1),2,TRUE) -> 0 | J87: =VLOOKUP(E:E,OFFSET('B. PoF Adj Factor Scoring'!$E$5:$F$282,,MATCH(J$4,'B. PoF Adj Factor Scoring'!$E$3:$N$3,0)-1),2,TRUE) -> 0 | K87: =VLOOKUP(F:F,OFFSET('B. PoF Adj Factor Scoring'!$E$5:$F$282,,MATCH(K$4,'B. PoF Adj Factor Scoring'!$E$3:$N$3,0)-1),2,TRUE) -> 0
A88: 83 | B88: MAYBE PVC SINGLE | C88: ='A. Population Info'!H88 -> 0 | D88: ='A. Population Info'!I88 -> 0 | E88: ='A. Population Info'!J88 -> 0 | F88: ='A. Population Info'!K88 -> 0 | G88: =VLOOKUP(B:B,OFFSET('B. PoF Adj Factor Scoring'!$E$5:$F$282,,MATCH(G$4,'B. PoF Adj Factor Scoring'!$E$3:$N$3,0)-1),2,TRUE) -> 3 | H88: =VLOOKUP(C:C,OFFSET('B. PoF Adj Factor Scoring'!$E$5:$F$282,,MATCH(H$4,'B. PoF Adj Factor Scoring'!$E$3:$N$3,0)-1),2,TRUE) -> 0 | I88: =VLOOKUP(D:D,OFFSET('B. PoF Adj Factor Scoring'!$E$5:$F$282,,MATCH(I$4,'B. PoF Adj Factor Scoring'!$E$3:$N$3,0)-1),2,TRUE) -> 0 | J88: =VLOOKUP(E:E,OFFSET('B. PoF Adj Factor Scoring'!$E$5:$F$282,,MATCH(J$4,'B. PoF Adj Factor Scoring'!$E$3:$N$3,0)-1),2,TRUE) -> 0 | K88: =VLOOKUP(F:F,OFFSET('B. PoF Adj Factor Scoring'!$E$5:$F$282,,MATCH(K$4,'B. PoF Adj Factor Scoring'!$E$3:$N$3,0)-1),2,TRUE) -> 0
A89: 84 | B89: MAYBE PVC SINGLE | C89: ='A. Population Info'!H89 -> 0 | D89: ='A. Population Info'!I89 -> 0 | E89: ='A. Population Info'!J89 -> 0 | F89: ='A. Population Info'!K89 -> 0 | G89: =VLOOKUP(B:B,OFFSET('B. PoF Adj Factor Scoring'!$E$5:$F$282,,MATCH(G$4,'B. PoF Adj Factor Scoring'!$E$3:$N$3,0)-1),2,TRUE) -> 3 | H89: =VLOOKUP(C:C,OFFSET('B. PoF Adj Factor Scoring'!$E$5:$F$282,,MATCH(H$4,'B. PoF Adj Factor Scoring'!$E$3:$N$3,0)-1),2,TRUE) -> 0 | I89: =VLOOKUP(D:D,OFFSET('B. PoF Adj Factor Scoring'!$E$5:$F$282,,MATCH(I$4,'B. PoF Adj Factor Scoring'!$E$3:$N$3,0)-1),2,TRUE) -> 0 | J89: =VLOOKUP(E:E,OFFSET('B. PoF Adj Factor Scoring'!$E$5:$F$282,,MATCH(J$4,'B. PoF Adj Factor Scoring'!$E$3:$N$3,0)-1),2,TRUE) -> 0 | K89: =VLOOKUP(F:F,OFFSET('B. PoF Adj Factor Scoring'!$E$5:$F$282,,MATCH(K$4,'B. PoF Adj Factor Scoring'!$E$3:$N$3,0)-1),2,TRUE) -> 0
A90: 85 | B90: MAYBE PVC SINGLE | C90: ='A. Population Info'!H90 -> 0 | D90: ='A. Population Info'!I90 -> 0 | E90: ='A. Population Info'!J90 -> 0 | F90: ='A. Population Info'!K90 -> 0 | G90: =VLOOKUP(B:B,OFFSET('B. PoF Adj Factor Scoring'!$E$5:$F$282,,MATCH(G$4,'B. PoF Adj Factor Scoring'!$E$3:$N$3,0)-1),2,TRUE) -> 3 | H90: =VLOOKUP(C:C,OFFSET('B. PoF Adj Factor Scoring'!$E$5:$F$282,,MATCH(H$4,'B. PoF Adj Factor Scoring'!$E$3:$N$3,0)-1),2,TRUE) -> 0 | I90: =VLOOKUP(D:D,OFFSET('B. PoF Adj Factor Scoring'!$E$5:$F$282,,MATCH(I$4,'B. PoF Adj Factor Scoring'!$E$3:$N$3,0)-1),2,TRUE) -> 0 | J90: =VLOOKUP(E:E,OFFSET('B. PoF Adj Factor Scoring'!$E$5:$F$282,,MATCH(J$4,'B. PoF Adj Factor Scoring'!$E$3:$N$3,0)-1),2,TRUE) -> 0 | K90: =VLOOKUP(F:F,OFFSET('B. PoF Adj Factor Scoring'!$E$5:$F$282,,MATCH(K$4,'B. PoF Adj Factor Scoring'!$E$3:$N$3,0)-1),2,TRUE) -> 0
A91: 86 | B91: MAYBE PVC SINGLE | C91: ='A. Population Info'!H91 -> 0 | D91: ='A. Population Info'!I91 -> 0 | E91: ='A. Population Info'!J91 -> 0 | F91: ='A. Population Info'!K91 -> 0 | G91: =VLOOKUP(B:B,OFFSET('B. PoF Adj Factor Scoring'!$E$5:$F$282,,MATCH(G$4,'B. PoF Adj Factor Scoring'!$E$3:$N$3,0)-1),2,TRUE) -> 3 | H91: =VLOOKUP(C:C,OFFSET('B. PoF Adj Factor Scoring'!$E$5:$F$282,,MATCH(H$4,'B. PoF Adj Factor Scoring'!$E$3:$N$3,0)-1),2,TRUE) -> 0 | I91: =VLOOKUP(D:D,OFFSET('B. PoF Adj Factor Scoring'!$E$5:$F$282,,MATCH(I$4,'B. PoF Adj Factor Scoring'!$E$3:$N$3,0)-1),2,TRUE) -> 0 | J91: =VLOOKUP(E:E,OFFSET('B. PoF Adj Factor Scoring'!$E$5:$F$282,,MATCH(J$4,'B. PoF Adj Factor Scoring'!$E$3:$N$3,0)-1),2,TRUE) -> 0 | K91: =VLOOKUP(F:F,OFFSET('B. PoF Adj Factor Scoring'!$E$5:$F$282,,MATCH(K$4,'B. PoF Adj Factor Scoring'!$E$3:$N$3,0)-1),2,TRUE) -> 0
A92: 87 | B92: MAYBE PVC SINGLE | C92: ='A. Population Info'!H92 -> 0 | D92: ='A. Population Info'!I92 -> 0 | E92: ='A. Population Info'!J92 -> 0 | F92: ='A. Population Info'!K92 -> 0 | G92: =VLOOKUP(B:B,OFFSET('B. PoF Adj Factor Scoring'!$E$5:$F$282,,MATCH(G$4,'B. PoF Adj Factor Scoring'!$E$3:$N$3,0)-1),2,TRUE) -> 3 | H92: =VLOOKUP(C:C,OFFSET('B. PoF Adj Factor Scoring'!$E$5:$F$282,,MATCH(H$4,'B. PoF Adj Factor Scoring'!$E$3:$N$3,0)-1),2,TRUE) -> 0 | I92: =VLOOKUP(D:D,OFFSET('B. PoF Adj Factor Scoring'!$E$5:$F$282,,MATCH(I$4,'B. PoF Adj Factor Scoring'!$E$3:$N$3,0)-1),2,TRUE) -> 0 | J92: =VLOOKUP(E:E,OFFSET('B. PoF Adj Factor Scoring'!$E$5:$F$282,,MATCH(J$4,'B. PoF Adj Factor Scoring'!$E$3:$N$3,0)-1),2,TRUE) -> 0 | K92: =VLOOKUP(F:F,OFFSET('B. PoF Adj Factor Scoring'!$E$5:$F$282,,MATCH(K$4,'B. PoF Adj Factor Scoring'!$E$3:$N$3,0)-1),2,TRUE) -> 0
A93: 88 | B93: MAYBE PVC SINGLE | C93: ='A. Population Info'!H93 -> 0 | D93: ='A. Population Info'!I93 -> 0 | E93: ='A. Population Info'!J93 -> 0 | F93: ='A. Population Info'!K93 -> 0 | G93: =VLOOKUP(B:B,OFFSET('B. PoF Adj Factor Scoring'!$E$5:$F$282,,MATCH(G$4,'B. PoF Adj Factor Scoring'!$E$3:$N$3,0)-1),2,TRUE) -> 3 | H93: =VLOOKUP(C:C,OFFSET('B. PoF Adj Factor Scoring'!$E$5:$F$282,,MATCH(H$4,'B. PoF Adj Factor Scoring'!$E$3:$N$3,0)-1),2,TRUE) -> 0 | I93: =VLOOKUP(D:D,OFFSET('B. PoF Adj Factor Scoring'!$E$5:$F$282,,MATCH(I$4,'B. PoF Adj Factor Scoring'!$E$3:$N$3,0)-1),2,TRUE) -> 0 | J93: =VLOOKUP(E:E,OFFSET('B. PoF Adj Factor Scoring'!$E$5:$F$282,,MATCH(J$4,'B. PoF Adj Factor Scoring'!$E$3:$N$3,0)-1),2,TRUE) -> 0 | K93: =VLOOKUP(F:F,OFFSET('B. PoF Adj Factor Scoring'!$E$5:$F$282,,MATCH(K$4,'B. PoF Adj Factor Scoring'!$E$3:$N$3,0)-1),2,TRUE) -> 0
A94: 89 | B94: MAYBE PVC SINGLE | C94: ='A. Population Info'!H94 -> 0 | D94: ='A. Population Info'!I94 -> 0 | E94: ='A. Population Info'!J94 -> 0 | F94: ='A. Population Info'!K94 -> 0 | G94: =VLOOKUP(B:B,OFFSET('B. PoF Adj Factor Scoring'!$E$5:$F$282,,MATCH(G$4,'B. PoF Adj Factor Scoring'!$E$3:$N$3,0)-1),2,TRUE) -> 3 | H94: =VLOOKUP(C:C,OFFSET('B. PoF Adj Factor Scoring'!$E$5:$F$282,,MATCH(H$4,'B. PoF Adj Factor Scoring'!$E$3:$N$3,0)-1),2,TRUE) -> 0 | I94: =VLOOKUP(D:D,OFFSET('B. PoF Adj Factor Scoring'!$E$5:$F$282,,MATCH(I$4,'B. PoF Adj Factor Scoring'!$E$3:$N$3,0)-1),2,TRUE) -> 0 | J94: =VLOOKUP(E:E,OFFSET('B. PoF Adj Factor Scoring'!$E$5:$F$282,,MATCH(J$4,'B. PoF Adj Factor Scoring'!$E$3:$N$3,0)-1),2,TRUE) -> 0 | K94: =VLOOKUP(F:F,OFFSET('B. PoF Adj Factor Scoring'!$E$5:$F$282,,MATCH(K$4,'B. PoF Adj Factor Scoring'!$E$3:$N$3,0)-1),2,TRUE) -> 0
A95: 90 | B95: MAYBE PVC SINGLE | C95: ='A. Population Info'!H95 -> 0 | D95: ='A. Population Info'!I95 -> 0 | E95: ='A. Population Info'!J95 -> 0 | F95: ='A. Population Info'!K95 -> 0 | G95: =VLOOKUP(B:B,OFFSET('B. PoF Adj Factor Scoring'!$E$5:$F$282,,MATCH(G$4,'B. PoF Adj Factor Scoring'!$E$3:$N$3,0)-1),2,TRUE) -> 3 | H95: =VLOOKUP(C:C,OFFSET('B. PoF Adj Factor Scoring'!$E$5:$F$282,,MATCH(H$4,'B. PoF Adj Factor Scoring'!$E$3:$N$3,0)-1),2,TRUE) -> 0 | I95: =VLOOKUP(D:D,OFFSET('B. PoF Adj Factor Scoring'!$E$5:$F$282,,MATCH(I$4,'B. PoF Adj Factor Scoring'!$E$3:$N$3,0)-1),2,TRUE) -> 0 | J95: =VLOOKUP(E:E,OFFSET('B. PoF Adj Factor Scoring'!$E$5:$F$282,,MATCH(J$4,'B. PoF Adj Factor Scoring'!$E$3:$N$3,0)-1),2,TRUE) -> 0 | K95: =VLOOKUP(F:F,OFFSET('B. PoF Adj Factor Scoring'!$E$5:$F$282,,MATCH(K$4,'B. PoF Adj Factor Scoring'!$E$3:$N$3,0)-1),2,TRUE) -> 0
A96: 91 | B96: MAYBE PVC SINGLE | C96: ='A. Population Info'!H96 -> 0 | D96: ='A. Population Info'!I96 -> 0 | E96: ='A. Population Info'!J96 -> 0 | F96: ='A. Population Info'!K96 -> 0 | G96: =VLOOKUP(B:B,OFFSET('B. PoF Adj Factor Scoring'!$E$5:$F$282,,MATCH(G$4,'B. PoF Adj Factor Scoring'!$E$3:$N$3,0)-1),2,TRUE) -> 3 | H96: =VLOOKUP(C:C,OFFSET('B. PoF Adj Factor Scoring'!$E$5:$F$282,,MATCH(H$4,'B. PoF Adj Factor Scoring'!$E$3:$N$3,0)-1),2,TRUE) -> 0 | I96: =VLOOKUP(D:D,OFFSET('B. PoF Adj Factor Scoring'!$E$5:$F$282,,MATCH(I$4,'B. PoF Adj Factor Scoring'!$E$3:$N$3,0)-1),2,TRUE) -> 0 | J96: =VLOOKUP(E:E,OFFSET('B. PoF Adj Factor Scoring'!$E$5:$F$282,,MATCH(J$4,'B. PoF Adj Factor Scoring'!$E$3:$N$3,0)-1),2,TRUE) -> 0 | K96: =VLOOKUP(F:F,OFFSET('B. PoF Adj Factor Scoring'!$E$5:$F$282,,MATCH(K$4,'B. PoF Adj Factor Scoring'!$E$3:$N$3,0)-1),2,TRUE) -> 0
A97: 92 | B97: MAYBE PVC SINGLE | C97: ='A. Population Info'!H97 -> 0 | D97: ='A. Population Info'!I97 -> 0 | E97: ='A. Population Info'!J97 -> 0 | F97: ='A. Population Info'!K97 -> 0 | G97: =VLOOKUP(B:B,OFFSET('B. PoF Adj Factor Scoring'!$E$5:$F$282,,MATCH(G$4,'B. PoF Adj Factor Scoring'!$E$3:$N$3,0)-1),2,TRUE) -> 3 | H97: =VLOOKUP(C:C,OFFSET('B. PoF Adj Factor Scoring'!$E$5:$F$282,,MATCH(H$4,'B. PoF Adj Factor Scoring'!$E$3:$N$3,0)-1),2,TRUE) -> 0 | I97: =VLOOKUP(D:D,OFFSET('B. PoF Adj Factor Scoring'!$E$5:$F$282,,MATCH(I$4,'B. PoF Adj Factor Scoring'!$E$3:$N$3,0)-1),2,TRUE) -> 0 | J97: =VLOOKUP(E:E,OFFSET('B. PoF Adj Factor Scoring'!$E$5:$F$282,,MATCH(J$4,'B. PoF Adj Factor Scoring'!$E$3:$N$3,0)-1),2,TRUE) -> 0 | K97: =VLOOKUP(F:F,OFFSET('B. PoF Adj Factor Scoring'!$E$5:$F$282,,MATCH(K$4,'B. PoF Adj Factor Scoring'!$E$3:$N$3,0)-1),2,TRUE) -> 0
A98: 93 | B98: MAYBE PVC SINGLE | C98: ='A. Population Info'!H98 -> 0 | D98: ='A. Population Info'!I98 -> 0 | E98: ='A. Population Info'!J98 -> 0 | F98: ='A. Population Info'!K98 -> 0 | G98: =VLOOKUP(B:B,OFFSET('B. PoF Adj Factor Scoring'!$E$5:$F$282,,MATCH(G$4,'B. PoF Adj Factor Scoring'!$E$3:$N$3,0)-1),2,TRUE) -> 3 | H98: =VLOOKUP(C:C,OFFSET('B. PoF Adj Factor Scoring'!$E$5:$F$282,,MATCH(H$4,'B. PoF Adj Factor Scoring'!$E$3:$N$3,0)-1),2,TRUE) -> 0 | I98: =VLOOKUP(D:D,OFFSET('B. PoF Adj Factor Scoring'!$E$5:$F$282,,MATCH(I$4,'B. PoF Adj Factor Scoring'!$E$3:$N$3,0)-1),2,TRUE) -> 0 | J98: =VLOOKUP(E:E,OFFSET('B. PoF Adj Factor Scoring'!$E$5:$F$282,,MATCH(J$4,'B. PoF Adj Factor Scoring'!$E$3:$N$3,0)-1),2,TRUE) -> 0 | K98: =VLOOKUP(F:F,OFFSET('B. PoF Adj Factor Scoring'!$E$5:$F$282,,MATCH(K$4,'B. PoF Adj Factor Scoring'!$E$3:$N$3,0)-1),2,TRUE) -> 0
A99: 94 | B99: MAYBE PVC SINGLE | C99: ='A. Population Info'!H99 -> 0 | D99: ='A. Population Info'!I99 -> 0 | E99: ='A. Population Info'!J99 -> 0 | F99: ='A. Population Info'!K99 -> 0 | G99: =VLOOKUP(B:B,OFFSET('B. PoF Adj Factor Scoring'!$E$5:$F$282,,MATCH(G$4,'B. PoF Adj Factor Scoring'!$E$3:$N$3,0)-1),2,TRUE) -> 3 | H99: =VLOOKUP(C:C,OFFSET('B. PoF Adj Factor Scoring'!$E$5:$F$282,,MATCH(H$4,'B. PoF Adj Factor Scoring'!$E$3:$N$3,0)-1),2,TRUE) -> 0 | I99: =VLOOKUP(D:D,OFFSET('B. PoF Adj Factor Scoring'!$E$5:$F$282,,MATCH(I$4,'B. PoF Adj Factor Scoring'!$E$3:$N$3,0)-1),2,TRUE) -> 0 | J99: =VLOOKUP(E:E,OFFSET('B. PoF Adj Factor Scoring'!$E$5:$F$282,,MATCH(J$4,'B. PoF Adj Factor Scoring'!$E$3:$N$3,0)-1),2,TRUE) -> 0 | K99: =VLOOKUP(F:F,OFFSET('B. PoF Adj Factor Scoring'!$E$5:$F$282,,MATCH(K$4,'B. PoF Adj Factor Scoring'!$E$3:$N$3,0)-1),2,TRUE) -> 0
A100: 95 | B100: MAYBE PVC SINGLE | C100: ='A. Population Info'!H100 -> 0 | D100: ='A. Population Info'!I100 -> 0 | E100: ='A. Population Info'!J100 -> 0 | F100: ='A. Population Info'!K100 -> 0 | G100: =VLOOKUP(B:B,OFFSET('B. PoF Adj Factor Scoring'!$E$5:$F$282,,MATCH(G$4,'B. PoF Adj Factor Scoring'!$E$3:$N$3,0)-1),2,TRUE) -> 3 | H100: =VLOOKUP(C:C,OFFSET('B. PoF Adj Factor Scoring'!$E$5:$F$282,,MATCH(H$4,'B. PoF Adj Factor Scoring'!$E$3:$N$3,0)-1),2,TRUE) -> 0 | I100: =VLOOKUP(D:D,OFFSET('B. PoF Adj Factor Scoring'!$E$5:$F$282,,MATCH(I$4,'B. PoF Adj Factor Scoring'!$E$3:$N$3,0)-1),2,TRUE) -> 0 | J100: =VLOOKUP(E:E,OFFSET('B. PoF Adj Factor Scoring'!$E$5:$F$282,,MATCH(J$4,'B. PoF Adj Factor Scoring'!$E$3:$N$3,0)-1),2,TRUE) -> 0 | K100: =VLOOKUP(F:F,OFFSET('B. PoF Adj Factor Scoring'!$E$5:$F$282,,MATCH(K$4,'B. PoF Adj Factor Scoring'!$E$3:$N$3,0)-1),2,TRUE) -> 0
A101: 96 | B101: NO | C101: ='A. Population Info'!H101 -> 0 | D101: ='A. Population Info'!I101 -> 0 | E101: ='A. Population Info'!J101 -> 0 | F101: ='A. Population Info'!K101 -> 0 | G101: =VLOOKUP(B:B,OFFSET('B. PoF Adj Factor Scoring'!$E$5:$F$282,,MATCH(G$4,'B. PoF Adj Factor Scoring'!$E$3:$N$3,0)-1),2,TRUE) -> 3 | H101: =VLOOKUP(C:C,OFFSET('B. PoF Adj Factor Scoring'!$E$5:$F$282,,MATCH(H$4,'B. PoF Adj Factor Scoring'!$E$3:$N$3,0)-1),2,TRUE) -> 0 | I101: =VLOOKUP(D:D,OFFSET('B. PoF Adj Factor Scoring'!$E$5:$F$282,,MATCH(I$4,'B. PoF Adj Factor Scoring'!$E$3:$N$3,0)-1),2,TRUE) -> 0 | J101: =VLOOKUP(E:E,OFFSET('B. PoF Adj Factor Scoring'!$E$5:$F$282,,MATCH(J$4,'B. PoF Adj Factor Scoring'!$E$3:$N$3,0)-1),2,TRUE) -> 0 | K101: =VLOOKUP(F:F,OFFSET('B. PoF Adj Factor Scoring'!$E$5:$F$282,,MATCH(K$4,'B. PoF Adj Factor Scoring'!$E$3:$N$3,0)-1),2,TRUE) -> 0
A102: 97 | B102: PVC | C102: ='A. Population Info'!H102 -> 0 | D102: ='A. Population Info'!I102 -> 0 | E102: ='A. Population Info'!J102 -> 0 | F102: ='A. Population Info'!K102 -> 0 | G102: =VLOOKUP(B:B,OFFSET('B. PoF Adj Factor Scoring'!$E$5:$F$282,,MATCH(G$4,'B. PoF Adj Factor Scoring'!$E$3:$N$3,0)-1),2,TRUE) -> 5 | H102: =VLOOKUP(C:C,OFFSET('B. PoF Adj Factor Scoring'!$E$5:$F$282,,MATCH(H$4,'B. PoF Adj Factor Scoring'!$E$3:$N$3,0)-1),2,TRUE) -> 0 | I102: =VLOOKUP(D:D,OFFSET('B. PoF Adj Factor Scoring'!$E$5:$F$282,,MATCH(I$4,'B. PoF Adj Factor Scoring'!$E$3:$N$3,0)-1),2,TRUE) -> 0 | J102: =VLOOKUP(E:E,OFFSET('B. PoF Adj Factor Scoring'!$E$5:$F$282,,MATCH(J$4,'B. PoF Adj Factor Scoring'!$E$3:$N$3,0)-1),2,TRUE) -> 0 | K102: =VLOOKUP(F:F,OFFSET('B. PoF Adj Factor Scoring'!$E$5:$F$282,,MATCH(K$4,'B. PoF Adj Factor Scoring'!$E$3:$N$3,0)-1),2,TRUE) -> 0
A103: 98 | B103: PVC | C103: ='A. Population Info'!H103 -> 0 | D103: ='A. Population Info'!I103 -> 0 | E103: ='A. Population Info'!J103 -> 0 | F103: ='A. Population Info'!K103 -> 0 | G103: =VLOOKUP(B:B,OFFSET('B. PoF Adj Factor Scoring'!$E$5:$F$282,,MATCH(G$4,'B. PoF Adj Factor Scoring'!$E$3:$N$3,0)-1),2,TRUE) -> 5 | H103: =VLOOKUP(C:C,OFFSET('B. PoF Adj Factor Scoring'!$E$5:$F$282,,MATCH(H$4,'B. PoF Adj Factor Scoring'!$E$3:$N$3,0)-1),2,TRUE) -> 0 | I103: =VLOOKUP(D:D,OFFSET('B. PoF Adj Factor Scoring'!$E$5:$F$282,,MATCH(I$4,'B. PoF Adj Factor Scoring'!$E$3:$N$3,0)-1),2,TRUE) -> 0 | J103: =VLOOKUP(E:E,OFFSET('B. PoF Adj Factor Scoring'!$E$5:$F$282,,MATCH(J$4,'B. PoF Adj Factor Scoring'!$E$3:$N$3,0)-1),2,TRUE) -> 0 | K103: =VLOOKUP(F:F,OFFSET('B. PoF Adj Factor Scoring'!$E$5:$F$282,,MATCH(K$4,'B. PoF Adj Factor Scoring'!$E$3:$N$3,0)-1),2,TRUE) -> 0
A104: 99 | B104: PVC | C104: ='A. Population Info'!H104 -> 0 | D104: ='A. Population Info'!I104 -> 0 | E104: ='A. Population Info'!J104 -> 0 | F104: ='A. Population Info'!K104 -> 0 | G104: =VLOOKUP(B:B,OFFSET('B. PoF Adj Factor Scoring'!$E$5:$F$282,,MATCH(G$4,'B. PoF Adj Factor Scoring'!$E$3:$N$3,0)-1),2,TRUE) -> 5 | H104: =VLOOKUP(C:C,OFFSET('B. PoF Adj Factor Scoring'!$E$5:$F$282,,MATCH(H$4,'B. PoF Adj Factor Scoring'!$E$3:$N$3,0)-1),2,TRUE) -> 0 | I104: =VLOOKUP(D:D,OFFSET('B. PoF Adj Factor Scoring'!$E$5:$F$282,,MATCH(I$4,'B. PoF Adj Factor Scoring'!$E$3:$N$3,0)-1),2,TRUE) -> 0 | J104: =VLOOKUP(E:E,OFFSET('B. PoF Adj Factor Scoring'!$E$5:$F$282,,MATCH(J$4,'B. PoF Adj Factor Scoring'!$E$3:$N$3,0)-1),2,TRUE) -> 0 | K104: =VLOOKUP(F:F,OFFSET('B. PoF Adj Factor Scoring'!$E$5:$F$282,,MATCH(K$4,'B. PoF Adj Factor Scoring'!$E$3:$N$3,0)-1),2,TRUE) -> 0
A105: 100 | B105: PVC | C105: ='A. Population Info'!H105 -> 0 | D105: ='A. Population Info'!I105 -> 0 | E105: ='A. Population Info'!J105 -> 0 | F105: ='A. Population Info'!K105 -> 0 | G105: =VLOOKUP(B:B,OFFSET('B. PoF Adj Factor Scoring'!$E$5:$F$282,,MATCH(G$4,'B. PoF Adj Factor Scoring'!$E$3:$N$3,0)-1),2,TRUE) -> 5 | H105: =VLOOKUP(C:C,OFFSET('B. PoF Adj Factor Scoring'!$E$5:$F$282,,MATCH(H$4,'B. PoF Adj Factor Scoring'!$E$3:$N$3,0)-1),2,TRUE) -> 0 | I105: =VLOOKUP(D:D,OFFSET('B. PoF Adj Factor Scoring'!$E$5:$F$282,,MATCH(I$4,'B. PoF Adj Factor Scoring'!$E$3:$N$3,0)-1),2,TRUE) -> 0 | J105: =VLOOKUP(E:E,OFFSET('B. PoF Adj Factor Scoring'!$E$5:$F$282,,MATCH(J$4,'B. PoF Adj Factor Scoring'!$E$3:$N$3,0)-1),2,TRUE) -> 0 | K105: =VLOOKUP(F:F,OFFSET('B. PoF Adj Factor Scoring'!$E$5:$F$282,,MATCH(K$4,'B. PoF Adj Factor Scoring'!$E$3:$N$3,0)-1),2,TRUE) -> 0
A106: 101 | B106: PVC | C106: ='A. Population Info'!H106 -> 0 | D106: ='A. Population Info'!I106 -> 0 | E106: ='A. Population Info'!J106 -> 0 | F106: ='A. Population Info'!K106 -> 0 | G106: =VLOOKUP(B:B,OFFSET('B. PoF Adj Factor Scoring'!$E$5:$F$282,,MATCH(G$4,'B. PoF Adj Factor Scoring'!$E$3:$N$3,0)-1),2,TRUE) -> 5 | H106: =VLOOKUP(C:C,OFFSET('B. PoF Adj Factor Scoring'!$E$5:$F$282,,MATCH(H$4,'B. PoF Adj Factor Scoring'!$E$3:$N$3,0)-1),2,TRUE) -> 0 | I106: =VLOOKUP(D:D,OFFSET('B. PoF Adj Factor Scoring'!$E$5:$F$282,,MATCH(I$4,'B. PoF Adj Factor Scoring'!$E$3:$N$3,0)-1),2,TRUE) -> 0 | J106: =VLOOKUP(E:E,OFFSET('B. PoF Adj Factor Scoring'!$E$5:$F$282,,MATCH(J$4,'B. PoF Adj Factor Scoring'!$E$3:$N$3,0)-1),2,TRUE) -> 0 | K106: =VLOOKUP(F:F,OFFSET('B. PoF Adj Factor Scoring'!$E$5:$F$282,,MATCH(K$4,'B. PoF Adj Factor Scoring'!$E$3:$N$3,0)-1),2,TRUE) -> 0
A107: 102 | B107: PVC | C107: ='A. Population Info'!H107 -> 0 | D107: ='A. Population Info'!I107 -> 0 | E107: ='A. Population Info'!J107 -> 0 | F107: ='A. Population Info'!K107 -> 0 | G107: =VLOOKUP(B:B,OFFSET('B. PoF Adj Factor Scoring'!$E$5:$F$282,,MATCH(G$4,'B. PoF Adj Factor Scoring'!$E$3:$N$3,0)-1),2,TRUE) -> 5 | H107: =VLOOKUP(C:C,OFFSET('B. PoF Adj Factor Scoring'!$E$5:$F$282,,MATCH(H$4,'B. PoF Adj Factor Scoring'!$E$3:$N$3,0)-1),2,TRUE) -> 0 | I107: =VLOOKUP(D:D,OFFSET('B. PoF Adj Factor Scoring'!$E$5:$F$282,,MATCH(I$4,'B. PoF Adj Factor Scoring'!$E$3:$N$3,0)-1),2,TRUE) -> 0 | J107: =VLOOKUP(E:E,OFFSET('B. PoF Adj Factor Scoring'!$E$5:$F$282,,MATCH(J$4,'B. PoF Adj Factor Scoring'!$E$3:$N$3,0)-1),2,TRUE) -> 0 | K107: =VLOOKUP(F:F,OFFSET('B. PoF Adj Factor Scoring'!$E$5:$F$282,,MATCH(K$4,'B. PoF Adj Factor Scoring'!$E$3:$N$3,0)-1),2,TRUE) -> 0
A108: 103 | B108: PVC | C108: ='A. Population Info'!H108 -> 0 | D108: ='A. Population Info'!I108 -> 0 | E108: ='A. Population Info'!J108 -> 0 | F108: ='A. Population Info'!K108 -> 0 | G108: =VLOOKUP(B:B,OFFSET('B. PoF Adj Factor Scoring'!$E$5:$F$282,,MATCH(G$4,'B. PoF Adj Factor Scoring'!$E$3:$N$3,0)-1),2,TRUE) -> 5 | H108: =VLOOKUP(C:C,OFFSET('B. PoF Adj Factor Scoring'!$E$5:$F$282,,MATCH(H$4,'B. PoF Adj Factor Scoring'!$E$3:$N$3,0)-1),2,TRUE) -> 0 | I108: =VLOOKUP(D:D,OFFSET('B. PoF Adj Factor Scoring'!$E$5:$F$282,,MATCH(I$4,'B. PoF Adj Factor Scoring'!$E$3:$N$3,0)-1),2,TRUE) -> 0 | J108: =VLOOKUP(E:E,OFFSET('B. PoF Adj Factor Scoring'!$E$5:$F$282,,MATCH(J$4,'B. PoF Adj Factor Scoring'!$E$3:$N$3,0)-1),2,TRUE) -> 0 | K108: =VLOOKUP(F:F,OFFSET('B. PoF Adj Factor Scoring'!$E$5:$F$282,,MATCH(K$4,'B. PoF Adj Factor Scoring'!$E$3:$N$3,0)-1),2,TRUE) -> 0
A109: 104 | B109: PVC | C109: ='A. Population Info'!H109 -> 0 | D109: ='A. Population Info'!I109 -> 0 | E109: ='A. Population Info'!J109 -> 0 | F109: ='A. Population Info'!K109 -> 0 | G109: =VLOOKUP(B:B,OFFSET('B. PoF Adj Factor Scoring'!$E$5:$F$282,,MATCH(G$4,'B. PoF Adj Factor Scoring'!$E$3:$N$3,0)-1),2,TRUE) -> 5 | H109: =VLOOKUP(C:C,OFFSET('B. PoF Adj Factor Scoring'!$E$5:$F$282,,MATCH(H$4,'B. PoF Adj Factor Scoring'!$E$3:$N$3,0)-1),2,TRUE) -> 0 | I109: =VLOOKUP(D:D,OFFSET('B. PoF Adj Factor Scoring'!$E$5:$F$282,,MATCH(I$4,'B. PoF Adj Factor Scoring'!$E$3:$N$3,0)-1),2,TRUE) -> 0 | J109: =VLOOKUP(E:E,OFFSET('B. PoF Adj Factor Scoring'!$E$5:$F$282,,MATCH(J$4,'B. PoF Adj Factor Scoring'!$E$3:$N$3,0)-1),2,TRUE) -> 0 | K109: =VLOOKUP(F:F,OFFSET('B. PoF Adj Factor Scoring'!$E$5:$F$282,,MATCH(K$4,'B. PoF Adj Factor Scoring'!$E$3:$N$3,0)-1),2,TRUE) -> 0
A110: 105 | B110: PVC | C110: ='A. Population Info'!H110 -> 0 | D110: ='A. Population Info'!I110 -> 0 | E110: ='A. Population Info'!J110 -> 0 | F110: ='A. Population Info'!K110 -> 0 | G110: =VLOOKUP(B:B,OFFSET('B. PoF Adj Factor Scoring'!$E$5:$F$282,,MATCH(G$4,'B. PoF Adj Factor Scoring'!$E$3:$N$3,0)-1),2,TRUE) -> 5 | H110: =VLOOKUP(C:C,OFFSET('B. PoF Adj Factor Scoring'!$E$5:$F$282,,MATCH(H$4,'B. PoF Adj Factor Scoring'!$E$3:$N$3,0)-1),2,TRUE) -> 0 | I110: =VLOOKUP(D:D,OFFSET('B. PoF Adj Factor Scoring'!$E$5:$F$282,,MATCH(I$4,'B. PoF Adj Factor Scoring'!$E$3:$N$3,0)-1),2,TRUE) -> 0 | J110: =VLOOKUP(E:E,OFFSET('B. PoF Adj Factor Scoring'!$E$5:$F$282,,MATCH(J$4,'B. PoF Adj Factor Scoring'!$E$3:$N$3,0)-1),2,TRUE) -> 0 | K110: =VLOOKUP(F:F,OFFSET('B. PoF Adj Factor Scoring'!$E$5:$F$282,,MATCH(K$4,'B. PoF Adj Factor Scoring'!$E$3:$N$3,0)-1),2,TRUE) -> 0
A111: 106 | B111: PVC | C111: ='A. Population Info'!H111 -> 0 | D111: ='A. Population Info'!I111 -> 0 | E111: ='A. Population Info'!J111 -> 0 | F111: ='A. Population Info'!K111 -> 0 | G111: =VLOOKUP(B:B,OFFSET('B. PoF Adj Factor Scoring'!$E$5:$F$282,,MATCH(G$4,'B. PoF Adj Factor Scoring'!$E$3:$N$3,0)-1),2,TRUE) -> 5 | H111: =VLOOKUP(C:C,OFFSET('B. PoF Adj Factor Scoring'!$E$5:$F$282,,MATCH(H$4,'B. PoF Adj Factor Scoring'!$E$3:$N$3,0)-1),2,TRUE) -> 0 | I111: =VLOOKUP(D:D,OFFSET('B. PoF Adj Factor Scoring'!$E$5:$F$282,,MATCH(I$4,'B. PoF Adj Factor Scoring'!$E$3:$N$3,0)-1),2,TRUE) -> 0 | J111: =VLOOKUP(E:E,OFFSET('B. PoF Adj Factor Scoring'!$E$5:$F$282,,MATCH(J$4,'B. PoF Adj Factor Scoring'!$E$3:$N$3,0)-1),2,TRUE) -> 0 | K111: =VLOOKUP(F:F,OFFSET('B. PoF Adj Factor Scoring'!$E$5:$F$282,,MATCH(K$4,'B. PoF Adj Factor Scoring'!$E$3:$N$3,0)-1),2,TRUE) -> 0
A112: 107 | B112: PVC | C112: ='A. Population Info'!H112 -> 0 | D112: ='A. Population Info'!I112 -> 0 | E112: ='A. Population Info'!J112 -> 0 | F112: ='A. Population Info'!K112 -> 0 | G112: =VLOOKUP(B:B,OFFSET('B. PoF Adj Factor Scoring'!$E$5:$F$282,,MATCH(G$4,'B. PoF Adj Factor Scoring'!$E$3:$N$3,0)-1),2,TRUE) -> 5 | H112: =VLOOKUP(C:C,OFFSET('B. PoF Adj Factor Scoring'!$E$5:$F$282,,MATCH(H$4,'B. PoF Adj Factor Scoring'!$E$3:$N$3,0)-1),2,TRUE) -> 0 | I112: =VLOOKUP(D:D,OFFSET('B. PoF Adj Factor Scoring'!$E$5:$F$282,,MATCH(I$4,'B. PoF Adj Factor Scoring'!$E$3:$N$3,0)-1),2,TRUE) -> 0 | J112: =VLOOKUP(E:E,OFFSET('B. PoF Adj Factor Scoring'!$E$5:$F$282,,MATCH(J$4,'B. PoF Adj Factor Scoring'!$E$3:$N$3,0)-1),2,TRUE) -> 0 | K112: =VLOOKUP(F:F,OFFSET('B. PoF Adj Factor Scoring'!$E$5:$F$282,,MATCH(K$4,'B. PoF Adj Factor Scoring'!$E$3:$N$3,0)-1),2,TRUE) -> 0
A113: 108 | B113: PVC | C113: ='A. Population Info'!H113 -> 0 | D113: ='A. Population Info'!I113 -> 0 | E113: ='A. Population Info'!J113 -> 0 | F113: ='A. Population Info'!K113 -> 0 | G113: =VLOOKUP(B:B,OFFSET('B. PoF Adj Factor Scoring'!$E$5:$F$282,,MATCH(G$4,'B. PoF Adj Factor Scoring'!$E$3:$N$3,0)-1),2,TRUE) -> 5 | H113: =VLOOKUP(C:C,OFFSET('B. PoF Adj Factor Scoring'!$E$5:$F$282,,MATCH(H$4,'B. PoF Adj Factor Scoring'!$E$3:$N$3,0)-1),2,TRUE) -> 0 | I113: =VLOOKUP(D:D,OFFSET('B. PoF Adj Factor Scoring'!$E$5:$F$282,,MATCH(I$4,'B. PoF Adj Factor Scoring'!$E$3:$N$3,0)-1),2,TRUE) -> 0 | J113: =VLOOKUP(E:E,OFFSET('B. PoF Adj Factor Scoring'!$E$5:$F$282,,MATCH(J$4,'B. PoF Adj Factor Scoring'!$E$3:$N$3,0)-1),2,TRUE) -> 0 | K113: =VLOOKUP(F:F,OFFSET('B. PoF Adj Factor Scoring'!$E$5:$F$282,,MATCH(K$4,'B. PoF Adj Factor Scoring'!$E$3:$N$3,0)-1),2,TRUE) -> 0
A114: 109 | B114: PVC | C114: ='A. Population Info'!H114 -> 0 | D114: ='A. Population Info'!I114 -> 0 | E114: ='A. Population Info'!J114 -> 0 | F114: ='A. Population Info'!K114 -> 0 | G114: =VLOOKUP(B:B,OFFSET('B. PoF Adj Factor Scoring'!$E$5:$F$282,,MATCH(G$4,'B. PoF Adj Factor Scoring'!$E$3:$N$3,0)-1),2,TRUE) -> 5 | H114: =VLOOKUP(C:C,OFFSET('B. PoF Adj Factor Scoring'!$E$5:$F$282,,MATCH(H$4,'B. PoF Adj Factor Scoring'!$E$3:$N$3,0)-1),2,TRUE) -> 0 | I114: =VLOOKUP(D:D,OFFSET('B. PoF Adj Factor Scoring'!$E$5:$F$282,,MATCH(I$4,'B. PoF Adj Factor Scoring'!$E$3:$N$3,0)-1),2,TRUE) -> 0 | J114: =VLOOKUP(E:E,OFFSET('B. PoF Adj Factor Scoring'!$E$5:$F$282,,MATCH(J$4,'B. PoF Adj Factor Scoring'!$E$3:$N$3,0)-1),2,TRUE) -> 0 | K114: =VLOOKUP(F:F,OFFSET('B. PoF Adj Factor Scoring'!$E$5:$F$282,,MATCH(K$4,'B. PoF Adj Factor Scoring'!$E$3:$N$3,0)-1),2,TRUE) -> 0
A115: 110 | B115: PVC | C115: ='A. Population Info'!H115 -> 0 | D115: ='A. Population Info'!I115 -> 0 | E115: ='A. Population Info'!J115 -> 0 | F115: ='A. Population Info'!K115 -> 0 | G115: =VLOOKUP(B:B,OFFSET('B. PoF Adj Factor Scoring'!$E$5:$F$282,,MATCH(G$4,'B. PoF Adj Factor Scoring'!$E$3:$N$3,0)-1),2,TRUE) -> 5 | H115: =VLOOKUP(C:C,OFFSET('B. PoF Adj Factor Scoring'!$E$5:$F$282,,MATCH(H$4,'B. PoF Adj Factor Scoring'!$E$3:$N$3,0)-1),2,TRUE) -> 0 | I115: =VLOOKUP(D:D,OFFSET('B. PoF Adj Factor Scoring'!$E$5:$F$282,,MATCH(I$4,'B. PoF Adj Factor Scoring'!$E$3:$N$3,0)-1),2,TRUE) -> 0 | J115: =VLOOKUP(E:E,OFFSET('B. PoF Adj Factor Scoring'!$E$5:$F$282,,MATCH(J$4,'B. PoF Adj Factor Scoring'!$E$3:$N$3,0)-1),2,TRUE) -> 0 | K115: =VLOOKUP(F:F,OFFSET('B. PoF Adj Factor Scoring'!$E$5:$F$282,,MATCH(K$4,'B. PoF Adj Factor Scoring'!$E$3:$N$3,0)-1),2,TRUE) -> 0
A116: 111 | B116: PVC | C116: ='A. Population Info'!H116 -> 0 | D116: ='A. Population Info'!I116 -> 0 | E116: ='A. Population Info'!J116 -> 0 | F116: ='A. Population Info'!K116 -> 0 | G116: =VLOOKUP(B:B,OFFSET('B. PoF Adj Factor Scoring'!$E$5:$F$282,,MATCH(G$4,'B. PoF Adj Factor Scoring'!$E$3:$N$3,0)-1),2,TRUE) -> 5 | H116: =VLOOKUP(C:C,OFFSET('B. PoF Adj Factor Scoring'!$E$5:$F$282,,MATCH(H$4,'B. PoF Adj Factor Scoring'!$E$3:$N$3,0)-1),2,TRUE) -> 0 | I116: =VLOOKUP(D:D,OFFSET('B. PoF Adj Factor Scoring'!$E$5:$F$282,,MATCH(I$4,'B. PoF Adj Factor Scoring'!$E$3:$N$3,0)-1),2,TRUE) -> 0 | J116: =VLOOKUP(E:E,OFFSET('B. PoF Adj Factor Scoring'!$E$5:$F$282,,MATCH(J$4,'B. PoF Adj Factor Scoring'!$E$3:$N$3,0)-1),2,TRUE) -> 0 | K116: =VLOOKUP(F:F,OFFSET('B. PoF Adj Factor Scoring'!$E$5:$F$282,,MATCH(K$4,'B. PoF Adj Factor Scoring'!$E$3:$N$3,0)-1),2,TRUE) -> 0
A117: 112 | B117: PVC | C117: ='A. Population Info'!H117 -> 0 | D117: ='A. Population Info'!I117 -> 0 | E117: ='A. Population Info'!J117 -> 0 | F117: ='A. Population Info'!K117 -> 0 | G117: =VLOOKUP(B:B,OFFSET('B. PoF Adj Factor Scoring'!$E$5:$F$282,,MATCH(G$4,'B. PoF Adj Factor Scoring'!$E$3:$N$3,0)-1),2,TRUE) -> 5 | H117: =VLOOKUP(C:C,OFFSET('B. PoF Adj Factor Scoring'!$E$5:$F$282,,MATCH(H$4,'B. PoF Adj Factor Scoring'!$E$3:$N$3,0)-1),2,TRUE) -> 0 | I117: =VLOOKUP(D:D,OFFSET('B. PoF Adj Factor Scoring'!$E$5:$F$282,,MATCH(I$4,'B. PoF Adj Factor Scoring'!$E$3:$N$3,0)-1),2,TRUE) -> 0 | J117: =VLOOKUP(E:E,OFFSET('B. PoF Adj Factor Scoring'!$E$5:$F$282,,MATCH(J$4,'B. PoF Adj Factor Scoring'!$E$3:$N$3,0)-1),2,TRUE) -> 0 | K117: =VLOOKUP(F:F,OFFSET('B. PoF Adj Factor Scoring'!$E$5:$F$282,,MATCH(K$4,'B. PoF Adj Factor Scoring'!$E$3:$N$3,0)-1),2,TRUE) -> 0
A118: 113 | B118: PVC | C118: ='A. Population Info'!H118 -> 0 | D118: ='A. Population Info'!I118 -> 0 | E118: ='A. Population Info'!J118 -> 0 | F118: ='A. Population Info'!K118 -> 0 | G118: =VLOOKUP(B:B,OFFSET('B. PoF Adj Factor Scoring'!$E$5:$F$282,,MATCH(G$4,'B. PoF Adj Factor Scoring'!$E$3:$N$3,0)-1),2,TRUE) -> 5 | H118: =VLOOKUP(C:C,OFFSET('B. PoF Adj Factor Scoring'!$E$5:$F$282,,MATCH(H$4,'B. PoF Adj Factor Scoring'!$E$3:$N$3,0)-1),2,TRUE) -> 0 | I118: =VLOOKUP(D:D,OFFSET('B. PoF Adj Factor Scoring'!$E$5:$F$282,,MATCH(I$4,'B. PoF Adj Factor Scoring'!$E$3:$N$3,0)-1),2,TRUE) -> 0 | J118: =VLOOKUP(E:E,OFFSET('B. PoF Adj Factor Scoring'!$E$5:$F$282,,MATCH(J$4,'B. PoF Adj Factor Scoring'!$E$3:$N$3,0)-1),2,TRUE) -> 0 | K118: =VLOOKUP(F:F,OFFSET('B. PoF Adj Factor Scoring'!$E$5:$F$282,,MATCH(K$4,'B. PoF Adj Factor Scoring'!$E$3:$N$3,0)-1),2,TRUE) -> 0
A119: 114 | B119: PVC | C119: ='A. Population Info'!H119 -> 0 | D119: ='A. Population Info'!I119 -> 0 | E119: ='A. Population Info'!J119 -> 0 | F119: ='A. Population Info'!K119 -> 0 | G119: =VLOOKUP(B:B,OFFSET('B. PoF Adj Factor Scoring'!$E$5:$F$282,,MATCH(G$4,'B. PoF Adj Factor Scoring'!$E$3:$N$3,0)-1),2,TRUE) -> 5 | H119: =VLOOKUP(C:C,OFFSET('B. PoF Adj Factor Scoring'!$E$5:$F$282,,MATCH(H$4,'B. PoF Adj Factor Scoring'!$E$3:$N$3,0)-1),2,TRUE) -> 0 | I119: =VLOOKUP(D:D,OFFSET('B. PoF Adj Factor Scoring'!$E$5:$F$282,,MATCH(I$4,'B. PoF Adj Factor Scoring'!$E$3:$N$3,0)-1),2,TRUE) -> 0 | J119: =VLOOKUP(E:E,OFFSET('B. PoF Adj Factor Scoring'!$E$5:$F$282,,MATCH(J$4,'B. PoF Adj Factor Scoring'!$E$3:$N$3,0)-1),2,TRUE) -> 0 | K119: =VLOOKUP(F:F,OFFSET('B. PoF Adj Factor Scoring'!$E$5:$F$282,,MATCH(K$4,'B. PoF Adj Factor Scoring'!$E$3:$N$3,0)-1),2,TRUE) -> 0
A120: 115 | B120: PVC | C120: ='A. Population Info'!H120 -> 0 | D120: ='A. Population Info'!I120 -> 0 | E120: ='A. Population Info'!J120 -> 0 | F120: ='A. Population Info'!K120 -> 0 | G120: =VLOOKUP(B:B,OFFSET('B. PoF Adj Factor Scoring'!$E$5:$F$282,,MATCH(G$4,'B. PoF Adj Factor Scoring'!$E$3:$N$3,0)-1),2,TRUE) -> 5 | H120: =VLOOKUP(C:C,OFFSET('B. PoF Adj Factor Scoring'!$E$5:$F$282,,MATCH(H$4,'B. PoF Adj Factor Scoring'!$E$3:$N$3,0)-1),2,TRUE) -> 0 | I120: =VLOOKUP(D:D,OFFSET('B. PoF Adj Factor Scoring'!$E$5:$F$282,,MATCH(I$4,'B. PoF Adj Factor Scoring'!$E$3:$N$3,0)-1),2,TRUE) -> 0 | J120: =VLOOKUP(E:E,OFFSET('B. PoF Adj Factor Scoring'!$E$5:$F$282,,MATCH(J$4,'B. PoF Adj Factor Scoring'!$E$3:$N$3,0)-1),2,TRUE) -> 0 | K120: =VLOOKUP(F:F,OFFSET('B. PoF Adj Factor Scoring'!$E$5:$F$282,,MATCH(K$4,'B. PoF Adj Factor Scoring'!$E$3:$N$3,0)-1),2,TRUE) -> 0
A121: 116 | B121: PVC | C121: ='A. Population Info'!H121 -> 0 | D121: ='A. Population Info'!I121 -> 0 | E121: ='A. Population Info'!J121 -> 0 | F121: ='A. Population Info'!K121 -> 0 | G121: =VLOOKUP(B:B,OFFSET('B. PoF Adj Factor Scoring'!$E$5:$F$282,,MATCH(G$4,'B. PoF Adj Factor Scoring'!$E$3:$N$3,0)-1),2,TRUE) -> 5 | H121: =VLOOKUP(C:C,OFFSET('B. PoF Adj Factor Scoring'!$E$5:$F$282,,MATCH(H$4,'B. PoF Adj Factor Scoring'!$E$3:$N$3,0)-1),2,TRUE) -> 0 | I121: =VLOOKUP(D:D,OFFSET('B. PoF Adj Factor Scoring'!$E$5:$F$282,,MATCH(I$4,'B. PoF Adj Factor Scoring'!$E$3:$N$3,0)-1),2,TRUE) -> 0 | J121: =VLOOKUP(E:E,OFFSET('B. PoF Adj Factor Scoring'!$E$5:$F$282,,MATCH(J$4,'B. PoF Adj Factor Scoring'!$E$3:$N$3,0)-1),2,TRUE) -> 0 | K121: =VLOOKUP(F:F,OFFSET('B. PoF Adj Factor Scoring'!$E$5:$F$282,,MATCH(K$4,'B. PoF Adj Factor Scoring'!$E$3:$N$3,0)-1),2,TRUE) -> 0
A122: 117 | B122: PVC | C122: ='A. Population Info'!H122 -> 0 | D122: ='A. Population Info'!I122 -> 0 | E122: ='A. Population Info'!J122 -> 0 | F122: ='A. Population Info'!K122 -> 0 | G122: =VLOOKUP(B:B,OFFSET('B. PoF Adj Factor Scoring'!$E$5:$F$282,,MATCH(G$4,'B. PoF Adj Factor Scoring'!$E$3:$N$3,0)-1),2,TRUE) -> 5 | H122: =VLOOKUP(C:C,OFFSET('B. PoF Adj Factor Scoring'!$E$5:$F$282,,MATCH(H$4,'B. PoF Adj Factor Scoring'!$E$3:$N$3,0)-1),2,TRUE) -> 0 | I122: =VLOOKUP(D:D,OFFSET('B. PoF Adj Factor Scoring'!$E$5:$F$282,,MATCH(I$4,'B. PoF Adj Factor Scoring'!$E$3:$N$3,0)-1),2,TRUE) -> 0 | J122: =VLOOKUP(E:E,OFFSET('B. PoF Adj Factor Scoring'!$E$5:$F$282,,MATCH(J$4,'B. PoF Adj Factor Scoring'!$E$3:$N$3,0)-1),2,TRUE) -> 0 | K122: =VLOOKUP(F:F,OFFSET('B. PoF Adj Factor Scoring'!$E$5:$F$282,,MATCH(K$4,'B. PoF Adj Factor Scoring'!$E$3:$N$3,0)-1),2,TRUE) -> 0
A123: 118 | B123: PVC | C123: ='A. Population Info'!H123 -> 0 | D123: ='A. Population Info'!I123 -> 0 | E123: ='A. Population Info'!J123 -> 0 | F123: ='A. Population Info'!K123 -> 0 | G123: =VLOOKUP(B:B,OFFSET('B. PoF Adj Factor Scoring'!$E$5:$F$282,,MATCH(G$4,'B. PoF Adj Factor Scoring'!$E$3:$N$3,0)-1),2,TRUE) -> 5 | H123: =VLOOKUP(C:C,OFFSET('B. PoF Adj Factor Scoring'!$E$5:$F$282,,MATCH(H$4,'B. PoF Adj Factor Scoring'!$E$3:$N$3,0)-1),2,TRUE) -> 0 | I123: =VLOOKUP(D:D,OFFSET('B. PoF Adj Factor Scoring'!$E$5:$F$282,,MATCH(I$4,'B. PoF Adj Factor Scoring'!$E$3:$N$3,0)-1),2,TRUE) -> 0 | J123: =VLOOKUP(E:E,OFFSET('B. PoF Adj Factor Scoring'!$E$5:$F$282,,MATCH(J$4,'B. PoF Adj Factor Scoring'!$E$3:$N$3,0)-1),2,TRUE) -> 0 | K123: =VLOOKUP(F:F,OFFSET('B. PoF Adj Factor Scoring'!$E$5:$F$282,,MATCH(K$4,'B. PoF Adj Factor Scoring'!$E$3:$N$3,0)-1),2,TRUE) -> 0
A124: 119 | B124: PVC | C124: ='A. Population Info'!H124 -> 0 | D124: ='A. Population Info'!I124 -> 0 | E124: ='A. Population Info'!J124 -> 0 | F124: ='A. Population Info'!K124 -> 0 | G124: =VLOOKUP(B:B,OFFSET('B. PoF Adj Factor Scoring'!$E$5:$F$282,,MATCH(G$4,'B. PoF Adj Factor Scoring'!$E$3:$N$3,0)-1),2,TRUE) -> 5 | H124: =VLOOKUP(C:C,OFFSET('B. PoF Adj Factor Scoring'!$E$5:$F$282,,MATCH(H$4,'B. PoF Adj Factor Scoring'!$E$3:$N$3,0)-1),2,TRUE) -> 0 | I124: =VLOOKUP(D:D,OFFSET('B. PoF Adj Factor Scoring'!$E$5:$F$282,,MATCH(I$4,'B. PoF Adj Factor Scoring'!$E$3:$N$3,0)-1),2,TRUE) -> 0 | J124: =VLOOKUP(E:E,OFFSET('B. PoF Adj Factor Scoring'!$E$5:$F$282,,MATCH(J$4,'B. PoF Adj Factor Scoring'!$E$3:$N$3,0)-1),2,TRUE) -> 0 | K124: =VLOOKUP(F:F,OFFSET('B. PoF Adj Factor Scoring'!$E$5:$F$282,,MATCH(K$4,'B. PoF Adj Factor Scoring'!$E$3:$N$3,0)-1),2,TRUE) -> 0
A125: 120 | B125: PVC | C125: ='A. Population Info'!H125 -> 0 | D125: ='A. Population Info'!I125 -> 0 | E125: ='A. Population Info'!J125 -> 0 | F125: ='A. Population Info'!K125 -> 0 | G125: =VLOOKUP(B:B,OFFSET('B. PoF Adj Factor Scoring'!$E$5:$F$282,,MATCH(G$4,'B. PoF Adj Factor Scoring'!$E$3:$N$3,0)-1),2,TRUE) -> 5 | H125: =VLOOKUP(C:C,OFFSET('B. PoF Adj Factor Scoring'!$E$5:$F$282,,MATCH(H$4,'B. PoF Adj Factor Scoring'!$E$3:$N$3,0)-1),2,TRUE) -> 0 | I125: =VLOOKUP(D:D,OFFSET('B. PoF Adj Factor Scoring'!$E$5:$F$282,,MATCH(I$4,'B. PoF Adj Factor Scoring'!$E$3:$N$3,0)-1),2,TRUE) -> 0 | J125: =VLOOKUP(E:E,OFFSET('B. PoF Adj Factor Scoring'!$E$5:$F$282,,MATCH(J$4,'B. PoF Adj Factor Scoring'!$E$3:$N$3,0)-1),2,TRUE) -> 0 | K125: =VLOOKUP(F:F,OFFSET('B. PoF Adj Factor Scoring'!$E$5:$F$282,,MATCH(K$4,'B. PoF Adj Factor Scoring'!$E$3:$N$3,0)-1),2,TRUE) -> 0
A126: 121 | B126: PVC | C126: ='A. Population Info'!H126 -> 0 | D126: ='A. Population Info'!I126 -> 0 | E126: ='A. Population Info'!J126 -> 0 | F126: ='A. Population Info'!K126 -> 0 | G126: =VLOOKUP(B:B,OFFSET('B. PoF Adj Factor Scoring'!$E$5:$F$282,,MATCH(G$4,'B. PoF Adj Factor Scoring'!$E$3:$N$3,0)-1),2,TRUE) -> 5 | H126: =VLOOKUP(C:C,OFFSET('B. PoF Adj Factor Scoring'!$E$5:$F$282,,MATCH(H$4,'B. PoF Adj Factor Scoring'!$E$3:$N$3,0)-1),2,TRUE) -> 0 | I126: =VLOOKUP(D:D,OFFSET('B. PoF Adj Factor Scoring'!$E$5:$F$282,,MATCH(I$4,'B. PoF Adj Factor Scoring'!$E$3:$N$3,0)-1),2,TRUE) -> 0 | J126: =VLOOKUP(E:E,OFFSET('B. PoF Adj Factor Scoring'!$E$5:$F$282,,MATCH(J$4,'B. PoF Adj Factor Scoring'!$E$3:$N$3,0)-1),2,TRUE) -> 0 | K126: =VLOOKUP(F:F,OFFSET('B. PoF Adj Factor Scoring'!$E$5:$F$282,,MATCH(K$4,'B. PoF Adj Factor Scoring'!$E$3:$N$3,0)-1),2,TRUE) -> 0
A127: 122 | B127: UG | C127: ='A. Population Info'!H127 -> 0 | D127: ='A. Population Info'!I127 -> 0 | E127: ='A. Population Info'!J127 -> 0 | F127: ='A. Population Info'!K127 -> 0 | G127: =VLOOKUP(B:B,OFFSET('B. PoF Adj Factor Scoring'!$E$5:$F$282,,MATCH(G$4,'B. PoF Adj Factor Scoring'!$E$3:$N$3,0)-1),2,TRUE) -> 5 | H127: =VLOOKUP(C:C,OFFSET('B. PoF Adj Factor Scoring'!$E$5:$F$282,,MATCH(H$4,'B. PoF Adj Factor Scoring'!$E$3:$N$3,0)-1),2,TRUE) -> 0 | I127: =VLOOKUP(D:D,OFFSET('B. PoF Adj Factor Scoring'!$E$5:$F$282,,MATCH(I$4,'B. PoF Adj Factor Scoring'!$E$3:$N$3,0)-1),2,TRUE) -> 0 | J127: =VLOOKUP(E:E,OFFSET('B. PoF Adj Factor Scoring'!$E$5:$F$282,,MATCH(J$4,'B. PoF Adj Factor Scoring'!$E$3:$N$3,0)-1),2,TRUE) -> 0 | K127: =VLOOKUP(F:F,OFFSET('B. PoF Adj Factor Scoring'!$E$5:$F$282,,MATCH(K$4,'B. PoF Adj Factor Scoring'!$E$3:$N$3,0)-1),2,TRUE) -> 0
A128: 123 | B128: UG | C128: ='A. Population Info'!H128 -> 0 | D128: ='A. Population Info'!I128 -> 0 | E128: ='A. Population Info'!J128 -> 0 | F128: ='A. Population Info'!K128 -> 0 | G128: =VLOOKUP(B:B,OFFSET('B. PoF Adj Factor Scoring'!$E$5:$F$282,,MATCH(G$4,'B. PoF Adj Factor Scoring'!$E$3:$N$3,0)-1),2,TRUE) -> 5 | H128: =VLOOKUP(C:C,OFFSET('B. PoF Adj Factor Scoring'!$E$5:$F$282,,MATCH(H$4,'B. PoF Adj Factor Scoring'!$E$3:$N$3,0)-1),2,TRUE) -> 0 | I128: =VLOOKUP(D:D,OFFSET('B. PoF Adj Factor Scoring'!$E$5:$F$282,,MATCH(I$4,'B. PoF Adj Factor Scoring'!$E$3:$N$3,0)-1),2,TRUE) -> 0 | J128: =VLOOKUP(E:E,OFFSET('B. PoF Adj Factor Scoring'!$E$5:$F$282,,MATCH(J$4,'B. PoF Adj Factor Scoring'!$E$3:$N$3,0)-1),2,TRUE) -> 0 | K128: =VLOOKUP(F:F,OFFSET('B. PoF Adj Factor Scoring'!$E$5:$F$282,,MATCH(K$4,'B. PoF Adj Factor Scoring'!$E$3:$N$3,0)-1),2,TRUE) -> 0
A129: 124 | B129: UG | C129: ='A. Population Info'!H129 -> 0 | D129: ='A. Population Info'!I129 -> 0 | E129: ='A. Population Info'!J129 -> 0 | F129: ='A. Population Info'!K129 -> 0 | G129: =VLOOKUP(B:B,OFFSET('B. PoF Adj Factor Scoring'!$E$5:$F$282,,MATCH(G$4,'B. PoF Adj Factor Scoring'!$E$3:$N$3,0)-1),2,TRUE) -> 5 | H129: =VLOOKUP(C:C,OFFSET('B. PoF Adj Factor Scoring'!$E$5:$F$282,,MATCH(H$4,'B. PoF Adj Factor Scoring'!$E$3:$N$3,0)-1),2,TRUE) -> 0 | I129: =VLOOKUP(D:D,OFFSET('B. PoF Adj Factor Scoring'!$E$5:$F$282,,MATCH(I$4,'B. PoF Adj Factor Scoring'!$E$3:$N$3,0)-1),2,TRUE) -> 0 | J129: =VLOOKUP(E:E,OFFSET('B. PoF Adj Factor Scoring'!$E$5:$F$282,,MATCH(J$4,'B. PoF Adj Factor Scoring'!$E$3:$N$3,0)-1),2,TRUE) -> 0 | K129: =VLOOKUP(F:F,OFFSET('B. PoF Adj Factor Scoring'!$E$5:$F$282,,MATCH(K$4,'B. PoF Adj Factor Scoring'!$E$3:$N$3,0)-1),2,TRUE) -> 0
A130: 125 | B130: UG | C130: ='A. Population Info'!H130 -> 0 | D130: ='A. Population Info'!I130 -> 0 | E130: ='A. Population Info'!J130 -> 0 | F130: ='A. Population Info'!K130 -> 0 | G130: =VLOOKUP(B:B,OFFSET('B. PoF Adj Factor Scoring'!$E$5:$F$282,,MATCH(G$4,'B. PoF Adj Factor Scoring'!$E$3:$N$3,0)-1),2,TRUE) -> 5 | H130: =VLOOKUP(C:C,OFFSET('B. PoF Adj Factor Scoring'!$E$5:$F$282,,MATCH(H$4,'B. PoF Adj Factor Scoring'!$E$3:$N$3,0)-1),2,TRUE) -> 0 | I130: =VLOOKUP(D:D,OFFSET('B. PoF Adj Factor Scoring'!$E$5:$F$282,,MATCH(I$4,'B. PoF Adj Factor Scoring'!$E$3:$N$3,0)-1),2,TRUE) -> 0 | J130: =VLOOKUP(E:E,OFFSET('B. PoF Adj Factor Scoring'!$E$5:$F$282,,MATCH(J$4,'B. PoF Adj Factor Scoring'!$E$3:$N$3,0)-1),2,TRUE) -> 0 | K130: =VLOOKUP(F:F,OFFSET('B. PoF Adj Factor Scoring'!$E$5:$F$282,,MATCH(K$4,'B. PoF Adj Factor Scoring'!$E$3:$N$3,0)-1),2,TRUE) -> 0
A131: 126 | B131: UG | C131: ='A. Population Info'!H131 -> 0 | D131: ='A. Population Info'!I131 -> 0 | E131: ='A. Population Info'!J131 -> 0 | F131: ='A. Population Info'!K131 -> 0 | G131: =VLOOKUP(B:B,OFFSET('B. PoF Adj Factor Scoring'!$E$5:$F$282,,MATCH(G$4,'B. PoF Adj Factor Scoring'!$E$3:$N$3,0)-1),2,TRUE) -> 5 | H131: =VLOOKUP(C:C,OFFSET('B. PoF Adj Factor Scoring'!$E$5:$F$282,,MATCH(H$4,'B. PoF Adj Factor Scoring'!$E$3:$N$3,0)-1),2,TRUE) -> 0 | I131: =VLOOKUP(D:D,OFFSET('B. PoF Adj Factor Scoring'!$E$5:$F$282,,MATCH(I$4,'B. PoF Adj Factor Scoring'!$E$3:$N$3,0)-1),2,TRUE) -> 0 | J131: =VLOOKUP(E:E,OFFSET('B. PoF Adj Factor Scoring'!$E$5:$F$282,,MATCH(J$4,'B. PoF Adj Factor Scoring'!$E$3:$N$3,0)-1),2,TRUE) -> 0 | K131: =VLOOKUP(F:F,OFFSET('B. PoF Adj Factor Scoring'!$E$5:$F$282,,MATCH(K$4,'B. PoF Adj Factor Scoring'!$E$3:$N$3,0)-1),2,TRUE) -> 0
A132: 127 | B132: UG | C132: ='A. Population Info'!H132 -> 0 | D132: ='A. Population Info'!I132 -> 0 | E132: ='A. Population Info'!J132 -> 0 | F132: ='A. Population Info'!K132 -> 0 | G132: =VLOOKUP(B:B,OFFSET('B. PoF Adj Factor Scoring'!$E$5:$F$282,,MATCH(G$4,'B. PoF Adj Factor Scoring'!$E$3:$N$3,0)-1),2,TRUE) -> 5 | H132: =VLOOKUP(C:C,OFFSET('B. PoF Adj Factor Scoring'!$E$5:$F$282,,MATCH(H$4,'B. PoF Adj Factor Scoring'!$E$3:$N$3,0)-1),2,TRUE) -> 0 | I132: =VLOOKUP(D:D,OFFSET('B. PoF Adj Factor Scoring'!$E$5:$F$282,,MATCH(I$4,'B. PoF Adj Factor Scoring'!$E$3:$N$3,0)-1),2,TRUE) -> 0 | J132: =VLOOKUP(E:E,OFFSET('B. PoF Adj Factor Scoring'!$E$5:$F$282,,MATCH(J$4,'B. PoF Adj Factor Scoring'!$E$3:$N$3,0)-1),2,TRUE) -> 0 | K132: =VLOOKUP(F:F,OFFSET('B. PoF Adj Factor Scoring'!$E$5:$F$282,,MATCH(K$4,'B. PoF Adj Factor Scoring'!$E$3:$N$3,0)-1),2,TRUE) -> 0
A133: 128 | B133: UG | C133: ='A. Population Info'!H133 -> 0 | D133: ='A. Population Info'!I133 -> 0 | E133: ='A. Population Info'!J133 -> 0 | F133: ='A. Population Info'!K133 -> 0 | G133: =VLOOKUP(B:B,OFFSET('B. PoF Adj Factor Scoring'!$E$5:$F$282,,MATCH(G$4,'B. PoF Adj Factor Scoring'!$E$3:$N$3,0)-1),2,TRUE) -> 5 | H133: =VLOOKUP(C:C,OFFSET('B. PoF Adj Factor Scoring'!$E$5:$F$282,,MATCH(H$4,'B. PoF Adj Factor Scoring'!$E$3:$N$3,0)-1),2,TRUE) -> 0 | I133: =VLOOKUP(D:D,OFFSET('B. PoF Adj Factor Scoring'!$E$5:$F$282,,MATCH(I$4,'B. PoF Adj Factor Scoring'!$E$3:$N$3,0)-1),2,TRUE) -> 0 | J133: =VLOOKUP(E:E,OFFSET('B. PoF Adj Factor Scoring'!$E$5:$F$282,,MATCH(J$4,'B. PoF Adj Factor Scoring'!$E$3:$N$3,0)-1),2,TRUE) -> 0 | K133: =VLOOKUP(F:F,OFFSET('B. PoF Adj Factor Scoring'!$E$5:$F$282,,MATCH(K$4,'B. PoF Adj Factor Scoring'!$E$3:$N$3,0)-1),2,TRUE) -> 0
A134: 129 | B134: UG | C134: ='A. Population Info'!H134 -> 0 | D134: ='A. Population Info'!I134 -> 0 | E134: ='A. Population Info'!J134 -> 0 | F134: ='A. Population Info'!K134 -> 0 | G134: =VLOOKUP(B:B,OFFSET('B. PoF Adj Factor Scoring'!$E$5:$F$282,,MATCH(G$4,'B. PoF Adj Factor Scoring'!$E$3:$N$3,0)-1),2,TRUE) -> 5 | H134: =VLOOKUP(C:C,OFFSET('B. PoF Adj Factor Scoring'!$E$5:$F$282,,MATCH(H$4,'B. PoF Adj Factor Scoring'!$E$3:$N$3,0)-1),2,TRUE) -> 0 | I134: =VLOOKUP(D:D,OFFSET('B. PoF Adj Factor Scoring'!$E$5:$F$282,,MATCH(I$4,'B. PoF Adj Factor Scoring'!$E$3:$N$3,0)-1),2,TRUE) -> 0 | J134: =VLOOKUP(E:E,OFFSET('B. PoF Adj Factor Scoring'!$E$5:$F$282,,MATCH(J$4,'B. PoF Adj Factor Scoring'!$E$3:$N$3,0)-1),2,TRUE) -> 0 | K134: =VLOOKUP(F:F,OFFSET('B. PoF Adj Factor Scoring'!$E$5:$F$282,,MATCH(K$4,'B. PoF Adj Factor Scoring'!$E$3:$N$3,0)-1),2,TRUE) -> 0
A135: 130 | B135: UG | C135: ='A. Population Info'!H135 -> 0 | D135: ='A. Population Info'!I135 -> 0 | E135: ='A. Population Info'!J135 -> 0 | F135: ='A. Population Info'!K135 -> 0 | G135: =VLOOKUP(B:B,OFFSET('B. PoF Adj Factor Scoring'!$E$5:$F$282,,MATCH(G$4,'B. PoF Adj Factor Scoring'!$E$3:$N$3,0)-1),2,TRUE) -> 5 | H135: =VLOOKUP(C:C,OFFSET('B. PoF Adj Factor Scoring'!$E$5:$F$282,,MATCH(H$4,'B. PoF Adj Factor Scoring'!$E$3:$N$3,0)-1),2,TRUE) -> 0 | I135: =VLOOKUP(D:D,OFFSET('B. PoF Adj Factor Scoring'!$E$5:$F$282,,MATCH(I$4,'B. PoF Adj Factor Scoring'!$E$3:$N$3,0)-1),2,TRUE) -> 0 | J135: =VLOOKUP(E:E,OFFSET('B. PoF Adj Factor Scoring'!$E$5:$F$282,,MATCH(J$4,'B. PoF Adj Factor Scoring'!$E$3:$N$3,0)-1),2,TRUE) -> 0 | K135: =VLOOKUP(F:F,OFFSET('B. PoF Adj Factor Scoring'!$E$5:$F$282,,MATCH(K$4,'B. PoF Adj Factor Scoring'!$E$3:$N$3,0)-1),2,TRUE) -> 0
